Workbook

Sheet NOVO
B3: Novidades da Versão
A6: V3.00
B7: GERAL
C8: =IF(D8<>"","▪","") -> ▪ | D8: Lançamento: Adequação à Portaria 424/2016. Acompanhamento por Eventos.
C9: =IF(D9<>"","▪","") -> 
A10: V3.01
B11: GERAL
C12: =IF(D12<>"","▪","") -> ▪ | D12: Ajustes de formatações.
B13: PO
C14: =IF(D14<>"","▪","") -> ▪ | D14: Correção da aplicação do BDI não desonerado.
C15: =IF(D15<>"","▪","") -> ▪ | D15: Inclusão de coluna exclusiva "Preço Unitário Edital", para o Modo 'Orçamento Licitado'.
A17: V3.02
B18: GERAL
C19: =IF(D19<>"","▪","") -> ▪ | D19: Ajustes de formatações.
C20: =IF(D20<>"","▪","") -> ▪ | D20: Correção do Problema de Guias ocultas no BROFFICE.
B21: ORÇAMENTO
C22: =IF(D22<>"","▪","") -> ▪ | D22: Ampliada obtenção de dados da Planilha Referência de 20.000 para 65.536 linhas.
B23: CRONOGRAMA
C24: =IF(D24<>"","▪","") -> ▪ | D24: Correção na formulação do total acumulado por Repasse, CP e Outros
B25: QCI
C26: =IF(D26<>"","▪","") -> ▪ | D26: Correção na formulação do arredondamento no rateio dos valores do QCI.
B27: RRE
C28: =IF(D28<>"","▪","") -> ▪ | D28: Correção na formulação do total por Repasse, CP e Outros.
A30: V3.03
B31: GERAL
C32: =IF(D32<>"","▪","") -> ▪ | D32: Correção do Problema de Guias ocultas no BROFFICE.
B33: CÁLCULO
C34: =IF(D34<>"","▪","") -> ▪ | D34: Corrigida lentidão e travamento ao incluir e excluir frentes.
A37: V3.04
B38: BDI
C39: =IF(D39<>"","▪","") -> ▪ | D39: Correção da CPRB que exibia 4,5% mesmo quando não desonerado.
B40: CRONOGRAMA
C41: =IF(D41<>"","▪","") -> ▪ | D41: Correção da distribuição de Repasse, CP e Outros para as metas manuais.
B42: QCI
C43: =IF(D43<>"","▪","") -> ▪ | D43: Adicionado botão para adotar a CP do QCI como CP do contrato (zera saldo a reprogramar de CP).
A45: V3.05
B46: GERAL
C47: =IF(D47<>"","▪","") -> ▪ | D47: Corrigido modo de Cálculo da Planilha para Automático.
A49: V3.06
B50: GERAL
C51: =IF(D51<>"","▪","") -> ▪ | D51: Adicionado modo de arredondamento para compatibilidade com o TransfereGOV, altera na aba DADOS
C52: =IF(D52<>"","▪","") -> ▪ | D52: A planilha passará a ser disponibilizada com o formato .xlsm. Deve ser usado arquivo referência 1.9 ou superior, também no formato .xlsm
A54: V3.07
B55: GERAL
C56: =IF(D56<>"","▪","") -> ▪ | D56: Alterada a posição da aba NOVO para antes da aba MENU.
C57: =IF(D57<>"","▪","") -> ▪ | D57: Alterada a posição da aba CÁLCULO para depois da aba EVENTOS. Pois, no caso de acompanhamento por PLE, a lista supensa na coluna "Nº Agrupador de Eventos" na aba CÁLCULO depende do preenchimento prévio da aba EVENTOS.
C58: ▪ | D58: Alterada a posição da aba CRONO para depois da aba CRONOPLE. Pois, no caso de acompanhamento por PLE, a aba CRONO tem o preenchimento automático a partir da aba CRONOPLE.
C59: ▪ | D59: Alterada a posição da aba PLE para depois da aba QCI. Com a finalidade de deixar agrupadas todas as abas de acompanhamento (PLE, BM, RRE, OFÍCIO).
C60: ▪ | D60: Acrescentados botões de navegação (cor azul claro) em várias abas. Em relação a esses botões, também foram ajustados os links, nomes e formatação.
C61: ▪ | D61: Criada macro para exibir apenas as abas pertinentes (exemplo: caso o acompanhamento seja por PLE, a aba BM fica oculta).
C62: ▪ | D62: Ajuste na macro para correção automática do Nº AGRUPADOR DE EVENTOS na aba CÁLCULO, quando se ADCIONAR ou EXCLUIR LINHAS na aba EVENTOS.
B63: MENU
C64: =IF(D64<>"","▪","") -> ▪ | D64: Acrescentado o botão "IMPORTAR DE OUTROS MODELOS CAIXA": PO (MO27476); PLE (MO27477); e QCI (MO41211).
C65: =IF(D65<>"","▪","") -> ▪ | D65: Acrescentado o botão de seleção "Importar Fórmulas para o Custo Unitário (aba ORÇAMENTO)".
D66: Caso selecionada, será importada a fórmula (se houver) do custo unitário; Caso desmarcada, será importado somente o valor.
C67: =IF(D67<>"","▪","") -> ▪ | D67: Acrescentado o botão de seleção "Importar Fórmulas para as Quantidades da PLQ (aba CÁLCULO)".
D68: Caso selecionada, será importada a fórmula (se houver) do quantitativo; Caso desmarcada, será importado somente o valor.
C69: =IF(D69<>"","▪","") -> ▪ | D69: Atualizada a macro de Importação para incluir a importar da coluna "Nº Agrupador de Eventos" da aba CÁLCULO.
C70: =IF(D70<>"","▪","") -> ▪ | D70: Atualizada a macro de Imprimir Documentos (para englobar as abas EVENTOS e CRONOPLE).
B71: BDI
C72: =IF(D72<>"","▪","") -> ▪ | D72: Ajuste automático do valor da CPRB em função da data base do orçamento (para atendimento do Art. 9-A da Lei 12.546 de 14/12/2011).
B73: EVENTOS
C74: =IF(D74<>"","▪","") -> ▪ | D74: Acrescentados os dados de identificação do Contrato de Repasse.
C75: =IF(D75<>"","▪","") -> ▪ | D75: Acrescentadas as colunas dos totais dos Eventos por Frentes de Obra.
C76: =IF(D76<>"","▪","") -> ▪ | D76: Acrescentados os dados de Local, Data e Responsável Técnico.
C77: =IF(D77<>"","▪","") -> ▪ | D77: Acrescentado FILTRO para exibir apenas as linhas preenchidas.
B78: CRONOPLE
C79: =IF(D79<>"","▪","") -> ▪ | D79: Acrescentados os dados de identificação do Contrato de Repasse.
C80: =IF(D80<>"","▪","") -> ▪ | D80: Acrescentado o quadro "Cronograma" com percentual e valor da parcela e percentual e valor acumulado.
C81: =IF(D81<>"","▪","") -> ▪ | D81: Acrescentados os dados de Local, Data e Responsável Técnico.
C82: =IF(D82<>"","▪","") -> ▪ | D82: Acrescentado FILTRO para exibir apenas as linhas preenchidas.
B83: RRE
C84: =IF(D84<>"","▪","") -> ▪ | D84: Correção na fórmula da data, para replicar a “Data de fechamento do RRE” na aba DADOS.
B85: OFÍCIO
C86: =IF(D86<>"","▪","") -> ▪ | D86: Exclusão do quadro "Resumo de Valores por CTEF".
A88: V3.08
B89: GERAL
C90: =IF(D90<>"","▪","") -> ▪ | D90: Incluídos alertas de erro de preenchimento em todas as abas.
B91: MENU
C92: =IF(D92<>"","▪","") -> ▪ | D92: Incluído botão de macro para gerar arquivo (em xlsx) para upload da PO e CFF no TransfereGOV.
C93: =IF(D93<>"","▪","") -> ▪ | D93: Ajustada a macro "Importar de outra Planilha Múltipla" para importar o Cronograma da aba CRONO. Também foram incluídas as importações dos campos: Data do preenchimento (DADOS), Data de fechamento do RRE (DADOS); nº da 1ª Parcela do Cronograma (CRONO), mês da 1ª Parcela do Cronograma (CRONO), nº da Medição (BM) e nº da Medição (PLE).
C94: =IF(D94<>"","▪","") -> ▪ | D94: Incluída a informação do progresso na macro "Importar de outra Planilha Múltipla", por meio de uma barra de progresso (janela que será exibida na tela) e da indicação das etapas de importação na barra de status do Excel (canto inferior esquerdo da janela do Excel).
B95: BDI
C96: =IF(D96<>"","▪","") -> ▪ | D96: Incluídos botões de navegação para os formulários de BDI (BDI 1, BDI 2, BDI 3).
B97: ORÇAMENTO
C98: =IF(D98<>"","▪","") -> ▪ | D98: Incluído botão de macro para padronizar as siglas de unidades, conforme lista de siglas válidas no TransfereGOV.
B99: EVENTOS
C100: =IF(D100<>"","▪","") -> ▪ | D100: O Título de Evento "Administração Local" com preenchimento automático proporcional agora é exibido apenas no modo Arredondamento de Frentes "Tradicional" e para a opção Agrupadores de Eventos "Definir Manualmente".
C101: =IF(D101<>"","▪","") -> ▪ | D101: Não é mais possível deixar Eventos em branco (sem nome ou sem valor).
B102: CÁLCULO
C103: =IF(D103<>"","▪","") -> ▪ | D103: Não é mais possível deixar Frentes de Obra em branco (sem nome ou sem quantidades).
B104: CRONOPLE
C105: =IF(D105<>"","▪","") -> ▪ | D105: Incluído campo para selecionar o Título do Evento referente à Administração Local (acompanhamento por PLE).
C106: =IF(D106<>"","▪","") -> ▪ | D106: Incluída linha com o percentual acumulado da Administração Local em cada período.
B107: CRONO
C108: =IF(D108<>"","▪","") -> ▪ | D108: Ajustada a fórmula do % acumulado a partir da parcela 13 (para manter o padrão da fórmula das parcelas 1 a 12).
C109: =IF(D109<>"","▪","") -> ▪ | D109: Incluído campo para selecionar o Macrosserviço referente à Administração Local (acompanhamento por BM).
C110: =IF(D110<>"","▪","") -> ▪ | D110: Incluída linha com o percentual acumulado da Administração Local em cada parcela.
B111: RRE
C112: =IF(D112<>"","▪","") -> ▪ | D112: Corrigida a fórmula do % no quadro "Percentual previsto em:". Que estava limitada a buscar o % previsto até a parcela 12.
B113: PLE
C114: =IF(D114<>"","▪","") -> ▪ | D114: Incluída linha com o percentual acumulado da Administração Local em cada medição.
B115: BM
C116: =IF(D116<>"","▪","") -> ▪ | D116: Incluído campo com o percentual medido acumulado da Administração Local.
A118: V3.09
B119: MENU
C120: =IF(D120<>"","▪","") -> ▪ | D120: Atualizada a macro "Gerar arquivo para upload no TransfereGOV" para ajustar os códigos de composições SINAPI (acrescentar zeros a esquerda até completar dez dígitos) para Data base igual ou superior a JAN/2025.
B121: ORÇAMENTO
C122: =IF(D122<>"","▪","") -> ▪ | D122: Acrescentada formatação condicional na coluna "Descrição" para exibir os textos de alerta de erro, textos que começam com "(", na cor vermelha.
B123: BDI
C124: =IF(D124<>"","▪","") -> ▪ | D124: Corrigida a macro dos botões de navegação para os formulários do BDI.
A126: V3.10
B127: GERAL
C128: =IF(D128<>"","▪","") -> ▪ | D128: Corrigidas as fórmulas da v3.08 / v3.09 que eram incompatíveis com as versões do Excel anteriores ao Office 365.
A130: V3.11
B131: MENU
C132: =IF(D132<>"","▪","") -> ▪ | D132: Ajuste na macro "Importar de outra Planilha Múltipla" para tratar o erro "tipos incompatíveis".
C133: =IF(D133<>"","▪","") -> ▪ | D133: Ajuste na macro "Gerar arquivo para upload no TransfereGOV" para informar no status o número da linha que está sendo mesclada.
B134: CRONO
C135: =IF(D135<>"","▪","") -> ▪ | D135: Correção nas fórmulas dos valores no período da 13ª parcela do cronograma.
B136: RRE
C137: =IF(D137<>"","▪","") -> ▪ | D137: Correção nas fórmulas dos valores acumulados no caso de Administração Local de preenchimento manual.
A139: V3.12
B140: MENU
C141: =IF(D141<>"","▪","") -> ▪ | D141: Atualização na macro "Gerar arquivo para upload no TransfereGOV" em virtude de alteração no upload no TransfereGOV (código sem zeros a esquerda).
B142: BDI
C143: =IF(D143<>"","▪","") -> ▪ | D143: Revisão nos alertas de erro de preenchimento.
B144: ORÇAMENTO
C145: =IF(D145<>"","▪","") -> ▪ | D145: Revisão nos alertas de erro de preenchimento.
B146: EVENTOS
C147: =IF(D147<>"","▪","") -> ▪ | D147: Revisão na lista suspensa de opções da forma de definição dos agrupadores de eventos.
B148: CÁLCULO
C149: =IF(D149<>"","▪","") -> ▪ | D149: Revisão nos alertas de erro de preenchimento.
B150: CRONOPLE
C151: =IF(D151<>"","▪","") -> ▪ | D151: Correção na macro "Atualizar Linhas".
B152: CRONO
C153: =IF(D153<>"","▪","") -> ▪ | D153: Correção na fórmula dos porcentuais de Administração Local, no caso de agrupadores de eventos automáticos.
A155: V3.13
B156: GERAL
C157: =IF(D157<>"","▪","") -> ▪ | D157: Ajuste em todas as listas suspensas (substituindo valores ou textos por um intervalo com os dados).
B158: MENU
C159: =IF(D159<>"","▪","") -> ▪ | D159: Correção do valor total na macro "Gerar arquivo para upload no TransfereGOV". No arquivo para upload o valor total era preenchido apenas com o valor da meta 1.
C160: =IF(D160<>"","▪","") -> ▪ | D160: Correção nos arredondamentos na macro "Gerar arquivo para upload no TransfereGOV". No caso de preenchimento das quantidades com mais de duas casas decimais na PLQ, os valores calculados no Tgov ficavam diferentes dos valores calculados na Múltipla.
C161: =IF(D161<>"","▪","") -> ▪ | D161: Atualização na macro "Gerar arquivo para upload no TransfereGOV". No caso de alertas de erro de preenchimento nas abas BDI e ORÇAMENTO a caixa de mensagem informa o erro encontrado e pergunta ao usuário se quer "Corrigir o erro agora?", caso o usuário responda "Não" a macro continua os procedimentos e gera o arquivo com o erro de preenchimento.
B162: ORÇAMENTO
C163: =IF(D163<>"","▪","") -> ▪ | D163: Atualização no preenchimento da coluna BDI. Possibilidade de preencher diretamente um percentual na célula.
C164: =IF(D164<>"","▪","") -> ▪ | D164: Ajuste no alerta de erro "Acima Ref.", dispensado caso a Fonte de Recursos seja diferente de "OGU".
C165: =IF(D165<>"","▪","") -> ▪ | D165: Incluído alerta de erro caso a data base do arquivo referência seja diferente da indicada no nome do mesmo arquivo.
C166: =IF(D166<>"","▪","") -> ▪ | D166: Incluído alerta de erro caso os arredondamentos de todos os valores não estejam selecionados (para contratos no transferegov).
C167: =IF(D167<>"","▪","") -> ▪ | D167: Incluído alerta de erro "Justificar BDI", caso não seja adotado um BDI da lista suspensa.
B168: CÁLCULO
C169: =IF(D169<>"","▪","") -> ▪ | D169: Incluído alerta de erro "Verificar as quantidades preenchidas na linha...", caso a soma das quantidades preenchidas seja diferente da soma das quantidades arredondadas com duas casas decimais.
C170: =IF(D170<>"","▪","") -> ▪ | D170: Incluído alerta de erro "Preencha as quantidades com no máximo duas casas decimais", caso o alerta de erro acima aparece em alguma linha.
C171: ▪ | D171: Incluída formatação condicional para indicar as quantidades na PLQ com mais de duas casas decimais (o texto ficará na cor vermelha).
B172: CRONOPLE
C173: =IF(D173<>"","▪","") -> ▪ | D173: Correção na macro "Atualizar Linhas".
B174: PLE
C175: =IF(D175<>"","▪","") -> ▪ | D175: Correção na fórmula na coluna Filtro.
B176: RRE
C177: =IF(D177<>"","▪","") -> ▪ | D177: Correção nas fórmulas dos valores acumulados (o valor da administração local era duplicado em alguns casos).
A179: V3.14
B180: GERAL
C181: =IF(D181<>"","▪","") -> ▪ | D181: Ajustes em algumas fórmulas que eram incompatíveis com as versões do Excel anteriores ao Office 365.
B182: MENU
C183: =IF(D183<>"","▪","") -> ▪ | D183: Ajuste na macro "Gerar arquivo para upload no TransfereGOV". Excluído o procedimento de mesclagem de células, visando a eficiência da macro.
C184: =IF(D184<>"","▪","") -> ▪ | D184: Inclusão do botão [RESET]. Para resetar a Planilha Múltipla (apagar todos os dados preenchidos e restaurar o padrão inicial).
A186: V3.15
B187: ORÇAMENTO
C188: =IF(D188<>"","▪","") -> ▪ | D188: Ajuste na fórmula da coluna "Descrição" para corrigir incompatibilidade com as versões do Excel anteriores ao Office 365.
A190: V3.16
B191: BDI
C192: =IF(D192<>"","▪","") -> ▪ | D192: Corrigidas as fórmulas da descrição dos itens dos BDIs 2 e 3.

Sheet MENU
J1: PM | K1: TRUE
E2: =CHOOSE(MATCH(Objeto,{"PM","PO"}),"PLANILHA MÚLTIPLA ","PLANILHA ORÇAMENTÁRIA ")& Versao -> PLANILHA MÚLTIPLA v3.16 | J2: v3.16 | K2: TRUE
O3: 1
J4: =IF(VALUE(MENU!$O$4)=2,"BM","PLE") -> BM | O4: 2
J5: Proposto
E6: DADOS DO CONTRATO | G6: NOVIDADES DA VERSÃO | J6: Licitado
J7: PLE
B8: =IF($O$3<>2,"DOCUMENTAÇÃO DA PROPOSTA","PROPOSTA: Para visualizar/preencher esta seção, altere o TIPO DE ORÇAMENTO para 'Proposto'") -> DOCUMENTAÇÃO DA PROPOSTA | J8: BM | L8: LEGENDA:
L9: Cores das células:
C10: =IF(TIPOORCAMENTO<>"Proposto",""," BDI ") -> BDI | E10: =IF(TIPOORCAMENTO<>"Proposto",""," ORÇAMENTO ") -> ORÇAMENTO | G10: =IF(TIPOORCAMENTO<>"Proposto","","MEMÓRIA DE CÁLCULO / PLQ") -> MEMÓRIA DE CÁLCULO / PLQ | N10: Fundo amarelo: células para preencher
C12: =IF(TIPOORCAMENTO<>"Proposto",""," QCI ") -> QCI | E12: =IF(TIPOORCAMENTO<>"Proposto","","CRONOGRAMA FÍSICO-FINANCEIRO") -> CRONOGRAMA FÍSICO-FINANCEIRO | N12: Fundo azul: células para seleção de opções
C14: =IF(TIPOORCAMENTO<>"Proposto","","Obs: Composições e Cotações devem ser preenchidas diretamente no arquivo Referência "&IF(ISBLANK(Import.DataBase),"mm-aaaa",TEXT(Import.DataBase,"mm-aaaa"))&".xlsm.") -> Obs: Composições e Cotações devem ser preenchidas diretamente no arquivo Referência 06-2025.xlsm.
L15: Cores dos botões:
B16: =IF($O$3<>2,"PÓS-LICITADO: Para visualizar/preencher esta seção, altere o TIPO DE ORÇAMENTO para 'Licitado'","RESULTADO DO PROCESSO LICITATÓRIO") -> PÓS-LICITADO: Para visualizar/preencher esta seção, altere o TIPO DE ORÇAMENTO para 'Licitado' | N16: Fundo azul claro: navegação entre abas
C18: =IF(TIPOORCAMENTO<>"Licitado",""," ORÇAMENTO ") ->  | E18: =IF(TIPOORCAMENTO<>"Licitado",""," QCI ") ->  | G18: =IF(TIPOORCAMENTO<>"Licitado","","CRONOGRAMA FÍSICO-FINANCEIRO") ->  | N18: Fundo laranja: execução de macro
B20: =IF($O$3<>2,"ACOMPANHAMENTO: Para visualizar/preencher esta seção, altere o TIPO DE ORÇAMENTO para 'Licitado'","ACOMPANHAMENTO DO EMPREENDIMENTO") -> ACOMPANHAMENTO: Para visualizar/preencher esta seção, altere o TIPO DE ORÇAMENTO para 'Licitado'
C22: =IF(OR(TIPOORCAMENTO<>"Licitado",ACOMPANHAMENTO<>"PLE"),"","PLAN. DE LEVANT. DE EVENTOS - PLE") ->  | E22: =IF(TIPOORCAMENTO<>"Licitado",""," RRE ") ->  | G22: =IF(OR(TIPOORCAMENTO<>"Licitado",ACOMPANHAMENTO<>"BM"),""," BOLETIM DE MEDIÇÃO - BM ") -> 
E24: =IF(TIPOORCAMENTO<>"Licitado","","OF. DE SOLICITAÇÃO DE DESBLOQUEIO") -> 

Sheet DADOS
B1: A. DOCUMENTAÇÃO DA PROPOSTA | D1: =IF(D3<>"","Falta preencher os Dados do Contrato",IF(D15<>"","Falta preencher os Dados do Empreendimento",IF(D21<>"","Falta preencher os Dados do Responsável pelo Orçamento",IF(D27<>"","Falta preencher os Dados do Responsável pelo Tomador",IF(D31<>"","Falta definir o método de arredondamento das frentes de obra",IF(D35<>"","Falta preencher os Dados da Licitação",IF(D46<>"","Falta preencher os Dados da Obra",IF(D50<>"","Falta preencher os Dados do Responsável pela Fiscalização","")))))))) ->  | G1: Fonte de recursos: | H1: Regime previdenciário | I1: Regime de Execução | J1: Arredondamento | N1: Sub-Itens de Investimento | AV1: Unidades válidas no Tgov
G2: (SELECIONAR) | H2: (SELECIONAR) | I2: (SELECIONAR) | J2: Tradicional | L2: Itens de Investimento | M2: Unidades habitacionais | N2: =COUNTA(M:M)-1 -> 3 | O2: Equipamentos comunitários | P2: =COUNTA(O:O)-1 -> 6 | Q2: Pavimentação | R2: =COUNTA(Q:Q)-1 -> 6 | S2: Drenagem | T2: =COUNTA(S:S)-1 -> 6 | U2: Abastecimento de água | V2: =COUNTA(U:U)-1 -> 11 | W2: Esgotamento sanitário | X2: =COUNTA(W:W)-1 -> 8 | Y2: Energia elétrica e iluminação pública | Z2: =COUNTA(Y:Y)-1 -> 4 | AA2: Coleta e tratamento de resíduos sólidos | AB2: =COUNTA(AA:AA)-1 -> 6 | AC2: Contenção e estabilização de encostas | AD2: =COUNTA(AC:AC)-1 -> 2 | AE2: Regularização fundiária | AF2: =COUNTA(AE:AE)-1 -> 2 | AG2: Aquisição de terreno | AH2: =COUNTA(AG:AG)-1 -> 2 | AI2: Aquisição de equipamentos e insumos | AJ2: =COUNTA(AI:AI)-1 -> 1 | AK2: Elaboração de estudos e projetos | AL2: =COUNTA(AK:AK)-1 -> 1 | AM2: Instrumentos e ações em planejamento e gestão pública | AN2: =COUNTA(AM:AM)-1 -> 1 | AO2: Ações complementares às obras | AP2: =COUNTA(AO:AO)-1 -> 3 | AQ2: Gerenciamento | AR2: =COUNTA(AQ:AQ)-1 -> 1 | AS2: Trabalho social | AT2: =COUNTA(AS:AS)-1 -> 4 | AV2: Sigla | AW2: Descrição
B3: Dados do Contrato (Inicial) | D3: =IF(COUNTIF(D4:D13,"◄")=0,"","Falta preencher a linha "&MATCH("◄",D4:D13,0)+ROW(D3)) ->  | G3: OGU | H3: NÃO SE APLICA | I3: INDEFINIDO / NÃO SE APLICA | J3: TransfereGOV | L3: Unidades habitacionais | M3: Aquisição | N3: un | O3: Convivência comunitária, assistência social e/ou comunitária | P3: m² | Q3: Capeamento de vias | R3: m² | S3: Obras de microdrenagem | T3: m | U3: Captação subterrânea | V3: m³/s | W3: Ligações domiciliares e/ou intradomiciliares | X3: un | Y3: Iluminação pública - luminárias | Z3: un | AA3: Acondicionamento | AB3: un | AC3: Estabilização de taludes | AD3: m² | AE3: Desapropriacões/Indenizações | AF3: m² | AG3: Aquisição de terreno | AH3: m² | AI3: Aquisição de equipamentos e insumos | AJ3: un | AK3: Elaboração de estudos e projetos | AL3: un | AM3: Instrumentos e ações em planejamento e gestão pública | AN3: un | AO3: Avaliação pós intervenção | AP3: un | AQ3: Gerenciamento | AR3: %CT | AS3: Projeto de Trabalho Social Preliminar | AT3: nº fam | AV3: %CT | AW3: %CT
B4: Fonte de recursos: | C4: OGU | D4: =IF(OR(OFFSET(D4,0,-1)="",OFFSET(D4,0,-1)="(SELECIONAR)"),"◄","") ->  | G4: FGTS | H4: DESONERADO | I4: EMPREITADA POR PREÇO GLOBAL | L4: Equipamentos comunitários | M4: Construção | N4: un | O4: Educação e cultura | P4: m² | Q4: Recapeamento de vias | R4: m² | S4: Desassoreamento de cursos de água | T4: m | U4: Captação superficial | V4: m³/s | W4: Rede coletora e/ou condominial | X4: m | Y4: Ligações domiciliares | Z4: un | AA4: Aterro sanitário e/ou disposição final | AB4: m³ | AC4: Obras complementares a ações de redução de risco e/ou contenções | AD4: m² | AE4: Projeto de Regularização Fundiária | AF4: m² | AG4: Benfeitorias | AH4: m² | AO4: Demolições | AP4: un | AS4: Projeto de Trabalho Social | AT4: nº fam | AV4: °C | AW4: GRAU CELSIUS
B5: Proponente/Tomador: | C5: PREFEITURA MUNICIPAL DE SIDROLÂNDIA | D5: =IF(OFFSET(D5,0,-1)="","◄","") ->  | H5: NÃO DESONERADO | I5: EMPREITADA POR PREÇO UNITÁRIO | L5: Pavimentação | M5: Reforma e/ou melhoria | N5: un | O5: Esportes | P5: m² | Q5: Obras de artes especiais | R5: m | S5: Canalização de cursos de água | T5: m | U5: Estação de bombeamento de água bruta | V5: m³/s | W5: Coletor tronco e/ou interceptores | X5: m | Y5: Linhas de distribuição - baixa tensão | Z5: m | AA5: Erradicação de lixões | AB5: m³ | AO5: Plano de Reassentamento e medidas compensatórias | AP5: un | AS5: Plano de Desenvolvimento Socioterritorial | AT5: nº fam | AV5: °F | AW5: GRAU FAHRENHEIT
B6: Município/UF: | C6: SIDROLÂNDIA/MS | I6: EMPREITADA INTEGRAL | L6: Drenagem | O6: Lazer e turismo | P6: m² | Q6: Pavimentação de calçadas | R6: m² | S6: Recomposição de vegetação ciliar, renaturalização de cursos de água ou restauração de margens | T6: m² | U6: Adução | V6: m | W6: Emissário | X6: m | Y6: Linhas de transmissão - alta tensão | Z6: m | AA6: Sistema de coleta seletiva tradicional, transporte e/ou equipamentos | AB6: un | AS6: Plano de Gestão Condominial | AT6: nº fam | AV6: 100M | AW6: 100 METROS
B7: Nº da Operação (0000000-00): | C7: 1.087.299-22/2023 | I7: TAREFA | L7: Abastecimento de água | O7: Saúde | P7: m² | Q7: Pavimentação de vias | R7: m² | S7: Reservatório de amortecimento de cheias | T7: m³ | U7: Estação de Tratamento de Água (ETA) | V7: m³/s | W7: Estação Elevatória | X7: m³/s | AA7: Tratamento local | AB7: un | AV7: 18L | AW7: 18 LITROS
B8: Nº do TransfereGOV (000000): | C8: 942900/2023 | D8: =IF(AND(Import.TipoArredondamento="TransfereGOV",OFFSET(D8,0,-1)=""),"◄","") ->  | I8: CONTRATAÇÃO INTEGRADA | L8: Esgotamento sanitário | O8: Segurança pública | P8: m² | Q8: Sinalização | R8: m² | S8: Estação de Bombeamento | T8: m³/s | U8: Estação de bombeamento de água tratada | V8: m³/s | W8: Estação de Tratamento de Esgoto (ETE) | X8: m³/s | AA8: Usinas de reciclagem | AB8: m² | AV8: 200KG | AW8: 200 QUILOS
B9: =IF(C4="FGTS","Valor de Financiamento Contratado (R$):","Valor do Repasse Contratado (R$):") -> Valor do Repasse Contratado (R$): | C9: 477500 | I9: ADM. DIRETA | L9: Energia elétrica e iluminação pública | U9: Linha de recalque | V9: m | W9: Sistema simplificado de tratamento | X9: m³/s | AV9: 250G | AW9: 250 GRAMAS
B10: Valor de Contrapartida Contratada (R$): | C10: 235557.76 | L10: Coleta e tratamento de resíduos sólidos | U10: Reservação | V10: m³ | W10: Unidades sanitárias | X10: un | AV10: 310ML | AW10: 310 MILILITROS
B11: % mínimo de Contrapartida: | C11: 0.0001 | L11: Contenção e estabilização de encostas | U11: Rede de distribuição | V11: m | AV11: 50KG | AW11: 50 QUILOS
B12: R$ mínimo de Contrapartida (se houver): | C12: 0.01 | L12: Regularização fundiária | U12: Ligações domiciliares e/ou intradomiciliares | V12: un | AV12: A | AW12: AMPÈRE
B13: % máximo de Contrapartida: | C13: 0.002 | L13: Aquisição de terreno | U13: Sistema simplificado de abastecimento | V13: m | AV13: ACA/ACC | AW13: A.CORR.ALTERN/CONT.
L14: Aquisição de equipamentos e insumos | AV14: AH | AW14: AMPÈRE HORA
B15: Dados do Empreendimento e Orçamento | D15: =IF(COUNTIF(D16:D19,"◄")=0,"","Falta preencher a linha "&MATCH("◄",D16:D19,0)+ROW(D15)) ->  | L15: Elaboração de estudos e projetos | AV15: AH/H/V | AW15: AMPÉRE-H/H/VOLT
B16: Nome/apelido: | C16: MODERNIZAÇÃO E REVITALIZAÇÃO DO ESTÁDIO MUNICIPAL DE SIDROLÂNDIA/MS | D16: =IF(OFFSET(D16,0,-1)="","◄","") ->  | L16: Instrumentos e ações em planejamento e gestão pública | AV16: AM | AW16: AMPOLA
B17: Descrição do Objeto do Lote / CTEF: | C17: REFORMA DE ARQUIBANCADA | L17: Ações complementares às obras | AV17: AM0/4ML | AW17: AMPOLA COM 0,4 Ml
B18: Regime previdenciário previsto para a obra: | C18: NÃO DESONERADO | D18: =IF(OR(OFFSET(D18,0,-1)="",OFFSET(D18,0,-1)="(SELECIONAR)"),"◄","") ->  | L18: Gerenciamento | AV18: AM0/5ML | AW18: AMPOLA COM 0,5 mL
B19: Data base do Orçamento: | C19: 2025-06-01 | L19: Trabalho social | AV19: AM1/5ML | AW19: AMPOLA COM 1,5 mL
AV20: AM10ML | AW20: AMPOLA COM 10 mL
B21: Responsável pelo Orçamento | D21: =IF(COUNTIF(D22:D25,"◄")=0,"","Falta preencher a linha "&MATCH("◄",D22:D25,0)+ROW(D21)) ->  | AV21: AM1ML | AW21: AMPOLA COM 1 mL
B22: Nome: | C22: FABIO MARQUES RIBEIRO | D22: =IF(OFFSET(D22,0,-1)="","◄","") ->  | AV22: AM2/5ML | AW22: AMPOLA COM 2,5 mL
B23: CREA/CAU: | C23: CREA-MS 15.276 | AV23: AM2ML | AW23: AMPOLA COM 2 mL
B24: ART/RRT: | C24: 1320240128034 | AV24: AM3ML | AW24: AMPOLA COM 3 mL
B25: Data do preenchimento: | C25: 2024-09-24 | AV25: AM4ML | AW25: AMPOLA COM 4 mL
AV26: AM5ML | AW26: AMPOLA COM 5 mL
B27: Responsável pelo Tomador (Prefeito, no caso de Municípios) | D27: =IF(COUNTIF(D28:D29,"◄")=0,"","Falta preencher a linha "&MATCH("◄",D28:D29,0)+ROW(D27)) ->  | AV27: AM6ML | AW27: AMPOLA COM 6 mL
B28: Nome: | C28: RODRIGO BASSO | D28: =IF(OFFSET(D28,0,-1)="","◄","") ->  | AV28: AM7ML | AW28: AMPOLA COM 7 mL
B29: Cargo: | C29: Prefeito | AV29: ANO | AW29: ANO/ANOS
AV30: ANOS | AW30: ANO/ANOS
B31: Arredondamento das frentes: | C31: TransfereGOV | D31: =IF(OFFSET(D31,0,-1)="","◄ Falta definir o método de arredondamento.","") ->  | AV31: ARR | AW31: ARROBA
AV32: AWG | AW32: AMERICAN WIRE GAUGE
B33: B. RESULTADO DO PROCESSO LICITATÓRIO | AV33: BAR | AW33: BARRIL
AV34: BAR. | AW34: BAR
B35: Licitação | D35: =IF(COUNTIF(D36:D39,"◄")=0,"","Falta preencher a linha "&MATCH("◄",D36:D39,0)+ROW(D35)) ->  | AV35: BD | AW35: BALDE
B36: Data de emissão dos documentos de licitação: | D36: =IF(AND(TIPOORCAMENTO="Licitado",OFFSET(D36,0,-1)=""),"◄","") ->  | AV36: BIS | AW36: BISNAGA
B37: Nº do CTEF (contrato com empresa): | D37: =IF(AND(TIPOORCAMENTO="Licitado",OFFSET(D37,0,-1)=""),"◄","") ->  | AV37: BIS/GL | AW37: BISNAGA POR GALÃO
B38: Nome da empresa: | D38: =IF(AND(TIPOORCAMENTO="Licitado",OFFSET(D38,0,-1)=""),"◄","") ->  | AV38: BIS1/65G | AW38: BISNAGA COM 1,65 g
B39: CNPJ da empresa: | D39: =IF(AND(TIPOORCAMENTO="Licitado",OFFSET(D39,0,-1)=""),"◄","") ->  | AV39: BIS1/8G | AW39: BISNAGA COM 1,8 g
B40: Regime de execução do CTEF: | C40: EMPREITADA POR PREÇO UNITÁRIO | D40: =IF(AND(TIPOORCAMENTO="Licitado",OR(OFFSET(D40,0,-1)="",OFFSET(D40,0,-1)="(SELECIONAR)")),"◄","") ->  | AV40: BIS100G | AW40: BISNAGA COM 100 g
B41: Data base do CTEF: | D41: =IF(AND(TIPOORCAMENTO="Licitado",OFFSET(D41,0,-1)=""),"◄","") ->  | AV41: BIS10G | AW41: BISNAGA COM 10 g
AV42: BIS135G | AW42: BISNAGA COM 135 g
AV43: BIS13G | AW43: BISNAGA COM 13 g
B44: C. ACOMPANHAMENTO DO EMPREENDIMENTO | AV44: BIS14G | AW44: BISNAGA COM 14 g
AV45: BIS15G | AW45: BISNAGA COM 15 g
B46: Dados da obra | D46: =IF(COUNTIF(D47:D48,"◄")=0,"","Falta preencher a linha "&MATCH("◄",D47:D48,0)+ROW(D46)) ->  | AV46: BIS1G | AW46: BISNAGA COM 1 g
B47: Data do Início da Obra: | D47: =IF(AND(TIPOORCAMENTO="Licitado",OFFSET(D47,0,-1)="",IFERROR(RRE!$O$28,0)>0),"◄","") ->  | AV47: BIS20G | AW47: BISNAGA COM 20 g
B48: Data de fechamento do RRE: | D48: =IF(AND(TIPOORCAMENTO="Licitado",OFFSET(D48,0,-1)="",IFERROR(RRE!$O$28,0)>0),"◄","") ->  | AV48: BIS25G | AW48: BISNAGA COM 25 g
AV49: BIS28/8G | AW49: BISNAGA COM 28,8 g
B50: Responsável pela Fiscalização | D50: =IF(COUNTIF(D51:D54,"◄")=0,"","Falta preencher a linha "&MATCH("◄",D51:D54,0)+ROW(D50)) ->  | AV50: BIS28G | AW50: BISNAGA COM 28 g
B51: Nome: | D51: =IF(AND(TIPOORCAMENTO="Licitado",OFFSET(D51,0,-1)="",IFERROR(RRE!$O$28,0)>0),"◄","") ->  | AV51: BIS2G | AW51: BISNAGA COM 2 g
B52: Profissão: | D52: =IF(AND(TIPOORCAMENTO="Licitado",OFFSET(D52,0,-1)="",IFERROR(RRE!$O$28,0)>0),"◄","") ->  | AV52: BIS3/5G | AW52: BISNAGA COM 3,5 g
B53: CREA/CAU (para obras/projetos): | D53: =IF(AND(TIPOORCAMENTO="Licitado",OFFSET(D53,0,-1)="",IFERROR(RRE!$O$28,0)>0),"◄","") ->  | AV53: BIS30G | AW53: BISNAGA COM 30 g
B54: ART/RRT (para obras/projetos): | D54: =IF(AND(TIPOORCAMENTO="Licitado",OFFSET(D54,0,-1)="",IFERROR(RRE!$O$28,0)>0),"◄","") ->  | AV54: BIS30ML | AW54: BISNAGA COM 30 mL
AV55: BIS40G | AW55: BISNAGA COM 40 g
AV56: BIS43G | AW56: BISNAGA COM 43 g
B57: D. ACOMPANHAMENTO CAIXA | AV57: BIS45G | AW57: BISNAGA COM 45 g
AV58: BIS47G | AW58: BISNAGA COM 47 g
B59: Responsável Gerencial | AV59: BIS4G | AW59: BISNAGA COM 4 g
B60: Nome: | AV60: BIS50G | AW60: BISNAGA COM 50 g
B61: Função: | AV61: BIS55G | AW61: BISNAGA COM 55 g
AV62: BIS56G | AW62: BISNAGA COM 56 g
AV63: BIS5G | AW63: BISNAGA COM 5 g
AV64: BIS60G | AW64: BISNAGA COM 60 g
AV65: BIS6G | AW65: BISNAGA COM 6 g
AV66: BIS7/5G | AW66: BISNAGA COM 7,5 g
AV67: BIS70G | AW67: BISNAGA COM 70 g
AV68: BIS80G | AW68: BISNAGA COM 80 g
AV69: BIS90G | AW69: BISNAGA COM 90 g
AV70: BIT | AW70: BITS
AV71: BL | AW71: BLOCO
AV72: BLIS | AW72: BLISTER
AV73: BLIS21CP | AW73: BLISTER COM 21 COMPRIMIDOS
AV74: BLIS35CP | AW74: BLISTER COM 35 COMPRIMIDOS
AV75: BOB | AW75: BOBINA
AV76: BOL | AW76: BOLSA
AV77: BOM | AW77: BOMBONA
AV78: BPM | AW78: BATIDA POR MINUTO
AV79: BPS | AW79: BYTE POR SEGUNDO
AV80: BR | AW80: BARRA
AV81: BRI | AW81: BARRICA
AV82: BTJ | AW82: BOTIJÃO
AV83: BTU | AW83: BRITISH THERMAL UNIT
AV84: BTU/H | AW84: BTU POR HORA
AV85: BWG | AW85: FIEIRA DE BIRMINGHAN
AV86: C | AW86: CENTENA
AV87: CA | AW87: CARTUCHO
AV88: CAD | AW88: CADERNO
AV89: CAL/G | AW89: CALORIA/GRAMA
AV90: CAPS | AW90: CÁPSULA
AV91: CAR | AW91: CARACTER
AV92: CC | AW92: CILINDRADA
AV93: CD | AW93: CANDELA
AV94: CD/M2 | AW94: CANDELA/METRO 2
AV95: CENTO | AW95: CENTO
AV96: CG | AW96: CENTIGRAMA
AV97: CH | AW97: CHAPA
AV98: CHI | AW98: CHI
AV99: CHP | AW99: CHP
AV100: CHP | AW100: CHP
AV101: CI | AW101: CURIE
AV102: CIL | AW102: CILINDRO
AV103: CIN | AW103: CINQUENTA
AV104: CJ | AW104: CONJUNTO
AV105: CL | AW105: CENTILITRO
AV106: CM | AW106: CENTÍMETRO
AV107: CM/POL | AW107: CENTÍMETRO/POLEGADA
AV108: CM2 | AW108: CENTIMETRO QUADRADO
AV109: CM2/H | AW109: CENT.QUAD/HORA
AV110: CM2/M | AW110: CENT.QUADRADO/METRO
AV111: CM3 | AW111: CENTÍMETRO CÚBICO
AV112: CM³/H | AW112: CENT.CÚBICO POR HORA
AV113: CM³/MIN | AW113: CM³/MINUTO
AV114: CNT | AW114: RECIPIENTE
AV115: CO | AW115: CONTEINER
AV116: COL | AW116: COLEÇÃO
AV117: COMP | AW117: COMPRIMENTO
AV118: COMPR | AW118: COMPRIMIDO
AV119: CÓPIA | AW119: CÓPIA
AV120: COPO | AW120: COPO
AV121: CP | AW121: CENTIPOISE
AV122: CPL | AW122: CARACTERES POR LINHA
AV123: CPM | AW123: CÓPIA POR MINUTO
AV124: CPS | AW124: CARACTER POR SEGUNDO
AV125: CRT | AW125: CARRETEL
AV126: CS | AW126: GRADEADO DE JAULA
AV127: CST | AW127: CENTISTOCKS
AV128: CT | AW128: CARTAO
AV129: CTE | AW129: CARTELA
AV130: CV | AW130: CAVALO VAPOR
AV131: CX | AW131: CAIXA
AV132: CX100UN | AW132: CAIXA COM 100 UNIDADES
AV133: CX40UN | AW133: CAIXA COM 40 UNIDADES
AV134: D | AW134: DIA
AV135: DAG | AW135: DECAGRAMA
AV136: DAL | AW136: DECALITRO
AV137: DAM | AW137: DECAMETRO
AV138: DAN | AW138: DECANEWTON
AV139: DB | AW139: DECIBEL
AV140: DBM | AW140: DECIBEL MILIWATT
AV141: DG | AW141: DECIGRAMA
AV142: DGT | AW142: DÍGITO
AV143: DIA | AW143: DIA
AV144: DIAS | AW144: DIAS
AV145: DISCO | AW145: DISCO
AV146: DL | AW146: DECALITRO
AV147: DM | AW147: DECIMETRO
AV148: DM2 | AW148: DECIMETRO QUADRADO
AV149: DM3 | AW149: DECIMETRO CUBICO
AV150: DM3 | AW150: DECIMETRO CUBICO
AV151: DOSES | AW151: DOSES
AV152: DPI | AW152: PONTOS DE DEFINIÇÃO
AV153: DPT | AW153: DIOPTRIA
AV154: DRAG | AW154: DRÁGEA
AV155: DZ | AW155: DUZIA
AV156: EMB | AW156: EMBALAGEM
AV157: EMB/H | AW157: EMBALAGEM POR HORA
AV158: EMP | AW158: EMPLASTRO
AV159: ENV | AW159: ENVELOPE
AV160: ENV27/9G | AW160: ENVELOPE COM 27,9 g
AV161: ENV30G | AW161: ENVELOPE COM 30 g
AV162: EQP | AW162: EQUIPAMENTO
AV163: EST | AW163: ESTUDANTE
AV164: EV | AW164: ELÉTRON-VOLT
AV165: F | AW165: FARAD
AV166: FCK | AW166: FCK
AV167: FD | AW167: FARDO
AV168: FL | AW168: FOLHA
AV169: FLAC | AW169: FLACONETE
AV170: FLS/H | AW170: FOLHAS POR HORA
AV171: FPM | AW171: FLASH POR MINUTO
AV172: FPS | AW172: FOTOS P/SEGUNDO
AV173: FR | AW173: FRASCO
AV174: FR1000ML | AW174: FRASCO COM 1000 mL
AV175: FR100DS | AW175: FRASCO COM 100 DOSES
AV176: FR100ML | AW176: FRASCO COM 100 mL
AV177: FR105ML | AW177: FRASCO COM 105 mL
AV178: FR10ML | AW178: FRASCO COM 10 mL
AV179: FR110ML | AW179: FRASCO COM 110 mL
AV180: FR1200MG | AW180: FRASCO COM 1200 MG
AV181: FR120DS | AW181: FRASCO COM 120 DOSES
AV182: FR120ML | AW182: FRASCO COM 120 mL
AV183: FR125ML | AW183: FRASCO COM 125 mL
AV184: FR130DS | AW184: FRASCO COM 130 DOSES
AV185: FR1500MG | AW185: FRASCO COM 1500 MG
AV186: FR150DS | AW186: FRASCO COM 150 DOSES
AV187: FR150ML | AW187: FRASCO COM 150 mL
AV188: FR15ML | AW188: FRASCO COM 15 mL
AV189: FR160ML | AW189: FRASCO COM 160 mL
AV190: FR200DS | AW190: FRASCO COM 200 DOSES
AV191: FR200ML | AW191: FRASCO COM 200 mL
AV192: FR20ML | AW192: FRASCO COM 20 mL
AV193: FR240ML | AW193: FRASCO COM 240 mL
AV194: FR250ML | AW194: FRASCO COM 250 mL
AV195: FR300DS | AW195: FRASCO COM 300 DOSES
AV196: FR300ML | AW196: FRASCO COM 300 mL
AV197: FR30DS | AW197: FRASCO COM 30 DOSES
AV198: FR30G | AW198: FRASCO COM 30 g
AV199: FR30ML | AW199: FRASCO COM 30 mL
AV200: FR340ML | AW200: FRASCO COM 340 mL
... 20 more rows

Sheet BDI
E1: MIN | F1: MED | G1: MAX | O1: ="Quadro de Composição do BDI" -> Quadro de Composição do BDI | R1: Grau de Sigilo
A2: Construção e Reforma de Edifícios | B2: AC | C2: =CONCATENATE(A2,"-",B2) -> Construção e Reforma de Edifícios-AC | E2: 0.03 | F2: 0.04 | G2: 0.055 | R2: #PUBLICO
A3: =A2 -> Construção e Reforma de Edifícios | B3: SG | C3: Construção e Reforma de Edifícios-SG | E3: 0.008 | F3: 0.008 | G3: 0.01
A4: =A3 -> Construção e Reforma de Edifícios | B4: R | C4: Construção e Reforma de Edifícios-R | E4: 0.0097 | F4: 0.0127 | G4: 0.0127 | J4: Nº OPERAÇÃO | L4: Nº TRANSFEREGOV | N4: PROPONENTE / TOMADOR
A5: =A4 -> Construção e Reforma de Edifícios | B5: DF | C5: Construção e Reforma de Edifícios-DF | E5: 0.0059 | F5: 0.0123 | G5: 0.0139 | J5: =Import.CR -> 1.087.299-22/2023 | L5: =Import.TransfereGOV -> 942900/2023 | N5: =Import.Proponente -> PREFEITURA MUNICIPAL DE SIDROLÂNDIA
A6: =A5 -> Construção e Reforma de Edifícios | B6: L | C6: Construção e Reforma de Edifícios-L | E6: 0.0616 | F6: 0.074 | G6: 0.0896 | I6: FILTRO
A7: =A6 -> Construção e Reforma de Edifícios | B7: BDI PAD | C7: Construção e Reforma de Edifícios-BDI PAD | E7: 0.2034 | F7: 0.2212 | G7: 0.25 | J7: APELIDO DO EMPREENDIMENTO / DESCRIÇÃO DO LOTE | U7: =IF(OR(U10<>"",U11<>""),"Falta preencher os percentuais do ISS",IF(U14<>"","Falta preencher o BDI 1",IF(U54<>"","Falta preencher o BDI 2",IF(U94<>"","Falta preencher o BDI 3","")))) -> 
A8: Construção de Praças Urbanas, Rodovias, Ferrovias e recapeamento e pavimentação de vias urbanas | B8: AC | C8: Construção de Praças Urbanas, Rodovias, Ferrovias e recapeamento e pavimentação de vias urbanas-AC | E8: 0.038 | F8: 0.0401 | G8: 0.0467 | J8: =Import.Apelido&" / "&Import.DescLote -> MODERNIZAÇÃO E REVITALIZAÇÃO DO ESTÁDIO MUNICIPAL DE SIDROLÂNDIA/MS / REFORMA DE ARQUIBANCADA | U8: =IF(U29="FORA DO INTERVALO","BDI 1 fora do intervalo",IF(U69="FORA DO INTERVALO","BDI 2 fora do intervalo",IF(U109="FORA DO INTERVALO","BDI 3 fora do intervalo",""))) -> 
A9: Construção de Praças Urbanas, Rodovias, Ferrovias e recapeamento e pavimentação de vias urbanas | B9: SG | C9: Construção de Praças Urbanas, Rodovias, Ferrovias e recapeamento e pavimentação de vias urbanas-SG | E9: 0.0032 | F9: 0.004 | G9: 0.0074
A10: Construção de Praças Urbanas, Rodovias, Ferrovias e recapeamento e pavimentação de vias urbanas | B10: R | C10: Construção de Praças Urbanas, Rodovias, Ferrovias e recapeamento e pavimentação de vias urbanas-R | E10: 0.005 | F10: 0.0056 | G10: 0.0097 | J10: Conforme legislação tributária municipal, definir estimativa de percentual da base de cálculo para o ISS: | R10: 1 | U10: =IF(R10="","Falta definir a base de cálculo para o ISS","") -> 
A11: Construção de Praças Urbanas, Rodovias, Ferrovias e recapeamento e pavimentação de vias urbanas | B11: DF | C11: Construção de Praças Urbanas, Rodovias, Ferrovias e recapeamento e pavimentação de vias urbanas-DF | E11: 0.0102 | F11: 0.0111 | G11: 0.0121 | I11: ↓ | J11: Sobre a base de cálculo, definir a respectiva alíquota do ISS (entre 2% e 5%): | R11: 0.05 | U11: =IF(R11="","Falta definir a alíquota do ISS","") -> 
A12: Construção de Praças Urbanas, Rodovias, Ferrovias e recapeamento e pavimentação de vias urbanas | B12: L | C12: Construção de Praças Urbanas, Rodovias, Ferrovias e recapeamento e pavimentação de vias urbanas-L | E12: 0.0664 | F12: 0.073 | G12: 0.0869 | I12: F
A13: Construção de Praças Urbanas, Rodovias, Ferrovias e recapeamento e pavimentação de vias urbanas | B13: BDI PAD | C13: Construção de Praças Urbanas, Rodovias, Ferrovias e recapeamento e pavimentação de vias urbanas-BDI PAD | E13: 0.196 | F13: 0.2097 | G13: 0.2423 | I13: F
A14: Construção de Redes de Abastecimento de Água, Coleta de Esgoto | B14: AC | C14: Construção de Redes de Abastecimento de Água, Coleta de Esgoto-AC | E14: 0.0343 | F14: 0.0493 | G14: 0.0671 | I14: F | J14: BDI 1 | U14: =IF(COUNTIF(ORÇAMENTO!$V$15:$V$140,BDI_1.Título)=0,"",IF(OR(Import.BDI.Tipo1="(SELECIONAR)",Import.BDI.Tipo1="",U17<>"",AND($J17<>$A$145,OR(S21="",S22="",AND($J17<>$A$146,OR(S23="",S24="")),S25="",S26=""))),"Falta preencher o BDI 1","")) -> 
A15: =A14 -> Construção de Redes de Abastecimento de Água, Coleta de Esgoto | B15: SG | C15: Construção de Redes de Abastecimento de Água, Coleta de Esgoto-SG | E15: 0.0028 | F15: 0.0049 | G15: 0.0075 | I15: F
A16: =A15 -> Construção de Redes de Abastecimento de Água, Coleta de Esgoto | B16: R | C16: Construção de Redes de Abastecimento de Água, Coleta de Esgoto-R | E16: 0.01 | F16: 0.0139 | G16: 0.0174 | I16: F | J16: TIPO DE OBRA
A17: =A16 -> Construção de Redes de Abastecimento de Água, Coleta de Esgoto | B17: DF | C17: Construção de Redes de Abastecimento de Água, Coleta de Esgoto-DF | E17: 0.0094 | F17: 0.0099 | G17: 0.0117 | I17: F | J17: Construção e Reforma de Edifícios | T17: =IF(U17="","","◄") ->  | U17: =IF(AND(OR(S29>0,COUNTIF(ORÇAMENTO!$V$15:$V$140,BDI_1.Título)>0),OR(Import.BDI.Tipo1="(SELECIONAR)",Import.BDI.Tipo1="")),"Selecione o Tipo de obra","") -> 
A18: =A17 -> Construção de Redes de Abastecimento de Água, Coleta de Esgoto | B18: L | C18: Construção de Redes de Abastecimento de Água, Coleta de Esgoto-L | E18: 0.0674 | F18: 0.0804 | G18: 0.094 | I18: F
A19: =A18 -> Construção de Redes de Abastecimento de Água, Coleta de Esgoto | B19: BDI PAD | C19: Construção de Redes de Abastecimento de Água, Coleta de Esgoto-BDI PAD | E19: 0.2076 | F19: 0.2418 | G19: 0.2644 | I19: F | J19: Itens | R19: Siglas | S19: % Adotado | U19: Situação | X19: 1º Quartil | Y19: Médio | Z19: 3º Quartil
A20: Construção e Manutenção de Estações e Redes de Distribuição de Energia Elétrica | B20: AC | C20: Construção e Manutenção de Estações e Redes de Distribuição de Energia Elétrica-AC | E20: 0.0529 | F20: 0.0592 | G20: 0.0793 | I20: F
A21: =A20 -> Construção e Manutenção de Estações e Redes de Distribuição de Energia Elétrica | B21: SG | C21: Construção e Manutenção de Estações e Redes de Distribuição de Energia Elétrica-SG | E21: 0.0025 | F21: 0.0051 | G21: 0.0056 | I21: F | J21: =IF($J$17=$A$146,"Encargos Sociais incidentes sobre a mão de obra","Administração Central") -> Administração Central | R21: =IF($J17=$A$146,"K1","AC") -> AC | S21: 0.03 | T21: =IF(AND($U$14<>"",$U$17="",R21<>"",S21=""),"◄","") ->  | U21: =IFERROR(IF(T21="◄","FALTA PREENCHER",IF(AND(OR(S21>=X21,X21="-"),OR(S21<=Z21,Z21="-")),"OK","FORA DO INTERVALO")),"-") -> OK | X21: =VLOOKUP(CONCATENATE(J17,"-",R21),$C$2:$G$136,3,FALSE) -> 0.03 | Y21: =VLOOKUP(CONCATENATE(J17,"-",R21),$C$2:$G$136,4,FALSE) -> 0.04 | Z21: =VLOOKUP(CONCATENATE(J17,"-",R21),$C$2:$G$136,5,FALSE) -> 0.055
A22: =A21 -> Construção e Manutenção de Estações e Redes de Distribuição de Energia Elétrica | B22: R | C22: Construção e Manutenção de Estações e Redes de Distribuição de Energia Elétrica-R | E22: 0.01 | F22: 0.0148 | G22: 0.0197 | I22: F | J22: =IF($J$17=$A$146,"Administração Central da empresa ou consultoria - overhead","Seguro e Garantia") -> Seguro e Garantia | R22: =IF($J17=$A$146,"K2","SG") -> SG | S22: 0.008 | T22: =IF(AND($U$14<>"",$U$17="",R22<>"",S22=""),"◄","") ->  | U22: =IFERROR(IF(T22="◄","FALTA PREENCHER",IF(AND(OR(S22>=X22,X22="-"),OR(S22<=Z22,Z22="-")),"OK","FORA DO INTERVALO")),"-") -> OK | X22: =VLOOKUP(CONCATENATE(J17,"-",R22),$C$2:$G$136,3,FALSE) -> 0.008 | Y22: =VLOOKUP(CONCATENATE(J17,"-",R22),$C$2:$G$136,4,FALSE) -> 0.008 | Z22: =VLOOKUP(CONCATENATE(J17,"-",R22),$C$2:$G$136,5,FALSE) -> 0.01
A23: =A22 -> Construção e Manutenção de Estações e Redes de Distribuição de Energia Elétrica | B23: DF | C23: Construção e Manutenção de Estações e Redes de Distribuição de Energia Elétrica-DF | E23: 0.0101 | F23: 0.0107 | G23: 0.0111 | I23: F | J23: Risco | R23: =IF($J17=$A$146,"","R") -> R | S23: 0.0097 | U23: OK | X23: =VLOOKUP(CONCATENATE(J17,"-",R23),$C$2:$G$136,3,FALSE) -> 0.0097 | Y23: =VLOOKUP(CONCATENATE(J17,"-",R23),$C$2:$G$136,4,FALSE) -> 0.0127 | Z23: =VLOOKUP(CONCATENATE(J17,"-",R23),$C$2:$G$136,5,FALSE) -> 0.0127
A24: =A23 -> Construção e Manutenção de Estações e Redes de Distribuição de Energia Elétrica | B24: L | C24: Construção e Manutenção de Estações e Redes de Distribuição de Energia Elétrica-L | E24: 0.08 | F24: 0.0831 | G24: 0.0951 | I24: F | J24: Despesas Financeiras | R24: =IF($J17=$A$146,"","DF") -> DF | S24: 0.0059 | U24: OK | X24: =VLOOKUP(CONCATENATE(J17,"-",R24),$C$2:$G$136,3,FALSE) -> 0.0059 | Y24: =VLOOKUP(CONCATENATE(J17,"-",R24),$C$2:$G$136,4,FALSE) -> 0.0123 | Z24: =VLOOKUP(CONCATENATE(J17,"-",R24),$C$2:$G$136,5,FALSE) -> 0.0139
A25: =A24 -> Construção e Manutenção de Estações e Redes de Distribuição de Energia Elétrica | B25: BDI PAD | C25: Construção e Manutenção de Estações e Redes de Distribuição de Energia Elétrica-BDI PAD | E25: 0.24 | F25: 0.2584 | G25: 0.2786 | I25: F | J25: =IF($J$17=$A$146,"Margem bruta da empresa de consultoria","Lucro") -> Lucro | R25: =IF($J17=$A$146,"K3","L") -> L | S25: 0.0616 | U25: OK | X25: =VLOOKUP(CONCATENATE(J17,"-",R25),$C$2:$G$136,3,FALSE) -> 0.0616 | Y25: =VLOOKUP(CONCATENATE(J17,"-",R25),$C$2:$G$136,4,FALSE) -> 0.074 | Z25: =VLOOKUP(CONCATENATE(J17,"-",R25),$C$2:$G$136,5,FALSE) -> 0.0896
A26: Obras Portuárias, Marítimas e Fluviais | B26: AC | C26: Obras Portuárias, Marítimas e Fluviais-AC | E26: 0.04 | F26: 0.0552 | G26: 0.0785 | I26: F | J26: Tributos (impostos COFINS 3%, e PIS 0,65%) | R26: CP | S26: 0.0365 | U26: OK | X26: =Y26 -> 0.0365 | Y26: =IF($J17=$A$145,"-",3.65%) -> 0.0365 | Z26: =Y26 -> 0.0365
A27: =A26 -> Obras Portuárias, Marítimas e Fluviais | B27: SG | C27: Obras Portuárias, Marítimas e Fluviais-SG | E27: 0.0081 | F27: 0.0122 | G27: 0.0199 | I27: F | J27: Tributos (ISS, variável de acordo com o município) | R27: ISS | S27: =IF(AND($J17<>$A$145,COUNTA(OFFSET(S20,1,0,6))>0),$R$11*$R$10,0) -> 0.05 | U27: OK | X27: 0 | Y27: 0.025 | Z27: 0.05
A28: =A27 -> Obras Portuárias, Marítimas e Fluviais | B28: R | C28: Obras Portuárias, Marítimas e Fluviais-R | E28: 0.0146 | F28: 0.0232 | G28: 0.0316 | I28: F | J28: Tributos (Contribuição Previdenciária sobre a Receita Bruta - Lei 12.546 de 14/12/2011 - Desoneração) | R28: CPRB | S28: =IF(BDI.Opcao<>"Desonerado",0,IF(AND($J17<>$A$145,COUNTA(OFFSET(S20,1,0,6))>0),IF(YEAR(Import.DataBase)<2025,4.5%,IF(YEAR(Import.DataBase)=2025,3.6%,IF(YEAR(Import.DataBase)=2026,2.7%,IF(YEAR(Import.DataBase)=2027,1.8%,0%)))),0%)) -> 0 | U28: OK | X28: =$S28 -> 0 | Y28: =$S28 -> 0 | Z28: =$S28 -> 0
A29: =A28 -> Obras Portuárias, Marítimas e Fluviais | B29: DF | C29: Obras Portuárias, Marítimas e Fluviais-DF | E29: 0.0094 | F29: 0.0102 | G29: 0.0133 | I29: F | J29: BDI SEM desoneração (Fórmula Acórdão TCU) | R29: BDI PAD | S29: =IF($J17=$A$145,0,ROUND((((1+S21+S22+S23)*(1+S24)*(1+S25)/(1-(S26+S27)))-1),4)) -> 0.2247 | U29: =IFERROR(IF(AND(OR(S29>=X29,X29="-"),OR(S29<=Z29,Z29="-")),"OK","FORA DO INTERVALO"),IF(S29=0,"OK","Selecione o Tipo de obra")) -> OK | X29: =IF($J17=$A$145,0,VLOOKUP(CONCATENATE($J17,"-",$R29),$C$2:$G$136,3,FALSE)) -> 0.2034 | Y29: =IF($J17=$A$145,0,VLOOKUP(CONCATENATE($J17,"-",$R29),$C$2:$G$136,4,FALSE)) -> 0.2212 | Z29: =IF($J17=$A$145,0,VLOOKUP(CONCATENATE($J17,"-",$R29),$C$2:$G$136,5,FALSE)) -> 0.25
A30: =A29 -> Obras Portuárias, Marítimas e Fluviais | B30: L | C30: Obras Portuárias, Marítimas e Fluviais-L | E30: 0.0714 | F30: 0.084 | G30: 0.1043 | I30: F | J30: BDI COM desoneração | R30: BDI DES | S30: =IF($J17=$A$145,0,ROUND((((1+S21+S22+S23)*(1+S24)*(1+S25)/(1-(S26+S27+S28)))-1),4)) -> 0.2247
A31: =A30 -> Obras Portuárias, Marítimas e Fluviais | B31: BDI PAD | C31: Obras Portuárias, Marítimas e Fluviais-BDI PAD | E31: 0.228 | F31: 0.2748 | G31: 0.3095 | I31: F
A32: Fornecimento de Materiais e Equipamentos (aquisição indireta - em conjunto com licitação de obras) | B32: AC | C32: Fornecimento de Materiais e Equipamentos (aquisição indireta - em conjunto com licitação de obras)-AC | E32: 0.015 | F32: 0.0345 | G32: 0.0449 | I32: F | J32: =IF(U29<>"ok","X","") ->  | K32: =IF(U29<>"ok","Anexo: Relatório Técnico Circunstanciado justificando a adoção do percentual de cada parcela do BDI.","") -> 
A33: =A32 -> Fornecimento de Materiais e Equipamentos (aquisição indireta - em conjunto com licitação de obras) | B33: SG | C33: Fornecimento de Materiais e Equipamentos (aquisição indireta - em conjunto com licitação de obras)-SG | E33: 0.003 | F33: 0.0048 | G33: 0.0082 | I33: F
A34: =A33 -> Fornecimento de Materiais e Equipamentos (aquisição indireta - em conjunto com licitação de obras) | B34: R | C34: Fornecimento de Materiais e Equipamentos (aquisição indireta - em conjunto com licitação de obras)-R | E34: 0.0056 | F34: 0.0085 | G34: 0.0089 | I34: F | J34: Os valores de BDI foram calculados com o emprego da fórmula:
A35: =A34 -> Fornecimento de Materiais e Equipamentos (aquisição indireta - em conjunto com licitação de obras) | B35: DF | C35: Fornecimento de Materiais e Equipamentos (aquisição indireta - em conjunto com licitação de obras)-DF | E35: 0.0085 | F35: 0.0085 | G35: 0.0111 | I35: F | M35: BDI = | N35: =IF($J17=$A$146,"(1+K1+K2)*(1+K3)","(1+AC + S + R + G)*(1 + DF)*(1+L)") -> (1+AC + S + R + G)*(1 + DF)*(1+L) | Q35: - 1
A36: =A35 -> Fornecimento de Materiais e Equipamentos (aquisição indireta - em conjunto com licitação de obras) | B36: L | C36: Fornecimento de Materiais e Equipamentos (aquisição indireta - em conjunto com licitação de obras)-L | E36: 0.035 | F36: 0.0511 | G36: 0.0622 | I36: F | N36: (1-CP-ISS-CRPB)
A37: =A36 -> Fornecimento de Materiais e Equipamentos (aquisição indireta - em conjunto com licitação de obras) | B37: BDI PAD | C37: Fornecimento de Materiais e Equipamentos (aquisição indireta - em conjunto com licitação de obras)-BDI PAD | E37: 0.111 | F37: 0.1402 | G37: 0.168 | I37: F
A38: Fornecimento de Materiais e Equipamentos (aquisição direta) | B38: AC | C38: Fornecimento de Materiais e Equipamentos (aquisição direta)-AC | E38: - | F38: - | G38: - | I38: F | J38: =CONCATENATE("Declaro para os devidos fins que, conforme legislação tributária municipal, a base de cálculo deste tipo de obra corresponde à ",$R$10*100,"%, com a respectiva alíquota de ",$R$11*100,"%.") -> Declaro para os devidos fins que, conforme legislação tributária municipal, a base de cálculo deste tipo de obra corresponde à 100%, com a respectiva alíquota de 5%.
A39: Fornecimento de Materiais e Equipamentos (aquisição direta) | B39: SG | C39: Fornecimento de Materiais e Equipamentos (aquisição direta)-SG | E39: - | F39: - | G39: - | I39: F
A40: Fornecimento de Materiais e Equipamentos (aquisição direta) | B40: R | C40: Fornecimento de Materiais e Equipamentos (aquisição direta)-R | E40: - | F40: - | G40: - | I40: F | J40: =CONCATENATE("Declaro para os devidos fins que o regime de Contribuição Previdenciária sobre a Receita Bruta adotado para elaboração do orçamento foi ",IF(DESONERACAO="Sim","COM","SEM")," Desoneração, e que esta é a alternativa mais adequada para a Administração Pública.") -> Declaro para os devidos fins que o regime de Contribuição Previdenciária sobre a Receita Bruta adotado para elaboração do orçamento foi SEM Desoneração, e que esta é a alternativa mais adequada para a Administração Pública.
A41: Fornecimento de Materiais e Equipamentos (aquisição direta) | B41: DF | C41: Fornecimento de Materiais e Equipamentos (aquisição direta)-DF | E41: - | F41: - | G41: - | I41: F
A42: Fornecimento de Materiais e Equipamentos (aquisição direta) | B42: L | C42: Fornecimento de Materiais e Equipamentos (aquisição direta)-L | E42: - | F42: - | G42: - | I42: F | J42: Observações:
A43: Fornecimento de Materiais e Equipamentos (aquisição direta) | B43: BDI PAD | C43: Fornecimento de Materiais e Equipamentos (aquisição direta)-BDI PAD | E43: - | F43: - | G43: - | I43: F
A44: Estudos e Projetos, Planos e Gerenciamento e outros correlatos | B44: K1 | C44: Estudos e Projetos, Planos e Gerenciamento e outros correlatos-K1 | E44: - | F44: - | G44: - | I44: F
A45: =A44 -> Estudos e Projetos, Planos e Gerenciamento e outros correlatos | B45: K2 | C45: Estudos e Projetos, Planos e Gerenciamento e outros correlatos-K2 | E45: - | F45: 0.2 | G45: - | I45: F | J45: =Import.Município -> SIDROLÂNDIA/MS | P45: =DADOS!$C$25 -> 2024-09-24
A46: =A45 -> Estudos e Projetos, Planos e Gerenciamento e outros correlatos | C46: Estudos e Projetos, Planos e Gerenciamento e outros correlatos- | E46: - | F46: - | G46: - | I46: F | J46: Local | P46: Data
A47: =A46 -> Estudos e Projetos, Planos e Gerenciamento e outros correlatos | C47: Estudos e Projetos, Planos e Gerenciamento e outros correlatos- | E47: - | F47: - | G47: - | I47: F
A48: =A47 -> Estudos e Projetos, Planos e Gerenciamento e outros correlatos | B48: K3 | C48: Estudos e Projetos, Planos e Gerenciamento e outros correlatos-K3 | E48: - | F48: 0.12 | G48: - | I48: F
A49: =A48 -> Estudos e Projetos, Planos e Gerenciamento e outros correlatos | B49: BDI PAD | C49: Estudos e Projetos, Planos e Gerenciamento e outros correlatos-BDI PAD | E49: - | F49: - | G49: - | I49: F | J49: Responsável Técnico
I50: F | J50: Nome: | K50: =Import.RespOrçamento -> FABIO MARQUES RIBEIRO
I51: F | J51: CREA/CAU: | K51: CREA-MS 15.276
I52: F | J52: ART/RRT: | K52: 1320240128034
I53: F
I54: =IF($S$69=0,"","F") ->  | J54: BDI 2 | U54: =IF(COUNTIF(ORÇAMENTO!$V$15:$V$140,BDI_2.Título)=0,"",IF(OR(Import.BDI.Tipo2="(SELECIONAR)",Import.BDI.Tipo2="",U57<>"",AND($J57<>$A$145,OR(S61="",S62="",AND($J57<>$A$146,OR(S63="",S64="")),S65="",S66=""))),"Falta preencher o BDI 2","")) -> 
I55: =IF($S$69=0,"","F") -> 
J56: TIPO DE OBRA
J57: (SELECIONAR) | T57: =IF(U57="","","◄") ->  | U57: =IF(AND(OR(S69>0,COUNTIF(ORÇAMENTO!$V$15:$V$140,BDI_2.Título)>0),OR(Import.BDI.Tipo2="(SELECIONAR)",Import.BDI.Tipo2="")),"Selecione o Tipo de obra","") -> 
J59: Itens | R59: Siglas | S59: % Adotado | U59: Situação | X59: 1º Quartil | Y59: Médio | Z59: 3º Quartil
J61: =IF($J$57=$A$146,"Encargos Sociais incidentes sobre a mão de obra","Administração Central") -> Administração Central | R61: =IF($J57=$A$146,"K1","AC") -> AC | T61: =IF(AND($U$54<>"",$U$57="",R61<>"",S61=""),"◄","") ->  | U61: =IFERROR(IF(T61="◄","FALTA PREENCHER",IF(AND(OR(S61>=X61,X61="-"),OR(S61<=Z61,Z61="-")),"OK","FORA DO INTERVALO")),"-") -> - | X61: =VLOOKUP(CONCATENATE(J57,"-",R61),$C$2:$G$136,3,FALSE) ->  | Y61: =VLOOKUP(CONCATENATE(J57,"-",R61),$C$2:$G$136,4,FALSE) ->  | Z61: =VLOOKUP(CONCATENATE(J57,"-",R61),$C$2:$G$136,5,FALSE) -> 
J62: =IF($J$57=$A$146,"Administração Central da empresa ou consultoria - overhead","Seguro e Garantia") -> Seguro e Garantia | R62: =IF($J57=$A$146,"K2","SG") -> SG | T62: =IF(AND($U$54<>"",$U$57="",R62<>"",S62=""),"◄","") ->  | U62: =IFERROR(IF(T62="◄","FALTA PREENCHER",IF(AND(OR(S62>=X62,X62="-"),OR(S62<=Z62,Z62="-")),"OK","FORA DO INTERVALO")),"-") -> - | X62: =VLOOKUP(CONCATENATE(J57,"-",R62),$C$2:$G$136,3,FALSE) ->  | Y62: =VLOOKUP(CONCATENATE(J57,"-",R62),$C$2:$G$136,4,FALSE) ->  | Z62: =VLOOKUP(CONCATENATE(J57,"-",R62),$C$2:$G$136,5,FALSE) -> 
J63: Risco | R63: =IF($J57=$A$146,"","R") -> R | U63: - | X63: =VLOOKUP(CONCATENATE(J57,"-",R63),$C$2:$G$136,3,FALSE) ->  | Y63: =VLOOKUP(CONCATENATE(J57,"-",R63),$C$2:$G$136,4,FALSE) ->  | Z63: =VLOOKUP(CONCATENATE(J57,"-",R63),$C$2:$G$136,5,FALSE) -> 
J64: Despesas Financeiras | R64: =IF($J57=$A$146,"","DF") -> DF | U64: - | X64: =VLOOKUP(CONCATENATE(J57,"-",R64),$C$2:$G$136,3,FALSE) ->  | Y64: =VLOOKUP(CONCATENATE(J57,"-",R64),$C$2:$G$136,4,FALSE) ->  | Z64: =VLOOKUP(CONCATENATE(J57,"-",R64),$C$2:$G$136,5,FALSE) -> 
J65: =IF($J$57=$A$146,"Margem bruta da empresa de consultoria","Lucro") -> Lucro | R65: =IF($J57=$A$146,"K3","L") -> L | U65: - | X65: =VLOOKUP(CONCATENATE(J57,"-",R65),$C$2:$G$136,3,FALSE) ->  | Y65: =VLOOKUP(CONCATENATE(J57,"-",R65),$C$2:$G$136,4,FALSE) ->  | Z65: =VLOOKUP(CONCATENATE(J57,"-",R65),$C$2:$G$136,5,FALSE) -> 
J66: Tributos (impostos COFINS 3%, e PIS 0,65%) | R66: CP | U66: FORA DO INTERVALO | X66: =Y66 -> 0.0365 | Y66: =IF($J57=$A$145,"-",3.65%) -> 0.0365 | Z66: =Y66 -> 0.0365
J67: Tributos (ISS, variável de acordo com o município) | R67: ISS | S67: =IF(AND($J57<>$A$145,COUNTA(OFFSET(S60,1,0,6))>0),$R$11*$R$10,0) -> 0 | U67: OK | X67: 0 | Y67: 0.025 | Z67: 0.05
J68: Tributos (Contribuição Previdenciária sobre a Receita Bruta - Lei 12.546 de 14/12/2011 - Desoneração) | R68: CPRB | S68: =IF(BDI.Opcao<>"Desonerado",0,IF(AND($J57<>$A$145,COUNTA(OFFSET(S60,1,0,6))>0),IF(YEAR(Import.DataBase)<2025,4.5%,IF(YEAR(Import.DataBase)=2025,3.6%,IF(YEAR(Import.DataBase)=2026,2.7%,IF(YEAR(Import.DataBase)=2027,1.8%,0%)))),0%)) -> 0 | U68: OK | X68: =$S68 -> 0 | Y68: =$S68 -> 0 | Z68: =$S68 -> 0
J69: BDI SEM desoneração (Fórmula Acórdão TCU) | R69: BDI PAD | S69: =IF($J57=$A$145,0,ROUND((((1+S61+S62+S63)*(1+S64)*(1+S65)/(1-(S66+S67)))-1),4)) -> 0 | U69: =IFERROR(IF(AND(OR(S69>=X69,X69="-"),OR(S69<=Z69,Z69="-")),"OK","FORA DO INTERVALO"),IF(S69=0,"OK","Selecione o Tipo de obra")) -> OK | X69: =IF($J57=$A$145,0,VLOOKUP(CONCATENATE($J57,"-",$R69),$C$2:$G$136,3,FALSE)) ->  | Y69: =IF($J57=$A$145,0,VLOOKUP(CONCATENATE($J57,"-",$R69),$C$2:$G$136,4,FALSE)) ->  | Z69: =IF($J57=$A$145,0,VLOOKUP(CONCATENATE($J57,"-",$R69),$C$2:$G$136,5,FALSE)) -> 
J70: BDI COM desoneração | R70: BDI DES | S70: =IF($J57=$A$145,0,ROUND((((1+S61+S62+S63)*(1+S64)*(1+S65)/(1-(S66+S67+S68)))-1),4)) -> 0
J72: =IF(U69<>"ok","X","") ->  | K72: =IF(U69<>"ok","Anexo: Relatório Técnico Circunstanciado justificando a adoção do percentual de cada parcela do BDI.","") -> 
J74: Os valores de BDI foram calculados com o emprego da fórmula:
M75: BDI = | N75: =IF($J57=$A$146,"(1+K1+K2)*(1+K3)","(1+AC + S + R + G)*(1 + DF)*(1+L)") -> (1+AC + S + R + G)*(1 + DF)*(1+L) | Q75: - 1
N76: (1-CP-ISS-CRPB)
J78: =CONCATENATE("Declaro para os devidos fins que, conforme legislação tributária municipal, a base de cálculo deste tipo de obra corresponde à ",$R$10*100,"%, com a respectiva alíquota de ",$R$11*100,"%.") -> Declaro para os devidos fins que, conforme legislação tributária municipal, a base de cálculo deste tipo de obra corresponde à 100%, com a respectiva alíquota de 5%.
J80: =CONCATENATE("Declaro para os devidos fins que o regime de Contribuição Previdenciária sobre a Receita Bruta adotado para elaboração do orçamento foi ",IF(DESONERACAO="Sim","COM","SEM")," Desoneração, e que esta é a alternativa mais adequada para a Administração Pública.") -> Declaro para os devidos fins que o regime de Contribuição Previdenciária sobre a Receita Bruta adotado para elaboração do orçamento foi SEM Desoneração, e que esta é a alternativa mais adequada para a Administração Pública.
J82: Observações:
J85: =Import.Município -> SIDROLÂNDIA/MS | P85: =DADOS!$C$25 -> 2024-09-24
J86: Local | P86: Data
J89: Responsável Técnico
J90: Nome: | K90: =Import.RespOrçamento -> FABIO MARQUES RIBEIRO
J91: CREA/CAU: | K91: CREA-MS 15.276
J92: ART/RRT: | K92: 1320240128034
I94: =IF($S$109=0,"","F") ->  | J94: BDI 3 | U94: =IF(COUNTIF(ORÇAMENTO!$V$15:$V$140,BDI_3.Título)=0,"",IF(OR(Import.BDI.Tipo3="(SELECIONAR)",Import.BDI.Tipo3="",U97<>"",AND($J97<>$A$145,OR(S101="",S102="",AND($J97<>$A$146,OR(S103="",S104="")),S105="",S106=""))),"Falta preencher o BDI 3","")) -> 
I95: =IF($S$109=0,"","F") -> 
J96: TIPO DE OBRA
J97: (SELECIONAR) | T97: =IF(U97="","","◄") ->  | U97: =IF(AND(OR(S109>0,COUNTIF(ORÇAMENTO!$V$15:$V$140,BDI_3.Título)>0),OR(Import.BDI.Tipo3="(SELECIONAR)",Import.BDI.Tipo3="")),"Selecione o Tipo de obra","") -> 
J99: Itens | R99: Siglas | S99: % Adotado | U99: Situação | X99: 1º Quartil | Y99: Médio | Z99: 3º Quartil
J101: =IF($J$97=$A$146,"Encargos Sociais incidentes sobre a mão de obra","Administração Central") -> Administração Central | R101: =IF($J97=$A$146,"K1","AC") -> AC | T101: =IF(AND($U$94<>"",$U$97="",R101<>"",S101=""),"◄","") ->  | U101: =IFERROR(IF(T101="◄","FALTA PREENCHER",IF(AND(OR(S101>=X101,X101="-"),OR(S101<=Z101,Z101="-")),"OK","FORA DO INTERVALO")),"-") -> - | X101: =VLOOKUP(CONCATENATE(J97,"-",R101),$C$2:$G$136,3,FALSE) ->  | Y101: =VLOOKUP(CONCATENATE(J97,"-",R101),$C$2:$G$136,4,FALSE) ->  | Z101: =VLOOKUP(CONCATENATE(J97,"-",R101),$C$2:$G$136,5,FALSE) -> 
J102: =IF($J$97=$A$146,"Administração Central da empresa ou consultoria - overhead","Seguro e Garantia") -> Seguro e Garantia | R102: =IF($J97=$A$146,"K2","SG") -> SG | T102: =IF(AND($U$94<>"",$U$97="",R102<>"",S102=""),"◄","") ->  | U102: =IFERROR(IF(T102="◄","FALTA PREENCHER",IF(AND(OR(S102>=X102,X102="-"),OR(S102<=Z102,Z102="-")),"OK","FORA DO INTERVALO")),"-") -> - | X102: =VLOOKUP(CONCATENATE(J97,"-",R102),$C$2:$G$136,3,FALSE) ->  | Y102: =VLOOKUP(CONCATENATE(J97,"-",R102),$C$2:$G$136,4,FALSE) ->  | Z102: =VLOOKUP(CONCATENATE(J97,"-",R102),$C$2:$G$136,5,FALSE) -> 
J103: Risco | R103: =IF($J97=$A$146,"","R") -> R | U103: - | X103: =VLOOKUP(CONCATENATE(J97,"-",R103),$C$2:$G$136,3,FALSE) ->  | Y103: =VLOOKUP(CONCATENATE(J97,"-",R103),$C$2:$G$136,4,FALSE) ->  | Z103: =VLOOKUP(CONCATENATE(J97,"-",R103),$C$2:$G$136,5,FALSE) -> 
J104: Despesas Financeiras | R104: =IF($J97=$A$146,"","DF") -> DF | U104: - | X104: =VLOOKUP(CONCATENATE(J97,"-",R104),$C$2:$G$136,3,FALSE) ->  | Y104: =VLOOKUP(CONCATENATE(J97,"-",R104),$C$2:$G$136,4,FALSE) ->  | Z104: =VLOOKUP(CONCATENATE(J97,"-",R104),$C$2:$G$136,5,FALSE) -> 
J105: =IF($J$57=$A$146,"Margem bruta da empresa de consultoria","Lucro") -> Lucro | R105: =IF($J97=$A$146,"K3","L") -> L | U105: - | X105: =VLOOKUP(CONCATENATE(J97,"-",R105),$C$2:$G$136,3,FALSE) ->  | Y105: =VLOOKUP(CONCATENATE(J97,"-",R105),$C$2:$G$136,4,FALSE) ->  | Z105: =VLOOKUP(CONCATENATE(J97,"-",R105),$C$2:$G$136,5,FALSE) -> 
J106: Tributos (impostos COFINS 3%, e PIS 0,65%) | R106: CP | U106: FORA DO INTERVALO | X106: =Y106 -> 0.0365 | Y106: =IF($J97=$A$145,"-",3.65%) -> 0.0365 | Z106: =Y106 -> 0.0365
J107: Tributos (ISS, variável de acordo com o município) | R107: ISS | S107: =IF(AND($J97<>$A$145,COUNTA(OFFSET(S100,1,0,6))>0),$R$11*$R$10,0) -> 0 | U107: OK | X107: 0 | Y107: 0.025 | Z107: 0.05
J108: Tributos (Contribuição Previdenciária sobre a Receita Bruta - Lei 12.546 de 14/12/2011 - Desoneração) | R108: CPRB | S108: =IF(BDI.Opcao<>"Desonerado",0,IF(AND($J97<>$A$145,COUNTA(OFFSET(S100,1,0,6))>0),IF(YEAR(Import.DataBase)<2025,4.5%,IF(YEAR(Import.DataBase)=2025,3.6%,IF(YEAR(Import.DataBase)=2026,2.7%,IF(YEAR(Import.DataBase)=2027,1.8%,0%)))),0%)) -> 0 | U108: OK | X108: =$S108 -> 0 | Y108: =$S108 -> 0 | Z108: =$S108 -> 0
J109: BDI SEM desoneração (Fórmula Acórdão TCU) | R109: BDI PAD | S109: =IF($J97=$A$145,0,ROUND((((1+S101+S102+S103)*(1+S104)*(1+S105)/(1-(S106+S107)))-1),4)) -> 0 | U109: =IFERROR(IF(AND(OR(S109>=X109,X109="-"),OR(S109<=Z109,Z109="-")),"OK","FORA DO INTERVALO"),IF(S109=0,"OK","Selecione o Tipo de obra")) -> OK | X109: =IF($J97=$A$145,0,VLOOKUP(CONCATENATE($J97,"-",$R109),$C$2:$G$136,3,FALSE)) ->  | Y109: =IF($J97=$A$145,0,VLOOKUP(CONCATENATE($J97,"-",$R109),$C$2:$G$136,4,FALSE)) ->  | Z109: =IF($J97=$A$145,0,VLOOKUP(CONCATENATE($J97,"-",$R109),$C$2:$G$136,5,FALSE)) -> 
J110: BDI COM desoneração | R110: BDI DES | S110: =IF($J97=$A$145,0,ROUND((((1+S101+S102+S103)*(1+S104)*(1+S105)/(1-(S106+S107+S108)))-1),4)) -> 0
J112: =IF(U109<>"ok","X","") ->  | K112: =IF(U109<>"ok","Anexo: Relatório Técnico Circunstanciado justificando a adoção do percentual de cada parcela do BDI.","") -> 
J114: Os valores de BDI foram calculados com o emprego da fórmula:
M115: BDI = | N115: =IF($J97=$A$146,"(1+K1+K2)*(1+K3)","(1+AC + S + R + G)*(1 + DF)*(1+L)") -> (1+AC + S + R + G)*(1 + DF)*(1+L) | Q115: - 1
N116: (1-CP-ISS-CRPB)
J118: =CONCATENATE("Declaro para os devidos fins que, conforme legislação tributária municipal, a base de cálculo deste tipo de obra corresponde à ",$R$10*100,"%, com a respectiva alíquota de ",$R$11*100,"%.") -> Declaro para os devidos fins que, conforme legislação tributária municipal, a base de cálculo deste tipo de obra corresponde à 100%, com a respectiva alíquota de 5%.
J120: =CONCATENATE("Declaro para os devidos fins que o regime de Contribuição Previdenciária sobre a Receita Bruta adotado para elaboração do orçamento foi ",IF(DESONERACAO="Sim","COM","SEM")," Desoneração, e que esta é a alternativa mais adequada para a Administração Pública.") -> Declaro para os devidos fins que o regime de Contribuição Previdenciária sobre a Receita Bruta adotado para elaboração do orçamento foi SEM Desoneração, e que esta é a alternativa mais adequada para a Administração Pública.
J122: Observações:
J125: =Import.Município -> SIDROLÂNDIA/MS | P125: =DADOS!$C$25 -> 2024-09-24
J126: Local | P126: Data
J129: Responsável Técnico
J130: Nome: | K130: =Import.RespOrçamento -> FABIO MARQUES RIBEIRO
J131: CREA/CAU: | K131: CREA-MS 15.276
J132: ART/RRT: | K132: 1320240128034
A138: (SELECIONAR)
A139: Construção e Reforma de Edifícios
A140: Construção de Praças Urbanas, Rodovias, Ferrovias e recapeamento e pavimentação de vias urbanas
A141: Construção de Redes de Abastecimento de Água, Coleta de Esgoto
A142: Construção e Manutenção de Estações e Redes de Distribuição de Energia Elétrica
A143: Obras Portuárias, Marítimas e Fluviais
A144: Fornecimento de Materiais e Equipamentos (aquisição indireta - em conjunto com licitação de obras)
A145: Fornecimento de Materiais e Equipamentos (aquisição direta)
A146: Estudos e Projetos, Planos e Gerenciamento e outros correlatos

Sheet ORÇAMENTO
R1: PO - PLANILHA ORÇAMENTÁRIA | X1: Grau de Sigilo
D2: LOTE | E2: Meta | F2: Nível 2 | G2: Nível 3 | H2: Nível 4 | I2: Serviço | R2: =IF(TIPOORCAMENTO="licitado","Orçamento Licitado","Orçamento Base para Licitação")&" - "&import.recurso -> Orçamento Base para Licitação - OGU | X2: #PUBLICO
E3: SINAPI | F3: SINAPI-I | G3: SICRO | H3: Composição | I3: Cotação
A4: Nmax | F4: BDI 1 | G4: BDI 2 | H4: BDI 3 | I4: 0 | O4: Nº OPERAÇÃO | Q4: Nº TransfereGOV | R4: PROPONENTE / TOMADOR | S4: APELIDO DO EMPREENDIMENTO
A5: =MAX($C$15:$C$140) -> 2 | F5: =IF(BDI.Opcao="DESONERADO",BDI!$S$30,BDI!$S$29) -> 0.2247 | G5: =IF(BDI.Opcao="DESONERADO",BDI!$S$70,BDI!$S$69) -> 0 | H5: =IF(BDI.Opcao="DESONERADO",BDI!$S$110,BDI!$S$109) -> 0 | O5: =Import.CR -> 1.087.299-22/2023 | Q5: =Import.TransfereGOV -> 942900/2023 | R5: =Import.Proponente -> PREFEITURA MUNICIPAL DE SIDROLÂNDIA | S5: =Import.Apelido -> MODERNIZAÇÃO E REVITALIZAÇÃO DO ESTÁDIO MUNICIPAL DE SIDROLÂNDIA/MS | AE5: Arredondamento
F7: RA | G7: RP | H7: CP | I7: OU | O7: LOCALIDADE SINAPI | Q7: DATA BASE | R7: =IF(TIPOORCAMENTO="Licitado","NOME DA EMPRESA","DESCRIÇÃO DO LOTE") -> DESCRIÇÃO DO LOTE | S7: =IF(TIPOORCAMENTO="Licitado","REGIME DE EXECUÇÃO","MUNICÍPIO / UF") -> MUNICÍPIO / UF | V7: =IF(TIPOORCAMENTO="Licitado","","BDI 1") -> BDI 1 | W7: =IF(TIPOORCAMENTO="Licitado","","BDI 2") -> BDI 2 | X7: =IF(TIPOORCAMENTO="Licitado","Nº CTEF","BDI 3") -> BDI 3 | AC7: =IF(COUNTIFS($L$15:$L$140,"F",$AC$15:$AC$140,"JUSTIFICAR BDI")>0,"JUSTIFICAR BDI","") ->  | AE7: Quantidade | AF7: TRUE | AJ7: QUANTIDADES: ACOMP. POR BM | AL7: PREÇO UNITÁRIO LICITADO
E8: Intervalo de procura: | F8: =IF(LEN(INFO("release"))>5,"'Referência "&Excel_BuiltIn_Database&".xlsm'#Banco.$a5:$a$65536","'[Referência "&Excel_BuiltIn_Database&".xlsm]Banco'!$a5:$a$65536") -> '[Referência 06-2025.xlsm]Banco'!$a5:$a$65536 | L8: FILTRO | O8: =IF(ISERROR(INDIRECT($F$9)),"(N/D: 'Referência "&Excel_BuiltIn_Database&".xlsm)",INDIRECT($F$9)) -> CAMPO GRANDE | Q8: =TEXT(Import.DataBase,"mm-aa")&IF(DESONERACAO="Sim"," (DES.)"," (N DES.)") -> 06-25 (N DES.) | R8: =IF(TIPOORCAMENTO="Licitado",Import.empresa,Import.DescLote) -> REFORMA DE ARQUIBANCADA | S8: =IF(TIPOORCAMENTO="Licitado",Import.RegimeExecução,Import.Município) -> SIDROLÂNDIA/MS | V8: =IF(TIPOORCAMENTO="Licitado","",TEXT(F5,"0,00%")) -> 22,47% | W8: =IF(TIPOORCAMENTO="Licitado","",TEXT(G5,"0,00%")) -> 0,00% | X8: =IF(TIPOORCAMENTO="Licitado",Import.CTEF,TEXT(H5,"0,00%")) -> 0,00% | Y8: RECURSO | Z8: SGL RECURSO | AE8: Custo Unitáro | AF8: TRUE
E9: Localidade: | F9: =IF(LEN(INFO("release"))>5,"'Referência "&Excel_BuiltIn_Database&".xlsm'#Banco.$d$3","'[Referência "&Excel_BuiltIn_Database&".xlsm]Banco'!$d$3") -> '[Referência 06-2025.xlsm]Banco'!$d$3 | T9: =IF(AND(Import.TipoArredondamento="TransfereGOV",$AF$7=FALSE),"▼","") ->  | U9: =IF(AND(Import.TipoArredondamento="TransfereGOV",$AF$8=FALSE),"▼","") ->  | V9: =IF(AND(Import.TipoArredondamento="TransfereGOV",$AF$9=FALSE),"▼","") ->  | W9: =IF(AND(Import.TipoArredondamento="TransfereGOV",$AF$10=FALSE),"▼","") ->  | X9: =IF(AND(Import.TipoArredondamento="TransfereGOV",$AF$11=FALSE),"▼","") ->  | AE9: BDI | AF9: TRUE
E10: Data base: | F10: =IF(LEN(INFO("release"))>5,"'Referência "&Excel_BuiltIn_Database&".xlsm'#Banco.$B$3","'[Referência "&Excel_BuiltIn_Database&".xlsm]Banco'!$B$3") -> '[Referência 06-2025.xlsm]Banco'!$B$3 | AC10: ERRO GERAL | AE10: Preço Unitário | AF10: TRUE
F11: =IFERROR(INDIRECT(F10),"") -> 06/2025 | G11: =IFERROR(TEXT(Import.DataBase,"mm/aaaa"),"") -> 06/2025 | AC11: =IF(COUNTIFS($L$15:$L$140,"F",$AC$15:$AC$140,"<>"&" ",$AC$15:$AC$140,"<>"&"JUSTIFICAR BDI")>0,"NÃO OK","OK") -> OK | AE11: Preço Total | AF11: TRUE
O12: =IF(AND(Import.TipoArredondamento="TransfereGOV",COUNTIF($AF$7:$AF$11,TRUE)<>5),"Para contratos que tramitam no Transferegov todos os valores devem ser arredondados para duas casas decimais", IF(AND($F$11<>"",$G$11<>"",$F$11<>$G$11),"O arquivo "&MID($F$10,2,SEARCH("]",$F$10)-1)&" está com a data base errada ("&F11&"). Corrija a data base antes de continuar.", IF(COUNTIF($AC$15:$AC$140,"FONTE")>0,"Falta preencher a Fonte (coluna P) na Linha "&(14+MATCH("FONTE",$AC$15:$AC$140,0)), IF(COUNTIF($AC$15:$AC$140,"CÓDIGO")>0,"Falta preencher o Código (coluna Q) na Linha "&(14+MATCH("CÓDIGO",$AC$15:$AC$140,0)), IF(COUNTIF($AC$15:$AC$140,"CÓDIGO N/ID")>0,"Código (coluna Q) não identificado na Linha "&(14+MATCH("CÓDIGO N/ID",$AC$15:$AC$140,0))&". Verifique se o código está correto ou busque outro código", IF(COUNTIF($AC$15:$AC$140,"DESCRIÇÃO")>0,"Falta preencher a Descrição (coluna R) na Linha "&(14+MATCH("DESCRIÇÃO",$AC$15:$AC$140,0)), IF(COUNTIF($AC$15:$AC$140,"UNIDADE")>0,"Falta preencher a Unidade (coluna S) na Linha "&(14+MATCH("UNIDADE",$AC$15:$AC$140,0)), IF(COUNTIF($AC$15:$AC$140,"SEM CUSTO")>0,"Falta preencher o Custo Unitário (coluna U) na Linha "&(14+MATCH("SEM CUSTO",$AC$15:$AC$140,0)), IF(COUNTIF($AC$15:$AC$140,"SEM PREÇO")>0,"Falta preencher o Preço Unitário licitado (coluna AL) na Linha "&(14+MATCH("SEM CUSTO",$AC$15:$AC$140,0)), IF(COUNTIF($AC$15:$AC$140,"BDI")>0,"Falta definir o BDI (coluna V) na Linha "&(14+MATCH("BDI",$AC$15:$AC$140,0)), IF(COUNTIF($AC$15:$AC$140,"ACIMA REF.")>0, IF(TIPOORCAMENTO="Proposto","O custo unitário (coluna U) na Linha "&(14+MATCH("ACIMA REF.",$AC$15:$AC$140,0))&" está acima do custo referencial (coluna AG)", "O preço unitário licitado (coluna AL) na Linha "&(14+MATCH("ACIMA REF.",$AC$15:$AC$140,0))&" está acima do preço referencial do edital (coluna AN)"), IF(COUNTIF($AC$15:$AC$140,"QUANT.")>0,"Falta a Quantidade do serviço na Linha "&(14+MATCH("QUANT.",$AC$15:$AC$140,0))&IF(ACOMPANHAMENTO="PLE",". Preencher na aba CÁLCULO",". Preencher na coluna AJ"), IF(COUNTIF($AC$15:$AC$140,"Código >13")>0,"O tamanho do código do serviço no TransfereGOV é limitado a 13 caracteres. Resuma o código (coluna Q) na Linha "&(14+MATCH("Código >13",$AC$15:$AC$140,0)), IF(COUNTIF($AC$15:$AC$140,"Descrição >100")>0,"O tamanho da descrição de macrosserviço no TransfereGOV é limitado a 100 caracteres. Resuma a descrição (coluna R) na Linha "&(14+MATCH("Descrição >100",$AC$15:$AC$140,0)), IF(COUNTIF($AC$15:$AC$140,"Descrição >500")>0,"O tamanho da descrição de serviço no TransfereGOV é limitado a 500 caracteres. Resuma a descrição (coluna R) na Linha "&(14+MATCH("Descrição >500",$AC$15:$AC$140,0)), IF(COUNTIF($AC$15:$AC$140,"Unid. Não Disp")>0,"Unidade não disponível na lista do TransfereGOV. Reveja a unidade (coluna S) na Linha "&(14+MATCH("Unid. Não Disp",$AC$15:$AC$140,0)), IF(AND(TIPOORCAMENTO="Proposto",LEFT($O$8,5)="(N/D:"),"Abra o arquivo Referência "&Excel_BuiltIn_Database&".xlsm",""))))))))))))))))) ->  | AA12: Valores não Arredondados | AJ12: ↓ | AL12: ↓
A13: Nível E | B13: Save Nivel | C13: Nível C | D13: Altura | E13: n1 | F13: n2 | G13: n3 | H13: n4 | I13: n5 | J13: Czero | K13: Cnível | L13: ↓ | M13: Nível | N13: Nível Corrigido | O13: Item | P13: Fonte | Q13: Código | R13: Descrição | S13: Unidade | T13: Quantidade | U13: =IF(TIPOORCAMENTO="Licitado","","Custo Unitário (sem BDI) (R$)") -> Custo Unitário (sem BDI) (R$) | V13: =IF(TIPOORCAMENTO="Licitado","","BDI (%)") -> BDI (%) | W13: Preço Unitário (com BDI) (R$) | X13: Preço Total (R$) | Y13: ↓ | Z13: ↓ | AA13: Contrapartida (R$) | AB13: Outros (R$) | AC13: Erro de Dados | AD13: Lista Crono | AE13: Concatenação Fonte-Código | AF13: BancoDesloc | AG13: Custo Unitário Referência (R$) | AH13: =IF(TIPOORCAMENTO="LICITADO","Valor BDI Edital","Valor BDI") -> Valor BDI | AJ13: Quantidade | AL13: Preço Unitário (com BDI) (R$) | AM13: Preço Total Licit. (R$) | AN13: Preço Unitário Edital (R$)
A14: =CHOOSE(1+LOG(1+2*(ORÇAMENTO.Nivel="Meta")+4*(ORÇAMENTO.Nivel="Nível 2")+8*(ORÇAMENTO.Nivel="Nível 3")+16*(ORÇAMENTO.Nivel="Nível 4")+32*(ORÇAMENTO.Nivel="Serviço"),2),0,1,2,3,4,"S") -> S | B14: =IF(OR(C14="s",C14=0),OFFSET(B14,-1,0),C14) -> Save Nivel | C14: =IF(OFFSET(C14,-1,0)="L",1,IF(OFFSET(C14,-1,0)=1,2,IF(OR(A14="s",A14=0),"S",IF(AND(OFFSET(C14,-1,0)=2,A14=4),3,IF(AND(OR(OFFSET(C14,-1,0)="s",OFFSET(C14,-1,0)=0),A14<>"s",A14>OFFSET(B14,-1,0)),OFFSET(B14,-1,0),A14))))) -> S | D14: =IF(OR(C14="S",C14=0),0,IF(ISERROR(K14),J14,SMALL(J14:K14,1))) -> 0 | E14: =IF($C14=1,OFFSET(E14,-1,0)+MAX(1,COUNTIF(QCI!$A$13:$A$24,OFFSET(ORÇAMENTO!E14,-1,0))),OFFSET(E14,-1,0)) -> n1 | F14: =IF($C14=1,0,IF($C14=2,OFFSET(F14,-1,0)+1,OFFSET(F14,-1,0))) -> n2 | G14: =IF(AND($C14<=2,$C14<>0),0,IF($C14=3,OFFSET(G14,-1,0)+1,OFFSET(G14,-1,0))) -> n3 | H14: =IF(AND($C14<=3,$C14<>0),0,IF($C14=4,OFFSET(H14,-1,0)+1,OFFSET(H14,-1,0))) -> n4 | I14: =IF(AND($C14<=4,$C14<>0),0,IF(AND($C14="S",$X14>0),OFFSET(I14,-1,0)+1,OFFSET(I14,-1,0))) -> n5 | J14: =IF(OR($C14="S",$C14=0),0,MATCH(0,OFFSET($D14,1,$C14,ROW($C$140)-ROW($C14)),0)) -> 0 | K14: =IF(OR($C14="S",$C14=0),0,MATCH(OFFSET($D14,0,$C14)+IF($C14<>1,1,COUNTIF(QCI!$A$13:$A$24,ORÇAMENTO!E14)),OFFSET($D14,1,$C14,ROW($C$140)-ROW($C14)),0)) -> 0 | L14: =IF(OR($X14>0,$C14=1,$C14=2,$C14=3,$C14=4),"F","") ->  | M14: Serviço | N14: =CHOOSE(1+LOG(1+2*(C14=1)+4*(C14=2)+8*(C14=3)+16*(C14=4)+32*(C14="S"),2),"","Meta","Nível 2","Nível 3","Nível 4","Serviço") -> Serviço | O14: =IF(OR($C14=0,$L14=""),"-",CONCATENATE(E14&".",IF(AND($A$5>=2,$C14>=2),F14&".",""),IF(AND($A$5>=3,$C14>=3),G14&".",""),IF(AND($A$5>=4,$C14>=4),H14&".",""),IF($C14="S",I14&".",""))) -> - | P14: SINAPI | R14: =IF($C14="S",REFERENCIA.Descricao,"(digite a descrição aqui)") -> (Sem Código) | S14: =REFERENCIA.Unidade -> - | T14: =OFFSET(CÁLCULO!H$15,ROW($T14)-ROW(T$15),0) -> 0 | V14: BDI 1 | W14: =IF($C14="S",ROUND(IF(TIPOORCAMENTO="Proposto",ORÇAMENTO.CustoUnitario*(1+$AH14),ORÇAMENTO.PrecoUnitarioLicitado),15-13*$AF$10),0) -> 0 | X14: =IF($C14="S",IF(OR(Import.TipoArredondamento<>"TransfereGOV",ACOMPANHAMENTO="BM"),VTOTAL1,SUM(OFFSET(CÁLCULO!$AA$15,ROW($X14)-ROW($X$15),1):OFFSET(CÁLCULO!$AL$15,ROW($X14)-ROW($X$15),-1))),IF($C14=0,0,ROUND(SomaAgrup,15-13*$AF$11))) -> 0 | Y14: RA | Z14: =IF(AND($C14="S",$X14>0),IF(ISBLANK($Y14),"RA",LEFT($Y14,2)),"") ->  | AA14: =IF($C14="S",IF($Z14="CP",$X14,IF($Z14="RA",(($X14)*QCI!$AA$3),0)),SomaAgrup) -> 0 | AB14: =IF($C14="S",IF($Z14="OU",ROUND($X14,2),0),SomaAgrup) -> 0 | AC14: =IF($N14=""," ", IF(AND($C14<>"S",OR($R14="",$R14="(digite a descrição aqui)")),"DESCRIÇÃO", IF(AND($C14="S",OR($Q14<>"",$T14>0,$U14>0),$P14=""),"FONTE", IF(AND($C14="S",$P14<>"",OR($T14>0,$U14>0),$Q14=""),"CÓDIGO", IF(AND($C14="S",$P14<>"",$Q14<>"",$R14="(Código não identificado nas referências)"),"CÓDIGO N/ID", IF(AND($C14="S",OR($R14="",$R14="(digite a descrição aqui)"),OR($Q14<>"",$T14>0,$U14>0)),"DESCRIÇÃO", IF(AND($C14="S",$P14<>"",$Q14<>"",$S14=""),"UNIDADE", IF(AND($C14="S",$P14<>"",$Q14<>"",$U14=0),"SEM CUSTO", IF(AND(TIPOORCAMENTO="Licitado",$AL14=0,$AN14>0),"SEM PREÇO", IF(AND($C14="S",$P14<>"",$Q14<>"",$U14>0,AND($V14<>"BDI 1",$V14<>"BDI 2",$V14<>"BDI 3")),IF(ISNUMBER($V14),"JUSTIFICAR BDI","BDI"), IF(OR(AND(import.recurso="OGU",TIPOORCAMENTO="Proposto",LEFT($O$8,5)<>"(N/D:",$AG14<>"",ORÇAMENTO.CustoUnitario>$AG14),AND(TIPOORCAMENTO="LICITADO",ORÇAMENTO.PrecoUnitarioLicitado>$AN14)),"ACIMA REF.", IF(AND($C14="S",$P14<>"",$Q14<>"",$T14=0,$U14>0),"QUANT.", IF(AND(Import.TipoArredondamento="TransfereGOV",$L14="F",$C14="S",LEN($Q14)>13),"Código >13", IF(AND(Import.TipoArredondamento="TransfereGOV",$L14="F",$C14<>"S",LEN($R14)>100),"Descrição >100", IF(AND(Import.TipoArredondamento="TransfereGOV",$L14="F",$C14="S",LEN($R14)>500),"Descrição >500", IF(AND(Import.TipoArredondamento="TransfereGOV",$L14="F",$C14="S",LEFT(TRIM(UPPER($P14)),6)<>"SINAPI",ISNA(VLOOKUP(TRIM(UPPER($S14)),ListaTgov.Unidades,1,FALSE))),"Unid. Não Disp", " ")))))))))))))))) ->  | AD14: =IF(C14<=CRONO.NivelExibicao,MAX($AD$15:OFFSET(AD14,-1,0))+IF($C14<>1,1,MAX(1,COUNTIF(QCI!$A$13:$A$24,OFFSET($E14,-1,0)))),"") ->  | AE14: =IF(AND($C14="S",ORÇAMENTO.CodBarra<>""),IF(ORÇAMENTO.Fonte="",ORÇAMENTO.CodBarra,CONCATENATE(ORÇAMENTO.Fonte," ",ORÇAMENTO.CodBarra))) -> FALSE | AF14: =IF(ISERROR(ORÇAMENTO.BancoRef),"(abra o arquivo 'Referência "&Excel_BuiltIn_Database&".xlsm)",IF(OR($C14<>"S",ORÇAMENTO.CodBarra=""),"(Sem Código)",IF(ISERROR(MATCH($AE14,INDIRECT(ORÇAMENTO.BancoRef),0)),"(Código não identificado nas referências)",MATCH($AE14,INDIRECT(ORÇAMENTO.BancoRef),0)))) -> (Sem Código) | AG14: =ROUND(IF(DESONERACAO="sim",REFERENCIA.Desonerado,REFERENCIA.NaoDesonerado),2) -> 0 | AH14: =ROUND(IF(ISNUMBER(ORÇAMENTO.OpcaoBDI),ORÇAMENTO.OpcaoBDI,IF(LEFT(ORÇAMENTO.OpcaoBDI,3)="BDI",HLOOKUP(ORÇAMENTO.OpcaoBDI,$F$4:$H$5,2,FALSE),0)),15-11*$AF$9) -> 0.2247 | AM14: =$X14 -> 0 | AN14: =ROUND(ORÇAMENTO.CustoUnitario*(1+$AH14),2) -> 0
A15: 0 | C15: L | D15: =COUNTA(OFFSET(D15,1,0):D$140) -> 124 | E15: 0 | L15: F | M15: =IF(TIPOORCAMENTO="LICITADO","CTEF","LOTE") -> LOTE | N15: =IF(TIPOORCAMENTO="LICITADO","CTEF","LOTE") -> LOTE | O15: =Import.DescLote -> REFORMA DE ARQUIBANCADA | X15: =SUMIF(OFFSET($C15,1,0,ROW(X140)-ROW(X15)-1),"S",OFFSET(X15,1,0,ROW(X140)-ROW(X15)-1)) -> 713057.76 | Z15: =IF(AND($C15="S",$X15>0),LEFT($Y15,2),"") ->  | AA15: =SUMIF(OFFSET($C15,1,0,ROW(AA140)-ROW(AA15)-1),"S",OFFSET(AA15,1,0,ROW(AA140)-ROW(AA15)-1)) -> 235557.76 | AB15: =SUMIF(OFFSET($C15,1,0,ROW(AB140)-ROW(AB15)-1),"S",OFFSET(AB15,1,0,ROW(AB140)-ROW(AB15)-1)) -> 0 | AM15: 713057.76
A16: =CHOOSE(1+LOG(1+2*(ORÇAMENTO.Nivel="Meta")+4*(ORÇAMENTO.Nivel="Nível 2")+8*(ORÇAMENTO.Nivel="Nível 3")+16*(ORÇAMENTO.Nivel="Nível 4")+32*(ORÇAMENTO.Nivel="Serviço"),2),0,1,2,3,4,"S") -> 1 | B16: =IF(OR(C16="s",C16=0),OFFSET(B16,-1,0),C16) -> 1 | C16: =IF(OFFSET(C16,-1,0)="L",1,IF(OFFSET(C16,-1,0)=1,2,IF(OR(A16="s",A16=0),"S",IF(AND(OFFSET(C16,-1,0)=2,A16=4),3,IF(AND(OR(OFFSET(C16,-1,0)="s",OFFSET(C16,-1,0)=0),A16<>"s",A16>OFFSET(B16,-1,0)),OFFSET(B16,-1,0),A16))))) -> 1 | D16: =IF(OR(C16="S",C16=0),0,IF(ISERROR(K16),J16,SMALL(J16:K16,1))) -> 124 | E16: =IF($C16=1,OFFSET(E16,-1,0)+MAX(1,COUNTIF(QCI!$A$13:$A$24,OFFSET(ORÇAMENTO!E16,-1,0))),OFFSET(E16,-1,0)) -> 1 | F16: =IF($C16=1,0,IF($C16=2,OFFSET(F16,-1,0)+1,OFFSET(F16,-1,0))) -> 0 | G16: =IF(AND($C16<=2,$C16<>0),0,IF($C16=3,OFFSET(G16,-1,0)+1,OFFSET(G16,-1,0))) -> 0 | H16: =IF(AND($C16<=3,$C16<>0),0,IF($C16=4,OFFSET(H16,-1,0)+1,OFFSET(H16,-1,0))) -> 0 | I16: =IF(AND($C16<=4,$C16<>0),0,IF(AND($C16="S",$X16>0),OFFSET(I16,-1,0)+1,OFFSET(I16,-1,0))) -> 0 | J16: =IF(OR($C16="S",$C16=0),0,MATCH(0,OFFSET($D16,1,$C16,ROW($C$140)-ROW($C16)),0)) -> 124 | K16: =IF(OR($C16="S",$C16=0),0,MATCH(OFFSET($D16,0,$C16)+IF($C16<>1,1,COUNTIF(QCI!$A$13:$A$24,ORÇAMENTO!E16)),OFFSET($D16,1,$C16,ROW($C$140)-ROW($C16)),0)) ->  | L16: =IF(OR($X16>0,$C16=1,$C16=2,$C16=3,$C16=4),"F","") -> F | M16: Meta | N16: =CHOOSE(1+LOG(1+2*(C16=1)+4*(C16=2)+8*(C16=3)+16*(C16=4)+32*(C16="S"),2),"","Meta","Nível 2","Nível 3","Nível 4","Serviço") -> Meta | O16: =IF(OR($C16=0,$L16=""),"-",CONCATENATE(E16&".",IF(AND($A$5>=2,$C16>=2),F16&".",""),IF(AND($A$5>=3,$C16>=3),G16&".",""),IF(AND($A$5>=4,$C16>=4),H16&".",""),IF($C16="S",I16&".",""))) -> 1. | R16: MODERNIZAÇÃO E REVITALIZAÇÃO DO ESTÁDIO MUNICIPAL DE SIDROLÂNDIA/MS | S16: - | T16: =OFFSET(CÁLCULO!H$15,ROW($T16)-ROW(T$15),0) -> 0 | V16: BDI 1 | W16: =IF($C16="S",ROUND(IF(TIPOORCAMENTO="Proposto",ORÇAMENTO.CustoUnitario*(1+$AH16),ORÇAMENTO.PrecoUnitarioLicitado),15-13*$AF$10),0) -> 0 | X16: =IF($C16="S",IF(OR(Import.TipoArredondamento<>"TransfereGOV",ACOMPANHAMENTO="BM"),VTOTAL1,SUM(OFFSET(CÁLCULO!$AA$15,ROW($X16)-ROW($X$15),1):OFFSET(CÁLCULO!$AL$15,ROW($X16)-ROW($X$15),-1))),IF($C16=0,0,ROUND(SomaAgrup,15-13*$AF$11))) -> 713057.76 | Y16: RA | Z16: =IF(AND($C16="S",$X16>0),IF(ISBLANK($Y16),"RA",LEFT($Y16,2)),"") ->  | AA16: =IF($C16="S",IF($Z16="CP",$X16,IF($Z16="RA",(($X16)*QCI!$AA$3),0)),SomaAgrup) -> 235557.76 | AB16: =IF($C16="S",IF($Z16="OU",ROUND($X16,2),0),SomaAgrup) -> 0 | AC16: =IF($N16=""," ", IF(AND($C16<>"S",OR($R16="",$R16="(digite a descrição aqui)")),"DESCRIÇÃO", IF(AND($C16="S",OR($Q16<>"",$T16>0,$U16>0),$P16=""),"FONTE", IF(AND($C16="S",$P16<>"",OR($T16>0,$U16>0),$Q16=""),"CÓDIGO", IF(AND($C16="S",$P16<>"",$Q16<>"",$R16="(Código não identificado nas referências)"),"CÓDIGO N/ID", IF(AND($C16="S",OR($R16="",$R16="(digite a descrição aqui)"),OR($Q16<>"",$T16>0,$U16>0)),"DESCRIÇÃO", IF(AND($C16="S",$P16<>"",$Q16<>"",$S16=""),"UNIDADE", IF(AND($C16="S",$P16<>"",$Q16<>"",$U16=0),"SEM CUSTO", IF(AND(TIPOORCAMENTO="Licitado",$AL16=0,$AN16>0),"SEM PREÇO", IF(AND($C16="S",$P16<>"",$Q16<>"",$U16>0,AND($V16<>"BDI 1",$V16<>"BDI 2",$V16<>"BDI 3")),IF(ISNUMBER($V16),"JUSTIFICAR BDI","BDI"), IF(OR(AND(import.recurso="OGU",TIPOORCAMENTO="Proposto",LEFT($O$8,5)<>"(N/D:",$AG16<>"",ORÇAMENTO.CustoUnitario>$AG16),AND(TIPOORCAMENTO="LICITADO",ORÇAMENTO.PrecoUnitarioLicitado>$AN16)),"ACIMA REF.", IF(AND($C16="S",$P16<>"",$Q16<>"",$T16=0,$U16>0),"QUANT.", IF(AND(Import.TipoArredondamento="TransfereGOV",$L16="F",$C16="S",LEN($Q16)>13),"Código >13", IF(AND(Import.TipoArredondamento="TransfereGOV",$L16="F",$C16<>"S",LEN($R16)>100),"Descrição >100", IF(AND(Import.TipoArredondamento="TransfereGOV",$L16="F",$C16="S",LEN($R16)>500),"Descrição >500", IF(AND(Import.TipoArredondamento="TransfereGOV",$L16="F",$C16="S",LEFT(TRIM(UPPER($P16)),6)<>"SINAPI",ISNA(VLOOKUP(TRIM(UPPER($S16)),ListaTgov.Unidades,1,FALSE))),"Unid. Não Disp", " ")))))))))))))))) ->  | AD16: =IF(C16<=CRONO.NivelExibicao,MAX($AD$15:OFFSET(AD16,-1,0))+IF($C16<>1,1,MAX(1,COUNTIF(QCI!$A$13:$A$24,OFFSET($E16,-1,0)))),"") -> 1 | AE16: =IF(AND($C16="S",ORÇAMENTO.CodBarra<>""),IF(ORÇAMENTO.Fonte="",ORÇAMENTO.CodBarra,CONCATENATE(ORÇAMENTO.Fonte," ",ORÇAMENTO.CodBarra))) -> FALSE | AF16: =IF(ISERROR(ORÇAMENTO.BancoRef),"(abra o arquivo 'Referência "&Excel_BuiltIn_Database&".xlsm)",IF(OR($C16<>"S",ORÇAMENTO.CodBarra=""),"(Sem Código)",IF(ISERROR(MATCH($AE16,INDIRECT(ORÇAMENTO.BancoRef),0)),"(Código não identificado nas referências)",MATCH($AE16,INDIRECT(ORÇAMENTO.BancoRef),0)))) -> (Sem Código) | AG16: =ROUND(IF(DESONERACAO="sim",REFERENCIA.Desonerado,REFERENCIA.NaoDesonerado),2) -> 0 | AH16: =ROUND(IF(ISNUMBER(ORÇAMENTO.OpcaoBDI),ORÇAMENTO.OpcaoBDI,IF(LEFT(ORÇAMENTO.OpcaoBDI,3)="BDI",HLOOKUP(ORÇAMENTO.OpcaoBDI,$F$4:$H$5,2,FALSE),0)),15-11*$AF$9) -> 0.2247 | AM16: 713057.76 | AN16: =ROUND(ORÇAMENTO.CustoUnitario*(1+$AH16),2) -> 0
A17: 2 | B17: 2 | C17: 2 | D17: 4 | E17: =IF($C17=1,OFFSET(E17,-1,0)+MAX(1,COUNTIF(QCI!$A$13:$A$24,OFFSET(ORÇAMENTO!E17,-1,0))),OFFSET(E17,-1,0)) -> 1 | F17: 1 | G17: 0 | H17: 0 | I17: 0 | J17: 123 | K17: =IF(OR($C17="S",$C17=0),0,MATCH(OFFSET($D17,0,$C17)+IF($C17<>1,1,COUNTIF(QCI!$A$13:$A$24,ORÇAMENTO!E17)),OFFSET($D17,1,$C17,ROW($C$140)-ROW($C17)),0)) -> 4 | L17: F | M17: Nível 2 | N17: Nível 2 | O17: 1.1. | P17: Composição | Q17: 01 | R17: SERVIÇOS PRELIMINARES | S17: - | T17: =OFFSET(CÁLCULO!H$15,ROW($T17)-ROW(T$15),0) -> 0 | U17: =AG17 -> 0 | V17: BDI 1 | W17: =IF($C17="S",ROUND(IF(TIPOORCAMENTO="Proposto",ORÇAMENTO.CustoUnitario*(1+$AH17),ORÇAMENTO.PrecoUnitarioLicitado),15-13*$AF$10),0) -> 0 | X17: =IF($C17="S",IF(OR(Import.TipoArredondamento<>"TransfereGOV",ACOMPANHAMENTO="BM"),VTOTAL1,SUM(OFFSET(CÁLCULO!$AA$15,ROW($X17)-ROW($X$15),1):OFFSET(CÁLCULO!$AL$15,ROW($X17)-ROW($X$15),-1))),IF($C17=0,0,ROUND(SomaAgrup,15-13*$AF$11))) -> 13392.84 | Y17: RA | AA17: =IF($C17="S",IF($Z17="CP",$X17,IF($Z17="RA",(($X17)*QCI!$AA$3),0)),SomaAgrup) -> 4424.308334 | AB17: =IF($C17="S",IF($Z17="OU",ROUND($X17,2),0),SomaAgrup) -> 0 | AC17: =IF($N17=""," ", IF(AND($C17<>"S",OR($R17="",$R17="(digite a descrição aqui)")),"DESCRIÇÃO", IF(AND($C17="S",OR($Q17<>"",$T17>0,$U17>0),$P17=""),"FONTE", IF(AND($C17="S",$P17<>"",OR($T17>0,$U17>0),$Q17=""),"CÓDIGO", IF(AND($C17="S",$P17<>"",$Q17<>"",$R17="(Código não identificado nas referências)"),"CÓDIGO N/ID", IF(AND($C17="S",OR($R17="",$R17="(digite a descrição aqui)"),OR($Q17<>"",$T17>0,$U17>0)),"DESCRIÇÃO", IF(AND($C17="S",$P17<>"",$Q17<>"",$S17=""),"UNIDADE", IF(AND($C17="S",$P17<>"",$Q17<>"",$U17=0),"SEM CUSTO", IF(AND(TIPOORCAMENTO="Licitado",$AL17=0,$AN17>0),"SEM PREÇO", IF(AND($C17="S",$P17<>"",$Q17<>"",$U17>0,AND($V17<>"BDI 1",$V17<>"BDI 2",$V17<>"BDI 3")),IF(ISNUMBER($V17),"JUSTIFICAR BDI","BDI"), IF(OR(AND(import.recurso="OGU",TIPOORCAMENTO="Proposto",LEFT($O$8,5)<>"(N/D:",$AG17<>"",ORÇAMENTO.CustoUnitario>$AG17),AND(TIPOORCAMENTO="LICITADO",ORÇAMENTO.PrecoUnitarioLicitado>$AN17)),"ACIMA REF.", IF(AND($C17="S",$P17<>"",$Q17<>"",$T17=0,$U17>0),"QUANT.", IF(AND(Import.TipoArredondamento="TransfereGOV",$L17="F",$C17="S",LEN($Q17)>13),"Código >13", IF(AND(Import.TipoArredondamento="TransfereGOV",$L17="F",$C17<>"S",LEN($R17)>100),"Descrição >100", IF(AND(Import.TipoArredondamento="TransfereGOV",$L17="F",$C17="S",LEN($R17)>500),"Descrição >500", IF(AND(Import.TipoArredondamento="TransfereGOV",$L17="F",$C17="S",LEFT(TRIM(UPPER($P17)),6)<>"SINAPI",ISNA(VLOOKUP(TRIM(UPPER($S17)),ListaTgov.Unidades,1,FALSE))),"Unid. Não Disp", " ")))))))))))))))) ->  | AD17: =IF(C17<=CRONO.NivelExibicao,MAX($AD$15:OFFSET(AD17,-1,0))+IF($C17<>1,1,MAX(1,COUNTIF(QCI!$A$13:$A$24,OFFSET($E17,-1,0)))),"") -> 2 | AE17: =IF(AND($C17="S",ORÇAMENTO.CodBarra<>""),IF(ORÇAMENTO.Fonte="",ORÇAMENTO.CodBarra,CONCATENATE(ORÇAMENTO.Fonte," ",ORÇAMENTO.CodBarra))) -> FALSE | AF17: =IF(ISERROR(ORÇAMENTO.BancoRef),"(abra o arquivo 'Referência "&Excel_BuiltIn_Database&".xlsm)",IF(OR($C17<>"S",ORÇAMENTO.CodBarra=""),"(Sem Código)",IF(ISERROR(MATCH($AE17,INDIRECT(ORÇAMENTO.BancoRef),0)),"(Código não identificado nas referências)",MATCH($AE17,INDIRECT(ORÇAMENTO.BancoRef),0)))) -> (Sem Código) | AG17: =ROUND(IF(DESONERACAO="sim",REFERENCIA.Desonerado,REFERENCIA.NaoDesonerado),2) -> 0 | AH17: 0.2247 | AL17: 385.4 | AM17: 13392.84 | AN17: =ROUND(ORÇAMENTO.CustoUnitario*(1+$AH17),2) -> 0
A18: S | B18: 2 | C18: S | D18: 0 | E18: =IF($C18=1,OFFSET(E18,-1,0)+MAX(1,COUNTIF(QCI!$A$13:$A$24,OFFSET(ORÇAMENTO!E18,-1,0))),OFFSET(E18,-1,0)) -> 1 | F18: 1 | G18: 0 | H18: 0 | I18: 1 | J18: 0 | K18: =IF(OR($C18="S",$C18=0),0,MATCH(OFFSET($D18,0,$C18)+IF($C18<>1,1,COUNTIF(QCI!$A$13:$A$24,ORÇAMENTO!E18)),OFFSET($D18,1,$C18,ROW($C$140)-ROW($C18)),0)) -> 0 | L18: F | M18: Serviço | N18: Serviço | O18: 1.1.1. | P18: SINAPI | Q18: 103689 | R18: FORNECIMENTO E INSTALAÇÃO DE PLACA DE OBRA COM CHAPA GALVANIZADA E ESTRUTURA DE MADEIRA. AF_03/2022_PS | S18: M2 | T18: =OFFSET(CÁLCULO!H$15,ROW($T18)-ROW(T$15),0) -> 8 | U18: =AG18 -> 455.88 | V18: BDI 1 | W18: =IF($C18="S",ROUND(IF(TIPOORCAMENTO="Proposto",ORÇAMENTO.CustoUnitario*(1+$AH18),ORÇAMENTO.PrecoUnitarioLicitado),15-13*$AF$10),0) -> 558.32 | X18: =IF($C18="S",IF(OR(Import.TipoArredondamento<>"TransfereGOV",ACOMPANHAMENTO="BM"),VTOTAL1,SUM(OFFSET(CÁLCULO!$AA$15,ROW($X18)-ROW($X$15),1):OFFSET(CÁLCULO!$AL$15,ROW($X18)-ROW($X$15),-1))),IF($C18=0,0,ROUND(SomaAgrup,15-13*$AF$11))) -> 4466.56 | Y18: RA | Z18: RA | AA18: =IF($C18="S",IF($Z18="CP",$X18,IF($Z18="RA",(($X18)*QCI!$AA$3),0)),SomaAgrup) -> 1475.52264 | AB18: =IF($C18="S",IF($Z18="OU",ROUND($X18,2),0),SomaAgrup) -> 0 | AC18: =IF($N18=""," ", IF(AND($C18<>"S",OR($R18="",$R18="(digite a descrição aqui)")),"DESCRIÇÃO", IF(AND($C18="S",OR($Q18<>"",$T18>0,$U18>0),$P18=""),"FONTE", IF(AND($C18="S",$P18<>"",OR($T18>0,$U18>0),$Q18=""),"CÓDIGO", IF(AND($C18="S",$P18<>"",$Q18<>"",$R18="(Código não identificado nas referências)"),"CÓDIGO N/ID", IF(AND($C18="S",OR($R18="",$R18="(digite a descrição aqui)"),OR($Q18<>"",$T18>0,$U18>0)),"DESCRIÇÃO", IF(AND($C18="S",$P18<>"",$Q18<>"",$S18=""),"UNIDADE", IF(AND($C18="S",$P18<>"",$Q18<>"",$U18=0),"SEM CUSTO", IF(AND(TIPOORCAMENTO="Licitado",$AL18=0,$AN18>0),"SEM PREÇO", IF(AND($C18="S",$P18<>"",$Q18<>"",$U18>0,AND($V18<>"BDI 1",$V18<>"BDI 2",$V18<>"BDI 3")),IF(ISNUMBER($V18),"JUSTIFICAR BDI","BDI"), IF(OR(AND(import.recurso="OGU",TIPOORCAMENTO="Proposto",LEFT($O$8,5)<>"(N/D:",$AG18<>"",ORÇAMENTO.CustoUnitario>$AG18),AND(TIPOORCAMENTO="LICITADO",ORÇAMENTO.PrecoUnitarioLicitado>$AN18)),"ACIMA REF.", IF(AND($C18="S",$P18<>"",$Q18<>"",$T18=0,$U18>0),"QUANT.", IF(AND(Import.TipoArredondamento="TransfereGOV",$L18="F",$C18="S",LEN($Q18)>13),"Código >13", IF(AND(Import.TipoArredondamento="TransfereGOV",$L18="F",$C18<>"S",LEN($R18)>100),"Descrição >100", IF(AND(Import.TipoArredondamento="TransfereGOV",$L18="F",$C18="S",LEN($R18)>500),"Descrição >500", IF(AND(Import.TipoArredondamento="TransfereGOV",$L18="F",$C18="S",LEFT(TRIM(UPPER($P18)),6)<>"SINAPI",ISNA(VLOOKUP(TRIM(UPPER($S18)),ListaTgov.Unidades,1,FALSE))),"Unid. Não Disp", " ")))))))))))))))) ->  | AD18: =IF(C18<=CRONO.NivelExibicao,MAX($AD$15:OFFSET(AD18,-1,0))+IF($C18<>1,1,MAX(1,COUNTIF(QCI!$A$13:$A$24,OFFSET($E18,-1,0)))),"") ->  | AE18: =IF(AND($C18="S",ORÇAMENTO.CodBarra<>""),IF(ORÇAMENTO.Fonte="",ORÇAMENTO.CodBarra,CONCATENATE(ORÇAMENTO.Fonte," ",ORÇAMENTO.CodBarra))) -> SINAPI 103689 | AF18: =IF(ISERROR(ORÇAMENTO.BancoRef),"(abra o arquivo 'Referência "&Excel_BuiltIn_Database&".xlsm)",IF(OR($C18<>"S",ORÇAMENTO.CodBarra=""),"(Sem Código)",IF(ISERROR(MATCH($AE18,INDIRECT(ORÇAMENTO.BancoRef),0)),"(Código não identificado nas referências)",MATCH($AE18,INDIRECT(ORÇAMENTO.BancoRef),0)))) -> 14856 | AG18: =ROUND(IF(DESONERACAO="sim",REFERENCIA.Desonerado,REFERENCIA.NaoDesonerado),2) -> 455.88 | AH18: 0.2247 | AJ18: 8 | AM18: 4466.56 | AN18: =ROUND(ORÇAMENTO.CustoUnitario*(1+$AH18),2) -> 558.32
A19: S | B19: 2 | C19: S | D19: 0 | E19: =IF($C19=1,OFFSET(E19,-1,0)+MAX(1,COUNTIF(QCI!$A$13:$A$24,OFFSET(ORÇAMENTO!E19,-1,0))),OFFSET(E19,-1,0)) -> 1 | F19: 1 | G19: 0 | H19: 0 | I19: 2 | J19: 0 | K19: =IF(OR($C19="S",$C19=0),0,MATCH(OFFSET($D19,0,$C19)+IF($C19<>1,1,COUNTIF(QCI!$A$13:$A$24,ORÇAMENTO!E19)),OFFSET($D19,1,$C19,ROW($C$140)-ROW($C19)),0)) -> 0 | L19: F | M19: Serviço | N19: Serviço | O19: 1.1.2. | P19: Composição | Q19: CPU 02 | R19: EXECUÇÃO DE ESCRITÓRIO EM CANTEIRO DE OBRA EM CHAPA DE MADEIRA COMPENSADA, NÃO INCLUSO MOBILIÁRIO E EQUIPAMENTOS | S19: M2 | T19: =OFFSET(CÁLCULO!H$15,ROW($T19)-ROW(T$15),0) -> 6 | U19: =AG19 -> 1020.27 | V19: BDI 1 | W19: =IF($C19="S",ROUND(IF(TIPOORCAMENTO="Proposto",ORÇAMENTO.CustoUnitario*(1+$AH19),ORÇAMENTO.PrecoUnitarioLicitado),15-13*$AF$10),0) -> 1249.52 | X19: =IF($C19="S",IF(OR(Import.TipoArredondamento<>"TransfereGOV",ACOMPANHAMENTO="BM"),VTOTAL1,SUM(OFFSET(CÁLCULO!$AA$15,ROW($X19)-ROW($X$15),1):OFFSET(CÁLCULO!$AL$15,ROW($X19)-ROW($X$15),-1))),IF($C19=0,0,ROUND(SomaAgrup,15-13*$AF$11))) -> 7497.12 | Y19: RA | Z19: RA | AA19: =IF($C19="S",IF($Z19="CP",$X19,IF($Z19="RA",(($X19)*QCI!$AA$3),0)),SomaAgrup) -> 2476.664434 | AB19: =IF($C19="S",IF($Z19="OU",ROUND($X19,2),0),SomaAgrup) -> 0 | AC19: =IF($N19=""," ", IF(AND($C19<>"S",OR($R19="",$R19="(digite a descrição aqui)")),"DESCRIÇÃO", IF(AND($C19="S",OR($Q19<>"",$T19>0,$U19>0),$P19=""),"FONTE", IF(AND($C19="S",$P19<>"",OR($T19>0,$U19>0),$Q19=""),"CÓDIGO", IF(AND($C19="S",$P19<>"",$Q19<>"",$R19="(Código não identificado nas referências)"),"CÓDIGO N/ID", IF(AND($C19="S",OR($R19="",$R19="(digite a descrição aqui)"),OR($Q19<>"",$T19>0,$U19>0)),"DESCRIÇÃO", IF(AND($C19="S",$P19<>"",$Q19<>"",$S19=""),"UNIDADE", IF(AND($C19="S",$P19<>"",$Q19<>"",$U19=0),"SEM CUSTO", IF(AND(TIPOORCAMENTO="Licitado",$AL19=0,$AN19>0),"SEM PREÇO", IF(AND($C19="S",$P19<>"",$Q19<>"",$U19>0,AND($V19<>"BDI 1",$V19<>"BDI 2",$V19<>"BDI 3")),IF(ISNUMBER($V19),"JUSTIFICAR BDI","BDI"), IF(OR(AND(import.recurso="OGU",TIPOORCAMENTO="Proposto",LEFT($O$8,5)<>"(N/D:",$AG19<>"",ORÇAMENTO.CustoUnitario>$AG19),AND(TIPOORCAMENTO="LICITADO",ORÇAMENTO.PrecoUnitarioLicitado>$AN19)),"ACIMA REF.", IF(AND($C19="S",$P19<>"",$Q19<>"",$T19=0,$U19>0),"QUANT.", IF(AND(Import.TipoArredondamento="TransfereGOV",$L19="F",$C19="S",LEN($Q19)>13),"Código >13", IF(AND(Import.TipoArredondamento="TransfereGOV",$L19="F",$C19<>"S",LEN($R19)>100),"Descrição >100", IF(AND(Import.TipoArredondamento="TransfereGOV",$L19="F",$C19="S",LEN($R19)>500),"Descrição >500", IF(AND(Import.TipoArredondamento="TransfereGOV",$L19="F",$C19="S",LEFT(TRIM(UPPER($P19)),6)<>"SINAPI",ISNA(VLOOKUP(TRIM(UPPER($S19)),ListaTgov.Unidades,1,FALSE))),"Unid. Não Disp", " ")))))))))))))))) ->  | AD19: =IF(C19<=CRONO.NivelExibicao,MAX($AD$15:OFFSET(AD19,-1,0))+IF($C19<>1,1,MAX(1,COUNTIF(QCI!$A$13:$A$24,OFFSET($E19,-1,0)))),"") ->  | AE19: =IF(AND($C19="S",ORÇAMENTO.CodBarra<>""),IF(ORÇAMENTO.Fonte="",ORÇAMENTO.CodBarra,CONCATENATE(ORÇAMENTO.Fonte," ",ORÇAMENTO.CodBarra))) -> Composição CPU 02 | AF19: =IF(ISERROR(ORÇAMENTO.BancoRef),"(abra o arquivo 'Referência "&Excel_BuiltIn_Database&".xlsm)",IF(OR($C19<>"S",ORÇAMENTO.CodBarra=""),"(Sem Código)",IF(ISERROR(MATCH($AE19,INDIRECT(ORÇAMENTO.BancoRef),0)),"(Código não identificado nas referências)",MATCH($AE19,INDIRECT(ORÇAMENTO.BancoRef),0)))) -> 4 | AG19: =ROUND(IF(DESONERACAO="sim",REFERENCIA.Desonerado,REFERENCIA.NaoDesonerado),2) -> 1020.27 | AH19: 0.2247 | AJ19: 6 | AM19: 7497.12 | AN19: =ROUND(ORÇAMENTO.CustoUnitario*(1+$AH19),2) -> 1249.52
A20: S | B20: 2 | C20: S | D20: 0 | E20: =IF($C20=1,OFFSET(E20,-1,0)+MAX(1,COUNTIF(QCI!$A$13:$A$24,OFFSET(ORÇAMENTO!E20,-1,0))),OFFSET(E20,-1,0)) -> 1 | F20: 1 | G20: 0 | H20: 0 | I20: 3 | J20: 0 | K20: =IF(OR($C20="S",$C20=0),0,MATCH(OFFSET($D20,0,$C20)+IF($C20<>1,1,COUNTIF(QCI!$A$13:$A$24,ORÇAMENTO!E20)),OFFSET($D20,1,$C20,ROW($C$140)-ROW($C20)),0)) -> 0 | L20: F | M20: Serviço | N20: Serviço | O20: 1.1.3. | P20: Composição | Q20: CPU 03 | R20: EXECUÇÃO DE SANITÁRIO E VESTIÁRIO EM CANTEIRO DE OBRA EM CHAPA DE MADEIRA COMPENSADA, NÃO INCLUSO MOBILIÁRIO. | S20: M2 | T20: =OFFSET(CÁLCULO!H$15,ROW($T20)-ROW(T$15),0) -> 1.2 | U20: 972.46 | V20: BDI 1 | W20: =IF($C20="S",ROUND(IF(TIPOORCAMENTO="Proposto",ORÇAMENTO.CustoUnitario*(1+$AH20),ORÇAMENTO.PrecoUnitarioLicitado),15-13*$AF$10),0) -> 1190.97 | X20: =IF($C20="S",IF(OR(Import.TipoArredondamento<>"TransfereGOV",ACOMPANHAMENTO="BM"),VTOTAL1,SUM(OFFSET(CÁLCULO!$AA$15,ROW($X20)-ROW($X$15),1):OFFSET(CÁLCULO!$AL$15,ROW($X20)-ROW($X$15),-1))),IF($C20=0,0,ROUND(SomaAgrup,15-13*$AF$11))) -> 1429.16 | Y20: RA | Z20: RA | AA20: =IF($C20="S",IF($Z20="CP",$X20,IF($Z20="RA",(($X20)*QCI!$AA$3),0)),SomaAgrup) -> 472.1212602 | AB20: =IF($C20="S",IF($Z20="OU",ROUND($X20,2),0),SomaAgrup) -> 0 | AC20: =IF($N20=""," ", IF(AND($C20<>"S",OR($R20="",$R20="(digite a descrição aqui)")),"DESCRIÇÃO", IF(AND($C20="S",OR($Q20<>"",$T20>0,$U20>0),$P20=""),"FONTE", IF(AND($C20="S",$P20<>"",OR($T20>0,$U20>0),$Q20=""),"CÓDIGO", IF(AND($C20="S",$P20<>"",$Q20<>"",$R20="(Código não identificado nas referências)"),"CÓDIGO N/ID", IF(AND($C20="S",OR($R20="",$R20="(digite a descrição aqui)"),OR($Q20<>"",$T20>0,$U20>0)),"DESCRIÇÃO", IF(AND($C20="S",$P20<>"",$Q20<>"",$S20=""),"UNIDADE", IF(AND($C20="S",$P20<>"",$Q20<>"",$U20=0),"SEM CUSTO", IF(AND(TIPOORCAMENTO="Licitado",$AL20=0,$AN20>0),"SEM PREÇO", IF(AND($C20="S",$P20<>"",$Q20<>"",$U20>0,AND($V20<>"BDI 1",$V20<>"BDI 2",$V20<>"BDI 3")),IF(ISNUMBER($V20),"JUSTIFICAR BDI","BDI"), IF(OR(AND(import.recurso="OGU",TIPOORCAMENTO="Proposto",LEFT($O$8,5)<>"(N/D:",$AG20<>"",ORÇAMENTO.CustoUnitario>$AG20),AND(TIPOORCAMENTO="LICITADO",ORÇAMENTO.PrecoUnitarioLicitado>$AN20)),"ACIMA REF.", IF(AND($C20="S",$P20<>"",$Q20<>"",$T20=0,$U20>0),"QUANT.", IF(AND(Import.TipoArredondamento="TransfereGOV",$L20="F",$C20="S",LEN($Q20)>13),"Código >13", IF(AND(Import.TipoArredondamento="TransfereGOV",$L20="F",$C20<>"S",LEN($R20)>100),"Descrição >100", IF(AND(Import.TipoArredondamento="TransfereGOV",$L20="F",$C20="S",LEN($R20)>500),"Descrição >500", IF(AND(Import.TipoArredondamento="TransfereGOV",$L20="F",$C20="S",LEFT(TRIM(UPPER($P20)),6)<>"SINAPI",ISNA(VLOOKUP(TRIM(UPPER($S20)),ListaTgov.Unidades,1,FALSE))),"Unid. Não Disp", " ")))))))))))))))) ->  | AD20: =IF(C20<=CRONO.NivelExibicao,MAX($AD$15:OFFSET(AD20,-1,0))+IF($C20<>1,1,MAX(1,COUNTIF(QCI!$A$13:$A$24,OFFSET($E20,-1,0)))),"") ->  | AE20: =IF(AND($C20="S",ORÇAMENTO.CodBarra<>""),IF(ORÇAMENTO.Fonte="",ORÇAMENTO.CodBarra,CONCATENATE(ORÇAMENTO.Fonte," ",ORÇAMENTO.CodBarra))) -> Composição CPU 03 | AF20: =IF(ISERROR(ORÇAMENTO.BancoRef),"(abra o arquivo 'Referência "&Excel_BuiltIn_Database&".xlsm)",IF(OR($C20<>"S",ORÇAMENTO.CodBarra=""),"(Sem Código)",IF(ISERROR(MATCH($AE20,INDIRECT(ORÇAMENTO.BancoRef),0)),"(Código não identificado nas referências)",MATCH($AE20,INDIRECT(ORÇAMENTO.BancoRef),0)))) -> 5 | AG20: =ROUND(IF(DESONERACAO="sim",REFERENCIA.Desonerado,REFERENCIA.NaoDesonerado),2) -> 972.46 | AH20: 0.2247 | AJ20: 1.2 | AM20: 1429.16 | AN20: =ROUND(ORÇAMENTO.CustoUnitario*(1+$AH20),2) -> 1190.97
A21: 2 | B21: 2 | C21: 2 | D21: 10 | E21: =IF($C21=1,OFFSET(E21,-1,0)+MAX(1,COUNTIF(QCI!$A$13:$A$24,OFFSET(ORÇAMENTO!E21,-1,0))),OFFSET(E21,-1,0)) -> 1 | F21: 2 | G21: 0 | H21: 0 | I21: 0 | J21: 119 | K21: =IF(OR($C21="S",$C21=0),0,MATCH(OFFSET($D21,0,$C21)+IF($C21<>1,1,COUNTIF(QCI!$A$13:$A$24,ORÇAMENTO!E21)),OFFSET($D21,1,$C21,ROW($C$140)-ROW($C21)),0)) -> 10 | L21: F | M21: Nível 2 | N21: Nível 2 | O21: 1.2. | P21: SINAPI | R21: DEMOLIÇÃO E RETIRADA | S21: - | T21: =OFFSET(CÁLCULO!H$15,ROW($T21)-ROW(T$15),0) -> 0 | U21: 0 | V21: BDI 1 | W21: =IF($C21="S",ROUND(IF(TIPOORCAMENTO="Proposto",ORÇAMENTO.CustoUnitario*(1+$AH21),ORÇAMENTO.PrecoUnitarioLicitado),15-13*$AF$10),0) -> 0 | X21: =IF($C21="S",IF(OR(Import.TipoArredondamento<>"TransfereGOV",ACOMPANHAMENTO="BM"),VTOTAL1,SUM(OFFSET(CÁLCULO!$AA$15,ROW($X21)-ROW($X$15),1):OFFSET(CÁLCULO!$AL$15,ROW($X21)-ROW($X$15),-1))),IF($C21=0,0,ROUND(SomaAgrup,15-13*$AF$11))) -> 14025.38 | Y21: RA | AA21: =IF($C21="S",IF($Z21="CP",$X21,IF($Z21="RA",(($X21)*QCI!$AA$3),0)),SomaAgrup) -> 4633.267151 | AB21: =IF($C21="S",IF($Z21="OU",ROUND($X21,2),0),SomaAgrup) -> 0 | AC21: =IF($N21=""," ", IF(AND($C21<>"S",OR($R21="",$R21="(digite a descrição aqui)")),"DESCRIÇÃO", IF(AND($C21="S",OR($Q21<>"",$T21>0,$U21>0),$P21=""),"FONTE", IF(AND($C21="S",$P21<>"",OR($T21>0,$U21>0),$Q21=""),"CÓDIGO", IF(AND($C21="S",$P21<>"",$Q21<>"",$R21="(Código não identificado nas referências)"),"CÓDIGO N/ID", IF(AND($C21="S",OR($R21="",$R21="(digite a descrição aqui)"),OR($Q21<>"",$T21>0,$U21>0)),"DESCRIÇÃO", IF(AND($C21="S",$P21<>"",$Q21<>"",$S21=""),"UNIDADE", IF(AND($C21="S",$P21<>"",$Q21<>"",$U21=0),"SEM CUSTO", IF(AND(TIPOORCAMENTO="Licitado",$AL21=0,$AN21>0),"SEM PREÇO", IF(AND($C21="S",$P21<>"",$Q21<>"",$U21>0,AND($V21<>"BDI 1",$V21<>"BDI 2",$V21<>"BDI 3")),IF(ISNUMBER($V21),"JUSTIFICAR BDI","BDI"), IF(OR(AND(import.recurso="OGU",TIPOORCAMENTO="Proposto",LEFT($O$8,5)<>"(N/D:",$AG21<>"",ORÇAMENTO.CustoUnitario>$AG21),AND(TIPOORCAMENTO="LICITADO",ORÇAMENTO.PrecoUnitarioLicitado>$AN21)),"ACIMA REF.", IF(AND($C21="S",$P21<>"",$Q21<>"",$T21=0,$U21>0),"QUANT.", IF(AND(Import.TipoArredondamento="TransfereGOV",$L21="F",$C21="S",LEN($Q21)>13),"Código >13", IF(AND(Import.TipoArredondamento="TransfereGOV",$L21="F",$C21<>"S",LEN($R21)>100),"Descrição >100", IF(AND(Import.TipoArredondamento="TransfereGOV",$L21="F",$C21="S",LEN($R21)>500),"Descrição >500", IF(AND(Import.TipoArredondamento="TransfereGOV",$L21="F",$C21="S",LEFT(TRIM(UPPER($P21)),6)<>"SINAPI",ISNA(VLOOKUP(TRIM(UPPER($S21)),ListaTgov.Unidades,1,FALSE))),"Unid. Não Disp", " ")))))))))))))))) ->  | AD21: =IF(C21<=CRONO.NivelExibicao,MAX($AD$15:OFFSET(AD21,-1,0))+IF($C21<>1,1,MAX(1,COUNTIF(QCI!$A$13:$A$24,OFFSET($E21,-1,0)))),"") -> 3 | AE21: =IF(AND($C21="S",ORÇAMENTO.CodBarra<>""),IF(ORÇAMENTO.Fonte="",ORÇAMENTO.CodBarra,CONCATENATE(ORÇAMENTO.Fonte," ",ORÇAMENTO.CodBarra))) -> FALSE | AF21: =IF(ISERROR(ORÇAMENTO.BancoRef),"(abra o arquivo 'Referência "&Excel_BuiltIn_Database&".xlsm)",IF(OR($C21<>"S",ORÇAMENTO.CodBarra=""),"(Sem Código)",IF(ISERROR(MATCH($AE21,INDIRECT(ORÇAMENTO.BancoRef),0)),"(Código não identificado nas referências)",MATCH($AE21,INDIRECT(ORÇAMENTO.BancoRef),0)))) -> (Sem Código) | AG21: =ROUND(IF(DESONERACAO="sim",REFERENCIA.Desonerado,REFERENCIA.NaoDesonerado),2) -> 0 | AH21: 0.2247 | AM21: 14025.38 | AN21: =ROUND(ORÇAMENTO.CustoUnitario*(1+$AH21),2) -> 0
A22: S | B22: 2 | C22: S | D22: 0 | E22: =IF($C22=1,OFFSET(E22,-1,0)+MAX(1,COUNTIF(QCI!$A$13:$A$24,OFFSET(ORÇAMENTO!E22,-1,0))),OFFSET(E22,-1,0)) -> 1 | F22: 2 | G22: 0 | H22: 0 | I22: 1 | J22: 0 | K22: =IF(OR($C22="S",$C22=0),0,MATCH(OFFSET($D22,0,$C22)+IF($C22<>1,1,COUNTIF(QCI!$A$13:$A$24,ORÇAMENTO!E22)),OFFSET($D22,1,$C22,ROW($C$140)-ROW($C22)),0)) -> 0 | L22: F | M22: Serviço | N22: Serviço | O22: 1.2.1. | P22: SINAPI | Q22: 104790 | R22: DEMOLIÇÃO DE PISO DE CONCRETO SIMPLES, DE FORMA MECANIZADA COM MARTELETE, SEM REAPROVEITAMENTO. AF_09/2023 | S22: =REFERENCIA.Unidade -> M3 | T22: =OFFSET(CÁLCULO!H$15,ROW($T22)-ROW(T$15),0) -> 27.63 | U22: 111.95 | V22: BDI 1 | W22: =IF($C22="S",ROUND(IF(TIPOORCAMENTO="Proposto",ORÇAMENTO.CustoUnitario*(1+$AH22),ORÇAMENTO.PrecoUnitarioLicitado),15-13*$AF$10),0) -> 137.11 | X22: =IF($C22="S",IF(OR(Import.TipoArredondamento<>"TransfereGOV",ACOMPANHAMENTO="BM"),VTOTAL1,SUM(OFFSET(CÁLCULO!$AA$15,ROW($X22)-ROW($X$15),1):OFFSET(CÁLCULO!$AL$15,ROW($X22)-ROW($X$15),-1))),IF($C22=0,0,ROUND(SomaAgrup,15-13*$AF$11))) -> 3788.35 | Y22: RA | Z22: RA | AA22: =IF($C22="S",IF($Z22="CP",$X22,IF($Z22="RA",(($X22)*QCI!$AA$3),0)),SomaAgrup) -> 1251.476795 | AB22: =IF($C22="S",IF($Z22="OU",ROUND($X22,2),0),SomaAgrup) -> 0 | AC22: =IF($N22=""," ", IF(AND($C22<>"S",OR($R22="",$R22="(digite a descrição aqui)")),"DESCRIÇÃO", IF(AND($C22="S",OR($Q22<>"",$T22>0,$U22>0),$P22=""),"FONTE", IF(AND($C22="S",$P22<>"",OR($T22>0,$U22>0),$Q22=""),"CÓDIGO", IF(AND($C22="S",$P22<>"",$Q22<>"",$R22="(Código não identificado nas referências)"),"CÓDIGO N/ID", IF(AND($C22="S",OR($R22="",$R22="(digite a descrição aqui)"),OR($Q22<>"",$T22>0,$U22>0)),"DESCRIÇÃO", IF(AND($C22="S",$P22<>"",$Q22<>"",$S22=""),"UNIDADE", IF(AND($C22="S",$P22<>"",$Q22<>"",$U22=0),"SEM CUSTO", IF(AND(TIPOORCAMENTO="Licitado",$AL22=0,$AN22>0),"SEM PREÇO", IF(AND($C22="S",$P22<>"",$Q22<>"",$U22>0,AND($V22<>"BDI 1",$V22<>"BDI 2",$V22<>"BDI 3")),IF(ISNUMBER($V22),"JUSTIFICAR BDI","BDI"), IF(OR(AND(import.recurso="OGU",TIPOORCAMENTO="Proposto",LEFT($O$8,5)<>"(N/D:",$AG22<>"",ORÇAMENTO.CustoUnitario>$AG22),AND(TIPOORCAMENTO="LICITADO",ORÇAMENTO.PrecoUnitarioLicitado>$AN22)),"ACIMA REF.", IF(AND($C22="S",$P22<>"",$Q22<>"",$T22=0,$U22>0),"QUANT.", IF(AND(Import.TipoArredondamento="TransfereGOV",$L22="F",$C22="S",LEN($Q22)>13),"Código >13", IF(AND(Import.TipoArredondamento="TransfereGOV",$L22="F",$C22<>"S",LEN($R22)>100),"Descrição >100", IF(AND(Import.TipoArredondamento="TransfereGOV",$L22="F",$C22="S",LEN($R22)>500),"Descrição >500", IF(AND(Import.TipoArredondamento="TransfereGOV",$L22="F",$C22="S",LEFT(TRIM(UPPER($P22)),6)<>"SINAPI",ISNA(VLOOKUP(TRIM(UPPER($S22)),ListaTgov.Unidades,1,FALSE))),"Unid. Não Disp", " ")))))))))))))))) ->  | AD22: =IF(C22<=CRONO.NivelExibicao,MAX($AD$15:OFFSET(AD22,-1,0))+IF($C22<>1,1,MAX(1,COUNTIF(QCI!$A$13:$A$24,OFFSET($E22,-1,0)))),"") ->  | AE22: =IF(AND($C22="S",ORÇAMENTO.CodBarra<>""),IF(ORÇAMENTO.Fonte="",ORÇAMENTO.CodBarra,CONCATENATE(ORÇAMENTO.Fonte," ",ORÇAMENTO.CodBarra))) -> SINAPI 104790 | AF22: =IF(ISERROR(ORÇAMENTO.BancoRef),"(abra o arquivo 'Referência "&Excel_BuiltIn_Database&".xlsm)",IF(OR($C22<>"S",ORÇAMENTO.CodBarra=""),"(Sem Código)",IF(ISERROR(MATCH($AE22,INDIRECT(ORÇAMENTO.BancoRef),0)),"(Código não identificado nas referências)",MATCH($AE22,INDIRECT(ORÇAMENTO.BancoRef),0)))) -> 7884 | AG22: =ROUND(IF(DESONERACAO="sim",REFERENCIA.Desonerado,REFERENCIA.NaoDesonerado),2) -> 111.95 | AH22: 0.2247 | AJ22: 27.630324 | AM22: 3788.35 | AN22: =ROUND(ORÇAMENTO.CustoUnitario*(1+$AH22),2) -> 137.11
A23: S | B23: 2 | C23: S | D23: 0 | E23: =IF($C23=1,OFFSET(E23,-1,0)+MAX(1,COUNTIF(QCI!$A$13:$A$24,OFFSET(ORÇAMENTO!E23,-1,0))),OFFSET(E23,-1,0)) -> 1 | F23: 2 | G23: 0 | H23: 0 | I23: 2 | J23: 0 | K23: =IF(OR($C23="S",$C23=0),0,MATCH(OFFSET($D23,0,$C23)+IF($C23<>1,1,COUNTIF(QCI!$A$13:$A$24,ORÇAMENTO!E23)),OFFSET($D23,1,$C23,ROW($C$140)-ROW($C23)),0)) -> 0 | L23: F | M23: Serviço | N23: Serviço | O23: 1.2.2. | P23: SINAPI | Q23: 98524 | R23: LIMPEZA MANUAL DE VEGETAÇÃO EM TERRENO COM ENXADA. AF_03/2024 | S23: =REFERENCIA.Unidade -> M2 | T23: =OFFSET(CÁLCULO!H$15,ROW($T23)-ROW(T$15),0) -> 219.95 | U23: 4.42 | V23: BDI 1 | W23: =IF($C23="S",ROUND(IF(TIPOORCAMENTO="Proposto",ORÇAMENTO.CustoUnitario*(1+$AH23),ORÇAMENTO.PrecoUnitarioLicitado),15-13*$AF$10),0) -> 5.41 | X23: =IF($C23="S",IF(OR(Import.TipoArredondamento<>"TransfereGOV",ACOMPANHAMENTO="BM"),VTOTAL1,SUM(OFFSET(CÁLCULO!$AA$15,ROW($X23)-ROW($X$15),1):OFFSET(CÁLCULO!$AL$15,ROW($X23)-ROW($X$15),-1))),IF($C23=0,0,ROUND(SomaAgrup,15-13*$AF$11))) -> 1189.93 | Y23: RA | Z23: RA | AA23: =IF($C23="S",IF($Z23="CP",$X23,IF($Z23="RA",(($X23)*QCI!$AA$3),0)),SomaAgrup) -> 393.091922 | AB23: =IF($C23="S",IF($Z23="OU",ROUND($X23,2),0),SomaAgrup) -> 0 | AC23: =IF($N23=""," ", IF(AND($C23<>"S",OR($R23="",$R23="(digite a descrição aqui)")),"DESCRIÇÃO", IF(AND($C23="S",OR($Q23<>"",$T23>0,$U23>0),$P23=""),"FONTE", IF(AND($C23="S",$P23<>"",OR($T23>0,$U23>0),$Q23=""),"CÓDIGO", IF(AND($C23="S",$P23<>"",$Q23<>"",$R23="(Código não identificado nas referências)"),"CÓDIGO N/ID", IF(AND($C23="S",OR($R23="",$R23="(digite a descrição aqui)"),OR($Q23<>"",$T23>0,$U23>0)),"DESCRIÇÃO", IF(AND($C23="S",$P23<>"",$Q23<>"",$S23=""),"UNIDADE", IF(AND($C23="S",$P23<>"",$Q23<>"",$U23=0),"SEM CUSTO", IF(AND(TIPOORCAMENTO="Licitado",$AL23=0,$AN23>0),"SEM PREÇO", IF(AND($C23="S",$P23<>"",$Q23<>"",$U23>0,AND($V23<>"BDI 1",$V23<>"BDI 2",$V23<>"BDI 3")),IF(ISNUMBER($V23),"JUSTIFICAR BDI","BDI"), IF(OR(AND(import.recurso="OGU",TIPOORCAMENTO="Proposto",LEFT($O$8,5)<>"(N/D:",$AG23<>"",ORÇAMENTO.CustoUnitario>$AG23),AND(TIPOORCAMENTO="LICITADO",ORÇAMENTO.PrecoUnitarioLicitado>$AN23)),"ACIMA REF.", IF(AND($C23="S",$P23<>"",$Q23<>"",$T23=0,$U23>0),"QUANT.", IF(AND(Import.TipoArredondamento="TransfereGOV",$L23="F",$C23="S",LEN($Q23)>13),"Código >13", IF(AND(Import.TipoArredondamento="TransfereGOV",$L23="F",$C23<>"S",LEN($R23)>100),"Descrição >100", IF(AND(Import.TipoArredondamento="TransfereGOV",$L23="F",$C23="S",LEN($R23)>500),"Descrição >500", IF(AND(Import.TipoArredondamento="TransfereGOV",$L23="F",$C23="S",LEFT(TRIM(UPPER($P23)),6)<>"SINAPI",ISNA(VLOOKUP(TRIM(UPPER($S23)),ListaTgov.Unidades,1,FALSE))),"Unid. Não Disp", " ")))))))))))))))) ->  | AD23: =IF(C23<=CRONO.NivelExibicao,MAX($AD$15:OFFSET(AD23,-1,0))+IF($C23<>1,1,MAX(1,COUNTIF(QCI!$A$13:$A$24,OFFSET($E23,-1,0)))),"") ->  | AE23: =IF(AND($C23="S",ORÇAMENTO.CodBarra<>""),IF(ORÇAMENTO.Fonte="",ORÇAMENTO.CodBarra,CONCATENATE(ORÇAMENTO.Fonte," ",ORÇAMENTO.CodBarra))) -> SINAPI 98524 | AF23: =IF(ISERROR(ORÇAMENTO.BancoRef),"(abra o arquivo 'Referência "&Excel_BuiltIn_Database&".xlsm)",IF(OR($C23<>"S",ORÇAMENTO.CodBarra=""),"(Sem Código)",IF(ISERROR(MATCH($AE23,INDIRECT(ORÇAMENTO.BancoRef),0)),"(Código não identificado nas referências)",MATCH($AE23,INDIRECT(ORÇAMENTO.BancoRef),0)))) -> 15001 | AG23: =ROUND(IF(DESONERACAO="sim",REFERENCIA.Desonerado,REFERENCIA.NaoDesonerado),2) -> 4.42 | AH23: 0.2247 | AJ23: 219.95 | AM23: 1189.93 | AN23: =ROUND(ORÇAMENTO.CustoUnitario*(1+$AH23),2) -> 5.41
A24: S | B24: 2 | C24: S | D24: 0 | E24: =IF($C24=1,OFFSET(E24,-1,0)+MAX(1,COUNTIF(QCI!$A$13:$A$24,OFFSET(ORÇAMENTO!E24,-1,0))),OFFSET(E24,-1,0)) -> 1 | F24: 2 | G24: 0 | H24: 0 | I24: 3 | J24: 0 | K24: =IF(OR($C24="S",$C24=0),0,MATCH(OFFSET($D24,0,$C24)+IF($C24<>1,1,COUNTIF(QCI!$A$13:$A$24,ORÇAMENTO!E24)),OFFSET($D24,1,$C24,ROW($C$140)-ROW($C24)),0)) -> 0 | L24: F | M24: Serviço | N24: Serviço | O24: 1.2.3. | P24: Composição | Q24: CPU 11 | R24: REMOÇÃO DE CORRIMÃO E GUARDA CORPO, SEM REAPROVEITAMENTO | S24: =REFERENCIA.Unidade -> M2 | T24: =OFFSET(CÁLCULO!H$15,ROW($T24)-ROW(T$15),0) -> 38.39 | U24: 24.22 | V24: BDI 1 | W24: =IF($C24="S",ROUND(IF(TIPOORCAMENTO="Proposto",ORÇAMENTO.CustoUnitario*(1+$AH24),ORÇAMENTO.PrecoUnitarioLicitado),15-13*$AF$10),0) -> 29.66 | X24: =IF($C24="S",IF(OR(Import.TipoArredondamento<>"TransfereGOV",ACOMPANHAMENTO="BM"),VTOTAL1,SUM(OFFSET(CÁLCULO!$AA$15,ROW($X24)-ROW($X$15),1):OFFSET(CÁLCULO!$AL$15,ROW($X24)-ROW($X$15),-1))),IF($C24=0,0,ROUND(SomaAgrup,15-13*$AF$11))) -> 1138.65 | Y24: RA | Z24: RA | AA24: =IF($C24="S",IF($Z24="CP",$X24,IF($Z24="RA",(($X24)*QCI!$AA$3),0)),SomaAgrup) -> 376.1516366 | AB24: =IF($C24="S",IF($Z24="OU",ROUND($X24,2),0),SomaAgrup) -> 0 | AC24: =IF($N24=""," ", IF(AND($C24<>"S",OR($R24="",$R24="(digite a descrição aqui)")),"DESCRIÇÃO", IF(AND($C24="S",OR($Q24<>"",$T24>0,$U24>0),$P24=""),"FONTE", IF(AND($C24="S",$P24<>"",OR($T24>0,$U24>0),$Q24=""),"CÓDIGO", IF(AND($C24="S",$P24<>"",$Q24<>"",$R24="(Código não identificado nas referências)"),"CÓDIGO N/ID", IF(AND($C24="S",OR($R24="",$R24="(digite a descrição aqui)"),OR($Q24<>"",$T24>0,$U24>0)),"DESCRIÇÃO", IF(AND($C24="S",$P24<>"",$Q24<>"",$S24=""),"UNIDADE", IF(AND($C24="S",$P24<>"",$Q24<>"",$U24=0),"SEM CUSTO", IF(AND(TIPOORCAMENTO="Licitado",$AL24=0,$AN24>0),"SEM PREÇO", IF(AND($C24="S",$P24<>"",$Q24<>"",$U24>0,AND($V24<>"BDI 1",$V24<>"BDI 2",$V24<>"BDI 3")),IF(ISNUMBER($V24),"JUSTIFICAR BDI","BDI"), IF(OR(AND(import.recurso="OGU",TIPOORCAMENTO="Proposto",LEFT($O$8,5)<>"(N/D:",$AG24<>"",ORÇAMENTO.CustoUnitario>$AG24),AND(TIPOORCAMENTO="LICITADO",ORÇAMENTO.PrecoUnitarioLicitado>$AN24)),"ACIMA REF.", IF(AND($C24="S",$P24<>"",$Q24<>"",$T24=0,$U24>0),"QUANT.", IF(AND(Import.TipoArredondamento="TransfereGOV",$L24="F",$C24="S",LEN($Q24)>13),"Código >13", IF(AND(Import.TipoArredondamento="TransfereGOV",$L24="F",$C24<>"S",LEN($R24)>100),"Descrição >100", IF(AND(Import.TipoArredondamento="TransfereGOV",$L24="F",$C24="S",LEN($R24)>500),"Descrição >500", IF(AND(Import.TipoArredondamento="TransfereGOV",$L24="F",$C24="S",LEFT(TRIM(UPPER($P24)),6)<>"SINAPI",ISNA(VLOOKUP(TRIM(UPPER($S24)),ListaTgov.Unidades,1,FALSE))),"Unid. Não Disp", " ")))))))))))))))) ->  | AD24: =IF(C24<=CRONO.NivelExibicao,MAX($AD$15:OFFSET(AD24,-1,0))+IF($C24<>1,1,MAX(1,COUNTIF(QCI!$A$13:$A$24,OFFSET($E24,-1,0)))),"") ->  | AE24: =IF(AND($C24="S",ORÇAMENTO.CodBarra<>""),IF(ORÇAMENTO.Fonte="",ORÇAMENTO.CodBarra,CONCATENATE(ORÇAMENTO.Fonte," ",ORÇAMENTO.CodBarra))) -> Composição CPU 11 | AF24: =IF(ISERROR(ORÇAMENTO.BancoRef),"(abra o arquivo 'Referência "&Excel_BuiltIn_Database&".xlsm)",IF(OR($C24<>"S",ORÇAMENTO.CodBarra=""),"(Sem Código)",IF(ISERROR(MATCH($AE24,INDIRECT(ORÇAMENTO.BancoRef),0)),"(Código não identificado nas referências)",MATCH($AE24,INDIRECT(ORÇAMENTO.BancoRef),0)))) -> 10 | AG24: =ROUND(IF(DESONERACAO="sim",REFERENCIA.Desonerado,REFERENCIA.NaoDesonerado),2) -> 24.22 | AH24: 0.2247 | AJ24: 38.392 | AM24: 1138.65 | AN24: =ROUND(ORÇAMENTO.CustoUnitario*(1+$AH24),2) -> 29.66
A25: S | B25: 2 | C25: S | D25: 0 | E25: =IF($C25=1,OFFSET(E25,-1,0)+MAX(1,COUNTIF(QCI!$A$13:$A$24,OFFSET(ORÇAMENTO!E25,-1,0))),OFFSET(E25,-1,0)) -> 1 | F25: 2 | G25: 0 | H25: 0 | I25: 4 | J25: 0 | K25: =IF(OR($C25="S",$C25=0),0,MATCH(OFFSET($D25,0,$C25)+IF($C25<>1,1,COUNTIF(QCI!$A$13:$A$24,ORÇAMENTO!E25)),OFFSET($D25,1,$C25,ROW($C$140)-ROW($C25)),0)) -> 0 | L25: F | M25: Serviço | N25: Serviço | O25: 1.2.4. | P25: SINAPI | Q25: 104791 | R25: DEMOLIÇÃO DE ARGAMASSAS, DE FORMA DE FORMA MECANIZADA COM MARTELETE, SEM REAPROVEITAMENTO. AF_09/2023 | S25: =REFERENCIA.Unidade -> M2 | T25: =OFFSET(CÁLCULO!H$15,ROW($T25)-ROW(T$15),0) -> 348.84 | U25: 6.21 | V25: BDI 1 | W25: =IF($C25="S",ROUND(IF(TIPOORCAMENTO="Proposto",ORÇAMENTO.CustoUnitario*(1+$AH25),ORÇAMENTO.PrecoUnitarioLicitado),15-13*$AF$10),0) -> 7.61 | X25: =IF($C25="S",IF(OR(Import.TipoArredondamento<>"TransfereGOV",ACOMPANHAMENTO="BM"),VTOTAL1,SUM(OFFSET(CÁLCULO!$AA$15,ROW($X25)-ROW($X$15),1):OFFSET(CÁLCULO!$AL$15,ROW($X25)-ROW($X$15),-1))),IF($C25=0,0,ROUND(SomaAgrup,15-13*$AF$11))) -> 2654.67 | Y25: RA | Z25: RA | AA25: =IF($C25="S",IF($Z25="CP",$X25,IF($Z25="RA",(($X25)*QCI!$AA$3),0)),SomaAgrup) -> 876.9669918 | AB25: =IF($C25="S",IF($Z25="OU",ROUND($X25,2),0),SomaAgrup) -> 0 | AC25: =IF($N25=""," ", IF(AND($C25<>"S",OR($R25="",$R25="(digite a descrição aqui)")),"DESCRIÇÃO", IF(AND($C25="S",OR($Q25<>"",$T25>0,$U25>0),$P25=""),"FONTE", IF(AND($C25="S",$P25<>"",OR($T25>0,$U25>0),$Q25=""),"CÓDIGO", IF(AND($C25="S",$P25<>"",$Q25<>"",$R25="(Código não identificado nas referências)"),"CÓDIGO N/ID", IF(AND($C25="S",OR($R25="",$R25="(digite a descrição aqui)"),OR($Q25<>"",$T25>0,$U25>0)),"DESCRIÇÃO", IF(AND($C25="S",$P25<>"",$Q25<>"",$S25=""),"UNIDADE", IF(AND($C25="S",$P25<>"",$Q25<>"",$U25=0),"SEM CUSTO", IF(AND(TIPOORCAMENTO="Licitado",$AL25=0,$AN25>0),"SEM PREÇO", IF(AND($C25="S",$P25<>"",$Q25<>"",$U25>0,AND($V25<>"BDI 1",$V25<>"BDI 2",$V25<>"BDI 3")),IF(ISNUMBER($V25),"JUSTIFICAR BDI","BDI"), IF(OR(AND(import.recurso="OGU",TIPOORCAMENTO="Proposto",LEFT($O$8,5)<>"(N/D:",$AG25<>"",ORÇAMENTO.CustoUnitario>$AG25),AND(TIPOORCAMENTO="LICITADO",ORÇAMENTO.PrecoUnitarioLicitado>$AN25)),"ACIMA REF.", IF(AND($C25="S",$P25<>"",$Q25<>"",$T25=0,$U25>0),"QUANT.", IF(AND(Import.TipoArredondamento="TransfereGOV",$L25="F",$C25="S",LEN($Q25)>13),"Código >13", IF(AND(Import.TipoArredondamento="TransfereGOV",$L25="F",$C25<>"S",LEN($R25)>100),"Descrição >100", IF(AND(Import.TipoArredondamento="TransfereGOV",$L25="F",$C25="S",LEN($R25)>500),"Descrição >500", IF(AND(Import.TipoArredondamento="TransfereGOV",$L25="F",$C25="S",LEFT(TRIM(UPPER($P25)),6)<>"SINAPI",ISNA(VLOOKUP(TRIM(UPPER($S25)),ListaTgov.Unidades,1,FALSE))),"Unid. Não Disp", " ")))))))))))))))) ->  | AD25: =IF(C25<=CRONO.NivelExibicao,MAX($AD$15:OFFSET(AD25,-1,0))+IF($C25<>1,1,MAX(1,COUNTIF(QCI!$A$13:$A$24,OFFSET($E25,-1,0)))),"") ->  | AE25: =IF(AND($C25="S",ORÇAMENTO.CodBarra<>""),IF(ORÇAMENTO.Fonte="",ORÇAMENTO.CodBarra,CONCATENATE(ORÇAMENTO.Fonte," ",ORÇAMENTO.CodBarra))) -> SINAPI 104791 | AF25: =IF(ISERROR(ORÇAMENTO.BancoRef),"(abra o arquivo 'Referência "&Excel_BuiltIn_Database&".xlsm)",IF(OR($C25<>"S",ORÇAMENTO.CodBarra=""),"(Sem Código)",IF(ISERROR(MATCH($AE25,INDIRECT(ORÇAMENTO.BancoRef),0)),"(Código não identificado nas referências)",MATCH($AE25,INDIRECT(ORÇAMENTO.BancoRef),0)))) -> 7875 | AG25: =ROUND(IF(DESONERACAO="sim",REFERENCIA.Desonerado,REFERENCIA.NaoDesonerado),2) -> 6.21 | AH25: 0.2247 | AJ25: 348.843 | AM25: 2654.67 | AN25: =ROUND(ORÇAMENTO.CustoUnitario*(1+$AH25),2) -> 7.61
A26: S | B26: 2 | C26: S | D26: 0 | E26: =IF($C26=1,OFFSET(E26,-1,0)+MAX(1,COUNTIF(QCI!$A$13:$A$24,OFFSET(ORÇAMENTO!E26,-1,0))),OFFSET(E26,-1,0)) -> 1 | F26: 2 | G26: 0 | H26: 0 | I26: 5 | J26: 0 | K26: =IF(OR($C26="S",$C26=0),0,MATCH(OFFSET($D26,0,$C26)+IF($C26<>1,1,COUNTIF(QCI!$A$13:$A$24,ORÇAMENTO!E26)),OFFSET($D26,1,$C26,ROW($C$140)-ROW($C26)),0)) -> 0 | L26: F | M26: Serviço | N26: Serviço | O26: 1.2.5. | P26: Composição | Q26: CPU 25 | R26: RETIRADA MANUAL DE PINTURA LATEX PVC OU ACRILICA EM PAREDES | S26: M2 | T26: =OFFSET(CÁLCULO!H$15,ROW($T26)-ROW(T$15),0) -> 240.96 | U26: 6.19 | V26: BDI 1 | W26: =IF($C26="S",ROUND(IF(TIPOORCAMENTO="Proposto",ORÇAMENTO.CustoUnitario*(1+$AH26),ORÇAMENTO.PrecoUnitarioLicitado),15-13*$AF$10),0) -> 7.58 | X26: =IF($C26="S",IF(OR(Import.TipoArredondamento<>"TransfereGOV",ACOMPANHAMENTO="BM"),VTOTAL1,SUM(OFFSET(CÁLCULO!$AA$15,ROW($X26)-ROW($X$15),1):OFFSET(CÁLCULO!$AL$15,ROW($X26)-ROW($X$15),-1))),IF($C26=0,0,ROUND(SomaAgrup,15-13*$AF$11))) -> 1826.48 | Y26: RA | Z26: RA | AA26: =IF($C26="S",IF($Z26="CP",$X26,IF($Z26="RA",(($X26)*QCI!$AA$3),0)),SomaAgrup) -> 603.3754369 | AB26: =IF($C26="S",IF($Z26="OU",ROUND($X26,2),0),SomaAgrup) -> 0 | AC26: =IF($N26=""," ", IF(AND($C26<>"S",OR($R26="",$R26="(digite a descrição aqui)")),"DESCRIÇÃO", IF(AND($C26="S",OR($Q26<>"",$T26>0,$U26>0),$P26=""),"FONTE", IF(AND($C26="S",$P26<>"",OR($T26>0,$U26>0),$Q26=""),"CÓDIGO", IF(AND($C26="S",$P26<>"",$Q26<>"",$R26="(Código não identificado nas referências)"),"CÓDIGO N/ID", IF(AND($C26="S",OR($R26="",$R26="(digite a descrição aqui)"),OR($Q26<>"",$T26>0,$U26>0)),"DESCRIÇÃO", IF(AND($C26="S",$P26<>"",$Q26<>"",$S26=""),"UNIDADE", IF(AND($C26="S",$P26<>"",$Q26<>"",$U26=0),"SEM CUSTO", IF(AND(TIPOORCAMENTO="Licitado",$AL26=0,$AN26>0),"SEM PREÇO", IF(AND($C26="S",$P26<>"",$Q26<>"",$U26>0,AND($V26<>"BDI 1",$V26<>"BDI 2",$V26<>"BDI 3")),IF(ISNUMBER($V26),"JUSTIFICAR BDI","BDI"), IF(OR(AND(import.recurso="OGU",TIPOORCAMENTO="Proposto",LEFT($O$8,5)<>"(N/D:",$AG26<>"",ORÇAMENTO.CustoUnitario>$AG26),AND(TIPOORCAMENTO="LICITADO",ORÇAMENTO.PrecoUnitarioLicitado>$AN26)),"ACIMA REF.", IF(AND($C26="S",$P26<>"",$Q26<>"",$T26=0,$U26>0),"QUANT.", IF(AND(Import.TipoArredondamento="TransfereGOV",$L26="F",$C26="S",LEN($Q26)>13),"Código >13", IF(AND(Import.TipoArredondamento="TransfereGOV",$L26="F",$C26<>"S",LEN($R26)>100),"Descrição >100", IF(AND(Import.TipoArredondamento="TransfereGOV",$L26="F",$C26="S",LEN($R26)>500),"Descrição >500", IF(AND(Import.TipoArredondamento="TransfereGOV",$L26="F",$C26="S",LEFT(TRIM(UPPER($P26)),6)<>"SINAPI",ISNA(VLOOKUP(TRIM(UPPER($S26)),ListaTgov.Unidades,1,FALSE))),"Unid. Não Disp", " ")))))))))))))))) ->  | AD26: =IF(C26<=CRONO.NivelExibicao,MAX($AD$15:OFFSET(AD26,-1,0))+IF($C26<>1,1,MAX(1,COUNTIF(QCI!$A$13:$A$24,OFFSET($E26,-1,0)))),"") ->  | AE26: =IF(AND($C26="S",ORÇAMENTO.CodBarra<>""),IF(ORÇAMENTO.Fonte="",ORÇAMENTO.CodBarra,CONCATENATE(ORÇAMENTO.Fonte," ",ORÇAMENTO.CodBarra))) -> Composição CPU 25 | AF26: =IF(ISERROR(ORÇAMENTO.BancoRef),"(abra o arquivo 'Referência "&Excel_BuiltIn_Database&".xlsm)",IF(OR($C26<>"S",ORÇAMENTO.CodBarra=""),"(Sem Código)",IF(ISERROR(MATCH($AE26,INDIRECT(ORÇAMENTO.BancoRef),0)),"(Código não identificado nas referências)",MATCH($AE26,INDIRECT(ORÇAMENTO.BancoRef),0)))) -> 22 | AG26: =ROUND(IF(DESONERACAO="sim",REFERENCIA.Desonerado,REFERENCIA.NaoDesonerado),2) -> 6.19 | AH26: 0.2247 | AJ26: 240.958 | AM26: 1826.48 | AN26: =ROUND(ORÇAMENTO.CustoUnitario*(1+$AH26),2) -> 7.58
A27: S | B27: 2 | C27: S | D27: 0 | E27: =IF($C27=1,OFFSET(E27,-1,0)+MAX(1,COUNTIF(QCI!$A$13:$A$24,OFFSET(ORÇAMENTO!E27,-1,0))),OFFSET(E27,-1,0)) -> 1 | F27: 2 | G27: 0 | H27: 0 | I27: 6 | J27: 0 | K27: =IF(OR($C27="S",$C27=0),0,MATCH(OFFSET($D27,0,$C27)+IF($C27<>1,1,COUNTIF(QCI!$A$13:$A$24,ORÇAMENTO!E27)),OFFSET($D27,1,$C27,ROW($C$140)-ROW($C27)),0)) -> 0 | L27: F | M27: Serviço | N27: Serviço | O27: 1.2.6. | P27: SINAPI | Q27: 97622 | R27: DEMOLIÇÃO DE ALVENARIA DE BLOCO FURADO, DE FORMA MANUAL, SEM REAPROVEITAMENTO. AF_09/2023 | S27: M3 | T27: =OFFSET(CÁLCULO!H$15,ROW($T27)-ROW(T$15),0) -> 1.23 | U27: 54.64 | V27: BDI 1 | W27: =IF($C27="S",ROUND(IF(TIPOORCAMENTO="Proposto",ORÇAMENTO.CustoUnitario*(1+$AH27),ORÇAMENTO.PrecoUnitarioLicitado),15-13*$AF$10),0) -> 66.92 | X27: =IF($C27="S",IF(OR(Import.TipoArredondamento<>"TransfereGOV",ACOMPANHAMENTO="BM"),VTOTAL1,SUM(OFFSET(CÁLCULO!$AA$15,ROW($X27)-ROW($X$15),1):OFFSET(CÁLCULO!$AL$15,ROW($X27)-ROW($X$15),-1))),IF($C27=0,0,ROUND(SomaAgrup,15-13*$AF$11))) -> 82.31 | Y27: RA | Z27: RA | AA27: =IF($C27="S",IF($Z27="CP",$X27,IF($Z27="RA",(($X27)*QCI!$AA$3),0)),SomaAgrup) -> 27.19100796 | AB27: =IF($C27="S",IF($Z27="OU",ROUND($X27,2),0),SomaAgrup) -> 0 | AC27: =IF($N27=""," ", IF(AND($C27<>"S",OR($R27="",$R27="(digite a descrição aqui)")),"DESCRIÇÃO", IF(AND($C27="S",OR($Q27<>"",$T27>0,$U27>0),$P27=""),"FONTE", IF(AND($C27="S",$P27<>"",OR($T27>0,$U27>0),$Q27=""),"CÓDIGO", IF(AND($C27="S",$P27<>"",$Q27<>"",$R27="(Código não identificado nas referências)"),"CÓDIGO N/ID", IF(AND($C27="S",OR($R27="",$R27="(digite a descrição aqui)"),OR($Q27<>"",$T27>0,$U27>0)),"DESCRIÇÃO", IF(AND($C27="S",$P27<>"",$Q27<>"",$S27=""),"UNIDADE", IF(AND($C27="S",$P27<>"",$Q27<>"",$U27=0),"SEM CUSTO", IF(AND(TIPOORCAMENTO="Licitado",$AL27=0,$AN27>0),"SEM PREÇO", IF(AND($C27="S",$P27<>"",$Q27<>"",$U27>0,AND($V27<>"BDI 1",$V27<>"BDI 2",$V27<>"BDI 3")),IF(ISNUMBER($V27),"JUSTIFICAR BDI","BDI"), IF(OR(AND(import.recurso="OGU",TIPOORCAMENTO="Proposto",LEFT($O$8,5)<>"(N/D:",$AG27<>"",ORÇAMENTO.CustoUnitario>$AG27),AND(TIPOORCAMENTO="LICITADO",ORÇAMENTO.PrecoUnitarioLicitado>$AN27)),"ACIMA REF.", IF(AND($C27="S",$P27<>"",$Q27<>"",$T27=0,$U27>0),"QUANT.", IF(AND(Import.TipoArredondamento="TransfereGOV",$L27="F",$C27="S",LEN($Q27)>13),"Código >13", IF(AND(Import.TipoArredondamento="TransfereGOV",$L27="F",$C27<>"S",LEN($R27)>100),"Descrição >100", IF(AND(Import.TipoArredondamento="TransfereGOV",$L27="F",$C27="S",LEN($R27)>500),"Descrição >500", IF(AND(Import.TipoArredondamento="TransfereGOV",$L27="F",$C27="S",LEFT(TRIM(UPPER($P27)),6)<>"SINAPI",ISNA(VLOOKUP(TRIM(UPPER($S27)),ListaTgov.Unidades,1,FALSE))),"Unid. Não Disp", " ")))))))))))))))) ->  | AD27: =IF(C27<=CRONO.NivelExibicao,MAX($AD$15:OFFSET(AD27,-1,0))+IF($C27<>1,1,MAX(1,COUNTIF(QCI!$A$13:$A$24,OFFSET($E27,-1,0)))),"") ->  | AE27: =IF(AND($C27="S",ORÇAMENTO.CodBarra<>""),IF(ORÇAMENTO.Fonte="",ORÇAMENTO.CodBarra,CONCATENATE(ORÇAMENTO.Fonte," ",ORÇAMENTO.CodBarra))) -> SINAPI 97622 | AF27: =IF(ISERROR(ORÇAMENTO.BancoRef),"(abra o arquivo 'Referência "&Excel_BuiltIn_Database&".xlsm)",IF(OR($C27<>"S",ORÇAMENTO.CodBarra=""),"(Sem Código)",IF(ISERROR(MATCH($AE27,INDIRECT(ORÇAMENTO.BancoRef),0)),"(Código não identificado nas referências)",MATCH($AE27,INDIRECT(ORÇAMENTO.BancoRef),0)))) -> 7871 | AG27: =ROUND(IF(DESONERACAO="sim",REFERENCIA.Desonerado,REFERENCIA.NaoDesonerado),2) -> 54.64 | AH27: 0.2247 | AJ27: 1.2258 | AM27: 82.31 | AN27: =ROUND(ORÇAMENTO.CustoUnitario*(1+$AH27),2) -> 66.92
A28: S | B28: 2 | C28: S | D28: 0 | E28: =IF($C28=1,OFFSET(E28,-1,0)+MAX(1,COUNTIF(QCI!$A$13:$A$24,OFFSET(ORÇAMENTO!E28,-1,0))),OFFSET(E28,-1,0)) -> 1 | F28: 2 | G28: 0 | H28: 0 | I28: 7 | J28: 0 | K28: =IF(OR($C28="S",$C28=0),0,MATCH(OFFSET($D28,0,$C28)+IF($C28<>1,1,COUNTIF(QCI!$A$13:$A$24,ORÇAMENTO!E28)),OFFSET($D28,1,$C28,ROW($C$140)-ROW($C28)),0)) -> 0 | L28: F | M28: Serviço | N28: Serviço | O28: 1.2.7. | P28: SINAPI | Q28: 97644 | R28: REMOÇÃO DE PORTAS, DE FORMA MANUAL, SEM REAPROVEITAMENTO. AF_09/2023 | S28: M2 | T28: =OFFSET(CÁLCULO!H$15,ROW($T28)-ROW(T$15),0) -> 5.04 | U28: 9.16 | V28: BDI 1 | W28: =IF($C28="S",ROUND(IF(TIPOORCAMENTO="Proposto",ORÇAMENTO.CustoUnitario*(1+$AH28),ORÇAMENTO.PrecoUnitarioLicitado),15-13*$AF$10),0) -> 11.22 | X28: =IF($C28="S",IF(OR(Import.TipoArredondamento<>"TransfereGOV",ACOMPANHAMENTO="BM"),VTOTAL1,SUM(OFFSET(CÁLCULO!$AA$15,ROW($X28)-ROW($X$15),1):OFFSET(CÁLCULO!$AL$15,ROW($X28)-ROW($X$15),-1))),IF($C28=0,0,ROUND(SomaAgrup,15-13*$AF$11))) -> 56.55 | Y28: RA | Z28: RA | AA28: =IF($C28="S",IF($Z28="CP",$X28,IF($Z28="RA",(($X28)*QCI!$AA$3),0)),SomaAgrup) -> 18.68122342 | AB28: =IF($C28="S",IF($Z28="OU",ROUND($X28,2),0),SomaAgrup) -> 0 | AC28: =IF($N28=""," ", IF(AND($C28<>"S",OR($R28="",$R28="(digite a descrição aqui)")),"DESCRIÇÃO", IF(AND($C28="S",OR($Q28<>"",$T28>0,$U28>0),$P28=""),"FONTE", IF(AND($C28="S",$P28<>"",OR($T28>0,$U28>0),$Q28=""),"CÓDIGO", IF(AND($C28="S",$P28<>"",$Q28<>"",$R28="(Código não identificado nas referências)"),"CÓDIGO N/ID", IF(AND($C28="S",OR($R28="",$R28="(digite a descrição aqui)"),OR($Q28<>"",$T28>0,$U28>0)),"DESCRIÇÃO", IF(AND($C28="S",$P28<>"",$Q28<>"",$S28=""),"UNIDADE", IF(AND($C28="S",$P28<>"",$Q28<>"",$U28=0),"SEM CUSTO", IF(AND(TIPOORCAMENTO="Licitado",$AL28=0,$AN28>0),"SEM PREÇO", IF(AND($C28="S",$P28<>"",$Q28<>"",$U28>0,AND($V28<>"BDI 1",$V28<>"BDI 2",$V28<>"BDI 3")),IF(ISNUMBER($V28),"JUSTIFICAR BDI","BDI"), IF(OR(AND(import.recurso="OGU",TIPOORCAMENTO="Proposto",LEFT($O$8,5)<>"(N/D:",$AG28<>"",ORÇAMENTO.CustoUnitario>$AG28),AND(TIPOORCAMENTO="LICITADO",ORÇAMENTO.PrecoUnitarioLicitado>$AN28)),"ACIMA REF.", IF(AND($C28="S",$P28<>"",$Q28<>"",$T28=0,$U28>0),"QUANT.", IF(AND(Import.TipoArredondamento="TransfereGOV",$L28="F",$C28="S",LEN($Q28)>13),"Código >13", IF(AND(Import.TipoArredondamento="TransfereGOV",$L28="F",$C28<>"S",LEN($R28)>100),"Descrição >100", IF(AND(Import.TipoArredondamento="TransfereGOV",$L28="F",$C28="S",LEN($R28)>500),"Descrição >500", IF(AND(Import.TipoArredondamento="TransfereGOV",$L28="F",$C28="S",LEFT(TRIM(UPPER($P28)),6)<>"SINAPI",ISNA(VLOOKUP(TRIM(UPPER($S28)),ListaTgov.Unidades,1,FALSE))),"Unid. Não Disp", " ")))))))))))))))) ->  | AD28: =IF(C28<=CRONO.NivelExibicao,MAX($AD$15:OFFSET(AD28,-1,0))+IF($C28<>1,1,MAX(1,COUNTIF(QCI!$A$13:$A$24,OFFSET($E28,-1,0)))),"") ->  | AE28: =IF(AND($C28="S",ORÇAMENTO.CodBarra<>""),IF(ORÇAMENTO.Fonte="",ORÇAMENTO.CodBarra,CONCATENATE(ORÇAMENTO.Fonte," ",ORÇAMENTO.CodBarra))) -> SINAPI 97644 | AF28: =IF(ISERROR(ORÇAMENTO.BancoRef),"(abra o arquivo 'Referência "&Excel_BuiltIn_Database&".xlsm)",IF(OR($C28<>"S",ORÇAMENTO.CodBarra=""),"(Sem Código)",IF(ISERROR(MATCH($AE28,INDIRECT(ORÇAMENTO.BancoRef),0)),"(Código não identificado nas referências)",MATCH($AE28,INDIRECT(ORÇAMENTO.BancoRef),0)))) -> 7911 | AG28: =ROUND(IF(DESONERACAO="sim",REFERENCIA.Desonerado,REFERENCIA.NaoDesonerado),2) -> 9.16 | AH28: 0.2247 | AJ28: 5.04 | AM28: 56.55 | AN28: =ROUND(ORÇAMENTO.CustoUnitario*(1+$AH28),2) -> 11.22
A29: S | B29: 2 | C29: S | D29: 0 | E29: =IF($C29=1,OFFSET(E29,-1,0)+MAX(1,COUNTIF(QCI!$A$13:$A$24,OFFSET(ORÇAMENTO!E29,-1,0))),OFFSET(E29,-1,0)) -> 1 | F29: 2 | G29: 0 | H29: 0 | I29: 8 | J29: 0 | K29: =IF(OR($C29="S",$C29=0),0,MATCH(OFFSET($D29,0,$C29)+IF($C29<>1,1,COUNTIF(QCI!$A$13:$A$24,ORÇAMENTO!E29)),OFFSET($D29,1,$C29,ROW($C$140)-ROW($C29)),0)) -> 0 | L29: F | M29: Serviço | N29: Serviço | O29: 1.2.8. | P29: SINAPI | Q29: 100981 | R29: CARGA, MANOBRA E DESCARGA DE ENTULHO EM CAMINHÃO BASCULANTE 6 M³ - CARGA COM ESCAVADEIRA HIDRÁULICA (CAÇAMBA DE 0,80 M³ / 111 HP) E DESCARGA LIVRE (UNIDADE: M3). AF_07/2020 | S29: M3 | T29: =OFFSET(CÁLCULO!H$15,ROW($T29)-ROW(T$15),0) -> 74.48 | U29: 9.3 | V29: BDI 1 | W29: =IF($C29="S",ROUND(IF(TIPOORCAMENTO="Proposto",ORÇAMENTO.CustoUnitario*(1+$AH29),ORÇAMENTO.PrecoUnitarioLicitado),15-13*$AF$10),0) -> 11.39 | X29: =IF($C29="S",IF(OR(Import.TipoArredondamento<>"TransfereGOV",ACOMPANHAMENTO="BM"),VTOTAL1,SUM(OFFSET(CÁLCULO!$AA$15,ROW($X29)-ROW($X$15),1):OFFSET(CÁLCULO!$AL$15,ROW($X29)-ROW($X$15),-1))),IF($C29=0,0,ROUND(SomaAgrup,15-13*$AF$11))) -> 848.33 | Y29: RA | Z29: RA | AA29: =IF($C29="S",IF($Z29="CP",$X29,IF($Z29="RA",(($X29)*QCI!$AA$3),0)),SomaAgrup) -> 280.2447792 | AB29: =IF($C29="S",IF($Z29="OU",ROUND($X29,2),0),SomaAgrup) -> 0 | AC29: =IF($N29=""," ", IF(AND($C29<>"S",OR($R29="",$R29="(digite a descrição aqui)")),"DESCRIÇÃO", IF(AND($C29="S",OR($Q29<>"",$T29>0,$U29>0),$P29=""),"FONTE", IF(AND($C29="S",$P29<>"",OR($T29>0,$U29>0),$Q29=""),"CÓDIGO", IF(AND($C29="S",$P29<>"",$Q29<>"",$R29="(Código não identificado nas referências)"),"CÓDIGO N/ID", IF(AND($C29="S",OR($R29="",$R29="(digite a descrição aqui)"),OR($Q29<>"",$T29>0,$U29>0)),"DESCRIÇÃO", IF(AND($C29="S",$P29<>"",$Q29<>"",$S29=""),"UNIDADE", IF(AND($C29="S",$P29<>"",$Q29<>"",$U29=0),"SEM CUSTO", IF(AND(TIPOORCAMENTO="Licitado",$AL29=0,$AN29>0),"SEM PREÇO", IF(AND($C29="S",$P29<>"",$Q29<>"",$U29>0,AND($V29<>"BDI 1",$V29<>"BDI 2",$V29<>"BDI 3")),IF(ISNUMBER($V29),"JUSTIFICAR BDI","BDI"), IF(OR(AND(import.recurso="OGU",TIPOORCAMENTO="Proposto",LEFT($O$8,5)<>"(N/D:",$AG29<>"",ORÇAMENTO.CustoUnitario>$AG29),AND(TIPOORCAMENTO="LICITADO",ORÇAMENTO.PrecoUnitarioLicitado>$AN29)),"ACIMA REF.", IF(AND($C29="S",$P29<>"",$Q29<>"",$T29=0,$U29>0),"QUANT.", IF(AND(Import.TipoArredondamento="TransfereGOV",$L29="F",$C29="S",LEN($Q29)>13),"Código >13", IF(AND(Import.TipoArredondamento="TransfereGOV",$L29="F",$C29<>"S",LEN($R29)>100),"Descrição >100", IF(AND(Import.TipoArredondamento="TransfereGOV",$L29="F",$C29="S",LEN($R29)>500),"Descrição >500", IF(AND(Import.TipoArredondamento="TransfereGOV",$L29="F",$C29="S",LEFT(TRIM(UPPER($P29)),6)<>"SINAPI",ISNA(VLOOKUP(TRIM(UPPER($S29)),ListaTgov.Unidades,1,FALSE))),"Unid. Não Disp", " ")))))))))))))))) ->  | AD29: =IF(C29<=CRONO.NivelExibicao,MAX($AD$15:OFFSET(AD29,-1,0))+IF($C29<>1,1,MAX(1,COUNTIF(QCI!$A$13:$A$24,OFFSET($E29,-1,0)))),"") ->  | AE29: =IF(AND($C29="S",ORÇAMENTO.CodBarra<>""),IF(ORÇAMENTO.Fonte="",ORÇAMENTO.CodBarra,CONCATENATE(ORÇAMENTO.Fonte," ",ORÇAMENTO.CodBarra))) -> SINAPI 100981 | AF29: =IF(ISERROR(ORÇAMENTO.BancoRef),"(abra o arquivo 'Referência "&Excel_BuiltIn_Database&".xlsm)",IF(OR($C29<>"S",ORÇAMENTO.CodBarra=""),"(Sem Código)",IF(ISERROR(MATCH($AE29,INDIRECT(ORÇAMENTO.BancoRef),0)),"(Código não identificado nas referências)",MATCH($AE29,INDIRECT(ORÇAMENTO.BancoRef),0)))) -> 15283 | AG29: =ROUND(IF(DESONERACAO="sim",REFERENCIA.Desonerado,REFERENCIA.NaoDesonerado),2) -> 9.3 | AH29: 0.2247 | AJ29: 74.4845062 | AM29: 848.33 | AN29: =ROUND(ORÇAMENTO.CustoUnitario*(1+$AH29),2) -> 11.39
A30: S | B30: 2 | C30: S | D30: 0 | E30: =IF($C30=1,OFFSET(E30,-1,0)+MAX(1,COUNTIF(QCI!$A$13:$A$24,OFFSET(ORÇAMENTO!E30,-1,0))),OFFSET(E30,-1,0)) -> 1 | F30: 2 | G30: 0 | H30: 0 | I30: 9 | J30: 0 | K30: =IF(OR($C30="S",$C30=0),0,MATCH(OFFSET($D30,0,$C30)+IF($C30<>1,1,COUNTIF(QCI!$A$13:$A$24,ORÇAMENTO!E30)),OFFSET($D30,1,$C30,ROW($C$140)-ROW($C30)),0)) -> 0 | L30: F | M30: Serviço | N30: Serviço | O30: 1.2.9. | P30: SINAPI | Q30: 100957 | R30: TRANSPORTE COM CAMINHÃO PIPA DE 6 M³, EM VIA URBANA PAVIMENTADA, DMT ATÉ 30KM (UNIDADE: M3XKM). AF_07/2020 | S30: M3XKM | T30: =OFFSET(CÁLCULO!H$15,ROW($T30)-ROW(T$15),0) -> 521.39 | U30: 3.82 | V30: BDI 1 | W30: =IF($C30="S",ROUND(IF(TIPOORCAMENTO="Proposto",ORÇAMENTO.CustoUnitario*(1+$AH30),ORÇAMENTO.PrecoUnitarioLicitado),15-13*$AF$10),0) -> 4.68 | X30: =IF($C30="S",IF(OR(Import.TipoArredondamento<>"TransfereGOV",ACOMPANHAMENTO="BM"),VTOTAL1,SUM(OFFSET(CÁLCULO!$AA$15,ROW($X30)-ROW($X$15),1):OFFSET(CÁLCULO!$AL$15,ROW($X30)-ROW($X$15),-1))),IF($C30=0,0,ROUND(SomaAgrup,15-13*$AF$11))) -> 2440.11 | Y30: RA | Z30: RA | AA30: =IF($C30="S",IF($Z30="CP",$X30,IF($Z30="RA",(($X30)*QCI!$AA$3),0)),SomaAgrup) -> 806.0873579 | AB30: =IF($C30="S",IF($Z30="OU",ROUND($X30,2),0),SomaAgrup) -> 0 | AC30: =IF($N30=""," ", IF(AND($C30<>"S",OR($R30="",$R30="(digite a descrição aqui)")),"DESCRIÇÃO", IF(AND($C30="S",OR($Q30<>"",$T30>0,$U30>0),$P30=""),"FONTE", IF(AND($C30="S",$P30<>"",OR($T30>0,$U30>0),$Q30=""),"CÓDIGO", IF(AND($C30="S",$P30<>"",$Q30<>"",$R30="(Código não identificado nas referências)"),"CÓDIGO N/ID", IF(AND($C30="S",OR($R30="",$R30="(digite a descrição aqui)"),OR($Q30<>"",$T30>0,$U30>0)),"DESCRIÇÃO", IF(AND($C30="S",$P30<>"",$Q30<>"",$S30=""),"UNIDADE", IF(AND($C30="S",$P30<>"",$Q30<>"",$U30=0),"SEM CUSTO", IF(AND(TIPOORCAMENTO="Licitado",$AL30=0,$AN30>0),"SEM PREÇO", IF(AND($C30="S",$P30<>"",$Q30<>"",$U30>0,AND($V30<>"BDI 1",$V30<>"BDI 2",$V30<>"BDI 3")),IF(ISNUMBER($V30),"JUSTIFICAR BDI","BDI"), IF(OR(AND(import.recurso="OGU",TIPOORCAMENTO="Proposto",LEFT($O$8,5)<>"(N/D:",$AG30<>"",ORÇAMENTO.CustoUnitario>$AG30),AND(TIPOORCAMENTO="LICITADO",ORÇAMENTO.PrecoUnitarioLicitado>$AN30)),"ACIMA REF.", IF(AND($C30="S",$P30<>"",$Q30<>"",$T30=0,$U30>0),"QUANT.", IF(AND(Import.TipoArredondamento="TransfereGOV",$L30="F",$C30="S",LEN($Q30)>13),"Código >13", IF(AND(Import.TipoArredondamento="TransfereGOV",$L30="F",$C30<>"S",LEN($R30)>100),"Descrição >100", IF(AND(Import.TipoArredondamento="TransfereGOV",$L30="F",$C30="S",LEN($R30)>500),"Descrição >500", IF(AND(Import.TipoArredondamento="TransfereGOV",$L30="F",$C30="S",LEFT(TRIM(UPPER($P30)),6)<>"SINAPI",ISNA(VLOOKUP(TRIM(UPPER($S30)),ListaTgov.Unidades,1,FALSE))),"Unid. Não Disp", " ")))))))))))))))) ->  | AD30: =IF(C30<=CRONO.NivelExibicao,MAX($AD$15:OFFSET(AD30,-1,0))+IF($C30<>1,1,MAX(1,COUNTIF(QCI!$A$13:$A$24,OFFSET($E30,-1,0)))),"") ->  | AE30: =IF(AND($C30="S",ORÇAMENTO.CodBarra<>""),IF(ORÇAMENTO.Fonte="",ORÇAMENTO.CodBarra,CONCATENATE(ORÇAMENTO.Fonte," ",ORÇAMENTO.CodBarra))) -> SINAPI 100957 | AF30: =IF(ISERROR(ORÇAMENTO.BancoRef),"(abra o arquivo 'Referência "&Excel_BuiltIn_Database&".xlsm)",IF(OR($C30<>"S",ORÇAMENTO.CodBarra=""),"(Sem Código)",IF(ISERROR(MATCH($AE30,INDIRECT(ORÇAMENTO.BancoRef),0)),"(Código não identificado nas referências)",MATCH($AE30,INDIRECT(ORÇAMENTO.BancoRef),0)))) -> 15398 | AG30: =ROUND(IF(DESONERACAO="sim",REFERENCIA.Desonerado,REFERENCIA.NaoDesonerado),2) -> 3.82 | AH30: 0.2247 | AJ30: 521.3915434 | AM30: 2440.11 | AN30: =ROUND(ORÇAMENTO.CustoUnitario*(1+$AH30),2) -> 4.68
A31: 2 | B31: 2 | C31: 2 | D31: 4 | E31: =IF($C31=1,OFFSET(E31,-1,0)+MAX(1,COUNTIF(QCI!$A$13:$A$24,OFFSET(ORÇAMENTO!E31,-1,0))),OFFSET(E31,-1,0)) -> 1 | F31: 3 | G31: 0 | H31: 0 | I31: 0 | J31: 109 | K31: =IF(OR($C31="S",$C31=0),0,MATCH(OFFSET($D31,0,$C31)+IF($C31<>1,1,COUNTIF(QCI!$A$13:$A$24,ORÇAMENTO!E31)),OFFSET($D31,1,$C31,ROW($C$140)-ROW($C31)),0)) -> 4 | L31: F | M31: Nível 2 | N31: Nível 2 | O31: 1.3. | P31: SINAPI | R31: MOVIMENTAÇÃO DE TERRA | S31: - | T31: =OFFSET(CÁLCULO!H$15,ROW($T31)-ROW(T$15),0) -> 0 | U31: 0 | V31: BDI 1 | W31: =IF($C31="S",ROUND(IF(TIPOORCAMENTO="Proposto",ORÇAMENTO.CustoUnitario*(1+$AH31),ORÇAMENTO.PrecoUnitarioLicitado),15-13*$AF$10),0) -> 0 | X31: =IF($C31="S",IF(OR(Import.TipoArredondamento<>"TransfereGOV",ACOMPANHAMENTO="BM"),VTOTAL1,SUM(OFFSET(CÁLCULO!$AA$15,ROW($X31)-ROW($X$15),1):OFFSET(CÁLCULO!$AL$15,ROW($X31)-ROW($X$15),-1))),IF($C31=0,0,ROUND(SomaAgrup,15-13*$AF$11))) -> 17139.77 | Y31: RA | AA31: =IF($C31="S",IF($Z31="CP",$X31,IF($Z31="RA",(($X31)*QCI!$AA$3),0)),SomaAgrup) -> 5662.102083 | AB31: =IF($C31="S",IF($Z31="OU",ROUND($X31,2),0),SomaAgrup) -> 0 | AC31: =IF($N31=""," ", IF(AND($C31<>"S",OR($R31="",$R31="(digite a descrição aqui)")),"DESCRIÇÃO", IF(AND($C31="S",OR($Q31<>"",$T31>0,$U31>0),$P31=""),"FONTE", IF(AND($C31="S",$P31<>"",OR($T31>0,$U31>0),$Q31=""),"CÓDIGO", IF(AND($C31="S",$P31<>"",$Q31<>"",$R31="(Código não identificado nas referências)"),"CÓDIGO N/ID", IF(AND($C31="S",OR($R31="",$R31="(digite a descrição aqui)"),OR($Q31<>"",$T31>0,$U31>0)),"DESCRIÇÃO", IF(AND($C31="S",$P31<>"",$Q31<>"",$S31=""),"UNIDADE", IF(AND($C31="S",$P31<>"",$Q31<>"",$U31=0),"SEM CUSTO", IF(AND(TIPOORCAMENTO="Licitado",$AL31=0,$AN31>0),"SEM PREÇO", IF(AND($C31="S",$P31<>"",$Q31<>"",$U31>0,AND($V31<>"BDI 1",$V31<>"BDI 2",$V31<>"BDI 3")),IF(ISNUMBER($V31),"JUSTIFICAR BDI","BDI"), IF(OR(AND(import.recurso="OGU",TIPOORCAMENTO="Proposto",LEFT($O$8,5)<>"(N/D:",$AG31<>"",ORÇAMENTO.CustoUnitario>$AG31),AND(TIPOORCAMENTO="LICITADO",ORÇAMENTO.PrecoUnitarioLicitado>$AN31)),"ACIMA REF.", IF(AND($C31="S",$P31<>"",$Q31<>"",$T31=0,$U31>0),"QUANT.", IF(AND(Import.TipoArredondamento="TransfereGOV",$L31="F",$C31="S",LEN($Q31)>13),"Código >13", IF(AND(Import.TipoArredondamento="TransfereGOV",$L31="F",$C31<>"S",LEN($R31)>100),"Descrição >100", IF(AND(Import.TipoArredondamento="TransfereGOV",$L31="F",$C31="S",LEN($R31)>500),"Descrição >500", IF(AND(Import.TipoArredondamento="TransfereGOV",$L31="F",$C31="S",LEFT(TRIM(UPPER($P31)),6)<>"SINAPI",ISNA(VLOOKUP(TRIM(UPPER($S31)),ListaTgov.Unidades,1,FALSE))),"Unid. Não Disp", " ")))))))))))))))) ->  | AD31: =IF(C31<=CRONO.NivelExibicao,MAX($AD$15:OFFSET(AD31,-1,0))+IF($C31<>1,1,MAX(1,COUNTIF(QCI!$A$13:$A$24,OFFSET($E31,-1,0)))),"") -> 4 | AE31: =IF(AND($C31="S",ORÇAMENTO.CodBarra<>""),IF(ORÇAMENTO.Fonte="",ORÇAMENTO.CodBarra,CONCATENATE(ORÇAMENTO.Fonte," ",ORÇAMENTO.CodBarra))) -> FALSE | AF31: =IF(ISERROR(ORÇAMENTO.BancoRef),"(abra o arquivo 'Referência "&Excel_BuiltIn_Database&".xlsm)",IF(OR($C31<>"S",ORÇAMENTO.CodBarra=""),"(Sem Código)",IF(ISERROR(MATCH($AE31,INDIRECT(ORÇAMENTO.BancoRef),0)),"(Código não identificado nas referências)",MATCH($AE31,INDIRECT(ORÇAMENTO.BancoRef),0)))) -> (Sem Código) | AG31: =ROUND(IF(DESONERACAO="sim",REFERENCIA.Desonerado,REFERENCIA.NaoDesonerado),2) -> 0 | AH31: 0.2247 | AJ31: 0 | AM31: 17139.77 | AN31: =ROUND(ORÇAMENTO.CustoUnitario*(1+$AH31),2) -> 0
A32: S | B32: 2 | C32: S | D32: 0 | E32: =IF($C32=1,OFFSET(E32,-1,0)+MAX(1,COUNTIF(QCI!$A$13:$A$24,OFFSET(ORÇAMENTO!E32,-1,0))),OFFSET(E32,-1,0)) -> 1 | F32: 3 | G32: 0 | H32: 0 | I32: 1 | J32: 0 | K32: =IF(OR($C32="S",$C32=0),0,MATCH(OFFSET($D32,0,$C32)+IF($C32<>1,1,COUNTIF(QCI!$A$13:$A$24,ORÇAMENTO!E32)),OFFSET($D32,1,$C32,ROW($C$140)-ROW($C32)),0)) -> 0 | L32: F | M32: Serviço | N32: Serviço | O32: 1.3.1. | P32: SINAPI | Q32: 94304 | R32: ATERRO MECANIZADO DE VALA COM ESCAVADEIRA HIDRÁULICA (CAPACIDADE DA CAÇAMBA: 0,8 M³ / POTÊNCIA: 111 HP), LARGURA ATÉ 2,5 M, PROFUNDIDADE ATÉ 1,5 M, COM SOLO ARGILO-ARENOSO. AF_08/2023 | S32: M3 | T32: =OFFSET(CÁLCULO!H$15,ROW($T32)-ROW(T$15),0) -> 134.42 | U32: 77.29 | V32: BDI 1 | W32: =IF($C32="S",ROUND(IF(TIPOORCAMENTO="Proposto",ORÇAMENTO.CustoUnitario*(1+$AH32),ORÇAMENTO.PrecoUnitarioLicitado),15-13*$AF$10),0) -> 94.66 | X32: =IF($C32="S",IF(OR(Import.TipoArredondamento<>"TransfereGOV",ACOMPANHAMENTO="BM"),VTOTAL1,SUM(OFFSET(CÁLCULO!$AA$15,ROW($X32)-ROW($X$15),1):OFFSET(CÁLCULO!$AL$15,ROW($X32)-ROW($X$15),-1))),IF($C32=0,0,ROUND(SomaAgrup,15-13*$AF$11))) -> 12724.2 | Y32: RA | Z32: RA | AA32: =IF($C32="S",IF($Z32="CP",$X32,IF($Z32="RA",(($X32)*QCI!$AA$3),0)),SomaAgrup) -> 4203.423927 | AB32: =IF($C32="S",IF($Z32="OU",ROUND($X32,2),0),SomaAgrup) -> 0 | AC32: =IF($N32=""," ", IF(AND($C32<>"S",OR($R32="",$R32="(digite a descrição aqui)")),"DESCRIÇÃO", IF(AND($C32="S",OR($Q32<>"",$T32>0,$U32>0),$P32=""),"FONTE", IF(AND($C32="S",$P32<>"",OR($T32>0,$U32>0),$Q32=""),"CÓDIGO", IF(AND($C32="S",$P32<>"",$Q32<>"",$R32="(Código não identificado nas referências)"),"CÓDIGO N/ID", IF(AND($C32="S",OR($R32="",$R32="(digite a descrição aqui)"),OR($Q32<>"",$T32>0,$U32>0)),"DESCRIÇÃO", IF(AND($C32="S",$P32<>"",$Q32<>"",$S32=""),"UNIDADE", IF(AND($C32="S",$P32<>"",$Q32<>"",$U32=0),"SEM CUSTO", IF(AND(TIPOORCAMENTO="Licitado",$AL32=0,$AN32>0),"SEM PREÇO", IF(AND($C32="S",$P32<>"",$Q32<>"",$U32>0,AND($V32<>"BDI 1",$V32<>"BDI 2",$V32<>"BDI 3")),IF(ISNUMBER($V32),"JUSTIFICAR BDI","BDI"), IF(OR(AND(import.recurso="OGU",TIPOORCAMENTO="Proposto",LEFT($O$8,5)<>"(N/D:",$AG32<>"",ORÇAMENTO.CustoUnitario>$AG32),AND(TIPOORCAMENTO="LICITADO",ORÇAMENTO.PrecoUnitarioLicitado>$AN32)),"ACIMA REF.", IF(AND($C32="S",$P32<>"",$Q32<>"",$T32=0,$U32>0),"QUANT.", IF(AND(Import.TipoArredondamento="TransfereGOV",$L32="F",$C32="S",LEN($Q32)>13),"Código >13", IF(AND(Import.TipoArredondamento="TransfereGOV",$L32="F",$C32<>"S",LEN($R32)>100),"Descrição >100", IF(AND(Import.TipoArredondamento="TransfereGOV",$L32="F",$C32="S",LEN($R32)>500),"Descrição >500", IF(AND(Import.TipoArredondamento="TransfereGOV",$L32="F",$C32="S",LEFT(TRIM(UPPER($P32)),6)<>"SINAPI",ISNA(VLOOKUP(TRIM(UPPER($S32)),ListaTgov.Unidades,1,FALSE))),"Unid. Não Disp", " ")))))))))))))))) ->  | AD32: =IF(C32<=CRONO.NivelExibicao,MAX($AD$15:OFFSET(AD32,-1,0))+IF($C32<>1,1,MAX(1,COUNTIF(QCI!$A$13:$A$24,OFFSET($E32,-1,0)))),"") ->  | AE32: =IF(AND($C32="S",ORÇAMENTO.CodBarra<>""),IF(ORÇAMENTO.Fonte="",ORÇAMENTO.CodBarra,CONCATENATE(ORÇAMENTO.Fonte," ",ORÇAMENTO.CodBarra))) -> SINAPI 94304 | AF32: =IF(ISERROR(ORÇAMENTO.BancoRef),"(abra o arquivo 'Referência "&Excel_BuiltIn_Database&".xlsm)",IF(OR($C32<>"S",ORÇAMENTO.CodBarra=""),"(Sem Código)",IF(ISERROR(MATCH($AE32,INDIRECT(ORÇAMENTO.BancoRef),0)),"(Código não identificado nas referências)",MATCH($AE32,INDIRECT(ORÇAMENTO.BancoRef),0)))) -> 6743 | AG32: =ROUND(IF(DESONERACAO="sim",REFERENCIA.Desonerado,REFERENCIA.NaoDesonerado),2) -> 77.29 | AH32: 0.2247 | AJ32: 134.416 | AM32: 12724.2 | AN32: =ROUND(ORÇAMENTO.CustoUnitario*(1+$AH32),2) -> 94.66
A33: S | B33: 2 | C33: S | D33: 0 | E33: =IF($C33=1,OFFSET(E33,-1,0)+MAX(1,COUNTIF(QCI!$A$13:$A$24,OFFSET(ORÇAMENTO!E33,-1,0))),OFFSET(E33,-1,0)) -> 1 | F33: 3 | G33: 0 | H33: 0 | I33: 2 | J33: 0 | K33: =IF(OR($C33="S",$C33=0),0,MATCH(OFFSET($D33,0,$C33)+IF($C33<>1,1,COUNTIF(QCI!$A$13:$A$24,ORÇAMENTO!E33)),OFFSET($D33,1,$C33,ROW($C$140)-ROW($C33)),0)) -> 0 | L33: F | M33: Serviço | N33: Serviço | O33: 1.3.2. | P33: SINAPI | Q33: 96385 | R33: EXECUÇÃO E COMPACTAÇÃO DE CORPO DE ATERRO DE ATERRO (95% DE ENERGIA DO PROCTOR NORMAL) COM SOLO PREDOMINANTEMENTE ARGILOSO ESPESSURA 15 CM - EXCLUSIVE MATERIAL, ESCAVAÇÃO, CARGA E TRANSPORTE. AF_09/2024 | S33: M3 | T33: =OFFSET(CÁLCULO!H$15,ROW($T33)-ROW(T$15),0) -> 168.02 | U33: 12.27 | V33: BDI 1 | W33: =IF($C33="S",ROUND(IF(TIPOORCAMENTO="Proposto",ORÇAMENTO.CustoUnitario*(1+$AH33),ORÇAMENTO.PrecoUnitarioLicitado),15-13*$AF$10),0) -> 15.03 | X33: =IF($C33="S",IF(OR(Import.TipoArredondamento<>"TransfereGOV",ACOMPANHAMENTO="BM"),VTOTAL1,SUM(OFFSET(CÁLCULO!$AA$15,ROW($X33)-ROW($X$15),1):OFFSET(CÁLCULO!$AL$15,ROW($X33)-ROW($X$15),-1))),IF($C33=0,0,ROUND(SomaAgrup,15-13*$AF$11))) -> 2525.34 | Y33: RA | Z33: RA | AA33: =IF($C33="S",IF($Z33="CP",$X33,IF($Z33="RA",(($X33)*QCI!$AA$3),0)),SomaAgrup) -> 834.2429842 | AB33: =IF($C33="S",IF($Z33="OU",ROUND($X33,2),0),SomaAgrup) -> 0 | AC33: =IF($N33=""," ", IF(AND($C33<>"S",OR($R33="",$R33="(digite a descrição aqui)")),"DESCRIÇÃO", IF(AND($C33="S",OR($Q33<>"",$T33>0,$U33>0),$P33=""),"FONTE", IF(AND($C33="S",$P33<>"",OR($T33>0,$U33>0),$Q33=""),"CÓDIGO", IF(AND($C33="S",$P33<>"",$Q33<>"",$R33="(Código não identificado nas referências)"),"CÓDIGO N/ID", IF(AND($C33="S",OR($R33="",$R33="(digite a descrição aqui)"),OR($Q33<>"",$T33>0,$U33>0)),"DESCRIÇÃO", IF(AND($C33="S",$P33<>"",$Q33<>"",$S33=""),"UNIDADE", IF(AND($C33="S",$P33<>"",$Q33<>"",$U33=0),"SEM CUSTO", IF(AND(TIPOORCAMENTO="Licitado",$AL33=0,$AN33>0),"SEM PREÇO", IF(AND($C33="S",$P33<>"",$Q33<>"",$U33>0,AND($V33<>"BDI 1",$V33<>"BDI 2",$V33<>"BDI 3")),IF(ISNUMBER($V33),"JUSTIFICAR BDI","BDI"), IF(OR(AND(import.recurso="OGU",TIPOORCAMENTO="Proposto",LEFT($O$8,5)<>"(N/D:",$AG33<>"",ORÇAMENTO.CustoUnitario>$AG33),AND(TIPOORCAMENTO="LICITADO",ORÇAMENTO.PrecoUnitarioLicitado>$AN33)),"ACIMA REF.", IF(AND($C33="S",$P33<>"",$Q33<>"",$T33=0,$U33>0),"QUANT.", IF(AND(Import.TipoArredondamento="TransfereGOV",$L33="F",$C33="S",LEN($Q33)>13),"Código >13", IF(AND(Import.TipoArredondamento="TransfereGOV",$L33="F",$C33<>"S",LEN($R33)>100),"Descrição >100", IF(AND(Import.TipoArredondamento="TransfereGOV",$L33="F",$C33="S",LEN($R33)>500),"Descrição >500", IF(AND(Import.TipoArredondamento="TransfereGOV",$L33="F",$C33="S",LEFT(TRIM(UPPER($P33)),6)<>"SINAPI",ISNA(VLOOKUP(TRIM(UPPER($S33)),ListaTgov.Unidades,1,FALSE))),"Unid. Não Disp", " ")))))))))))))))) ->  | AD33: =IF(C33<=CRONO.NivelExibicao,MAX($AD$15:OFFSET(AD33,-1,0))+IF($C33<>1,1,MAX(1,COUNTIF(QCI!$A$13:$A$24,OFFSET($E33,-1,0)))),"") ->  | AE33: =IF(AND($C33="S",ORÇAMENTO.CodBarra<>""),IF(ORÇAMENTO.Fonte="",ORÇAMENTO.CodBarra,CONCATENATE(ORÇAMENTO.Fonte," ",ORÇAMENTO.CodBarra))) -> SINAPI 96385 | AF33: =IF(ISERROR(ORÇAMENTO.BancoRef),"(abra o arquivo 'Referência "&Excel_BuiltIn_Database&".xlsm)",IF(OR($C33<>"S",ORÇAMENTO.CodBarra=""),"(Sem Código)",IF(ISERROR(MATCH($AE33,INDIRECT(ORÇAMENTO.BancoRef),0)),"(Código não identificado nas referências)",MATCH($AE33,INDIRECT(ORÇAMENTO.BancoRef),0)))) -> 6898 | AG33: =ROUND(IF(DESONERACAO="sim",REFERENCIA.Desonerado,REFERENCIA.NaoDesonerado),2) -> 12.27 | AH33: 0.2247 | AJ33: 168.02 | AM33: 2525.34 | AN33: =ROUND(ORÇAMENTO.CustoUnitario*(1+$AH33),2) -> 15.03
A34: S | B34: 2 | C34: S | D34: 0 | E34: =IF($C34=1,OFFSET(E34,-1,0)+MAX(1,COUNTIF(QCI!$A$13:$A$24,OFFSET(ORÇAMENTO!E34,-1,0))),OFFSET(E34,-1,0)) -> 1 | F34: 3 | G34: 0 | H34: 0 | I34: 3 | J34: 0 | K34: =IF(OR($C34="S",$C34=0),0,MATCH(OFFSET($D34,0,$C34)+IF($C34<>1,1,COUNTIF(QCI!$A$13:$A$24,ORÇAMENTO!E34)),OFFSET($D34,1,$C34,ROW($C$140)-ROW($C34)),0)) -> 0 | L34: F | M34: Serviço | N34: Serviço | O34: 1.3.3. | P34: SINAPI | Q34: 95877 | R34: TRANSPORTE COM CAMINHÃO BASCULANTE DE 18 M³, EM VIA URBANA PAVIMENTADA, DMT ATÉ 30 KM (UNIDADE: M3XKM). AF_07/2020 | S34: M3XKM | T34: =OFFSET(CÁLCULO!H$15,ROW($T34)-ROW(T$15),0) -> 840.1 | U34: 1.84 | V34: BDI 1 | W34: =IF($C34="S",ROUND(IF(TIPOORCAMENTO="Proposto",ORÇAMENTO.CustoUnitario*(1+$AH34),ORÇAMENTO.PrecoUnitarioLicitado),15-13*$AF$10),0) -> 2.25 | X34: =IF($C34="S",IF(OR(Import.TipoArredondamento<>"TransfereGOV",ACOMPANHAMENTO="BM"),VTOTAL1,SUM(OFFSET(CÁLCULO!$AA$15,ROW($X34)-ROW($X$15),1):OFFSET(CÁLCULO!$AL$15,ROW($X34)-ROW($X$15),-1))),IF($C34=0,0,ROUND(SomaAgrup,15-13*$AF$11))) -> 1890.23 | Y34: RA | Z34: RA | AA34: =IF($C34="S",IF($Z34="CP",$X34,IF($Z34="RA",(($X34)*QCI!$AA$3),0)),SomaAgrup) -> 624.4351715 | AB34: =IF($C34="S",IF($Z34="OU",ROUND($X34,2),0),SomaAgrup) -> 0 | AC34: =IF($N34=""," ", IF(AND($C34<>"S",OR($R34="",$R34="(digite a descrição aqui)")),"DESCRIÇÃO", IF(AND($C34="S",OR($Q34<>"",$T34>0,$U34>0),$P34=""),"FONTE", IF(AND($C34="S",$P34<>"",OR($T34>0,$U34>0),$Q34=""),"CÓDIGO", IF(AND($C34="S",$P34<>"",$Q34<>"",$R34="(Código não identificado nas referências)"),"CÓDIGO N/ID", IF(AND($C34="S",OR($R34="",$R34="(digite a descrição aqui)"),OR($Q34<>"",$T34>0,$U34>0)),"DESCRIÇÃO", IF(AND($C34="S",$P34<>"",$Q34<>"",$S34=""),"UNIDADE", IF(AND($C34="S",$P34<>"",$Q34<>"",$U34=0),"SEM CUSTO", IF(AND(TIPOORCAMENTO="Licitado",$AL34=0,$AN34>0),"SEM PREÇO", IF(AND($C34="S",$P34<>"",$Q34<>"",$U34>0,AND($V34<>"BDI 1",$V34<>"BDI 2",$V34<>"BDI 3")),IF(ISNUMBER($V34),"JUSTIFICAR BDI","BDI"), IF(OR(AND(import.recurso="OGU",TIPOORCAMENTO="Proposto",LEFT($O$8,5)<>"(N/D:",$AG34<>"",ORÇAMENTO.CustoUnitario>$AG34),AND(TIPOORCAMENTO="LICITADO",ORÇAMENTO.PrecoUnitarioLicitado>$AN34)),"ACIMA REF.", IF(AND($C34="S",$P34<>"",$Q34<>"",$T34=0,$U34>0),"QUANT.", IF(AND(Import.TipoArredondamento="TransfereGOV",$L34="F",$C34="S",LEN($Q34)>13),"Código >13", IF(AND(Import.TipoArredondamento="TransfereGOV",$L34="F",$C34<>"S",LEN($R34)>100),"Descrição >100", IF(AND(Import.TipoArredondamento="TransfereGOV",$L34="F",$C34="S",LEN($R34)>500),"Descrição >500", IF(AND(Import.TipoArredondamento="TransfereGOV",$L34="F",$C34="S",LEFT(TRIM(UPPER($P34)),6)<>"SINAPI",ISNA(VLOOKUP(TRIM(UPPER($S34)),ListaTgov.Unidades,1,FALSE))),"Unid. Não Disp", " ")))))))))))))))) ->  | AD34: =IF(C34<=CRONO.NivelExibicao,MAX($AD$15:OFFSET(AD34,-1,0))+IF($C34<>1,1,MAX(1,COUNTIF(QCI!$A$13:$A$24,OFFSET($E34,-1,0)))),"") ->  | AE34: =IF(AND($C34="S",ORÇAMENTO.CodBarra<>""),IF(ORÇAMENTO.Fonte="",ORÇAMENTO.CodBarra,CONCATENATE(ORÇAMENTO.Fonte," ",ORÇAMENTO.CodBarra))) -> SINAPI 95877 | AF34: =IF(ISERROR(ORÇAMENTO.BancoRef),"(abra o arquivo 'Referência "&Excel_BuiltIn_Database&".xlsm)",IF(OR($C34<>"S",ORÇAMENTO.CodBarra=""),"(Sem Código)",IF(ISERROR(MATCH($AE34,INDIRECT(ORÇAMENTO.BancoRef),0)),"(Código não identificado nas referências)",MATCH($AE34,INDIRECT(ORÇAMENTO.BancoRef),0)))) -> 15367 | AG34: =ROUND(IF(DESONERACAO="sim",REFERENCIA.Desonerado,REFERENCIA.NaoDesonerado),2) -> 1.84 | AH34: 0.2247 | AJ34: 840.1 | AM34: 1890.23 | AN34: =ROUND(ORÇAMENTO.CustoUnitario*(1+$AH34),2) -> 2.25
A35: 2 | B35: 2 | C35: 2 | D35: 5 | E35: =IF($C35=1,OFFSET(E35,-1,0)+MAX(1,COUNTIF(QCI!$A$13:$A$24,OFFSET(ORÇAMENTO!E35,-1,0))),OFFSET(E35,-1,0)) -> 1 | F35: 4 | G35: 0 | H35: 0 | I35: 0 | J35: 105 | K35: =IF(OR($C35="S",$C35=0),0,MATCH(OFFSET($D35,0,$C35)+IF($C35<>1,1,COUNTIF(QCI!$A$13:$A$24,ORÇAMENTO!E35)),OFFSET($D35,1,$C35,ROW($C$140)-ROW($C35)),0)) -> 5 | L35: F | M35: Nível 2 | N35: Nível 2 | O35: 1.4. | P35: SINAPI | R35: RESTAURAÇÃO ARQUIBANCA E CONSTRUÇÃO DE QUEBRA DEGRAU | S35: - | T35: =OFFSET(CÁLCULO!H$15,ROW($T35)-ROW(T$15),0) -> 0 | U35: 0 | V35: BDI 1 | W35: =IF($C35="S",ROUND(IF(TIPOORCAMENTO="Proposto",ORÇAMENTO.CustoUnitario*(1+$AH35),ORÇAMENTO.PrecoUnitarioLicitado),15-13*$AF$10),0) -> 0 | X35: =IF($C35="S",IF(OR(Import.TipoArredondamento<>"TransfereGOV",ACOMPANHAMENTO="BM"),VTOTAL1,SUM(OFFSET(CÁLCULO!$AA$15,ROW($X35)-ROW($X$15),1):OFFSET(CÁLCULO!$AL$15,ROW($X35)-ROW($X$15),-1))),IF($C35=0,0,ROUND(SomaAgrup,15-13*$AF$11))) -> 42035.02 | Y35: RA | AA35: =IF($C35="S",IF($Z35="CP",$X35,IF($Z35="RA",(($X35)*QCI!$AA$3),0)),SomaAgrup) -> 13886.21751 | AB35: =IF($C35="S",IF($Z35="OU",ROUND($X35,2),0),SomaAgrup) -> 0 | AC35: =IF($N35=""," ", IF(AND($C35<>"S",OR($R35="",$R35="(digite a descrição aqui)")),"DESCRIÇÃO", IF(AND($C35="S",OR($Q35<>"",$T35>0,$U35>0),$P35=""),"FONTE", IF(AND($C35="S",$P35<>"",OR($T35>0,$U35>0),$Q35=""),"CÓDIGO", IF(AND($C35="S",$P35<>"",$Q35<>"",$R35="(Código não identificado nas referências)"),"CÓDIGO N/ID", IF(AND($C35="S",OR($R35="",$R35="(digite a descrição aqui)"),OR($Q35<>"",$T35>0,$U35>0)),"DESCRIÇÃO", IF(AND($C35="S",$P35<>"",$Q35<>"",$S35=""),"UNIDADE", IF(AND($C35="S",$P35<>"",$Q35<>"",$U35=0),"SEM CUSTO", IF(AND(TIPOORCAMENTO="Licitado",$AL35=0,$AN35>0),"SEM PREÇO", IF(AND($C35="S",$P35<>"",$Q35<>"",$U35>0,AND($V35<>"BDI 1",$V35<>"BDI 2",$V35<>"BDI 3")),IF(ISNUMBER($V35),"JUSTIFICAR BDI","BDI"), IF(OR(AND(import.recurso="OGU",TIPOORCAMENTO="Proposto",LEFT($O$8,5)<>"(N/D:",$AG35<>"",ORÇAMENTO.CustoUnitario>$AG35),AND(TIPOORCAMENTO="LICITADO",ORÇAMENTO.PrecoUnitarioLicitado>$AN35)),"ACIMA REF.", IF(AND($C35="S",$P35<>"",$Q35<>"",$T35=0,$U35>0),"QUANT.", IF(AND(Import.TipoArredondamento="TransfereGOV",$L35="F",$C35="S",LEN($Q35)>13),"Código >13", IF(AND(Import.TipoArredondamento="TransfereGOV",$L35="F",$C35<>"S",LEN($R35)>100),"Descrição >100", IF(AND(Import.TipoArredondamento="TransfereGOV",$L35="F",$C35="S",LEN($R35)>500),"Descrição >500", IF(AND(Import.TipoArredondamento="TransfereGOV",$L35="F",$C35="S",LEFT(TRIM(UPPER($P35)),6)<>"SINAPI",ISNA(VLOOKUP(TRIM(UPPER($S35)),ListaTgov.Unidades,1,FALSE))),"Unid. Não Disp", " ")))))))))))))))) ->  | AD35: =IF(C35<=CRONO.NivelExibicao,MAX($AD$15:OFFSET(AD35,-1,0))+IF($C35<>1,1,MAX(1,COUNTIF(QCI!$A$13:$A$24,OFFSET($E35,-1,0)))),"") -> 5 | AE35: =IF(AND($C35="S",ORÇAMENTO.CodBarra<>""),IF(ORÇAMENTO.Fonte="",ORÇAMENTO.CodBarra,CONCATENATE(ORÇAMENTO.Fonte," ",ORÇAMENTO.CodBarra))) -> FALSE | AF35: =IF(ISERROR(ORÇAMENTO.BancoRef),"(abra o arquivo 'Referência "&Excel_BuiltIn_Database&".xlsm)",IF(OR($C35<>"S",ORÇAMENTO.CodBarra=""),"(Sem Código)",IF(ISERROR(MATCH($AE35,INDIRECT(ORÇAMENTO.BancoRef),0)),"(Código não identificado nas referências)",MATCH($AE35,INDIRECT(ORÇAMENTO.BancoRef),0)))) -> (Sem Código) | AG35: =ROUND(IF(DESONERACAO="sim",REFERENCIA.Desonerado,REFERENCIA.NaoDesonerado),2) -> 0 | AH35: 0.2247 | AJ35: 0 | AM35: 42035.02 | AN35: =ROUND(ORÇAMENTO.CustoUnitario*(1+$AH35),2) -> 0
A36: S | B36: 2 | C36: S | D36: 0 | E36: =IF($C36=1,OFFSET(E36,-1,0)+MAX(1,COUNTIF(QCI!$A$13:$A$24,OFFSET(ORÇAMENTO!E36,-1,0))),OFFSET(E36,-1,0)) -> 1 | F36: 4 | G36: 0 | H36: 0 | I36: 1 | J36: 0 | K36: =IF(OR($C36="S",$C36=0),0,MATCH(OFFSET($D36,0,$C36)+IF($C36<>1,1,COUNTIF(QCI!$A$13:$A$24,ORÇAMENTO!E36)),OFFSET($D36,1,$C36,ROW($C$140)-ROW($C36)),0)) -> 0 | L36: F | M36: Serviço | N36: Serviço | O36: 1.4.1. | P36: SINAPI | Q36: 87792 | R36: EMBOÇO OU MASSA ÚNICA EM ARGAMASSA TRAÇO 1:2:8, PREPARO MECÂNICO COM BETONEIRA 400 L, APLICADA MANUALMENTE EM PANOS CEGOS DE FACHADA (SEM PRESENÇA DE VÃOS), ESPESSURA DE 25 MM. AF_08/2022 | S36: M2 | T36: =OFFSET(CÁLCULO!H$15,ROW($T36)-ROW(T$15),0) -> 348.84 | U36: 38.88 | V36: BDI 1 | W36: =IF($C36="S",ROUND(IF(TIPOORCAMENTO="Proposto",ORÇAMENTO.CustoUnitario*(1+$AH36),ORÇAMENTO.PrecoUnitarioLicitado),15-13*$AF$10),0) -> 47.62 | X36: =IF($C36="S",IF(OR(Import.TipoArredondamento<>"TransfereGOV",ACOMPANHAMENTO="BM"),VTOTAL1,SUM(OFFSET(CÁLCULO!$AA$15,ROW($X36)-ROW($X$15),1):OFFSET(CÁLCULO!$AL$15,ROW($X36)-ROW($X$15),-1))),IF($C36=0,0,ROUND(SomaAgrup,15-13*$AF$11))) -> 16611.76 | Y36: RA | Z36: RA | AA36: =IF($C36="S",IF($Z36="CP",$X36,IF($Z36="RA",(($X36)*QCI!$AA$3),0)),SomaAgrup) -> 5487.674624 | AB36: =IF($C36="S",IF($Z36="OU",ROUND($X36,2),0),SomaAgrup) -> 0 | AC36: =IF($N36=""," ", IF(AND($C36<>"S",OR($R36="",$R36="(digite a descrição aqui)")),"DESCRIÇÃO", IF(AND($C36="S",OR($Q36<>"",$T36>0,$U36>0),$P36=""),"FONTE", IF(AND($C36="S",$P36<>"",OR($T36>0,$U36>0),$Q36=""),"CÓDIGO", IF(AND($C36="S",$P36<>"",$Q36<>"",$R36="(Código não identificado nas referências)"),"CÓDIGO N/ID", IF(AND($C36="S",OR($R36="",$R36="(digite a descrição aqui)"),OR($Q36<>"",$T36>0,$U36>0)),"DESCRIÇÃO", IF(AND($C36="S",$P36<>"",$Q36<>"",$S36=""),"UNIDADE", IF(AND($C36="S",$P36<>"",$Q36<>"",$U36=0),"SEM CUSTO", IF(AND(TIPOORCAMENTO="Licitado",$AL36=0,$AN36>0),"SEM PREÇO", IF(AND($C36="S",$P36<>"",$Q36<>"",$U36>0,AND($V36<>"BDI 1",$V36<>"BDI 2",$V36<>"BDI 3")),IF(ISNUMBER($V36),"JUSTIFICAR BDI","BDI"), IF(OR(AND(import.recurso="OGU",TIPOORCAMENTO="Proposto",LEFT($O$8,5)<>"(N/D:",$AG36<>"",ORÇAMENTO.CustoUnitario>$AG36),AND(TIPOORCAMENTO="LICITADO",ORÇAMENTO.PrecoUnitarioLicitado>$AN36)),"ACIMA REF.", IF(AND($C36="S",$P36<>"",$Q36<>"",$T36=0,$U36>0),"QUANT.", IF(AND(Import.TipoArredondamento="TransfereGOV",$L36="F",$C36="S",LEN($Q36)>13),"Código >13", IF(AND(Import.TipoArredondamento="TransfereGOV",$L36="F",$C36<>"S",LEN($R36)>100),"Descrição >100", IF(AND(Import.TipoArredondamento="TransfereGOV",$L36="F",$C36="S",LEN($R36)>500),"Descrição >500", IF(AND(Import.TipoArredondamento="TransfereGOV",$L36="F",$C36="S",LEFT(TRIM(UPPER($P36)),6)<>"SINAPI",ISNA(VLOOKUP(TRIM(UPPER($S36)),ListaTgov.Unidades,1,FALSE))),"Unid. Não Disp", " ")))))))))))))))) ->  | AD36: =IF(C36<=CRONO.NivelExibicao,MAX($AD$15:OFFSET(AD36,-1,0))+IF($C36<>1,1,MAX(1,COUNTIF(QCI!$A$13:$A$24,OFFSET($E36,-1,0)))),"") ->  | AE36: =IF(AND($C36="S",ORÇAMENTO.CodBarra<>""),IF(ORÇAMENTO.Fonte="",ORÇAMENTO.CodBarra,CONCATENATE(ORÇAMENTO.Fonte," ",ORÇAMENTO.CodBarra))) -> SINAPI 87792 | AF36: =IF(ISERROR(ORÇAMENTO.BancoRef),"(abra o arquivo 'Referência "&Excel_BuiltIn_Database&".xlsm)",IF(OR($C36<>"S",ORÇAMENTO.CodBarra=""),"(Sem Código)",IF(ISERROR(MATCH($AE36,INDIRECT(ORÇAMENTO.BancoRef),0)),"(Código não identificado nas referências)",MATCH($AE36,INDIRECT(ORÇAMENTO.BancoRef),0)))) -> 13390 | AG36: =ROUND(IF(DESONERACAO="sim",REFERENCIA.Desonerado,REFERENCIA.NaoDesonerado),2) -> 38.88 | AH36: 0.2247 | AJ36: 348.843 | AM36: 16611.76 | AN36: =ROUND(ORÇAMENTO.CustoUnitario*(1+$AH36),2) -> 47.62
A37: S | B37: 2 | C37: S | D37: 0 | E37: =IF($C37=1,OFFSET(E37,-1,0)+MAX(1,COUNTIF(QCI!$A$13:$A$24,OFFSET(ORÇAMENTO!E37,-1,0))),OFFSET(E37,-1,0)) -> 1 | F37: 4 | G37: 0 | H37: 0 | I37: 2 | J37: 0 | K37: =IF(OR($C37="S",$C37=0),0,MATCH(OFFSET($D37,0,$C37)+IF($C37<>1,1,COUNTIF(QCI!$A$13:$A$24,ORÇAMENTO!E37)),OFFSET($D37,1,$C37,ROW($C$140)-ROW($C37)),0)) -> 0 | L37: F | M37: Serviço | N37: Serviço | O37: 1.4.2. | P37: Composição | Q37: CPU 24 | R37: TELA DE ACO MALHA 25X25MM, 1.24MM PARA REBOCO - FORNECIMENTO E COLOCACAO | S37: M2 | T37: =OFFSET(CÁLCULO!H$15,ROW($T37)-ROW(T$15),0) -> 348.84 | U37: 17.33 | V37: BDI 1 | W37: =IF($C37="S",ROUND(IF(TIPOORCAMENTO="Proposto",ORÇAMENTO.CustoUnitario*(1+$AH37),ORÇAMENTO.PrecoUnitarioLicitado),15-13*$AF$10),0) -> 21.22 | X37: =IF($C37="S",IF(OR(Import.TipoArredondamento<>"TransfereGOV",ACOMPANHAMENTO="BM"),VTOTAL1,SUM(OFFSET(CÁLCULO!$AA$15,ROW($X37)-ROW($X$15),1):OFFSET(CÁLCULO!$AL$15,ROW($X37)-ROW($X$15),-1))),IF($C37=0,0,ROUND(SomaAgrup,15-13*$AF$11))) -> 7402.38 | Y37: RA | Z37: RA | AA37: =IF($C37="S",IF($Z37="CP",$X37,IF($Z37="RA",(($X37)*QCI!$AA$3),0)),SomaAgrup) -> 2445.367191 | AB37: =IF($C37="S",IF($Z37="OU",ROUND($X37,2),0),SomaAgrup) -> 0 | AC37: =IF($N37=""," ", IF(AND($C37<>"S",OR($R37="",$R37="(digite a descrição aqui)")),"DESCRIÇÃO", IF(AND($C37="S",OR($Q37<>"",$T37>0,$U37>0),$P37=""),"FONTE", IF(AND($C37="S",$P37<>"",OR($T37>0,$U37>0),$Q37=""),"CÓDIGO", IF(AND($C37="S",$P37<>"",$Q37<>"",$R37="(Código não identificado nas referências)"),"CÓDIGO N/ID", IF(AND($C37="S",OR($R37="",$R37="(digite a descrição aqui)"),OR($Q37<>"",$T37>0,$U37>0)),"DESCRIÇÃO", IF(AND($C37="S",$P37<>"",$Q37<>"",$S37=""),"UNIDADE", IF(AND($C37="S",$P37<>"",$Q37<>"",$U37=0),"SEM CUSTO", IF(AND(TIPOORCAMENTO="Licitado",$AL37=0,$AN37>0),"SEM PREÇO", IF(AND($C37="S",$P37<>"",$Q37<>"",$U37>0,AND($V37<>"BDI 1",$V37<>"BDI 2",$V37<>"BDI 3")),IF(ISNUMBER($V37),"JUSTIFICAR BDI","BDI"), IF(OR(AND(import.recurso="OGU",TIPOORCAMENTO="Proposto",LEFT($O$8,5)<>"(N/D:",$AG37<>"",ORÇAMENTO.CustoUnitario>$AG37),AND(TIPOORCAMENTO="LICITADO",ORÇAMENTO.PrecoUnitarioLicitado>$AN37)),"ACIMA REF.", IF(AND($C37="S",$P37<>"",$Q37<>"",$T37=0,$U37>0),"QUANT.", IF(AND(Import.TipoArredondamento="TransfereGOV",$L37="F",$C37="S",LEN($Q37)>13),"Código >13", IF(AND(Import.TipoArredondamento="TransfereGOV",$L37="F",$C37<>"S",LEN($R37)>100),"Descrição >100", IF(AND(Import.TipoArredondamento="TransfereGOV",$L37="F",$C37="S",LEN($R37)>500),"Descrição >500", IF(AND(Import.TipoArredondamento="TransfereGOV",$L37="F",$C37="S",LEFT(TRIM(UPPER($P37)),6)<>"SINAPI",ISNA(VLOOKUP(TRIM(UPPER($S37)),ListaTgov.Unidades,1,FALSE))),"Unid. Não Disp", " ")))))))))))))))) ->  | AD37: =IF(C37<=CRONO.NivelExibicao,MAX($AD$15:OFFSET(AD37,-1,0))+IF($C37<>1,1,MAX(1,COUNTIF(QCI!$A$13:$A$24,OFFSET($E37,-1,0)))),"") ->  | AE37: =IF(AND($C37="S",ORÇAMENTO.CodBarra<>""),IF(ORÇAMENTO.Fonte="",ORÇAMENTO.CodBarra,CONCATENATE(ORÇAMENTO.Fonte," ",ORÇAMENTO.CodBarra))) -> Composição CPU 24 | AF37: =IF(ISERROR(ORÇAMENTO.BancoRef),"(abra o arquivo 'Referência "&Excel_BuiltIn_Database&".xlsm)",IF(OR($C37<>"S",ORÇAMENTO.CodBarra=""),"(Sem Código)",IF(ISERROR(MATCH($AE37,INDIRECT(ORÇAMENTO.BancoRef),0)),"(Código não identificado nas referências)",MATCH($AE37,INDIRECT(ORÇAMENTO.BancoRef),0)))) -> 21 | AG37: =ROUND(IF(DESONERACAO="sim",REFERENCIA.Desonerado,REFERENCIA.NaoDesonerado),2) -> 17.33 | AH37: 0.2247 | AJ37: 348.843 | AM37: 7402.38 | AN37: =ROUND(ORÇAMENTO.CustoUnitario*(1+$AH37),2) -> 21.22
A38: S | B38: 2 | C38: S | D38: 0 | E38: =IF($C38=1,OFFSET(E38,-1,0)+MAX(1,COUNTIF(QCI!$A$13:$A$24,OFFSET(ORÇAMENTO!E38,-1,0))),OFFSET(E38,-1,0)) -> 1 | F38: 4 | G38: 0 | H38: 0 | I38: 3 | J38: 0 | K38: =IF(OR($C38="S",$C38=0),0,MATCH(OFFSET($D38,0,$C38)+IF($C38<>1,1,COUNTIF(QCI!$A$13:$A$24,ORÇAMENTO!E38)),OFFSET($D38,1,$C38,ROW($C$140)-ROW($C38)),0)) -> 0 | L38: F | M38: Serviço | N38: Serviço | O38: 1.4.3. | P38: Composição | Q38: CPU 26 | R38: EXECUÇÃO DE QUEBRA DEGRAUS, COM ALVENARIA DE TIJOLOS MACIÇOS, ENCHIMENTO EM CONCRETO MAGRO, ACABAMENTO COM REBOCO E TELA - FORNECIMENTO E EXECUÇÃO | S38: M3 | T38: =OFFSET(CÁLCULO!H$15,ROW($T38)-ROW(T$15),0) -> 9.72 | U38: 1262.35 | V38: BDI 1 | W38: =IF($C38="S",ROUND(IF(TIPOORCAMENTO="Proposto",ORÇAMENTO.CustoUnitario*(1+$AH38),ORÇAMENTO.PrecoUnitarioLicitado),15-13*$AF$10),0) -> 1546 | X38: =IF($C38="S",IF(OR(Import.TipoArredondamento<>"TransfereGOV",ACOMPANHAMENTO="BM"),VTOTAL1,SUM(OFFSET(CÁLCULO!$AA$15,ROW($X38)-ROW($X$15),1):OFFSET(CÁLCULO!$AL$15,ROW($X38)-ROW($X$15),-1))),IF($C38=0,0,ROUND(SomaAgrup,15-13*$AF$11))) -> 15027.12 | Y38: RA | Z38: RA | AA38: =IF($C38="S",IF($Z38="CP",$X38,IF($Z38="RA",(($X38)*QCI!$AA$3),0)),SomaAgrup) -> 4964.190736 | AB38: =IF($C38="S",IF($Z38="OU",ROUND($X38,2),0),SomaAgrup) -> 0 | AC38: =IF($N38=""," ", IF(AND($C38<>"S",OR($R38="",$R38="(digite a descrição aqui)")),"DESCRIÇÃO", IF(AND($C38="S",OR($Q38<>"",$T38>0,$U38>0),$P38=""),"FONTE", IF(AND($C38="S",$P38<>"",OR($T38>0,$U38>0),$Q38=""),"CÓDIGO", IF(AND($C38="S",$P38<>"",$Q38<>"",$R38="(Código não identificado nas referências)"),"CÓDIGO N/ID", IF(AND($C38="S",OR($R38="",$R38="(digite a descrição aqui)"),OR($Q38<>"",$T38>0,$U38>0)),"DESCRIÇÃO", IF(AND($C38="S",$P38<>"",$Q38<>"",$S38=""),"UNIDADE", IF(AND($C38="S",$P38<>"",$Q38<>"",$U38=0),"SEM CUSTO", IF(AND(TIPOORCAMENTO="Licitado",$AL38=0,$AN38>0),"SEM PREÇO", IF(AND($C38="S",$P38<>"",$Q38<>"",$U38>0,AND($V38<>"BDI 1",$V38<>"BDI 2",$V38<>"BDI 3")),IF(ISNUMBER($V38),"JUSTIFICAR BDI","BDI"), IF(OR(AND(import.recurso="OGU",TIPOORCAMENTO="Proposto",LEFT($O$8,5)<>"(N/D:",$AG38<>"",ORÇAMENTO.CustoUnitario>$AG38),AND(TIPOORCAMENTO="LICITADO",ORÇAMENTO.PrecoUnitarioLicitado>$AN38)),"ACIMA REF.", IF(AND($C38="S",$P38<>"",$Q38<>"",$T38=0,$U38>0),"QUANT.", IF(AND(Import.TipoArredondamento="TransfereGOV",$L38="F",$C38="S",LEN($Q38)>13),"Código >13", IF(AND(Import.TipoArredondamento="TransfereGOV",$L38="F",$C38<>"S",LEN($R38)>100),"Descrição >100", IF(AND(Import.TipoArredondamento="TransfereGOV",$L38="F",$C38="S",LEN($R38)>500),"Descrição >500", IF(AND(Import.TipoArredondamento="TransfereGOV",$L38="F",$C38="S",LEFT(TRIM(UPPER($P38)),6)<>"SINAPI",ISNA(VLOOKUP(TRIM(UPPER($S38)),ListaTgov.Unidades,1,FALSE))),"Unid. Não Disp", " ")))))))))))))))) ->  | AD38: =IF(C38<=CRONO.NivelExibicao,MAX($AD$15:OFFSET(AD38,-1,0))+IF($C38<>1,1,MAX(1,COUNTIF(QCI!$A$13:$A$24,OFFSET($E38,-1,0)))),"") ->  | AE38: =IF(AND($C38="S",ORÇAMENTO.CodBarra<>""),IF(ORÇAMENTO.Fonte="",ORÇAMENTO.CodBarra,CONCATENATE(ORÇAMENTO.Fonte," ",ORÇAMENTO.CodBarra))) -> Composição CPU 26 | AF38: =IF(ISERROR(ORÇAMENTO.BancoRef),"(abra o arquivo 'Referência "&Excel_BuiltIn_Database&".xlsm)",IF(OR($C38<>"S",ORÇAMENTO.CodBarra=""),"(Sem Código)",IF(ISERROR(MATCH($AE38,INDIRECT(ORÇAMENTO.BancoRef),0)),"(Código não identificado nas referências)",MATCH($AE38,INDIRECT(ORÇAMENTO.BancoRef),0)))) -> 23 | AG38: =ROUND(IF(DESONERACAO="sim",REFERENCIA.Desonerado,REFERENCIA.NaoDesonerado),2) -> 1262.35 | AH38: 0.2247 | AJ38: 9.72 | AM38: 15027.12 | AN38: =ROUND(ORÇAMENTO.CustoUnitario*(1+$AH38),2) -> 1546
A39: S | B39: 2 | C39: S | D39: 0 | E39: =IF($C39=1,OFFSET(E39,-1,0)+MAX(1,COUNTIF(QCI!$A$13:$A$24,OFFSET(ORÇAMENTO!E39,-1,0))),OFFSET(E39,-1,0)) -> 1 | F39: 4 | G39: 0 | H39: 0 | I39: 4 | J39: 0 | K39: =IF(OR($C39="S",$C39=0),0,MATCH(OFFSET($D39,0,$C39)+IF($C39<>1,1,COUNTIF(QCI!$A$13:$A$24,ORÇAMENTO!E39)),OFFSET($D39,1,$C39,ROW($C$140)-ROW($C39)),0)) -> 0 | L39: F | M39: Serviço | N39: Serviço | O39: 1.4.4. | P39: SINAPI | Q39: 99855 | R39: CORRIMÃO SIMPLES, DIÂMETRO EXTERNO = 1 1/2", EM AÇO GALVANIZADO. AF_04/2019_PS | S39: M | T39: =OFFSET(CÁLCULO!H$15,ROW($T39)-ROW(T$15),0) -> 24 | U39: 101.85 | V39: BDI 1 | W39: =IF($C39="S",ROUND(IF(TIPOORCAMENTO="Proposto",ORÇAMENTO.CustoUnitario*(1+$AH39),ORÇAMENTO.PrecoUnitarioLicitado),15-13*$AF$10),0) -> 124.74 | X39: =IF($C39="S",IF(OR(Import.TipoArredondamento<>"TransfereGOV",ACOMPANHAMENTO="BM"),VTOTAL1,SUM(OFFSET(CÁLCULO!$AA$15,ROW($X39)-ROW($X$15),1):OFFSET(CÁLCULO!$AL$15,ROW($X39)-ROW($X$15),-1))),IF($C39=0,0,ROUND(SomaAgrup,15-13*$AF$11))) -> 2993.76 | Y39: RA | Z39: RA | AA39: =IF($C39="S",IF($Z39="CP",$X39,IF($Z39="RA",(($X39)*QCI!$AA$3),0)),SomaAgrup) -> 988.9849591 | AB39: =IF($C39="S",IF($Z39="OU",ROUND($X39,2),0),SomaAgrup) -> 0 | AC39: =IF($N39=""," ", IF(AND($C39<>"S",OR($R39="",$R39="(digite a descrição aqui)")),"DESCRIÇÃO", IF(AND($C39="S",OR($Q39<>"",$T39>0,$U39>0),$P39=""),"FONTE", IF(AND($C39="S",$P39<>"",OR($T39>0,$U39>0),$Q39=""),"CÓDIGO", IF(AND($C39="S",$P39<>"",$Q39<>"",$R39="(Código não identificado nas referências)"),"CÓDIGO N/ID", IF(AND($C39="S",OR($R39="",$R39="(digite a descrição aqui)"),OR($Q39<>"",$T39>0,$U39>0)),"DESCRIÇÃO", IF(AND($C39="S",$P39<>"",$Q39<>"",$S39=""),"UNIDADE", IF(AND($C39="S",$P39<>"",$Q39<>"",$U39=0),"SEM CUSTO", IF(AND(TIPOORCAMENTO="Licitado",$AL39=0,$AN39>0),"SEM PREÇO", IF(AND($C39="S",$P39<>"",$Q39<>"",$U39>0,AND($V39<>"BDI 1",$V39<>"BDI 2",$V39<>"BDI 3")),IF(ISNUMBER($V39),"JUSTIFICAR BDI","BDI"), IF(OR(AND(import.recurso="OGU",TIPOORCAMENTO="Proposto",LEFT($O$8,5)<>"(N/D:",$AG39<>"",ORÇAMENTO.CustoUnitario>$AG39),AND(TIPOORCAMENTO="LICITADO",ORÇAMENTO.PrecoUnitarioLicitado>$AN39)),"ACIMA REF.", IF(AND($C39="S",$P39<>"",$Q39<>"",$T39=0,$U39>0),"QUANT.", IF(AND(Import.TipoArredondamento="TransfereGOV",$L39="F",$C39="S",LEN($Q39)>13),"Código >13", IF(AND(Import.TipoArredondamento="TransfereGOV",$L39="F",$C39<>"S",LEN($R39)>100),"Descrição >100", IF(AND(Import.TipoArredondamento="TransfereGOV",$L39="F",$C39="S",LEN($R39)>500),"Descrição >500", IF(AND(Import.TipoArredondamento="TransfereGOV",$L39="F",$C39="S",LEFT(TRIM(UPPER($P39)),6)<>"SINAPI",ISNA(VLOOKUP(TRIM(UPPER($S39)),ListaTgov.Unidades,1,FALSE))),"Unid. Não Disp", " ")))))))))))))))) ->  | AD39: =IF(C39<=CRONO.NivelExibicao,MAX($AD$15:OFFSET(AD39,-1,0))+IF($C39<>1,1,MAX(1,COUNTIF(QCI!$A$13:$A$24,OFFSET($E39,-1,0)))),"") ->  | AE39: =IF(AND($C39="S",ORÇAMENTO.CodBarra<>""),IF(ORÇAMENTO.Fonte="",ORÇAMENTO.CodBarra,CONCATENATE(ORÇAMENTO.Fonte," ",ORÇAMENTO.CodBarra))) -> SINAPI 99855 | AF39: =IF(ISERROR(ORÇAMENTO.BancoRef),"(abra o arquivo 'Referência "&Excel_BuiltIn_Database&".xlsm)",IF(OR($C39<>"S",ORÇAMENTO.CodBarra=""),"(Sem Código)",IF(ISERROR(MATCH($AE39,INDIRECT(ORÇAMENTO.BancoRef),0)),"(Código não identificado nas referências)",MATCH($AE39,INDIRECT(ORÇAMENTO.BancoRef),0)))) -> 10247 | AG39: =ROUND(IF(DESONERACAO="sim",REFERENCIA.Desonerado,REFERENCIA.NaoDesonerado),2) -> 101.85 | AH39: 0.2247 | AJ39: 24 | AM39: 2993.76 | AN39: =ROUND(ORÇAMENTO.CustoUnitario*(1+$AH39),2) -> 124.74
A40: 2 | B40: 2 | C40: 2 | D40: 9 | E40: =IF($C40=1,OFFSET(E40,-1,0)+MAX(1,COUNTIF(QCI!$A$13:$A$24,OFFSET(ORÇAMENTO!E40,-1,0))),OFFSET(E40,-1,0)) -> 1 | F40: 5 | G40: 0 | H40: 0 | I40: 0 | J40: 100 | K40: =IF(OR($C40="S",$C40=0),0,MATCH(OFFSET($D40,0,$C40)+IF($C40<>1,1,COUNTIF(QCI!$A$13:$A$24,ORÇAMENTO!E40)),OFFSET($D40,1,$C40,ROW($C$140)-ROW($C40)),0)) -> 9 | L40: F | M40: Nível 2 | N40: Nível 2 | O40: 1.5. | P40: SINAPI | R40: ÁREA ACESSÍVEL | S40: - | T40: =OFFSET(CÁLCULO!H$15,ROW($T40)-ROW(T$15),0) -> 0 | U40: 0 | V40: BDI 1 | W40: =IF($C40="S",ROUND(IF(TIPOORCAMENTO="Proposto",ORÇAMENTO.CustoUnitario*(1+$AH40),ORÇAMENTO.PrecoUnitarioLicitado),15-13*$AF$10),0) -> 0 | X40: =IF($C40="S",IF(OR(Import.TipoArredondamento<>"TransfereGOV",ACOMPANHAMENTO="BM"),VTOTAL1,SUM(OFFSET(CÁLCULO!$AA$15,ROW($X40)-ROW($X$15),1):OFFSET(CÁLCULO!$AL$15,ROW($X40)-ROW($X$15),-1))),IF($C40=0,0,ROUND(SomaAgrup,15-13*$AF$11))) -> 6458.13 | Y40: RA | AA40: =IF($C40="S",IF($Z40="CP",$X40,IF($Z40="RA",(($X40)*QCI!$AA$3),0)),SomaAgrup) -> 2133.435357 | AB40: =IF($C40="S",IF($Z40="OU",ROUND($X40,2),0),SomaAgrup) -> 0 | AC40: =IF($N40=""," ", IF(AND($C40<>"S",OR($R40="",$R40="(digite a descrição aqui)")),"DESCRIÇÃO", IF(AND($C40="S",OR($Q40<>"",$T40>0,$U40>0),$P40=""),"FONTE", IF(AND($C40="S",$P40<>"",OR($T40>0,$U40>0),$Q40=""),"CÓDIGO", IF(AND($C40="S",$P40<>"",$Q40<>"",$R40="(Código não identificado nas referências)"),"CÓDIGO N/ID", IF(AND($C40="S",OR($R40="",$R40="(digite a descrição aqui)"),OR($Q40<>"",$T40>0,$U40>0)),"DESCRIÇÃO", IF(AND($C40="S",$P40<>"",$Q40<>"",$S40=""),"UNIDADE", IF(AND($C40="S",$P40<>"",$Q40<>"",$U40=0),"SEM CUSTO", IF(AND(TIPOORCAMENTO="Licitado",$AL40=0,$AN40>0),"SEM PREÇO", IF(AND($C40="S",$P40<>"",$Q40<>"",$U40>0,AND($V40<>"BDI 1",$V40<>"BDI 2",$V40<>"BDI 3")),IF(ISNUMBER($V40),"JUSTIFICAR BDI","BDI"), IF(OR(AND(import.recurso="OGU",TIPOORCAMENTO="Proposto",LEFT($O$8,5)<>"(N/D:",$AG40<>"",ORÇAMENTO.CustoUnitario>$AG40),AND(TIPOORCAMENTO="LICITADO",ORÇAMENTO.PrecoUnitarioLicitado>$AN40)),"ACIMA REF.", IF(AND($C40="S",$P40<>"",$Q40<>"",$T40=0,$U40>0),"QUANT.", IF(AND(Import.TipoArredondamento="TransfereGOV",$L40="F",$C40="S",LEN($Q40)>13),"Código >13", IF(AND(Import.TipoArredondamento="TransfereGOV",$L40="F",$C40<>"S",LEN($R40)>100),"Descrição >100", IF(AND(Import.TipoArredondamento="TransfereGOV",$L40="F",$C40="S",LEN($R40)>500),"Descrição >500", IF(AND(Import.TipoArredondamento="TransfereGOV",$L40="F",$C40="S",LEFT(TRIM(UPPER($P40)),6)<>"SINAPI",ISNA(VLOOKUP(TRIM(UPPER($S40)),ListaTgov.Unidades,1,FALSE))),"Unid. Não Disp", " ")))))))))))))))) ->  | AD40: =IF(C40<=CRONO.NivelExibicao,MAX($AD$15:OFFSET(AD40,-1,0))+IF($C40<>1,1,MAX(1,COUNTIF(QCI!$A$13:$A$24,OFFSET($E40,-1,0)))),"") -> 6 | AE40: =IF(AND($C40="S",ORÇAMENTO.CodBarra<>""),IF(ORÇAMENTO.Fonte="",ORÇAMENTO.CodBarra,CONCATENATE(ORÇAMENTO.Fonte," ",ORÇAMENTO.CodBarra))) -> FALSE | AF40: =IF(ISERROR(ORÇAMENTO.BancoRef),"(abra o arquivo 'Referência "&Excel_BuiltIn_Database&".xlsm)",IF(OR($C40<>"S",ORÇAMENTO.CodBarra=""),"(Sem Código)",IF(ISERROR(MATCH($AE40,INDIRECT(ORÇAMENTO.BancoRef),0)),"(Código não identificado nas referências)",MATCH($AE40,INDIRECT(ORÇAMENTO.BancoRef),0)))) -> (Sem Código) | AG40: =ROUND(IF(DESONERACAO="sim",REFERENCIA.Desonerado,REFERENCIA.NaoDesonerado),2) -> 0 | AH40: 0.2247 | AJ40: 0 | AM40: 6458.13 | AN40: =ROUND(ORÇAMENTO.CustoUnitario*(1+$AH40),2) -> 0
A41: S | B41: 2 | C41: S | D41: 0 | E41: =IF($C41=1,OFFSET(E41,-1,0)+MAX(1,COUNTIF(QCI!$A$13:$A$24,OFFSET(ORÇAMENTO!E41,-1,0))),OFFSET(E41,-1,0)) -> 1 | F41: 5 | G41: 0 | H41: 0 | I41: 1 | J41: 0 | K41: =IF(OR($C41="S",$C41=0),0,MATCH(OFFSET($D41,0,$C41)+IF($C41<>1,1,COUNTIF(QCI!$A$13:$A$24,ORÇAMENTO!E41)),OFFSET($D41,1,$C41,ROW($C$140)-ROW($C41)),0)) -> 0 | L41: F | M41: Serviço | N41: Serviço | O41: 1.5.1. | P41: SINAPI | Q41: 103329 | R41: ALVENARIA DE VEDAÇÃO DE BLOCOS CERÂMICOS FURADOS NA HORIZONTAL DE 9X19X19 CM (ESPESSURA 9 CM) E ARGAMASSA DE ASSENTAMENTO COM PREPARO MANUAL. AF_12/2021 | S41: M2 | T41: =OFFSET(CÁLCULO!H$15,ROW($T41)-ROW(T$15),0) -> 3.63 | U41: 93.62 | V41: BDI 1 | W41: =IF($C41="S",ROUND(IF(TIPOORCAMENTO="Proposto",ORÇAMENTO.CustoUnitario*(1+$AH41),ORÇAMENTO.PrecoUnitarioLicitado),15-13*$AF$10),0) -> 114.66 | X41: =IF($C41="S",IF(OR(Import.TipoArredondamento<>"TransfereGOV",ACOMPANHAMENTO="BM"),VTOTAL1,SUM(OFFSET(CÁLCULO!$AA$15,ROW($X41)-ROW($X$15),1):OFFSET(CÁLCULO!$AL$15,ROW($X41)-ROW($X$15),-1))),IF($C41=0,0,ROUND(SomaAgrup,15-13*$AF$11))) -> 416.22 | Y41: RA | Z41: RA | AA41: =IF($C41="S",IF($Z41="CP",$X41,IF($Z41="RA",(($X41)*QCI!$AA$3),0)),SomaAgrup) -> 137.4977686 | AB41: =IF($C41="S",IF($Z41="OU",ROUND($X41,2),0),SomaAgrup) -> 0 | AC41: =IF($N41=""," ", IF(AND($C41<>"S",OR($R41="",$R41="(digite a descrição aqui)")),"DESCRIÇÃO", IF(AND($C41="S",OR($Q41<>"",$T41>0,$U41>0),$P41=""),"FONTE", IF(AND($C41="S",$P41<>"",OR($T41>0,$U41>0),$Q41=""),"CÓDIGO", IF(AND($C41="S",$P41<>"",$Q41<>"",$R41="(Código não identificado nas referências)"),"CÓDIGO N/ID", IF(AND($C41="S",OR($R41="",$R41="(digite a descrição aqui)"),OR($Q41<>"",$T41>0,$U41>0)),"DESCRIÇÃO", IF(AND($C41="S",$P41<>"",$Q41<>"",$S41=""),"UNIDADE", IF(AND($C41="S",$P41<>"",$Q41<>"",$U41=0),"SEM CUSTO", IF(AND(TIPOORCAMENTO="Licitado",$AL41=0,$AN41>0),"SEM PREÇO", IF(AND($C41="S",$P41<>"",$Q41<>"",$U41>0,AND($V41<>"BDI 1",$V41<>"BDI 2",$V41<>"BDI 3")),IF(ISNUMBER($V41),"JUSTIFICAR BDI","BDI"), IF(OR(AND(import.recurso="OGU",TIPOORCAMENTO="Proposto",LEFT($O$8,5)<>"(N/D:",$AG41<>"",ORÇAMENTO.CustoUnitario>$AG41),AND(TIPOORCAMENTO="LICITADO",ORÇAMENTO.PrecoUnitarioLicitado>$AN41)),"ACIMA REF.", IF(AND($C41="S",$P41<>"",$Q41<>"",$T41=0,$U41>0),"QUANT.", IF(AND(Import.TipoArredondamento="TransfereGOV",$L41="F",$C41="S",LEN($Q41)>13),"Código >13", IF(AND(Import.TipoArredondamento="TransfereGOV",$L41="F",$C41<>"S",LEN($R41)>100),"Descrição >100", IF(AND(Import.TipoArredondamento="TransfereGOV",$L41="F",$C41="S",LEN($R41)>500),"Descrição >500", IF(AND(Import.TipoArredondamento="TransfereGOV",$L41="F",$C41="S",LEFT(TRIM(UPPER($P41)),6)<>"SINAPI",ISNA(VLOOKUP(TRIM(UPPER($S41)),ListaTgov.Unidades,1,FALSE))),"Unid. Não Disp", " ")))))))))))))))) ->  | AD41: =IF(C41<=CRONO.NivelExibicao,MAX($AD$15:OFFSET(AD41,-1,0))+IF($C41<>1,1,MAX(1,COUNTIF(QCI!$A$13:$A$24,OFFSET($E41,-1,0)))),"") ->  | AE41: =IF(AND($C41="S",ORÇAMENTO.CodBarra<>""),IF(ORÇAMENTO.Fonte="",ORÇAMENTO.CodBarra,CONCATENATE(ORÇAMENTO.Fonte," ",ORÇAMENTO.CodBarra))) -> SINAPI 103329 | AF41: =IF(ISERROR(ORÇAMENTO.BancoRef),"(abra o arquivo 'Referência "&Excel_BuiltIn_Database&".xlsm)",IF(OR($C41<>"S",ORÇAMENTO.CodBarra=""),"(Sem Código)",IF(ISERROR(MATCH($AE41,INDIRECT(ORÇAMENTO.BancoRef),0)),"(Código não identificado nas referências)",MATCH($AE41,INDIRECT(ORÇAMENTO.BancoRef),0)))) -> 6079 | AG41: =ROUND(IF(DESONERACAO="sim",REFERENCIA.Desonerado,REFERENCIA.NaoDesonerado),2) -> 93.62 | AH41: 0.2247 | AJ41: 3.63 | AM41: 416.22 | AN41: =ROUND(ORÇAMENTO.CustoUnitario*(1+$AH41),2) -> 114.66
A42: S | B42: 2 | C42: S | D42: 0 | E42: =IF($C42=1,OFFSET(E42,-1,0)+MAX(1,COUNTIF(QCI!$A$13:$A$24,OFFSET(ORÇAMENTO!E42,-1,0))),OFFSET(E42,-1,0)) -> 1 | F42: 5 | G42: 0 | H42: 0 | I42: 2 | J42: 0 | K42: =IF(OR($C42="S",$C42=0),0,MATCH(OFFSET($D42,0,$C42)+IF($C42<>1,1,COUNTIF(QCI!$A$13:$A$24,ORÇAMENTO!E42)),OFFSET($D42,1,$C42,ROW($C$140)-ROW($C42)),0)) -> 0 | L42: F | M42: Serviço | N42: Serviço | O42: 1.5.2. | P42: Composição | Q42: CPU 27 | R42: ATERRO MANUAL EM CAMADAS DE 20 CM, UMIDECIDAS E FORTEMENTE APILOADAS, COM AQUISICAO DE TERRA | S42: M3 | T42: =OFFSET(CÁLCULO!H$15,ROW($T42)-ROW(T$15),0) -> 2.29 | U42: 80.24 | V42: BDI 1 | W42: =IF($C42="S",ROUND(IF(TIPOORCAMENTO="Proposto",ORÇAMENTO.CustoUnitario*(1+$AH42),ORÇAMENTO.PrecoUnitarioLicitado),15-13*$AF$10),0) -> 98.27 | X42: =IF($C42="S",IF(OR(Import.TipoArredondamento<>"TransfereGOV",ACOMPANHAMENTO="BM"),VTOTAL1,SUM(OFFSET(CÁLCULO!$AA$15,ROW($X42)-ROW($X$15),1):OFFSET(CÁLCULO!$AL$15,ROW($X42)-ROW($X$15),-1))),IF($C42=0,0,ROUND(SomaAgrup,15-13*$AF$11))) -> 225.04 | Y42: RA | Z42: RA | AA42: =IF($C42="S",IF($Z42="CP",$X42,IF($Z42="RA",(($X42)*QCI!$AA$3),0)),SomaAgrup) -> 74.34168911 | AB42: =IF($C42="S",IF($Z42="OU",ROUND($X42,2),0),SomaAgrup) -> 0 | AC42: =IF($N42=""," ", IF(AND($C42<>"S",OR($R42="",$R42="(digite a descrição aqui)")),"DESCRIÇÃO", IF(AND($C42="S",OR($Q42<>"",$T42>0,$U42>0),$P42=""),"FONTE", IF(AND($C42="S",$P42<>"",OR($T42>0,$U42>0),$Q42=""),"CÓDIGO", IF(AND($C42="S",$P42<>"",$Q42<>"",$R42="(Código não identificado nas referências)"),"CÓDIGO N/ID", IF(AND($C42="S",OR($R42="",$R42="(digite a descrição aqui)"),OR($Q42<>"",$T42>0,$U42>0)),"DESCRIÇÃO", IF(AND($C42="S",$P42<>"",$Q42<>"",$S42=""),"UNIDADE", IF(AND($C42="S",$P42<>"",$Q42<>"",$U42=0),"SEM CUSTO", IF(AND(TIPOORCAMENTO="Licitado",$AL42=0,$AN42>0),"SEM PREÇO", IF(AND($C42="S",$P42<>"",$Q42<>"",$U42>0,AND($V42<>"BDI 1",$V42<>"BDI 2",$V42<>"BDI 3")),IF(ISNUMBER($V42),"JUSTIFICAR BDI","BDI"), IF(OR(AND(import.recurso="OGU",TIPOORCAMENTO="Proposto",LEFT($O$8,5)<>"(N/D:",$AG42<>"",ORÇAMENTO.CustoUnitario>$AG42),AND(TIPOORCAMENTO="LICITADO",ORÇAMENTO.PrecoUnitarioLicitado>$AN42)),"ACIMA REF.", IF(AND($C42="S",$P42<>"",$Q42<>"",$T42=0,$U42>0),"QUANT.", IF(AND(Import.TipoArredondamento="TransfereGOV",$L42="F",$C42="S",LEN($Q42)>13),"Código >13", IF(AND(Import.TipoArredondamento="TransfereGOV",$L42="F",$C42<>"S",LEN($R42)>100),"Descrição >100", IF(AND(Import.TipoArredondamento="TransfereGOV",$L42="F",$C42="S",LEN($R42)>500),"Descrição >500", IF(AND(Import.TipoArredondamento="TransfereGOV",$L42="F",$C42="S",LEFT(TRIM(UPPER($P42)),6)<>"SINAPI",ISNA(VLOOKUP(TRIM(UPPER($S42)),ListaTgov.Unidades,1,FALSE))),"Unid. Não Disp", " ")))))))))))))))) ->  | AD42: =IF(C42<=CRONO.NivelExibicao,MAX($AD$15:OFFSET(AD42,-1,0))+IF($C42<>1,1,MAX(1,COUNTIF(QCI!$A$13:$A$24,OFFSET($E42,-1,0)))),"") ->  | AE42: =IF(AND($C42="S",ORÇAMENTO.CodBarra<>""),IF(ORÇAMENTO.Fonte="",ORÇAMENTO.CodBarra,CONCATENATE(ORÇAMENTO.Fonte," ",ORÇAMENTO.CodBarra))) -> Composição CPU 27 | AF42: =IF(ISERROR(ORÇAMENTO.BancoRef),"(abra o arquivo 'Referência "&Excel_BuiltIn_Database&".xlsm)",IF(OR($C42<>"S",ORÇAMENTO.CodBarra=""),"(Sem Código)",IF(ISERROR(MATCH($AE42,INDIRECT(ORÇAMENTO.BancoRef),0)),"(Código não identificado nas referências)",MATCH($AE42,INDIRECT(ORÇAMENTO.BancoRef),0)))) -> 24 | AG42: =ROUND(IF(DESONERACAO="sim",REFERENCIA.Desonerado,REFERENCIA.NaoDesonerado),2) -> 80.24 | AH42: 0.2247 | AJ42: 2.29075 | AM42: 225.04 | AN42: =ROUND(ORÇAMENTO.CustoUnitario*(1+$AH42),2) -> 98.27
A43: S | B43: 2 | C43: S | D43: 0 | E43: =IF($C43=1,OFFSET(E43,-1,0)+MAX(1,COUNTIF(QCI!$A$13:$A$24,OFFSET(ORÇAMENTO!E43,-1,0))),OFFSET(E43,-1,0)) -> 1 | F43: 5 | G43: 0 | H43: 0 | I43: 3 | J43: 0 | K43: =IF(OR($C43="S",$C43=0),0,MATCH(OFFSET($D43,0,$C43)+IF($C43<>1,1,COUNTIF(QCI!$A$13:$A$24,ORÇAMENTO!E43)),OFFSET($D43,1,$C43,ROW($C$140)-ROW($C43)),0)) -> 0 | L43: F | M43: Serviço | N43: Serviço | O43: 1.5.3. | P43: SINAPI | Q43: 87893 | R43: CHAPISCO APLICADO EM ALVENARIA (SEM PRESENÇA DE VÃOS) E ESTRUTURAS DE CONCRETO DE FACHADA, COM COLHER DE PEDREIRO. ARGAMASSA TRAÇO 1:3 COM PREPARO MANUAL. AF_10/2022 | S43: M2 | T43: =OFFSET(CÁLCULO!H$15,ROW($T43)-ROW(T$15),0) -> 3.63 | U43: 6.93 | V43: BDI 1 | W43: =IF($C43="S",ROUND(IF(TIPOORCAMENTO="Proposto",ORÇAMENTO.CustoUnitario*(1+$AH43),ORÇAMENTO.PrecoUnitarioLicitado),15-13*$AF$10),0) -> 8.49 | X43: =IF($C43="S",IF(OR(Import.TipoArredondamento<>"TransfereGOV",ACOMPANHAMENTO="BM"),VTOTAL1,SUM(OFFSET(CÁLCULO!$AA$15,ROW($X43)-ROW($X$15),1):OFFSET(CÁLCULO!$AL$15,ROW($X43)-ROW($X$15),-1))),IF($C43=0,0,ROUND(SomaAgrup,15-13*$AF$11))) -> 30.82 | Y43: RA | Z43: RA | AA43: =IF($C43="S",IF($Z43="CP",$X43,IF($Z43="RA",(($X43)*QCI!$AA$3),0)),SomaAgrup) -> 10.18134935 | AB43: =IF($C43="S",IF($Z43="OU",ROUND($X43,2),0),SomaAgrup) -> 0 | AC43: =IF($N43=""," ", IF(AND($C43<>"S",OR($R43="",$R43="(digite a descrição aqui)")),"DESCRIÇÃO", IF(AND($C43="S",OR($Q43<>"",$T43>0,$U43>0),$P43=""),"FONTE", IF(AND($C43="S",$P43<>"",OR($T43>0,$U43>0),$Q43=""),"CÓDIGO", IF(AND($C43="S",$P43<>"",$Q43<>"",$R43="(Código não identificado nas referências)"),"CÓDIGO N/ID", IF(AND($C43="S",OR($R43="",$R43="(digite a descrição aqui)"),OR($Q43<>"",$T43>0,$U43>0)),"DESCRIÇÃO", IF(AND($C43="S",$P43<>"",$Q43<>"",$S43=""),"UNIDADE", IF(AND($C43="S",$P43<>"",$Q43<>"",$U43=0),"SEM CUSTO", IF(AND(TIPOORCAMENTO="Licitado",$AL43=0,$AN43>0),"SEM PREÇO", IF(AND($C43="S",$P43<>"",$Q43<>"",$U43>0,AND($V43<>"BDI 1",$V43<>"BDI 2",$V43<>"BDI 3")),IF(ISNUMBER($V43),"JUSTIFICAR BDI","BDI"), IF(OR(AND(import.recurso="OGU",TIPOORCAMENTO="Proposto",LEFT($O$8,5)<>"(N/D:",$AG43<>"",ORÇAMENTO.CustoUnitario>$AG43),AND(TIPOORCAMENTO="LICITADO",ORÇAMENTO.PrecoUnitarioLicitado>$AN43)),"ACIMA REF.", IF(AND($C43="S",$P43<>"",$Q43<>"",$T43=0,$U43>0),"QUANT.", IF(AND(Import.TipoArredondamento="TransfereGOV",$L43="F",$C43="S",LEN($Q43)>13),"Código >13", IF(AND(Import.TipoArredondamento="TransfereGOV",$L43="F",$C43<>"S",LEN($R43)>100),"Descrição >100", IF(AND(Import.TipoArredondamento="TransfereGOV",$L43="F",$C43="S",LEN($R43)>500),"Descrição >500", IF(AND(Import.TipoArredondamento="TransfereGOV",$L43="F",$C43="S",LEFT(TRIM(UPPER($P43)),6)<>"SINAPI",ISNA(VLOOKUP(TRIM(UPPER($S43)),ListaTgov.Unidades,1,FALSE))),"Unid. Não Disp", " ")))))))))))))))) ->  | AD43: =IF(C43<=CRONO.NivelExibicao,MAX($AD$15:OFFSET(AD43,-1,0))+IF($C43<>1,1,MAX(1,COUNTIF(QCI!$A$13:$A$24,OFFSET($E43,-1,0)))),"") ->  | AE43: =IF(AND($C43="S",ORÇAMENTO.CodBarra<>""),IF(ORÇAMENTO.Fonte="",ORÇAMENTO.CodBarra,CONCATENATE(ORÇAMENTO.Fonte," ",ORÇAMENTO.CodBarra))) -> SINAPI 87893 | AF43: =IF(ISERROR(ORÇAMENTO.BancoRef),"(abra o arquivo 'Referência "&Excel_BuiltIn_Database&".xlsm)",IF(OR($C43<>"S",ORÇAMENTO.CodBarra=""),"(Sem Código)",IF(ISERROR(MATCH($AE43,INDIRECT(ORÇAMENTO.BancoRef),0)),"(Código não identificado nas referências)",MATCH($AE43,INDIRECT(ORÇAMENTO.BancoRef),0)))) -> 7294 | AG43: =ROUND(IF(DESONERACAO="sim",REFERENCIA.Desonerado,REFERENCIA.NaoDesonerado),2) -> 6.93 | AH43: 0.2247 | AJ43: 3.63 | AM43: 30.82 | AN43: =ROUND(ORÇAMENTO.CustoUnitario*(1+$AH43),2) -> 8.49
A44: S | B44: 2 | C44: S | D44: 0 | E44: =IF($C44=1,OFFSET(E44,-1,0)+MAX(1,COUNTIF(QCI!$A$13:$A$24,OFFSET(ORÇAMENTO!E44,-1,0))),OFFSET(E44,-1,0)) -> 1 | F44: 5 | G44: 0 | H44: 0 | I44: 4 | J44: 0 | K44: =IF(OR($C44="S",$C44=0),0,MATCH(OFFSET($D44,0,$C44)+IF($C44<>1,1,COUNTIF(QCI!$A$13:$A$24,ORÇAMENTO!E44)),OFFSET($D44,1,$C44,ROW($C$140)-ROW($C44)),0)) -> 0 | L44: F | M44: Serviço | N44: Serviço | O44: 1.5.4. | P44: Composição | Q44: CPU 24 | R44: TELA DE ACO MALHA 25X25MM, 1.24MM PARA REBOCO - FORNECIMENTO E COLOCACAO | S44: M2 | T44: =OFFSET(CÁLCULO!H$15,ROW($T44)-ROW(T$15),0) -> 3.63 | U44: 17.33 | V44: BDI 1 | W44: =IF($C44="S",ROUND(IF(TIPOORCAMENTO="Proposto",ORÇAMENTO.CustoUnitario*(1+$AH44),ORÇAMENTO.PrecoUnitarioLicitado),15-13*$AF$10),0) -> 21.22 | X44: =IF($C44="S",IF(OR(Import.TipoArredondamento<>"TransfereGOV",ACOMPANHAMENTO="BM"),VTOTAL1,SUM(OFFSET(CÁLCULO!$AA$15,ROW($X44)-ROW($X$15),1):OFFSET(CÁLCULO!$AL$15,ROW($X44)-ROW($X$15),-1))),IF($C44=0,0,ROUND(SomaAgrup,15-13*$AF$11))) -> 77.03 | Y44: RA | Z44: RA | AA44: =IF($C44="S",IF($Z44="CP",$X44,IF($Z44="RA",(($X44)*QCI!$AA$3),0)),SomaAgrup) -> 25.44676641 | AB44: =IF($C44="S",IF($Z44="OU",ROUND($X44,2),0),SomaAgrup) -> 0 | AC44: =IF($N44=""," ", IF(AND($C44<>"S",OR($R44="",$R44="(digite a descrição aqui)")),"DESCRIÇÃO", IF(AND($C44="S",OR($Q44<>"",$T44>0,$U44>0),$P44=""),"FONTE", IF(AND($C44="S",$P44<>"",OR($T44>0,$U44>0),$Q44=""),"CÓDIGO", IF(AND($C44="S",$P44<>"",$Q44<>"",$R44="(Código não identificado nas referências)"),"CÓDIGO N/ID", IF(AND($C44="S",OR($R44="",$R44="(digite a descrição aqui)"),OR($Q44<>"",$T44>0,$U44>0)),"DESCRIÇÃO", IF(AND($C44="S",$P44<>"",$Q44<>"",$S44=""),"UNIDADE", IF(AND($C44="S",$P44<>"",$Q44<>"",$U44=0),"SEM CUSTO", IF(AND(TIPOORCAMENTO="Licitado",$AL44=0,$AN44>0),"SEM PREÇO", IF(AND($C44="S",$P44<>"",$Q44<>"",$U44>0,AND($V44<>"BDI 1",$V44<>"BDI 2",$V44<>"BDI 3")),IF(ISNUMBER($V44),"JUSTIFICAR BDI","BDI"), IF(OR(AND(import.recurso="OGU",TIPOORCAMENTO="Proposto",LEFT($O$8,5)<>"(N/D:",$AG44<>"",ORÇAMENTO.CustoUnitario>$AG44),AND(TIPOORCAMENTO="LICITADO",ORÇAMENTO.PrecoUnitarioLicitado>$AN44)),"ACIMA REF.", IF(AND($C44="S",$P44<>"",$Q44<>"",$T44=0,$U44>0),"QUANT.", IF(AND(Import.TipoArredondamento="TransfereGOV",$L44="F",$C44="S",LEN($Q44)>13),"Código >13", IF(AND(Import.TipoArredondamento="TransfereGOV",$L44="F",$C44<>"S",LEN($R44)>100),"Descrição >100", IF(AND(Import.TipoArredondamento="TransfereGOV",$L44="F",$C44="S",LEN($R44)>500),"Descrição >500", IF(AND(Import.TipoArredondamento="TransfereGOV",$L44="F",$C44="S",LEFT(TRIM(UPPER($P44)),6)<>"SINAPI",ISNA(VLOOKUP(TRIM(UPPER($S44)),ListaTgov.Unidades,1,FALSE))),"Unid. Não Disp", " ")))))))))))))))) ->  | AD44: =IF(C44<=CRONO.NivelExibicao,MAX($AD$15:OFFSET(AD44,-1,0))+IF($C44<>1,1,MAX(1,COUNTIF(QCI!$A$13:$A$24,OFFSET($E44,-1,0)))),"") ->  | AE44: =IF(AND($C44="S",ORÇAMENTO.CodBarra<>""),IF(ORÇAMENTO.Fonte="",ORÇAMENTO.CodBarra,CONCATENATE(ORÇAMENTO.Fonte," ",ORÇAMENTO.CodBarra))) -> Composição CPU 24 | AF44: =IF(ISERROR(ORÇAMENTO.BancoRef),"(abra o arquivo 'Referência "&Excel_BuiltIn_Database&".xlsm)",IF(OR($C44<>"S",ORÇAMENTO.CodBarra=""),"(Sem Código)",IF(ISERROR(MATCH($AE44,INDIRECT(ORÇAMENTO.BancoRef),0)),"(Código não identificado nas referências)",MATCH($AE44,INDIRECT(ORÇAMENTO.BancoRef),0)))) -> 21 | AG44: =ROUND(IF(DESONERACAO="sim",REFERENCIA.Desonerado,REFERENCIA.NaoDesonerado),2) -> 17.33 | AH44: 0.2247 | AJ44: 3.63 | AM44: 77.03 | AN44: =ROUND(ORÇAMENTO.CustoUnitario*(1+$AH44),2) -> 21.22
A45: S | B45: 2 | C45: S | D45: 0 | E45: =IF($C45=1,OFFSET(E45,-1,0)+MAX(1,COUNTIF(QCI!$A$13:$A$24,OFFSET(ORÇAMENTO!E45,-1,0))),OFFSET(E45,-1,0)) -> 1 | F45: 5 | G45: 0 | H45: 0 | I45: 5 | J45: 0 | K45: =IF(OR($C45="S",$C45=0),0,MATCH(OFFSET($D45,0,$C45)+IF($C45<>1,1,COUNTIF(QCI!$A$13:$A$24,ORÇAMENTO!E45)),OFFSET($D45,1,$C45,ROW($C$140)-ROW($C45)),0)) -> 0 | L45: F | M45: Serviço | N45: Serviço | O45: 1.5.5. | P45: SINAPI | Q45: 87792 | R45: EMBOÇO OU MASSA ÚNICA EM ARGAMASSA TRAÇO 1:2:8, PREPARO MECÂNICO COM BETONEIRA 400 L, APLICADA MANUALMENTE EM PANOS CEGOS DE FACHADA (SEM PRESENÇA DE VÃOS), ESPESSURA DE 25 MM. AF_08/2022 | S45: M2 | T45: =OFFSET(CÁLCULO!H$15,ROW($T45)-ROW(T$15),0) -> 3.63 | U45: 38.88 | V45: BDI 1 | W45: =IF($C45="S",ROUND(IF(TIPOORCAMENTO="Proposto",ORÇAMENTO.CustoUnitario*(1+$AH45),ORÇAMENTO.PrecoUnitarioLicitado),15-13*$AF$10),0) -> 47.62 | X45: =IF($C45="S",IF(OR(Import.TipoArredondamento<>"TransfereGOV",ACOMPANHAMENTO="BM"),VTOTAL1,SUM(OFFSET(CÁLCULO!$AA$15,ROW($X45)-ROW($X$15),1):OFFSET(CÁLCULO!$AL$15,ROW($X45)-ROW($X$15),-1))),IF($C45=0,0,ROUND(SomaAgrup,15-13*$AF$11))) -> 172.86 | Y45: RA | Z45: RA | AA45: =IF($C45="S",IF($Z45="CP",$X45,IF($Z45="RA",(($X45)*QCI!$AA$3),0)),SomaAgrup) -> 57.10408985 | AB45: =IF($C45="S",IF($Z45="OU",ROUND($X45,2),0),SomaAgrup) -> 0 | AC45: =IF($N45=""," ", IF(AND($C45<>"S",OR($R45="",$R45="(digite a descrição aqui)")),"DESCRIÇÃO", IF(AND($C45="S",OR($Q45<>"",$T45>0,$U45>0),$P45=""),"FONTE", IF(AND($C45="S",$P45<>"",OR($T45>0,$U45>0),$Q45=""),"CÓDIGO", IF(AND($C45="S",$P45<>"",$Q45<>"",$R45="(Código não identificado nas referências)"),"CÓDIGO N/ID", IF(AND($C45="S",OR($R45="",$R45="(digite a descrição aqui)"),OR($Q45<>"",$T45>0,$U45>0)),"DESCRIÇÃO", IF(AND($C45="S",$P45<>"",$Q45<>"",$S45=""),"UNIDADE", IF(AND($C45="S",$P45<>"",$Q45<>"",$U45=0),"SEM CUSTO", IF(AND(TIPOORCAMENTO="Licitado",$AL45=0,$AN45>0),"SEM PREÇO", IF(AND($C45="S",$P45<>"",$Q45<>"",$U45>0,AND($V45<>"BDI 1",$V45<>"BDI 2",$V45<>"BDI 3")),IF(ISNUMBER($V45),"JUSTIFICAR BDI","BDI"), IF(OR(AND(import.recurso="OGU",TIPOORCAMENTO="Proposto",LEFT($O$8,5)<>"(N/D:",$AG45<>"",ORÇAMENTO.CustoUnitario>$AG45),AND(TIPOORCAMENTO="LICITADO",ORÇAMENTO.PrecoUnitarioLicitado>$AN45)),"ACIMA REF.", IF(AND($C45="S",$P45<>"",$Q45<>"",$T45=0,$U45>0),"QUANT.", IF(AND(Import.TipoArredondamento="TransfereGOV",$L45="F",$C45="S",LEN($Q45)>13),"Código >13", IF(AND(Import.TipoArredondamento="TransfereGOV",$L45="F",$C45<>"S",LEN($R45)>100),"Descrição >100", IF(AND(Import.TipoArredondamento="TransfereGOV",$L45="F",$C45="S",LEN($R45)>500),"Descrição >500", IF(AND(Import.TipoArredondamento="TransfereGOV",$L45="F",$C45="S",LEFT(TRIM(UPPER($P45)),6)<>"SINAPI",ISNA(VLOOKUP(TRIM(UPPER($S45)),ListaTgov.Unidades,1,FALSE))),"Unid. Não Disp", " ")))))))))))))))) ->  | AD45: =IF(C45<=CRONO.NivelExibicao,MAX($AD$15:OFFSET(AD45,-1,0))+IF($C45<>1,1,MAX(1,COUNTIF(QCI!$A$13:$A$24,OFFSET($E45,-1,0)))),"") ->  | AE45: =IF(AND($C45="S",ORÇAMENTO.CodBarra<>""),IF(ORÇAMENTO.Fonte="",ORÇAMENTO.CodBarra,CONCATENATE(ORÇAMENTO.Fonte," ",ORÇAMENTO.CodBarra))) -> SINAPI 87792 | AF45: =IF(ISERROR(ORÇAMENTO.BancoRef),"(abra o arquivo 'Referência "&Excel_BuiltIn_Database&".xlsm)",IF(OR($C45<>"S",ORÇAMENTO.CodBarra=""),"(Sem Código)",IF(ISERROR(MATCH($AE45,INDIRECT(ORÇAMENTO.BancoRef),0)),"(Código não identificado nas referências)",MATCH($AE45,INDIRECT(ORÇAMENTO.BancoRef),0)))) -> 13390 | AG45: =ROUND(IF(DESONERACAO="sim",REFERENCIA.Desonerado,REFERENCIA.NaoDesonerado),2) -> 38.88 | AH45: 0.2247 | AJ45: 3.63 | AM45: 172.86 | AN45: =ROUND(ORÇAMENTO.CustoUnitario*(1+$AH45),2) -> 47.62
A46: S | B46: 2 | C46: S | D46: 0 | E46: =IF($C46=1,OFFSET(E46,-1,0)+MAX(1,COUNTIF(QCI!$A$13:$A$24,OFFSET(ORÇAMENTO!E46,-1,0))),OFFSET(E46,-1,0)) -> 1 | F46: 5 | G46: 0 | H46: 0 | I46: 6 | J46: 0 | K46: =IF(OR($C46="S",$C46=0),0,MATCH(OFFSET($D46,0,$C46)+IF($C46<>1,1,COUNTIF(QCI!$A$13:$A$24,ORÇAMENTO!E46)),OFFSET($D46,1,$C46,ROW($C$140)-ROW($C46)),0)) -> 0 | L46: F | M46: Serviço | N46: Serviço | O46: 1.5.6. | P46: Composição | Q46: CPU 28 | R46: EXECUÇÃO DE LAJE DE PISO DE CONCRETO COM CONCRETO MOLDADO IN LOCO, FEITO EM OBRA, ACABAMENTO CONVENCIONAL, ESPESSURA 6 CM, ARMADO | S46: M2 | T46: =OFFSET(CÁLCULO!H$15,ROW($T46)-ROW(T$15),0) -> 4.17 | U46: 76.24 | V46: BDI 1 | W46: =IF($C46="S",ROUND(IF(TIPOORCAMENTO="Proposto",ORÇAMENTO.CustoUnitario*(1+$AH46),ORÇAMENTO.PrecoUnitarioLicitado),15-13*$AF$10),0) -> 93.37 | X46: =IF($C46="S",IF(OR(Import.TipoArredondamento<>"TransfereGOV",ACOMPANHAMENTO="BM"),VTOTAL1,SUM(OFFSET(CÁLCULO!$AA$15,ROW($X46)-ROW($X$15),1):OFFSET(CÁLCULO!$AL$15,ROW($X46)-ROW($X$15),-1))),IF($C46=0,0,ROUND(SomaAgrup,15-13*$AF$11))) -> 389.35 | Y46: RA | Z46: RA | AA46: =IF($C46="S",IF($Z46="CP",$X46,IF($Z46="RA",(($X46)*QCI!$AA$3),0)),SomaAgrup) -> 128.6212969 | AB46: =IF($C46="S",IF($Z46="OU",ROUND($X46,2),0),SomaAgrup) -> 0 | AC46: =IF($N46=""," ", IF(AND($C46<>"S",OR($R46="",$R46="(digite a descrição aqui)")),"DESCRIÇÃO", IF(AND($C46="S",OR($Q46<>"",$T46>0,$U46>0),$P46=""),"FONTE", IF(AND($C46="S",$P46<>"",OR($T46>0,$U46>0),$Q46=""),"CÓDIGO", IF(AND($C46="S",$P46<>"",$Q46<>"",$R46="(Código não identificado nas referências)"),"CÓDIGO N/ID", IF(AND($C46="S",OR($R46="",$R46="(digite a descrição aqui)"),OR($Q46<>"",$T46>0,$U46>0)),"DESCRIÇÃO", IF(AND($C46="S",$P46<>"",$Q46<>"",$S46=""),"UNIDADE", IF(AND($C46="S",$P46<>"",$Q46<>"",$U46=0),"SEM CUSTO", IF(AND(TIPOORCAMENTO="Licitado",$AL46=0,$AN46>0),"SEM PREÇO", IF(AND($C46="S",$P46<>"",$Q46<>"",$U46>0,AND($V46<>"BDI 1",$V46<>"BDI 2",$V46<>"BDI 3")),IF(ISNUMBER($V46),"JUSTIFICAR BDI","BDI"), IF(OR(AND(import.recurso="OGU",TIPOORCAMENTO="Proposto",LEFT($O$8,5)<>"(N/D:",$AG46<>"",ORÇAMENTO.CustoUnitario>$AG46),AND(TIPOORCAMENTO="LICITADO",ORÇAMENTO.PrecoUnitarioLicitado>$AN46)),"ACIMA REF.", IF(AND($C46="S",$P46<>"",$Q46<>"",$T46=0,$U46>0),"QUANT.", IF(AND(Import.TipoArredondamento="TransfereGOV",$L46="F",$C46="S",LEN($Q46)>13),"Código >13", IF(AND(Import.TipoArredondamento="TransfereGOV",$L46="F",$C46<>"S",LEN($R46)>100),"Descrição >100", IF(AND(Import.TipoArredondamento="TransfereGOV",$L46="F",$C46="S",LEN($R46)>500),"Descrição >500", IF(AND(Import.TipoArredondamento="TransfereGOV",$L46="F",$C46="S",LEFT(TRIM(UPPER($P46)),6)<>"SINAPI",ISNA(VLOOKUP(TRIM(UPPER($S46)),ListaTgov.Unidades,1,FALSE))),"Unid. Não Disp", " ")))))))))))))))) ->  | AD46: =IF(C46<=CRONO.NivelExibicao,MAX($AD$15:OFFSET(AD46,-1,0))+IF($C46<>1,1,MAX(1,COUNTIF(QCI!$A$13:$A$24,OFFSET($E46,-1,0)))),"") ->  | AE46: =IF(AND($C46="S",ORÇAMENTO.CodBarra<>""),IF(ORÇAMENTO.Fonte="",ORÇAMENTO.CodBarra,CONCATENATE(ORÇAMENTO.Fonte," ",ORÇAMENTO.CodBarra))) -> Composição CPU 28 | AF46: =IF(ISERROR(ORÇAMENTO.BancoRef),"(abra o arquivo 'Referência "&Excel_BuiltIn_Database&".xlsm)",IF(OR($C46<>"S",ORÇAMENTO.CodBarra=""),"(Sem Código)",IF(ISERROR(MATCH($AE46,INDIRECT(ORÇAMENTO.BancoRef),0)),"(Código não identificado nas referências)",MATCH($AE46,INDIRECT(ORÇAMENTO.BancoRef),0)))) -> 25 | AG46: =ROUND(IF(DESONERACAO="sim",REFERENCIA.Desonerado,REFERENCIA.NaoDesonerado),2) -> 76.24 | AH46: 0.2247 | AJ46: 4.165 | AM46: 389.35 | AN46: =ROUND(ORÇAMENTO.CustoUnitario*(1+$AH46),2) -> 93.37
A47: S | B47: 2 | C47: S | D47: 0 | E47: =IF($C47=1,OFFSET(E47,-1,0)+MAX(1,COUNTIF(QCI!$A$13:$A$24,OFFSET(ORÇAMENTO!E47,-1,0))),OFFSET(E47,-1,0)) -> 1 | F47: 5 | G47: 0 | H47: 0 | I47: 7 | J47: 0 | K47: =IF(OR($C47="S",$C47=0),0,MATCH(OFFSET($D47,0,$C47)+IF($C47<>1,1,COUNTIF(QCI!$A$13:$A$24,ORÇAMENTO!E47)),OFFSET($D47,1,$C47,ROW($C$140)-ROW($C47)),0)) -> 0 | L47: F | M47: Serviço | N47: Serviço | O47: 1.5.7. | P47: SINAPI | Q47: 99837 | R47: GUARDA-CORPO DE AÇO GALVANIZADO DE 1,10M, MONTANTES TUBULARES DE 1.1/4" ESPAÇADOS DE 1,20M, TRAVESSA SUPERIOR DE 1.1/2", GRADIL FORMADO POR TUBOS HORIZONTAIS DE 1" E VERTICAIS DE 3/4", FIXADO COM CHUMBADOR MECÂNICO. AF_04/2019_PS | S47: M | T47: =OFFSET(CÁLCULO!H$15,ROW($T47)-ROW(T$15),0) -> 6.6 | U47: 567.57 | V47: BDI 1 | W47: =IF($C47="S",ROUND(IF(TIPOORCAMENTO="Proposto",ORÇAMENTO.CustoUnitario*(1+$AH47),ORÇAMENTO.PrecoUnitarioLicitado),15-13*$AF$10),0) -> 695.1 | X47: =IF($C47="S",IF(OR(Import.TipoArredondamento<>"TransfereGOV",ACOMPANHAMENTO="BM"),VTOTAL1,SUM(OFFSET(CÁLCULO!$AA$15,ROW($X47)-ROW($X$15),1):OFFSET(CÁLCULO!$AL$15,ROW($X47)-ROW($X$15),-1))),IF($C47=0,0,ROUND(SomaAgrup,15-13*$AF$11))) -> 4587.66 | Y47: RA | Z47: RA | AA47: =IF($C47="S",IF($Z47="CP",$X47,IF($Z47="RA",(($X47)*QCI!$AA$3),0)),SomaAgrup) -> 1515.527877 | AB47: =IF($C47="S",IF($Z47="OU",ROUND($X47,2),0),SomaAgrup) -> 0 | AC47: =IF($N47=""," ", IF(AND($C47<>"S",OR($R47="",$R47="(digite a descrição aqui)")),"DESCRIÇÃO", IF(AND($C47="S",OR($Q47<>"",$T47>0,$U47>0),$P47=""),"FONTE", IF(AND($C47="S",$P47<>"",OR($T47>0,$U47>0),$Q47=""),"CÓDIGO", IF(AND($C47="S",$P47<>"",$Q47<>"",$R47="(Código não identificado nas referências)"),"CÓDIGO N/ID", IF(AND($C47="S",OR($R47="",$R47="(digite a descrição aqui)"),OR($Q47<>"",$T47>0,$U47>0)),"DESCRIÇÃO", IF(AND($C47="S",$P47<>"",$Q47<>"",$S47=""),"UNIDADE", IF(AND($C47="S",$P47<>"",$Q47<>"",$U47=0),"SEM CUSTO", IF(AND(TIPOORCAMENTO="Licitado",$AL47=0,$AN47>0),"SEM PREÇO", IF(AND($C47="S",$P47<>"",$Q47<>"",$U47>0,AND($V47<>"BDI 1",$V47<>"BDI 2",$V47<>"BDI 3")),IF(ISNUMBER($V47),"JUSTIFICAR BDI","BDI"), IF(OR(AND(import.recurso="OGU",TIPOORCAMENTO="Proposto",LEFT($O$8,5)<>"(N/D:",$AG47<>"",ORÇAMENTO.CustoUnitario>$AG47),AND(TIPOORCAMENTO="LICITADO",ORÇAMENTO.PrecoUnitarioLicitado>$AN47)),"ACIMA REF.", IF(AND($C47="S",$P47<>"",$Q47<>"",$T47=0,$U47>0),"QUANT.", IF(AND(Import.TipoArredondamento="TransfereGOV",$L47="F",$C47="S",LEN($Q47)>13),"Código >13", IF(AND(Import.TipoArredondamento="TransfereGOV",$L47="F",$C47<>"S",LEN($R47)>100),"Descrição >100", IF(AND(Import.TipoArredondamento="TransfereGOV",$L47="F",$C47="S",LEN($R47)>500),"Descrição >500", IF(AND(Import.TipoArredondamento="TransfereGOV",$L47="F",$C47="S",LEFT(TRIM(UPPER($P47)),6)<>"SINAPI",ISNA(VLOOKUP(TRIM(UPPER($S47)),ListaTgov.Unidades,1,FALSE))),"Unid. Não Disp", " ")))))))))))))))) ->  | AD47: =IF(C47<=CRONO.NivelExibicao,MAX($AD$15:OFFSET(AD47,-1,0))+IF($C47<>1,1,MAX(1,COUNTIF(QCI!$A$13:$A$24,OFFSET($E47,-1,0)))),"") ->  | AE47: =IF(AND($C47="S",ORÇAMENTO.CodBarra<>""),IF(ORÇAMENTO.Fonte="",ORÇAMENTO.CodBarra,CONCATENATE(ORÇAMENTO.Fonte," ",ORÇAMENTO.CodBarra))) -> SINAPI 99837 | AF47: =IF(ISERROR(ORÇAMENTO.BancoRef),"(abra o arquivo 'Referência "&Excel_BuiltIn_Database&".xlsm)",IF(OR($C47<>"S",ORÇAMENTO.CodBarra=""),"(Sem Código)",IF(ISERROR(MATCH($AE47,INDIRECT(ORÇAMENTO.BancoRef),0)),"(Código não identificado nas referências)",MATCH($AE47,INDIRECT(ORÇAMENTO.BancoRef),0)))) -> 10262 | AG47: =ROUND(IF(DESONERACAO="sim",REFERENCIA.Desonerado,REFERENCIA.NaoDesonerado),2) -> 567.57 | AH47: 0.2247 | AJ47: 6.6 | AM47: 4587.66 | AN47: =ROUND(ORÇAMENTO.CustoUnitario*(1+$AH47),2) -> 695.1
A48: =CHOOSE(1+LOG(1+2*(ORÇAMENTO.Nivel="Meta")+4*(ORÇAMENTO.Nivel="Nível 2")+8*(ORÇAMENTO.Nivel="Nível 3")+16*(ORÇAMENTO.Nivel="Nível 4")+32*(ORÇAMENTO.Nivel="Serviço"),2),0,1,2,3,4,"S") -> S | B48: 2 | C48: S | D48: 0 | E48: =IF($C48=1,OFFSET(E48,-1,0)+MAX(1,COUNTIF(QCI!$A$13:$A$24,OFFSET(ORÇAMENTO!E48,-1,0))),OFFSET(E48,-1,0)) -> 1 | F48: 5 | G48: 0 | H48: 0 | I48: 8 | J48: 0 | K48: =IF(OR($C48="S",$C48=0),0,MATCH(OFFSET($D48,0,$C48)+IF($C48<>1,1,COUNTIF(QCI!$A$13:$A$24,ORÇAMENTO!E48)),OFFSET($D48,1,$C48,ROW($C$140)-ROW($C48)),0)) -> 0 | L48: F | M48: Serviço | N48: Serviço | O48: 1.5.8. | P48: Composição | Q48: CPU 32 | R48: PINTURA E DEMARCACAO NO PISO PARA SINALIZAR VAGA, USO INTERNO OU EXTERNO, COM O SIMBOLO "CADEIRANTE", NA MEDIDA DE (0,90 X 1,20)M | S48: UN | T48: =OFFSET(CÁLCULO!H$15,ROW($T48)-ROW(T$15),0) -> 5 | U48: 91.31 | V48: BDI 1 | W48: =IF($C48="S",ROUND(IF(TIPOORCAMENTO="Proposto",ORÇAMENTO.CustoUnitario*(1+$AH48),ORÇAMENTO.PrecoUnitarioLicitado),15-13*$AF$10),0) -> 111.83 | X48: =IF($C48="S",IF(OR(Import.TipoArredondamento<>"TransfereGOV",ACOMPANHAMENTO="BM"),VTOTAL1,SUM(OFFSET(CÁLCULO!$AA$15,ROW($X48)-ROW($X$15),1):OFFSET(CÁLCULO!$AL$15,ROW($X48)-ROW($X$15),-1))),IF($C48=0,0,ROUND(SomaAgrup,15-13*$AF$11))) -> 559.15 | Y48: RA | Z48: RA | AA48: =IF($C48="S",IF($Z48="CP",$X48,IF($Z48="RA",(($X48)*QCI!$AA$3),0)),SomaAgrup) -> 184.7145195 | AB48: =IF($C48="S",IF($Z48="OU",ROUND($X48,2),0),SomaAgrup) -> 0 | AC48: =IF($N48=""," ", IF(AND($C48<>"S",OR($R48="",$R48="(digite a descrição aqui)")),"DESCRIÇÃO", IF(AND($C48="S",OR($Q48<>"",$T48>0,$U48>0),$P48=""),"FONTE", IF(AND($C48="S",$P48<>"",OR($T48>0,$U48>0),$Q48=""),"CÓDIGO", IF(AND($C48="S",$P48<>"",$Q48<>"",$R48="(Código não identificado nas referências)"),"CÓDIGO N/ID", IF(AND($C48="S",OR($R48="",$R48="(digite a descrição aqui)"),OR($Q48<>"",$T48>0,$U48>0)),"DESCRIÇÃO", IF(AND($C48="S",$P48<>"",$Q48<>"",$S48=""),"UNIDADE", IF(AND($C48="S",$P48<>"",$Q48<>"",$U48=0),"SEM CUSTO", IF(AND(TIPOORCAMENTO="Licitado",$AL48=0,$AN48>0),"SEM PREÇO", IF(AND($C48="S",$P48<>"",$Q48<>"",$U48>0,AND($V48<>"BDI 1",$V48<>"BDI 2",$V48<>"BDI 3")),IF(ISNUMBER($V48),"JUSTIFICAR BDI","BDI"), IF(OR(AND(import.recurso="OGU",TIPOORCAMENTO="Proposto",LEFT($O$8,5)<>"(N/D:",$AG48<>"",ORÇAMENTO.CustoUnitario>$AG48),AND(TIPOORCAMENTO="LICITADO",ORÇAMENTO.PrecoUnitarioLicitado>$AN48)),"ACIMA REF.", IF(AND($C48="S",$P48<>"",$Q48<>"",$T48=0,$U48>0),"QUANT.", IF(AND(Import.TipoArredondamento="TransfereGOV",$L48="F",$C48="S",LEN($Q48)>13),"Código >13", IF(AND(Import.TipoArredondamento="TransfereGOV",$L48="F",$C48<>"S",LEN($R48)>100),"Descrição >100", IF(AND(Import.TipoArredondamento="TransfereGOV",$L48="F",$C48="S",LEN($R48)>500),"Descrição >500", IF(AND(Import.TipoArredondamento="TransfereGOV",$L48="F",$C48="S",LEFT(TRIM(UPPER($P48)),6)<>"SINAPI",ISNA(VLOOKUP(TRIM(UPPER($S48)),ListaTgov.Unidades,1,FALSE))),"Unid. Não Disp", " ")))))))))))))))) ->  | AD48: =IF(C48<=CRONO.NivelExibicao,MAX($AD$15:OFFSET(AD48,-1,0))+IF($C48<>1,1,MAX(1,COUNTIF(QCI!$A$13:$A$24,OFFSET($E48,-1,0)))),"") ->  | AE48: =IF(AND($C48="S",ORÇAMENTO.CodBarra<>""),IF(ORÇAMENTO.Fonte="",ORÇAMENTO.CodBarra,CONCATENATE(ORÇAMENTO.Fonte," ",ORÇAMENTO.CodBarra))) -> Composição CPU 32 | AF48: =IF(ISERROR(ORÇAMENTO.BancoRef),"(abra o arquivo 'Referência "&Excel_BuiltIn_Database&".xlsm)",IF(OR($C48<>"S",ORÇAMENTO.CodBarra=""),"(Sem Código)",IF(ISERROR(MATCH($AE48,INDIRECT(ORÇAMENTO.BancoRef),0)),"(Código não identificado nas referências)",MATCH($AE48,INDIRECT(ORÇAMENTO.BancoRef),0)))) -> 29 | AG48: =ROUND(IF(DESONERACAO="sim",REFERENCIA.Desonerado,REFERENCIA.NaoDesonerado),2) -> 91.31 | AH48: =ROUND(IF(ISNUMBER(ORÇAMENTO.OpcaoBDI),ORÇAMENTO.OpcaoBDI,IF(LEFT(ORÇAMENTO.OpcaoBDI,3)="BDI",HLOOKUP(ORÇAMENTO.OpcaoBDI,$F$4:$H$5,2,FALSE),0)),15-11*$AF$9) -> 0.2247 | AJ48: 5 | AM48: 559.15 | AN48: =ROUND(ORÇAMENTO.CustoUnitario*(1+$AH48),2) -> 111.83
A49: 2 | B49: 2 | C49: 2 | D49: 6 | E49: =IF($C49=1,OFFSET(E49,-1,0)+MAX(1,COUNTIF(QCI!$A$13:$A$24,OFFSET(ORÇAMENTO!E49,-1,0))),OFFSET(E49,-1,0)) -> 1 | F49: 6 | G49: 0 | H49: 0 | I49: 0 | J49: 91 | K49: =IF(OR($C49="S",$C49=0),0,MATCH(OFFSET($D49,0,$C49)+IF($C49<>1,1,COUNTIF(QCI!$A$13:$A$24,ORÇAMENTO!E49)),OFFSET($D49,1,$C49,ROW($C$140)-ROW($C49)),0)) -> 6 | L49: F | M49: Nível 2 | N49: Nível 2 | O49: 1.6. | P49: SINAPI | R49: REFORMA DAS CABINES | S49: - | T49: =OFFSET(CÁLCULO!H$15,ROW($T49)-ROW(T$15),0) -> 0 | U49: 0 | V49: BDI 1 | W49: =IF($C49="S",ROUND(IF(TIPOORCAMENTO="Proposto",ORÇAMENTO.CustoUnitario*(1+$AH49),ORÇAMENTO.PrecoUnitarioLicitado),15-13*$AF$10),0) -> 0 | X49: =IF($C49="S",IF(OR(Import.TipoArredondamento<>"TransfereGOV",ACOMPANHAMENTO="BM"),VTOTAL1,SUM(OFFSET(CÁLCULO!$AA$15,ROW($X49)-ROW($X$15),1):OFFSET(CÁLCULO!$AL$15,ROW($X49)-ROW($X$15),-1))),IF($C49=0,0,ROUND(SomaAgrup,15-13*$AF$11))) -> 11137.51 | Y49: RA | AA49: =IF($C49="S",IF($Z49="CP",$X49,IF($Z49="RA",(($X49)*QCI!$AA$3),0)),SomaAgrup) -> 3679.262824 | AB49: =IF($C49="S",IF($Z49="OU",ROUND($X49,2),0),SomaAgrup) -> 0 | AC49: =IF($N49=""," ", IF(AND($C49<>"S",OR($R49="",$R49="(digite a descrição aqui)")),"DESCRIÇÃO", IF(AND($C49="S",OR($Q49<>"",$T49>0,$U49>0),$P49=""),"FONTE", IF(AND($C49="S",$P49<>"",OR($T49>0,$U49>0),$Q49=""),"CÓDIGO", IF(AND($C49="S",$P49<>"",$Q49<>"",$R49="(Código não identificado nas referências)"),"CÓDIGO N/ID", IF(AND($C49="S",OR($R49="",$R49="(digite a descrição aqui)"),OR($Q49<>"",$T49>0,$U49>0)),"DESCRIÇÃO", IF(AND($C49="S",$P49<>"",$Q49<>"",$S49=""),"UNIDADE", IF(AND($C49="S",$P49<>"",$Q49<>"",$U49=0),"SEM CUSTO", IF(AND(TIPOORCAMENTO="Licitado",$AL49=0,$AN49>0),"SEM PREÇO", IF(AND($C49="S",$P49<>"",$Q49<>"",$U49>0,AND($V49<>"BDI 1",$V49<>"BDI 2",$V49<>"BDI 3")),IF(ISNUMBER($V49),"JUSTIFICAR BDI","BDI"), IF(OR(AND(import.recurso="OGU",TIPOORCAMENTO="Proposto",LEFT($O$8,5)<>"(N/D:",$AG49<>"",ORÇAMENTO.CustoUnitario>$AG49),AND(TIPOORCAMENTO="LICITADO",ORÇAMENTO.PrecoUnitarioLicitado>$AN49)),"ACIMA REF.", IF(AND($C49="S",$P49<>"",$Q49<>"",$T49=0,$U49>0),"QUANT.", IF(AND(Import.TipoArredondamento="TransfereGOV",$L49="F",$C49="S",LEN($Q49)>13),"Código >13", IF(AND(Import.TipoArredondamento="TransfereGOV",$L49="F",$C49<>"S",LEN($R49)>100),"Descrição >100", IF(AND(Import.TipoArredondamento="TransfereGOV",$L49="F",$C49="S",LEN($R49)>500),"Descrição >500", IF(AND(Import.TipoArredondamento="TransfereGOV",$L49="F",$C49="S",LEFT(TRIM(UPPER($P49)),6)<>"SINAPI",ISNA(VLOOKUP(TRIM(UPPER($S49)),ListaTgov.Unidades,1,FALSE))),"Unid. Não Disp", " ")))))))))))))))) ->  | AD49: =IF(C49<=CRONO.NivelExibicao,MAX($AD$15:OFFSET(AD49,-1,0))+IF($C49<>1,1,MAX(1,COUNTIF(QCI!$A$13:$A$24,OFFSET($E49,-1,0)))),"") -> 7 | AE49: =IF(AND($C49="S",ORÇAMENTO.CodBarra<>""),IF(ORÇAMENTO.Fonte="",ORÇAMENTO.CodBarra,CONCATENATE(ORÇAMENTO.Fonte," ",ORÇAMENTO.CodBarra))) -> FALSE | AF49: =IF(ISERROR(ORÇAMENTO.BancoRef),"(abra o arquivo 'Referência "&Excel_BuiltIn_Database&".xlsm)",IF(OR($C49<>"S",ORÇAMENTO.CodBarra=""),"(Sem Código)",IF(ISERROR(MATCH($AE49,INDIRECT(ORÇAMENTO.BancoRef),0)),"(Código não identificado nas referências)",MATCH($AE49,INDIRECT(ORÇAMENTO.BancoRef),0)))) -> (Sem Código) | AG49: =ROUND(IF(DESONERACAO="sim",REFERENCIA.Desonerado,REFERENCIA.NaoDesonerado),2) -> 0 | AH49: 0.2247 | AJ49: 0 | AM49: 11137.51 | AN49: =ROUND(ORÇAMENTO.CustoUnitario*(1+$AH49),2) -> 0
A50: S | B50: 2 | C50: S | D50: 0 | E50: =IF($C50=1,OFFSET(E50,-1,0)+MAX(1,COUNTIF(QCI!$A$13:$A$24,OFFSET(ORÇAMENTO!E50,-1,0))),OFFSET(E50,-1,0)) -> 1 | F50: 6 | G50: 0 | H50: 0 | I50: 1 | J50: 0 | K50: =IF(OR($C50="S",$C50=0),0,MATCH(OFFSET($D50,0,$C50)+IF($C50<>1,1,COUNTIF(QCI!$A$13:$A$24,ORÇAMENTO!E50)),OFFSET($D50,1,$C50,ROW($C$140)-ROW($C50)),0)) -> 0 | L50: F | M50: Serviço | N50: Serviço | O50: 1.6.1. | P50: SINAPI | Q50: 96110 | R50: FORRO EM DRYWALL PARA AMBIENTES RESIDENCIAIS, INCLUSIVE ESTRUTURA UNIDIRECIONAL DE FIXAÇÃO. AF_08/2023_PS | S50: M2 | T50: =OFFSET(CÁLCULO!H$15,ROW($T50)-ROW(T$15),0) -> 12.47 | U50: 76.68 | V50: BDI 1 | W50: =IF($C50="S",ROUND(IF(TIPOORCAMENTO="Proposto",ORÇAMENTO.CustoUnitario*(1+$AH50),ORÇAMENTO.PrecoUnitarioLicitado),15-13*$AF$10),0) -> 93.91 | X50: =IF($C50="S",IF(OR(Import.TipoArredondamento<>"TransfereGOV",ACOMPANHAMENTO="BM"),VTOTAL1,SUM(OFFSET(CÁLCULO!$AA$15,ROW($X50)-ROW($X$15),1):OFFSET(CÁLCULO!$AL$15,ROW($X50)-ROW($X$15),-1))),IF($C50=0,0,ROUND(SomaAgrup,15-13*$AF$11))) -> 1171.06 | Y50: RA | Z50: RA | AA50: =IF($C50="S",IF($Z50="CP",$X50,IF($Z50="RA",(($X50)*QCI!$AA$3),0)),SomaAgrup) -> 386.8582405 | AB50: =IF($C50="S",IF($Z50="OU",ROUND($X50,2),0),SomaAgrup) -> 0 | AC50: =IF($N50=""," ", IF(AND($C50<>"S",OR($R50="",$R50="(digite a descrição aqui)")),"DESCRIÇÃO", IF(AND($C50="S",OR($Q50<>"",$T50>0,$U50>0),$P50=""),"FONTE", IF(AND($C50="S",$P50<>"",OR($T50>0,$U50>0),$Q50=""),"CÓDIGO", IF(AND($C50="S",$P50<>"",$Q50<>"",$R50="(Código não identificado nas referências)"),"CÓDIGO N/ID", IF(AND($C50="S",OR($R50="",$R50="(digite a descrição aqui)"),OR($Q50<>"",$T50>0,$U50>0)),"DESCRIÇÃO", IF(AND($C50="S",$P50<>"",$Q50<>"",$S50=""),"UNIDADE", IF(AND($C50="S",$P50<>"",$Q50<>"",$U50=0),"SEM CUSTO", IF(AND(TIPOORCAMENTO="Licitado",$AL50=0,$AN50>0),"SEM PREÇO", IF(AND($C50="S",$P50<>"",$Q50<>"",$U50>0,AND($V50<>"BDI 1",$V50<>"BDI 2",$V50<>"BDI 3")),IF(ISNUMBER($V50),"JUSTIFICAR BDI","BDI"), IF(OR(AND(import.recurso="OGU",TIPOORCAMENTO="Proposto",LEFT($O$8,5)<>"(N/D:",$AG50<>"",ORÇAMENTO.CustoUnitario>$AG50),AND(TIPOORCAMENTO="LICITADO",ORÇAMENTO.PrecoUnitarioLicitado>$AN50)),"ACIMA REF.", IF(AND($C50="S",$P50<>"",$Q50<>"",$T50=0,$U50>0),"QUANT.", IF(AND(Import.TipoArredondamento="TransfereGOV",$L50="F",$C50="S",LEN($Q50)>13),"Código >13", IF(AND(Import.TipoArredondamento="TransfereGOV",$L50="F",$C50<>"S",LEN($R50)>100),"Descrição >100", IF(AND(Import.TipoArredondamento="TransfereGOV",$L50="F",$C50="S",LEN($R50)>500),"Descrição >500", IF(AND(Import.TipoArredondamento="TransfereGOV",$L50="F",$C50="S",LEFT(TRIM(UPPER($P50)),6)<>"SINAPI",ISNA(VLOOKUP(TRIM(UPPER($S50)),ListaTgov.Unidades,1,FALSE))),"Unid. Não Disp", " ")))))))))))))))) ->  | AD50: =IF(C50<=CRONO.NivelExibicao,MAX($AD$15:OFFSET(AD50,-1,0))+IF($C50<>1,1,MAX(1,COUNTIF(QCI!$A$13:$A$24,OFFSET($E50,-1,0)))),"") ->  | AE50: =IF(AND($C50="S",ORÇAMENTO.CodBarra<>""),IF(ORÇAMENTO.Fonte="",ORÇAMENTO.CodBarra,CONCATENATE(ORÇAMENTO.Fonte," ",ORÇAMENTO.CodBarra))) -> SINAPI 96110 | AF50: =IF(ISERROR(ORÇAMENTO.BancoRef),"(abra o arquivo 'Referência "&Excel_BuiltIn_Database&".xlsm)",IF(OR($C50<>"S",ORÇAMENTO.CodBarra=""),"(Sem Código)",IF(ISERROR(MATCH($AE50,INDIRECT(ORÇAMENTO.BancoRef),0)),"(Código não identificado nas referências)",MATCH($AE50,INDIRECT(ORÇAMENTO.BancoRef),0)))) -> 9935 | AG50: =ROUND(IF(DESONERACAO="sim",REFERENCIA.Desonerado,REFERENCIA.NaoDesonerado),2) -> 76.68 | AH50: 0.2247 | AJ50: 12.465 | AM50: 1171.06 | AN50: =ROUND(ORÇAMENTO.CustoUnitario*(1+$AH50),2) -> 93.91
A51: S | B51: 2 | C51: S | D51: 0 | E51: =IF($C51=1,OFFSET(E51,-1,0)+MAX(1,COUNTIF(QCI!$A$13:$A$24,OFFSET(ORÇAMENTO!E51,-1,0))),OFFSET(E51,-1,0)) -> 1 | F51: 6 | G51: 0 | H51: 0 | I51: 2 | J51: 0 | K51: =IF(OR($C51="S",$C51=0),0,MATCH(OFFSET($D51,0,$C51)+IF($C51<>1,1,COUNTIF(QCI!$A$13:$A$24,ORÇAMENTO!E51)),OFFSET($D51,1,$C51,ROW($C$140)-ROW($C51)),0)) -> 0 | L51: F | M51: Serviço | N51: Serviço | O51: 1.6.2. | P51: Composição | Q51: CPU 29 | R51: GUARDA CORPO EM TUBO IND. 2.1/2", 2 CORRIMAOS (H=0,70M E 0,92M) EM TUBO IND. 1.1/2" CH.18, FECHAMENTO EM TUBO IND.1" CH.18 A CADA 15CM E PILARETES EM TUBO IND. 2.1/2"CH 18 - REF AGESUL - 1101002049 | S51: M2 | T51: =OFFSET(CÁLCULO!H$15,ROW($T51)-ROW(T$15),0) -> 4.62 | U51: 690.61 | V51: BDI 1 | W51: =IF($C51="S",ROUND(IF(TIPOORCAMENTO="Proposto",ORÇAMENTO.CustoUnitario*(1+$AH51),ORÇAMENTO.PrecoUnitarioLicitado),15-13*$AF$10),0) -> 845.79 | X51: =IF($C51="S",IF(OR(Import.TipoArredondamento<>"TransfereGOV",ACOMPANHAMENTO="BM"),VTOTAL1,SUM(OFFSET(CÁLCULO!$AA$15,ROW($X51)-ROW($X$15),1):OFFSET(CÁLCULO!$AL$15,ROW($X51)-ROW($X$15),-1))),IF($C51=0,0,ROUND(SomaAgrup,15-13*$AF$11))) -> 3907.55 | Y51: RA | Z51: RA | AA51: =IF($C51="S",IF($Z51="CP",$X51,IF($Z51="RA",(($X51)*QCI!$AA$3),0)),SomaAgrup) -> 1290.854369 | AB51: =IF($C51="S",IF($Z51="OU",ROUND($X51,2),0),SomaAgrup) -> 0 | AC51: =IF($N51=""," ", IF(AND($C51<>"S",OR($R51="",$R51="(digite a descrição aqui)")),"DESCRIÇÃO", IF(AND($C51="S",OR($Q51<>"",$T51>0,$U51>0),$P51=""),"FONTE", IF(AND($C51="S",$P51<>"",OR($T51>0,$U51>0),$Q51=""),"CÓDIGO", IF(AND($C51="S",$P51<>"",$Q51<>"",$R51="(Código não identificado nas referências)"),"CÓDIGO N/ID", IF(AND($C51="S",OR($R51="",$R51="(digite a descrição aqui)"),OR($Q51<>"",$T51>0,$U51>0)),"DESCRIÇÃO", IF(AND($C51="S",$P51<>"",$Q51<>"",$S51=""),"UNIDADE", IF(AND($C51="S",$P51<>"",$Q51<>"",$U51=0),"SEM CUSTO", IF(AND(TIPOORCAMENTO="Licitado",$AL51=0,$AN51>0),"SEM PREÇO", IF(AND($C51="S",$P51<>"",$Q51<>"",$U51>0,AND($V51<>"BDI 1",$V51<>"BDI 2",$V51<>"BDI 3")),IF(ISNUMBER($V51),"JUSTIFICAR BDI","BDI"), IF(OR(AND(import.recurso="OGU",TIPOORCAMENTO="Proposto",LEFT($O$8,5)<>"(N/D:",$AG51<>"",ORÇAMENTO.CustoUnitario>$AG51),AND(TIPOORCAMENTO="LICITADO",ORÇAMENTO.PrecoUnitarioLicitado>$AN51)),"ACIMA REF.", IF(AND($C51="S",$P51<>"",$Q51<>"",$T51=0,$U51>0),"QUANT.", IF(AND(Import.TipoArredondamento="TransfereGOV",$L51="F",$C51="S",LEN($Q51)>13),"Código >13", IF(AND(Import.TipoArredondamento="TransfereGOV",$L51="F",$C51<>"S",LEN($R51)>100),"Descrição >100", IF(AND(Import.TipoArredondamento="TransfereGOV",$L51="F",$C51="S",LEN($R51)>500),"Descrição >500", IF(AND(Import.TipoArredondamento="TransfereGOV",$L51="F",$C51="S",LEFT(TRIM(UPPER($P51)),6)<>"SINAPI",ISNA(VLOOKUP(TRIM(UPPER($S51)),ListaTgov.Unidades,1,FALSE))),"Unid. Não Disp", " ")))))))))))))))) ->  | AD51: =IF(C51<=CRONO.NivelExibicao,MAX($AD$15:OFFSET(AD51,-1,0))+IF($C51<>1,1,MAX(1,COUNTIF(QCI!$A$13:$A$24,OFFSET($E51,-1,0)))),"") ->  | AE51: =IF(AND($C51="S",ORÇAMENTO.CodBarra<>""),IF(ORÇAMENTO.Fonte="",ORÇAMENTO.CodBarra,CONCATENATE(ORÇAMENTO.Fonte," ",ORÇAMENTO.CodBarra))) -> Composição CPU 29 | AF51: =IF(ISERROR(ORÇAMENTO.BancoRef),"(abra o arquivo 'Referência "&Excel_BuiltIn_Database&".xlsm)",IF(OR($C51<>"S",ORÇAMENTO.CodBarra=""),"(Sem Código)",IF(ISERROR(MATCH($AE51,INDIRECT(ORÇAMENTO.BancoRef),0)),"(Código não identificado nas referências)",MATCH($AE51,INDIRECT(ORÇAMENTO.BancoRef),0)))) -> 26 | AG51: =ROUND(IF(DESONERACAO="sim",REFERENCIA.Desonerado,REFERENCIA.NaoDesonerado),2) -> 690.61 | AH51: 0.2247 | AJ51: 4.62 | AM51: 3907.55 | AN51: =ROUND(ORÇAMENTO.CustoUnitario*(1+$AH51),2) -> 845.79
A52: S | B52: 2 | C52: S | D52: 0 | E52: =IF($C52=1,OFFSET(E52,-1,0)+MAX(1,COUNTIF(QCI!$A$13:$A$24,OFFSET(ORÇAMENTO!E52,-1,0))),OFFSET(E52,-1,0)) -> 1 | F52: 6 | G52: 0 | H52: 0 | I52: 3 | J52: 0 | K52: =IF(OR($C52="S",$C52=0),0,MATCH(OFFSET($D52,0,$C52)+IF($C52<>1,1,COUNTIF(QCI!$A$13:$A$24,ORÇAMENTO!E52)),OFFSET($D52,1,$C52,ROW($C$140)-ROW($C52)),0)) -> 0 | L52: F | M52: Serviço | N52: Serviço | O52: 1.6.3. | P52: SINAPI | Q52: 99837 | R52: GUARDA-CORPO DE AÇO GALVANIZADO DE 1,10M, MONTANTES TUBULARES DE 1.1/4" ESPAÇADOS DE 1,20M, TRAVESSA SUPERIOR DE 1.1/2", GRADIL FORMADO POR TUBOS HORIZONTAIS DE 1" E VERTICAIS DE 3/4", FIXADO COM CHUMBADOR MECÂNICO. AF_04/2019_PS | S52: M | T52: =OFFSET(CÁLCULO!H$15,ROW($T52)-ROW(T$15),0) -> 6.1 | U52: 567.57 | V52: BDI 1 | W52: =IF($C52="S",ROUND(IF(TIPOORCAMENTO="Proposto",ORÇAMENTO.CustoUnitario*(1+$AH52),ORÇAMENTO.PrecoUnitarioLicitado),15-13*$AF$10),0) -> 695.1 | X52: =IF($C52="S",IF(OR(Import.TipoArredondamento<>"TransfereGOV",ACOMPANHAMENTO="BM"),VTOTAL1,SUM(OFFSET(CÁLCULO!$AA$15,ROW($X52)-ROW($X$15),1):OFFSET(CÁLCULO!$AL$15,ROW($X52)-ROW($X$15),-1))),IF($C52=0,0,ROUND(SomaAgrup,15-13*$AF$11))) -> 4240.11 | Y52: RA | Z52: RA | AA52: =IF($C52="S",IF($Z52="CP",$X52,IF($Z52="RA",(($X52)*QCI!$AA$3),0)),SomaAgrup) -> 1400.715159 | AB52: =IF($C52="S",IF($Z52="OU",ROUND($X52,2),0),SomaAgrup) -> 0 | AC52: =IF($N52=""," ", IF(AND($C52<>"S",OR($R52="",$R52="(digite a descrição aqui)")),"DESCRIÇÃO", IF(AND($C52="S",OR($Q52<>"",$T52>0,$U52>0),$P52=""),"FONTE", IF(AND($C52="S",$P52<>"",OR($T52>0,$U52>0),$Q52=""),"CÓDIGO", IF(AND($C52="S",$P52<>"",$Q52<>"",$R52="(Código não identificado nas referências)"),"CÓDIGO N/ID", IF(AND($C52="S",OR($R52="",$R52="(digite a descrição aqui)"),OR($Q52<>"",$T52>0,$U52>0)),"DESCRIÇÃO", IF(AND($C52="S",$P52<>"",$Q52<>"",$S52=""),"UNIDADE", IF(AND($C52="S",$P52<>"",$Q52<>"",$U52=0),"SEM CUSTO", IF(AND(TIPOORCAMENTO="Licitado",$AL52=0,$AN52>0),"SEM PREÇO", IF(AND($C52="S",$P52<>"",$Q52<>"",$U52>0,AND($V52<>"BDI 1",$V52<>"BDI 2",$V52<>"BDI 3")),IF(ISNUMBER($V52),"JUSTIFICAR BDI","BDI"), IF(OR(AND(import.recurso="OGU",TIPOORCAMENTO="Proposto",LEFT($O$8,5)<>"(N/D:",$AG52<>"",ORÇAMENTO.CustoUnitario>$AG52),AND(TIPOORCAMENTO="LICITADO",ORÇAMENTO.PrecoUnitarioLicitado>$AN52)),"ACIMA REF.", IF(AND($C52="S",$P52<>"",$Q52<>"",$T52=0,$U52>0),"QUANT.", IF(AND(Import.TipoArredondamento="TransfereGOV",$L52="F",$C52="S",LEN($Q52)>13),"Código >13", IF(AND(Import.TipoArredondamento="TransfereGOV",$L52="F",$C52<>"S",LEN($R52)>100),"Descrição >100", IF(AND(Import.TipoArredondamento="TransfereGOV",$L52="F",$C52="S",LEN($R52)>500),"Descrição >500", IF(AND(Import.TipoArredondamento="TransfereGOV",$L52="F",$C52="S",LEFT(TRIM(UPPER($P52)),6)<>"SINAPI",ISNA(VLOOKUP(TRIM(UPPER($S52)),ListaTgov.Unidades,1,FALSE))),"Unid. Não Disp", " ")))))))))))))))) ->  | AD52: =IF(C52<=CRONO.NivelExibicao,MAX($AD$15:OFFSET(AD52,-1,0))+IF($C52<>1,1,MAX(1,COUNTIF(QCI!$A$13:$A$24,OFFSET($E52,-1,0)))),"") ->  | AE52: =IF(AND($C52="S",ORÇAMENTO.CodBarra<>""),IF(ORÇAMENTO.Fonte="",ORÇAMENTO.CodBarra,CONCATENATE(ORÇAMENTO.Fonte," ",ORÇAMENTO.CodBarra))) -> SINAPI 99837 | AF52: =IF(ISERROR(ORÇAMENTO.BancoRef),"(abra o arquivo 'Referência "&Excel_BuiltIn_Database&".xlsm)",IF(OR($C52<>"S",ORÇAMENTO.CodBarra=""),"(Sem Código)",IF(ISERROR(MATCH($AE52,INDIRECT(ORÇAMENTO.BancoRef),0)),"(Código não identificado nas referências)",MATCH($AE52,INDIRECT(ORÇAMENTO.BancoRef),0)))) -> 10262 | AG52: =ROUND(IF(DESONERACAO="sim",REFERENCIA.Desonerado,REFERENCIA.NaoDesonerado),2) -> 567.57 | AH52: 0.2247 | AJ52: 6.1 | AM52: 4240.11 | AN52: =ROUND(ORÇAMENTO.CustoUnitario*(1+$AH52),2) -> 695.1
A53: S | B53: 2 | C53: S | D53: 0 | E53: =IF($C53=1,OFFSET(E53,-1,0)+MAX(1,COUNTIF(QCI!$A$13:$A$24,OFFSET(ORÇAMENTO!E53,-1,0))),OFFSET(E53,-1,0)) -> 1 | F53: 6 | G53: 0 | H53: 0 | I53: 4 | J53: 0 | K53: =IF(OR($C53="S",$C53=0),0,MATCH(OFFSET($D53,0,$C53)+IF($C53<>1,1,COUNTIF(QCI!$A$13:$A$24,ORÇAMENTO!E53)),OFFSET($D53,1,$C53,ROW($C$140)-ROW($C53)),0)) -> 0 | L53: F | M53: Serviço | N53: Serviço | O53: 1.6.4. | P53: SINAPI | Q53: 100701 | R53: PORTA DE FERRO, DE ABRIR, TIPO GRADE COM CHAPA, COM GUARNIÇÕES. AF_12/2019 | S53: M2 | T53: =OFFSET(CÁLCULO!H$15,ROW($T53)-ROW(T$15),0) -> 1.89 | U53: 548.14 | V53: BDI 1 | W53: =IF($C53="S",ROUND(IF(TIPOORCAMENTO="Proposto",ORÇAMENTO.CustoUnitario*(1+$AH53),ORÇAMENTO.PrecoUnitarioLicitado),15-13*$AF$10),0) -> 671.31 | X53: =IF($C53="S",IF(OR(Import.TipoArredondamento<>"TransfereGOV",ACOMPANHAMENTO="BM"),VTOTAL1,SUM(OFFSET(CÁLCULO!$AA$15,ROW($X53)-ROW($X$15),1):OFFSET(CÁLCULO!$AL$15,ROW($X53)-ROW($X$15),-1))),IF($C53=0,0,ROUND(SomaAgrup,15-13*$AF$11))) -> 1268.78 | Y53: RA | Z53: RA | AA53: =IF($C53="S",IF($Z53="CP",$X53,IF($Z53="RA",(($X53)*QCI!$AA$3),0)),SomaAgrup) -> 419.1399232 | AB53: =IF($C53="S",IF($Z53="OU",ROUND($X53,2),0),SomaAgrup) -> 0 | AC53: =IF($N53=""," ", IF(AND($C53<>"S",OR($R53="",$R53="(digite a descrição aqui)")),"DESCRIÇÃO", IF(AND($C53="S",OR($Q53<>"",$T53>0,$U53>0),$P53=""),"FONTE", IF(AND($C53="S",$P53<>"",OR($T53>0,$U53>0),$Q53=""),"CÓDIGO", IF(AND($C53="S",$P53<>"",$Q53<>"",$R53="(Código não identificado nas referências)"),"CÓDIGO N/ID", IF(AND($C53="S",OR($R53="",$R53="(digite a descrição aqui)"),OR($Q53<>"",$T53>0,$U53>0)),"DESCRIÇÃO", IF(AND($C53="S",$P53<>"",$Q53<>"",$S53=""),"UNIDADE", IF(AND($C53="S",$P53<>"",$Q53<>"",$U53=0),"SEM CUSTO", IF(AND(TIPOORCAMENTO="Licitado",$AL53=0,$AN53>0),"SEM PREÇO", IF(AND($C53="S",$P53<>"",$Q53<>"",$U53>0,AND($V53<>"BDI 1",$V53<>"BDI 2",$V53<>"BDI 3")),IF(ISNUMBER($V53),"JUSTIFICAR BDI","BDI"), IF(OR(AND(import.recurso="OGU",TIPOORCAMENTO="Proposto",LEFT($O$8,5)<>"(N/D:",$AG53<>"",ORÇAMENTO.CustoUnitario>$AG53),AND(TIPOORCAMENTO="LICITADO",ORÇAMENTO.PrecoUnitarioLicitado>$AN53)),"ACIMA REF.", IF(AND($C53="S",$P53<>"",$Q53<>"",$T53=0,$U53>0),"QUANT.", IF(AND(Import.TipoArredondamento="TransfereGOV",$L53="F",$C53="S",LEN($Q53)>13),"Código >13", IF(AND(Import.TipoArredondamento="TransfereGOV",$L53="F",$C53<>"S",LEN($R53)>100),"Descrição >100", IF(AND(Import.TipoArredondamento="TransfereGOV",$L53="F",$C53="S",LEN($R53)>500),"Descrição >500", IF(AND(Import.TipoArredondamento="TransfereGOV",$L53="F",$C53="S",LEFT(TRIM(UPPER($P53)),6)<>"SINAPI",ISNA(VLOOKUP(TRIM(UPPER($S53)),ListaTgov.Unidades,1,FALSE))),"Unid. Não Disp", " ")))))))))))))))) ->  | AD53: =IF(C53<=CRONO.NivelExibicao,MAX($AD$15:OFFSET(AD53,-1,0))+IF($C53<>1,1,MAX(1,COUNTIF(QCI!$A$13:$A$24,OFFSET($E53,-1,0)))),"") ->  | AE53: =IF(AND($C53="S",ORÇAMENTO.CodBarra<>""),IF(ORÇAMENTO.Fonte="",ORÇAMENTO.CodBarra,CONCATENATE(ORÇAMENTO.Fonte," ",ORÇAMENTO.CodBarra))) -> SINAPI 100701 | AF53: =IF(ISERROR(ORÇAMENTO.BancoRef),"(abra o arquivo 'Referência "&Excel_BuiltIn_Database&".xlsm)",IF(OR($C53<>"S",ORÇAMENTO.CodBarra=""),"(Sem Código)",IF(ISERROR(MATCH($AE53,INDIRECT(ORÇAMENTO.BancoRef),0)),"(Código não identificado nas referências)",MATCH($AE53,INDIRECT(ORÇAMENTO.BancoRef),0)))) -> 9576 | AG53: =ROUND(IF(DESONERACAO="sim",REFERENCIA.Desonerado,REFERENCIA.NaoDesonerado),2) -> 548.14 | AH53: 0.2247 | AJ53: 1.89 | AM53: 1268.78 | AN53: =ROUND(ORÇAMENTO.CustoUnitario*(1+$AH53),2) -> 671.31
A54: S | B54: 2 | C54: S | D54: 0 | E54: =IF($C54=1,OFFSET(E54,-1,0)+MAX(1,COUNTIF(QCI!$A$13:$A$24,OFFSET(ORÇAMENTO!E54,-1,0))),OFFSET(E54,-1,0)) -> 1 | F54: 6 | G54: 0 | H54: 0 | I54: 5 | J54: 0 | K54: =IF(OR($C54="S",$C54=0),0,MATCH(OFFSET($D54,0,$C54)+IF($C54<>1,1,COUNTIF(QCI!$A$13:$A$24,ORÇAMENTO!E54)),OFFSET($D54,1,$C54,ROW($C$140)-ROW($C54)),0)) -> 0 | L54: F | M54: Serviço | N54: Serviço | O54: 1.6.5. | P54: SINAPI | Q54: 102180 | R54: INSTALAÇÃO DE VIDRO TEMPERADO, E = 8 MM, ENCAIXADO EM PERFIL U. AF_01/2021_PS | S54: M2 | T54: =OFFSET(CÁLCULO!H$15,ROW($T54)-ROW(T$15),0) -> 0.96 | U54: 467.81 | V54: BDI 1 | W54: =IF($C54="S",ROUND(IF(TIPOORCAMENTO="Proposto",ORÇAMENTO.CustoUnitario*(1+$AH54),ORÇAMENTO.PrecoUnitarioLicitado),15-13*$AF$10),0) -> 572.93 | X54: =IF($C54="S",IF(OR(Import.TipoArredondamento<>"TransfereGOV",ACOMPANHAMENTO="BM"),VTOTAL1,SUM(OFFSET(CÁLCULO!$AA$15,ROW($X54)-ROW($X$15),1):OFFSET(CÁLCULO!$AL$15,ROW($X54)-ROW($X$15),-1))),IF($C54=0,0,ROUND(SomaAgrup,15-13*$AF$11))) -> 550.01 | Y54: RA | Z54: RA | AA54: =IF($C54="S",IF($Z54="CP",$X54,IF($Z54="RA",(($X54)*QCI!$AA$3),0)),SomaAgrup) -> 181.6951317 | AB54: =IF($C54="S",IF($Z54="OU",ROUND($X54,2),0),SomaAgrup) -> 0 | AC54: =IF($N54=""," ", IF(AND($C54<>"S",OR($R54="",$R54="(digite a descrição aqui)")),"DESCRIÇÃO", IF(AND($C54="S",OR($Q54<>"",$T54>0,$U54>0),$P54=""),"FONTE", IF(AND($C54="S",$P54<>"",OR($T54>0,$U54>0),$Q54=""),"CÓDIGO", IF(AND($C54="S",$P54<>"",$Q54<>"",$R54="(Código não identificado nas referências)"),"CÓDIGO N/ID", IF(AND($C54="S",OR($R54="",$R54="(digite a descrição aqui)"),OR($Q54<>"",$T54>0,$U54>0)),"DESCRIÇÃO", IF(AND($C54="S",$P54<>"",$Q54<>"",$S54=""),"UNIDADE", IF(AND($C54="S",$P54<>"",$Q54<>"",$U54=0),"SEM CUSTO", IF(AND(TIPOORCAMENTO="Licitado",$AL54=0,$AN54>0),"SEM PREÇO", IF(AND($C54="S",$P54<>"",$Q54<>"",$U54>0,AND($V54<>"BDI 1",$V54<>"BDI 2",$V54<>"BDI 3")),IF(ISNUMBER($V54),"JUSTIFICAR BDI","BDI"), IF(OR(AND(import.recurso="OGU",TIPOORCAMENTO="Proposto",LEFT($O$8,5)<>"(N/D:",$AG54<>"",ORÇAMENTO.CustoUnitario>$AG54),AND(TIPOORCAMENTO="LICITADO",ORÇAMENTO.PrecoUnitarioLicitado>$AN54)),"ACIMA REF.", IF(AND($C54="S",$P54<>"",$Q54<>"",$T54=0,$U54>0),"QUANT.", IF(AND(Import.TipoArredondamento="TransfereGOV",$L54="F",$C54="S",LEN($Q54)>13),"Código >13", IF(AND(Import.TipoArredondamento="TransfereGOV",$L54="F",$C54<>"S",LEN($R54)>100),"Descrição >100", IF(AND(Import.TipoArredondamento="TransfereGOV",$L54="F",$C54="S",LEN($R54)>500),"Descrição >500", IF(AND(Import.TipoArredondamento="TransfereGOV",$L54="F",$C54="S",LEFT(TRIM(UPPER($P54)),6)<>"SINAPI",ISNA(VLOOKUP(TRIM(UPPER($S54)),ListaTgov.Unidades,1,FALSE))),"Unid. Não Disp", " ")))))))))))))))) ->  | AD54: =IF(C54<=CRONO.NivelExibicao,MAX($AD$15:OFFSET(AD54,-1,0))+IF($C54<>1,1,MAX(1,COUNTIF(QCI!$A$13:$A$24,OFFSET($E54,-1,0)))),"") ->  | AE54: =IF(AND($C54="S",ORÇAMENTO.CodBarra<>""),IF(ORÇAMENTO.Fonte="",ORÇAMENTO.CodBarra,CONCATENATE(ORÇAMENTO.Fonte," ",ORÇAMENTO.CodBarra))) -> SINAPI 102180 | AF54: =IF(ISERROR(ORÇAMENTO.BancoRef),"(abra o arquivo 'Referência "&Excel_BuiltIn_Database&".xlsm)",IF(OR($C54<>"S",ORÇAMENTO.CodBarra=""),"(Sem Código)",IF(ISERROR(MATCH($AE54,INDIRECT(ORÇAMENTO.BancoRef),0)),"(Código não identificado nas referências)",MATCH($AE54,INDIRECT(ORÇAMENTO.BancoRef),0)))) -> 15579 | AG54: =ROUND(IF(DESONERACAO="sim",REFERENCIA.Desonerado,REFERENCIA.NaoDesonerado),2) -> 467.81 | AH54: 0.2247 | AJ54: 0.96 | AM54: 550.01 | AN54: =ROUND(ORÇAMENTO.CustoUnitario*(1+$AH54),2) -> 572.93
A55: 2 | B55: 2 | C55: 2 | D55: 15 | E55: =IF($C55=1,OFFSET(E55,-1,0)+MAX(1,COUNTIF(QCI!$A$13:$A$24,OFFSET(ORÇAMENTO!E55,-1,0))),OFFSET(E55,-1,0)) -> 1 | F55: 7 | G55: 0 | H55: 0 | I55: 0 | J55: 85 | K55: =IF(OR($C55="S",$C55=0),0,MATCH(OFFSET($D55,0,$C55)+IF($C55<>1,1,COUNTIF(QCI!$A$13:$A$24,ORÇAMENTO!E55)),OFFSET($D55,1,$C55,ROW($C$140)-ROW($C55)),0)) -> 15 | L55: F | M55: Nível 2 | N55: Nível 2 | O55: 1.7. | P55: SINAPI | R55: FUNDAÇÃO NOVOS PILARES METÁLICOS | S55: - | T55: =OFFSET(CÁLCULO!H$15,ROW($T55)-ROW(T$15),0) -> 0 | U55: 0 | V55: BDI 1 | W55: =IF($C55="S",ROUND(IF(TIPOORCAMENTO="Proposto",ORÇAMENTO.CustoUnitario*(1+$AH55),ORÇAMENTO.PrecoUnitarioLicitado),15-13*$AF$10),0) -> 0 | X55: =IF($C55="S",IF(OR(Import.TipoArredondamento<>"TransfereGOV",ACOMPANHAMENTO="BM"),VTOTAL1,SUM(OFFSET(CÁLCULO!$AA$15,ROW($X55)-ROW($X$15),1):OFFSET(CÁLCULO!$AL$15,ROW($X55)-ROW($X$15),-1))),IF($C55=0,0,ROUND(SomaAgrup,15-13*$AF$11))) -> 20967.92 | Y55: RA | AA55: =IF($C55="S",IF($Z55="CP",$X55,IF($Z55="RA",(($X55)*QCI!$AA$3),0)),SomaAgrup) -> 6926.726759 | AB55: =IF($C55="S",IF($Z55="OU",ROUND($X55,2),0),SomaAgrup) -> 0 | AC55: =IF($N55=""," ", IF(AND($C55<>"S",OR($R55="",$R55="(digite a descrição aqui)")),"DESCRIÇÃO", IF(AND($C55="S",OR($Q55<>"",$T55>0,$U55>0),$P55=""),"FONTE", IF(AND($C55="S",$P55<>"",OR($T55>0,$U55>0),$Q55=""),"CÓDIGO", IF(AND($C55="S",$P55<>"",$Q55<>"",$R55="(Código não identificado nas referências)"),"CÓDIGO N/ID", IF(AND($C55="S",OR($R55="",$R55="(digite a descrição aqui)"),OR($Q55<>"",$T55>0,$U55>0)),"DESCRIÇÃO", IF(AND($C55="S",$P55<>"",$Q55<>"",$S55=""),"UNIDADE", IF(AND($C55="S",$P55<>"",$Q55<>"",$U55=0),"SEM CUSTO", IF(AND(TIPOORCAMENTO="Licitado",$AL55=0,$AN55>0),"SEM PREÇO", IF(AND($C55="S",$P55<>"",$Q55<>"",$U55>0,AND($V55<>"BDI 1",$V55<>"BDI 2",$V55<>"BDI 3")),IF(ISNUMBER($V55),"JUSTIFICAR BDI","BDI"), IF(OR(AND(import.recurso="OGU",TIPOORCAMENTO="Proposto",LEFT($O$8,5)<>"(N/D:",$AG55<>"",ORÇAMENTO.CustoUnitario>$AG55),AND(TIPOORCAMENTO="LICITADO",ORÇAMENTO.PrecoUnitarioLicitado>$AN55)),"ACIMA REF.", IF(AND($C55="S",$P55<>"",$Q55<>"",$T55=0,$U55>0),"QUANT.", IF(AND(Import.TipoArredondamento="TransfereGOV",$L55="F",$C55="S",LEN($Q55)>13),"Código >13", IF(AND(Import.TipoArredondamento="TransfereGOV",$L55="F",$C55<>"S",LEN($R55)>100),"Descrição >100", IF(AND(Import.TipoArredondamento="TransfereGOV",$L55="F",$C55="S",LEN($R55)>500),"Descrição >500", IF(AND(Import.TipoArredondamento="TransfereGOV",$L55="F",$C55="S",LEFT(TRIM(UPPER($P55)),6)<>"SINAPI",ISNA(VLOOKUP(TRIM(UPPER($S55)),ListaTgov.Unidades,1,FALSE))),"Unid. Não Disp", " ")))))))))))))))) ->  | AD55: =IF(C55<=CRONO.NivelExibicao,MAX($AD$15:OFFSET(AD55,-1,0))+IF($C55<>1,1,MAX(1,COUNTIF(QCI!$A$13:$A$24,OFFSET($E55,-1,0)))),"") -> 8 | AE55: =IF(AND($C55="S",ORÇAMENTO.CodBarra<>""),IF(ORÇAMENTO.Fonte="",ORÇAMENTO.CodBarra,CONCATENATE(ORÇAMENTO.Fonte," ",ORÇAMENTO.CodBarra))) -> FALSE | AF55: =IF(ISERROR(ORÇAMENTO.BancoRef),"(abra o arquivo 'Referência "&Excel_BuiltIn_Database&".xlsm)",IF(OR($C55<>"S",ORÇAMENTO.CodBarra=""),"(Sem Código)",IF(ISERROR(MATCH($AE55,INDIRECT(ORÇAMENTO.BancoRef),0)),"(Código não identificado nas referências)",MATCH($AE55,INDIRECT(ORÇAMENTO.BancoRef),0)))) -> (Sem Código) | AG55: =ROUND(IF(DESONERACAO="sim",REFERENCIA.Desonerado,REFERENCIA.NaoDesonerado),2) -> 0 | AH55: 0.2247 | AJ55: 0 | AM55: 20967.92 | AN55: =ROUND(ORÇAMENTO.CustoUnitario*(1+$AH55),2) -> 0
A56: S | B56: 2 | C56: S | D56: 0 | E56: =IF($C56=1,OFFSET(E56,-1,0)+MAX(1,COUNTIF(QCI!$A$13:$A$24,OFFSET(ORÇAMENTO!E56,-1,0))),OFFSET(E56,-1,0)) -> 1 | F56: 7 | G56: 0 | H56: 0 | I56: 1 | J56: 0 | K56: =IF(OR($C56="S",$C56=0),0,MATCH(OFFSET($D56,0,$C56)+IF($C56<>1,1,COUNTIF(QCI!$A$13:$A$24,ORÇAMENTO!E56)),OFFSET($D56,1,$C56,ROW($C$140)-ROW($C56)),0)) -> 0 | L56: F | M56: Serviço | N56: Serviço | O56: 1.7.1. | P56: SINAPI | Q56: 101175 | R56: ESTACA BROCA DE CONCRETO, DIÂMETRO DE 30CM, ESCAVAÇÃO MANUAL COM TRADO CONCHA, COM ARMADURA DE ARRANQUE. AF_05/2020 | S56: M | T56: =OFFSET(CÁLCULO!H$15,ROW($T56)-ROW(T$15),0) -> 60 | U56: 112.86 | V56: BDI 1 | W56: =IF($C56="S",ROUND(IF(TIPOORCAMENTO="Proposto",ORÇAMENTO.CustoUnitario*(1+$AH56),ORÇAMENTO.PrecoUnitarioLicitado),15-13*$AF$10),0) -> 138.22 | X56: =IF($C56="S",IF(OR(Import.TipoArredondamento<>"TransfereGOV",ACOMPANHAMENTO="BM"),VTOTAL1,SUM(OFFSET(CÁLCULO!$AA$15,ROW($X56)-ROW($X$15),1):OFFSET(CÁLCULO!$AL$15,ROW($X56)-ROW($X$15),-1))),IF($C56=0,0,ROUND(SomaAgrup,15-13*$AF$11))) -> 8293.2 | Y56: RA | Z56: RA | AA56: =IF($C56="S",IF($Z56="CP",$X56,IF($Z56="RA",(($X56)*QCI!$AA$3),0)),SomaAgrup) -> 2739.64849 | AB56: =IF($C56="S",IF($Z56="OU",ROUND($X56,2),0),SomaAgrup) -> 0 | AC56: =IF($N56=""," ", IF(AND($C56<>"S",OR($R56="",$R56="(digite a descrição aqui)")),"DESCRIÇÃO", IF(AND($C56="S",OR($Q56<>"",$T56>0,$U56>0),$P56=""),"FONTE", IF(AND($C56="S",$P56<>"",OR($T56>0,$U56>0),$Q56=""),"CÓDIGO", IF(AND($C56="S",$P56<>"",$Q56<>"",$R56="(Código não identificado nas referências)"),"CÓDIGO N/ID", IF(AND($C56="S",OR($R56="",$R56="(digite a descrição aqui)"),OR($Q56<>"",$T56>0,$U56>0)),"DESCRIÇÃO", IF(AND($C56="S",$P56<>"",$Q56<>"",$S56=""),"UNIDADE", IF(AND($C56="S",$P56<>"",$Q56<>"",$U56=0),"SEM CUSTO", IF(AND(TIPOORCAMENTO="Licitado",$AL56=0,$AN56>0),"SEM PREÇO", IF(AND($C56="S",$P56<>"",$Q56<>"",$U56>0,AND($V56<>"BDI 1",$V56<>"BDI 2",$V56<>"BDI 3")),IF(ISNUMBER($V56),"JUSTIFICAR BDI","BDI"), IF(OR(AND(import.recurso="OGU",TIPOORCAMENTO="Proposto",LEFT($O$8,5)<>"(N/D:",$AG56<>"",ORÇAMENTO.CustoUnitario>$AG56),AND(TIPOORCAMENTO="LICITADO",ORÇAMENTO.PrecoUnitarioLicitado>$AN56)),"ACIMA REF.", IF(AND($C56="S",$P56<>"",$Q56<>"",$T56=0,$U56>0),"QUANT.", IF(AND(Import.TipoArredondamento="TransfereGOV",$L56="F",$C56="S",LEN($Q56)>13),"Código >13", IF(AND(Import.TipoArredondamento="TransfereGOV",$L56="F",$C56<>"S",LEN($R56)>100),"Descrição >100", IF(AND(Import.TipoArredondamento="TransfereGOV",$L56="F",$C56="S",LEN($R56)>500),"Descrição >500", IF(AND(Import.TipoArredondamento="TransfereGOV",$L56="F",$C56="S",LEFT(TRIM(UPPER($P56)),6)<>"SINAPI",ISNA(VLOOKUP(TRIM(UPPER($S56)),ListaTgov.Unidades,1,FALSE))),"Unid. Não Disp", " ")))))))))))))))) ->  | AD56: =IF(C56<=CRONO.NivelExibicao,MAX($AD$15:OFFSET(AD56,-1,0))+IF($C56<>1,1,MAX(1,COUNTIF(QCI!$A$13:$A$24,OFFSET($E56,-1,0)))),"") ->  | AE56: =IF(AND($C56="S",ORÇAMENTO.CodBarra<>""),IF(ORÇAMENTO.Fonte="",ORÇAMENTO.CodBarra,CONCATENATE(ORÇAMENTO.Fonte," ",ORÇAMENTO.CodBarra))) -> SINAPI 101175 | AF56: =IF(ISERROR(ORÇAMENTO.BancoRef),"(abra o arquivo 'Referência "&Excel_BuiltIn_Database&".xlsm)",IF(OR($C56<>"S",ORÇAMENTO.CodBarra=""),"(Sem Código)",IF(ISERROR(MATCH($AE56,INDIRECT(ORÇAMENTO.BancoRef),0)),"(Código não identificado nas referências)",MATCH($AE56,INDIRECT(ORÇAMENTO.BancoRef),0)))) -> 9605 | AG56: =ROUND(IF(DESONERACAO="sim",REFERENCIA.Desonerado,REFERENCIA.NaoDesonerado),2) -> 112.86 | AH56: 0.2247 | AJ56: 60 | AM56: 8293.2 | AN56: =ROUND(ORÇAMENTO.CustoUnitario*(1+$AH56),2) -> 138.22
A57: S | B57: 2 | C57: S | D57: 0 | E57: =IF($C57=1,OFFSET(E57,-1,0)+MAX(1,COUNTIF(QCI!$A$13:$A$24,OFFSET(ORÇAMENTO!E57,-1,0))),OFFSET(E57,-1,0)) -> 1 | F57: 7 | G57: 0 | H57: 0 | I57: 2 | J57: 0 | K57: =IF(OR($C57="S",$C57=0),0,MATCH(OFFSET($D57,0,$C57)+IF($C57<>1,1,COUNTIF(QCI!$A$13:$A$24,ORÇAMENTO!E57)),OFFSET($D57,1,$C57,ROW($C$140)-ROW($C57)),0)) -> 0 | L57: F | M57: Serviço | N57: Serviço | O57: 1.7.2. | P57: SINAPI | Q57: 95578 | R57: MONTAGEM DE ARMADURA DE ESTACAS, DIÂMETRO = 12,5 MM. AF_09/2021_PS | S57: KG | T57: =OFFSET(CÁLCULO!H$15,ROW($T57)-ROW(T$15),0) -> 311.3 | U57: 9.03 | V57: BDI 1 | W57: =IF($C57="S",ROUND(IF(TIPOORCAMENTO="Proposto",ORÇAMENTO.CustoUnitario*(1+$AH57),ORÇAMENTO.PrecoUnitarioLicitado),15-13*$AF$10),0) -> 11.06 | X57: =IF($C57="S",IF(OR(Import.TipoArredondamento<>"TransfereGOV",ACOMPANHAMENTO="BM"),VTOTAL1,SUM(OFFSET(CÁLCULO!$AA$15,ROW($X57)-ROW($X$15),1):OFFSET(CÁLCULO!$AL$15,ROW($X57)-ROW($X$15),-1))),IF($C57=0,0,ROUND(SomaAgrup,15-13*$AF$11))) -> 3442.98 | Y57: RA | Z57: RA | AA57: =IF($C57="S",IF($Z57="CP",$X57,IF($Z57="RA",(($X57)*QCI!$AA$3),0)),SomaAgrup) -> 1137.384237 | AB57: =IF($C57="S",IF($Z57="OU",ROUND($X57,2),0),SomaAgrup) -> 0 | AC57: =IF($N57=""," ", IF(AND($C57<>"S",OR($R57="",$R57="(digite a descrição aqui)")),"DESCRIÇÃO", IF(AND($C57="S",OR($Q57<>"",$T57>0,$U57>0),$P57=""),"FONTE", IF(AND($C57="S",$P57<>"",OR($T57>0,$U57>0),$Q57=""),"CÓDIGO", IF(AND($C57="S",$P57<>"",$Q57<>"",$R57="(Código não identificado nas referências)"),"CÓDIGO N/ID", IF(AND($C57="S",OR($R57="",$R57="(digite a descrição aqui)"),OR($Q57<>"",$T57>0,$U57>0)),"DESCRIÇÃO", IF(AND($C57="S",$P57<>"",$Q57<>"",$S57=""),"UNIDADE", IF(AND($C57="S",$P57<>"",$Q57<>"",$U57=0),"SEM CUSTO", IF(AND(TIPOORCAMENTO="Licitado",$AL57=0,$AN57>0),"SEM PREÇO", IF(AND($C57="S",$P57<>"",$Q57<>"",$U57>0,AND($V57<>"BDI 1",$V57<>"BDI 2",$V57<>"BDI 3")),IF(ISNUMBER($V57),"JUSTIFICAR BDI","BDI"), IF(OR(AND(import.recurso="OGU",TIPOORCAMENTO="Proposto",LEFT($O$8,5)<>"(N/D:",$AG57<>"",ORÇAMENTO.CustoUnitario>$AG57),AND(TIPOORCAMENTO="LICITADO",ORÇAMENTO.PrecoUnitarioLicitado>$AN57)),"ACIMA REF.", IF(AND($C57="S",$P57<>"",$Q57<>"",$T57=0,$U57>0),"QUANT.", IF(AND(Import.TipoArredondamento="TransfereGOV",$L57="F",$C57="S",LEN($Q57)>13),"Código >13", IF(AND(Import.TipoArredondamento="TransfereGOV",$L57="F",$C57<>"S",LEN($R57)>100),"Descrição >100", IF(AND(Import.TipoArredondamento="TransfereGOV",$L57="F",$C57="S",LEN($R57)>500),"Descrição >500", IF(AND(Import.TipoArredondamento="TransfereGOV",$L57="F",$C57="S",LEFT(TRIM(UPPER($P57)),6)<>"SINAPI",ISNA(VLOOKUP(TRIM(UPPER($S57)),ListaTgov.Unidades,1,FALSE))),"Unid. Não Disp", " ")))))))))))))))) ->  | AD57: =IF(C57<=CRONO.NivelExibicao,MAX($AD$15:OFFSET(AD57,-1,0))+IF($C57<>1,1,MAX(1,COUNTIF(QCI!$A$13:$A$24,OFFSET($E57,-1,0)))),"") ->  | AE57: =IF(AND($C57="S",ORÇAMENTO.CodBarra<>""),IF(ORÇAMENTO.Fonte="",ORÇAMENTO.CodBarra,CONCATENATE(ORÇAMENTO.Fonte," ",ORÇAMENTO.CodBarra))) -> SINAPI 95578 | AF57: =IF(ISERROR(ORÇAMENTO.BancoRef),"(abra o arquivo 'Referência "&Excel_BuiltIn_Database&".xlsm)",IF(OR($C57<>"S",ORÇAMENTO.CodBarra=""),"(Sem Código)",IF(ISERROR(MATCH($AE57,INDIRECT(ORÇAMENTO.BancoRef),0)),"(Código não identificado nas referências)",MATCH($AE57,INDIRECT(ORÇAMENTO.BancoRef),0)))) -> 6291 | AG57: =ROUND(IF(DESONERACAO="sim",REFERENCIA.Desonerado,REFERENCIA.NaoDesonerado),2) -> 9.03 | AH57: 0.2247 | AJ57: 311.3 | AM57: 3442.98 | AN57: =ROUND(ORÇAMENTO.CustoUnitario*(1+$AH57),2) -> 11.06
A58: S | B58: 2 | C58: S | D58: 0 | E58: =IF($C58=1,OFFSET(E58,-1,0)+MAX(1,COUNTIF(QCI!$A$13:$A$24,OFFSET(ORÇAMENTO!E58,-1,0))),OFFSET(E58,-1,0)) -> 1 | F58: 7 | G58: 0 | H58: 0 | I58: 3 | J58: 0 | K58: =IF(OR($C58="S",$C58=0),0,MATCH(OFFSET($D58,0,$C58)+IF($C58<>1,1,COUNTIF(QCI!$A$13:$A$24,ORÇAMENTO!E58)),OFFSET($D58,1,$C58,ROW($C$140)-ROW($C58)),0)) -> 0 | L58: F | M58: Serviço | N58: Serviço | O58: 1.7.3. | P58: SINAPI | Q58: 95584 | R58: MONTAGEM DE ARMADURA TRANSVERSAL DE ESTACAS DE SEÇÃO CIRCULAR, DIÂMETRO = 6,30 MM. AF_09/2021_PS | S58: KG | T58: =OFFSET(CÁLCULO!H$15,ROW($T58)-ROW(T$15),0) -> 70.9 | U58: 13.91 | V58: BDI 1 | W58: =IF($C58="S",ROUND(IF(TIPOORCAMENTO="Proposto",ORÇAMENTO.CustoUnitario*(1+$AH58),ORÇAMENTO.PrecoUnitarioLicitado),15-13*$AF$10),0) -> 17.04 | X58: =IF($C58="S",IF(OR(Import.TipoArredondamento<>"TransfereGOV",ACOMPANHAMENTO="BM"),VTOTAL1,SUM(OFFSET(CÁLCULO!$AA$15,ROW($X58)-ROW($X$15),1):OFFSET(CÁLCULO!$AL$15,ROW($X58)-ROW($X$15),-1))),IF($C58=0,0,ROUND(SomaAgrup,15-13*$AF$11))) -> 1208.14 | Y58: RA | Z58: RA | AA58: =IF($C58="S",IF($Z58="CP",$X58,IF($Z58="RA",(($X58)*QCI!$AA$3),0)),SomaAgrup) -> 399.1075732 | AB58: =IF($C58="S",IF($Z58="OU",ROUND($X58,2),0),SomaAgrup) -> 0 | AC58: =IF($N58=""," ", IF(AND($C58<>"S",OR($R58="",$R58="(digite a descrição aqui)")),"DESCRIÇÃO", IF(AND($C58="S",OR($Q58<>"",$T58>0,$U58>0),$P58=""),"FONTE", IF(AND($C58="S",$P58<>"",OR($T58>0,$U58>0),$Q58=""),"CÓDIGO", IF(AND($C58="S",$P58<>"",$Q58<>"",$R58="(Código não identificado nas referências)"),"CÓDIGO N/ID", IF(AND($C58="S",OR($R58="",$R58="(digite a descrição aqui)"),OR($Q58<>"",$T58>0,$U58>0)),"DESCRIÇÃO", IF(AND($C58="S",$P58<>"",$Q58<>"",$S58=""),"UNIDADE", IF(AND($C58="S",$P58<>"",$Q58<>"",$U58=0),"SEM CUSTO", IF(AND(TIPOORCAMENTO="Licitado",$AL58=0,$AN58>0),"SEM PREÇO", IF(AND($C58="S",$P58<>"",$Q58<>"",$U58>0,AND($V58<>"BDI 1",$V58<>"BDI 2",$V58<>"BDI 3")),IF(ISNUMBER($V58),"JUSTIFICAR BDI","BDI"), IF(OR(AND(import.recurso="OGU",TIPOORCAMENTO="Proposto",LEFT($O$8,5)<>"(N/D:",$AG58<>"",ORÇAMENTO.CustoUnitario>$AG58),AND(TIPOORCAMENTO="LICITADO",ORÇAMENTO.PrecoUnitarioLicitado>$AN58)),"ACIMA REF.", IF(AND($C58="S",$P58<>"",$Q58<>"",$T58=0,$U58>0),"QUANT.", IF(AND(Import.TipoArredondamento="TransfereGOV",$L58="F",$C58="S",LEN($Q58)>13),"Código >13", IF(AND(Import.TipoArredondamento="TransfereGOV",$L58="F",$C58<>"S",LEN($R58)>100),"Descrição >100", IF(AND(Import.TipoArredondamento="TransfereGOV",$L58="F",$C58="S",LEN($R58)>500),"Descrição >500", IF(AND(Import.TipoArredondamento="TransfereGOV",$L58="F",$C58="S",LEFT(TRIM(UPPER($P58)),6)<>"SINAPI",ISNA(VLOOKUP(TRIM(UPPER($S58)),ListaTgov.Unidades,1,FALSE))),"Unid. Não Disp", " ")))))))))))))))) ->  | AD58: =IF(C58<=CRONO.NivelExibicao,MAX($AD$15:OFFSET(AD58,-1,0))+IF($C58<>1,1,MAX(1,COUNTIF(QCI!$A$13:$A$24,OFFSET($E58,-1,0)))),"") ->  | AE58: =IF(AND($C58="S",ORÇAMENTO.CodBarra<>""),IF(ORÇAMENTO.Fonte="",ORÇAMENTO.CodBarra,CONCATENATE(ORÇAMENTO.Fonte," ",ORÇAMENTO.CodBarra))) -> SINAPI 95584 | AF58: =IF(ISERROR(ORÇAMENTO.BancoRef),"(abra o arquivo 'Referência "&Excel_BuiltIn_Database&".xlsm)",IF(OR($C58<>"S",ORÇAMENTO.CodBarra=""),"(Sem Código)",IF(ISERROR(MATCH($AE58,INDIRECT(ORÇAMENTO.BancoRef),0)),"(Código não identificado nas referências)",MATCH($AE58,INDIRECT(ORÇAMENTO.BancoRef),0)))) -> 6298 | AG58: =ROUND(IF(DESONERACAO="sim",REFERENCIA.Desonerado,REFERENCIA.NaoDesonerado),2) -> 13.91 | AH58: 0.2247 | AJ58: 70.9 | AM58: 1208.14 | AN58: =ROUND(ORÇAMENTO.CustoUnitario*(1+$AH58),2) -> 17.04
A59: S | B59: 2 | C59: S | D59: 0 | E59: =IF($C59=1,OFFSET(E59,-1,0)+MAX(1,COUNTIF(QCI!$A$13:$A$24,OFFSET(ORÇAMENTO!E59,-1,0))),OFFSET(E59,-1,0)) -> 1 | F59: 7 | G59: 0 | H59: 0 | I59: 4 | J59: 0 | K59: =IF(OR($C59="S",$C59=0),0,MATCH(OFFSET($D59,0,$C59)+IF($C59<>1,1,COUNTIF(QCI!$A$13:$A$24,ORÇAMENTO!E59)),OFFSET($D59,1,$C59,ROW($C$140)-ROW($C59)),0)) -> 0 | L59: F | M59: Serviço | N59: Serviço | O59: 1.7.4. | P59: SINAPI | Q59: 95601 | R59: ARRASAMENTO MECANICO DE ESTACA DE CONCRETO ARMADO, DIAMETROS DE ATÉ 40 CM. AF_05/2021 | S59: UN | T59: =OFFSET(CÁLCULO!H$15,ROW($T59)-ROW(T$15),0) -> 6 | U59: 17.42 | V59: BDI 1 | W59: =IF($C59="S",ROUND(IF(TIPOORCAMENTO="Proposto",ORÇAMENTO.CustoUnitario*(1+$AH59),ORÇAMENTO.PrecoUnitarioLicitado),15-13*$AF$10),0) -> 21.33 | X59: =IF($C59="S",IF(OR(Import.TipoArredondamento<>"TransfereGOV",ACOMPANHAMENTO="BM"),VTOTAL1,SUM(OFFSET(CÁLCULO!$AA$15,ROW($X59)-ROW($X$15),1):OFFSET(CÁLCULO!$AL$15,ROW($X59)-ROW($X$15),-1))),IF($C59=0,0,ROUND(SomaAgrup,15-13*$AF$11))) -> 127.98 | Y59: RA | Z59: RA | AA59: =IF($C59="S",IF($Z59="CP",$X59,IF($Z59="RA",(($X59)*QCI!$AA$3),0)),SomaAgrup) -> 42.27803667 | AB59: =IF($C59="S",IF($Z59="OU",ROUND($X59,2),0),SomaAgrup) -> 0 | AC59: =IF($N59=""," ", IF(AND($C59<>"S",OR($R59="",$R59="(digite a descrição aqui)")),"DESCRIÇÃO", IF(AND($C59="S",OR($Q59<>"",$T59>0,$U59>0),$P59=""),"FONTE", IF(AND($C59="S",$P59<>"",OR($T59>0,$U59>0),$Q59=""),"CÓDIGO", IF(AND($C59="S",$P59<>"",$Q59<>"",$R59="(Código não identificado nas referências)"),"CÓDIGO N/ID", IF(AND($C59="S",OR($R59="",$R59="(digite a descrição aqui)"),OR($Q59<>"",$T59>0,$U59>0)),"DESCRIÇÃO", IF(AND($C59="S",$P59<>"",$Q59<>"",$S59=""),"UNIDADE", IF(AND($C59="S",$P59<>"",$Q59<>"",$U59=0),"SEM CUSTO", IF(AND(TIPOORCAMENTO="Licitado",$AL59=0,$AN59>0),"SEM PREÇO", IF(AND($C59="S",$P59<>"",$Q59<>"",$U59>0,AND($V59<>"BDI 1",$V59<>"BDI 2",$V59<>"BDI 3")),IF(ISNUMBER($V59),"JUSTIFICAR BDI","BDI"), IF(OR(AND(import.recurso="OGU",TIPOORCAMENTO="Proposto",LEFT($O$8,5)<>"(N/D:",$AG59<>"",ORÇAMENTO.CustoUnitario>$AG59),AND(TIPOORCAMENTO="LICITADO",ORÇAMENTO.PrecoUnitarioLicitado>$AN59)),"ACIMA REF.", IF(AND($C59="S",$P59<>"",$Q59<>"",$T59=0,$U59>0),"QUANT.", IF(AND(Import.TipoArredondamento="TransfereGOV",$L59="F",$C59="S",LEN($Q59)>13),"Código >13", IF(AND(Import.TipoArredondamento="TransfereGOV",$L59="F",$C59<>"S",LEN($R59)>100),"Descrição >100", IF(AND(Import.TipoArredondamento="TransfereGOV",$L59="F",$C59="S",LEN($R59)>500),"Descrição >500", IF(AND(Import.TipoArredondamento="TransfereGOV",$L59="F",$C59="S",LEFT(TRIM(UPPER($P59)),6)<>"SINAPI",ISNA(VLOOKUP(TRIM(UPPER($S59)),ListaTgov.Unidades,1,FALSE))),"Unid. Não Disp", " ")))))))))))))))) ->  | AD59: =IF(C59<=CRONO.NivelExibicao,MAX($AD$15:OFFSET(AD59,-1,0))+IF($C59<>1,1,MAX(1,COUNTIF(QCI!$A$13:$A$24,OFFSET($E59,-1,0)))),"") ->  | AE59: =IF(AND($C59="S",ORÇAMENTO.CodBarra<>""),IF(ORÇAMENTO.Fonte="",ORÇAMENTO.CodBarra,CONCATENATE(ORÇAMENTO.Fonte," ",ORÇAMENTO.CodBarra))) -> SINAPI 95601 | AF59: =IF(ISERROR(ORÇAMENTO.BancoRef),"(abra o arquivo 'Referência "&Excel_BuiltIn_Database&".xlsm)",IF(OR($C59<>"S",ORÇAMENTO.CodBarra=""),"(Sem Código)",IF(ISERROR(MATCH($AE59,INDIRECT(ORÇAMENTO.BancoRef),0)),"(Código não identificado nas referências)",MATCH($AE59,INDIRECT(ORÇAMENTO.BancoRef),0)))) -> 6361 | AG59: =ROUND(IF(DESONERACAO="sim",REFERENCIA.Desonerado,REFERENCIA.NaoDesonerado),2) -> 17.42 | AH59: 0.2247 | AJ59: 6 | AM59: 127.98 | AN59: =ROUND(ORÇAMENTO.CustoUnitario*(1+$AH59),2) -> 21.33
A60: S | B60: 2 | C60: S | D60: 0 | E60: =IF($C60=1,OFFSET(E60,-1,0)+MAX(1,COUNTIF(QCI!$A$13:$A$24,OFFSET(ORÇAMENTO!E60,-1,0))),OFFSET(E60,-1,0)) -> 1 | F60: 7 | G60: 0 | H60: 0 | I60: 5 | J60: 0 | K60: =IF(OR($C60="S",$C60=0),0,MATCH(OFFSET($D60,0,$C60)+IF($C60<>1,1,COUNTIF(QCI!$A$13:$A$24,ORÇAMENTO!E60)),OFFSET($D60,1,$C60,ROW($C$140)-ROW($C60)),0)) -> 0 | L60: F | M60: Serviço | N60: Serviço | O60: 1.7.5. | P60: SINAPI | Q60: 96523 | R60: ESCAVAÇÃO MANUAL PARA BLOCO DE COROAMENTO OU SAPATA (INCLUINDO ESCAVAÇÃO PARA COLOCAÇÃO DE FÔRMAS). AF_01/2024 | S60: M3 | T60: =OFFSET(CÁLCULO!H$15,ROW($T60)-ROW(T$15),0) -> 4.3 | U60: 89.7 | V60: BDI 1 | W60: =IF($C60="S",ROUND(IF(TIPOORCAMENTO="Proposto",ORÇAMENTO.CustoUnitario*(1+$AH60),ORÇAMENTO.PrecoUnitarioLicitado),15-13*$AF$10),0) -> 109.86 | X60: =IF($C60="S",IF(OR(Import.TipoArredondamento<>"TransfereGOV",ACOMPANHAMENTO="BM"),VTOTAL1,SUM(OFFSET(CÁLCULO!$AA$15,ROW($X60)-ROW($X$15),1):OFFSET(CÁLCULO!$AL$15,ROW($X60)-ROW($X$15),-1))),IF($C60=0,0,ROUND(SomaAgrup,15-13*$AF$11))) -> 472.4 | Y60: RA | Z60: RA | AA60: =IF($C60="S",IF($Z60="CP",$X60,IF($Z60="RA",(($X60)*QCI!$AA$3),0)),SomaAgrup) -> 156.056763 | AB60: =IF($C60="S",IF($Z60="OU",ROUND($X60,2),0),SomaAgrup) -> 0 | AC60: =IF($N60=""," ", IF(AND($C60<>"S",OR($R60="",$R60="(digite a descrição aqui)")),"DESCRIÇÃO", IF(AND($C60="S",OR($Q60<>"",$T60>0,$U60>0),$P60=""),"FONTE", IF(AND($C60="S",$P60<>"",OR($T60>0,$U60>0),$Q60=""),"CÓDIGO", IF(AND($C60="S",$P60<>"",$Q60<>"",$R60="(Código não identificado nas referências)"),"CÓDIGO N/ID", IF(AND($C60="S",OR($R60="",$R60="(digite a descrição aqui)"),OR($Q60<>"",$T60>0,$U60>0)),"DESCRIÇÃO", IF(AND($C60="S",$P60<>"",$Q60<>"",$S60=""),"UNIDADE", IF(AND($C60="S",$P60<>"",$Q60<>"",$U60=0),"SEM CUSTO", IF(AND(TIPOORCAMENTO="Licitado",$AL60=0,$AN60>0),"SEM PREÇO", IF(AND($C60="S",$P60<>"",$Q60<>"",$U60>0,AND($V60<>"BDI 1",$V60<>"BDI 2",$V60<>"BDI 3")),IF(ISNUMBER($V60),"JUSTIFICAR BDI","BDI"), IF(OR(AND(import.recurso="OGU",TIPOORCAMENTO="Proposto",LEFT($O$8,5)<>"(N/D:",$AG60<>"",ORÇAMENTO.CustoUnitario>$AG60),AND(TIPOORCAMENTO="LICITADO",ORÇAMENTO.PrecoUnitarioLicitado>$AN60)),"ACIMA REF.", IF(AND($C60="S",$P60<>"",$Q60<>"",$T60=0,$U60>0),"QUANT.", IF(AND(Import.TipoArredondamento="TransfereGOV",$L60="F",$C60="S",LEN($Q60)>13),"Código >13", IF(AND(Import.TipoArredondamento="TransfereGOV",$L60="F",$C60<>"S",LEN($R60)>100),"Descrição >100", IF(AND(Import.TipoArredondamento="TransfereGOV",$L60="F",$C60="S",LEN($R60)>500),"Descrição >500", IF(AND(Import.TipoArredondamento="TransfereGOV",$L60="F",$C60="S",LEFT(TRIM(UPPER($P60)),6)<>"SINAPI",ISNA(VLOOKUP(TRIM(UPPER($S60)),ListaTgov.Unidades,1,FALSE))),"Unid. Não Disp", " ")))))))))))))))) ->  | AD60: =IF(C60<=CRONO.NivelExibicao,MAX($AD$15:OFFSET(AD60,-1,0))+IF($C60<>1,1,MAX(1,COUNTIF(QCI!$A$13:$A$24,OFFSET($E60,-1,0)))),"") ->  | AE60: =IF(AND($C60="S",ORÇAMENTO.CodBarra<>""),IF(ORÇAMENTO.Fonte="",ORÇAMENTO.CodBarra,CONCATENATE(ORÇAMENTO.Fonte," ",ORÇAMENTO.CodBarra))) -> SINAPI 96523 | AF60: =IF(ISERROR(ORÇAMENTO.BancoRef),"(abra o arquivo 'Referência "&Excel_BuiltIn_Database&".xlsm)",IF(OR($C60<>"S",ORÇAMENTO.CodBarra=""),"(Sem Código)",IF(ISERROR(MATCH($AE60,INDIRECT(ORÇAMENTO.BancoRef),0)),"(Código não identificado nas referências)",MATCH($AE60,INDIRECT(ORÇAMENTO.BancoRef),0)))) -> 10014 | AG60: =ROUND(IF(DESONERACAO="sim",REFERENCIA.Desonerado,REFERENCIA.NaoDesonerado),2) -> 89.7 | AH60: 0.2247 | AJ60: 4.304 | AM60: 472.4 | AN60: =ROUND(ORÇAMENTO.CustoUnitario*(1+$AH60),2) -> 109.86
A61: S | B61: 2 | C61: S | D61: 0 | E61: =IF($C61=1,OFFSET(E61,-1,0)+MAX(1,COUNTIF(QCI!$A$13:$A$24,OFFSET(ORÇAMENTO!E61,-1,0))),OFFSET(E61,-1,0)) -> 1 | F61: 7 | G61: 0 | H61: 0 | I61: 6 | J61: 0 | K61: =IF(OR($C61="S",$C61=0),0,MATCH(OFFSET($D61,0,$C61)+IF($C61<>1,1,COUNTIF(QCI!$A$13:$A$24,ORÇAMENTO!E61)),OFFSET($D61,1,$C61,ROW($C$140)-ROW($C61)),0)) -> 0 | L61: F | M61: Serviço | N61: Serviço | O61: 1.7.6. | P61: SINAPI | Q61: 96617 | R61: LASTRO DE CONCRETO MAGRO, APLICADO EM BLOCOS DE COROAMENTO OU SAPATAS, ESPESSURA DE 3 CM. AF_01/2024 | S61: M2 | T61: =OFFSET(CÁLCULO!H$15,ROW($T61)-ROW(T$15),0) -> 2.88 | U61: 18.75 | V61: BDI 1 | W61: =IF($C61="S",ROUND(IF(TIPOORCAMENTO="Proposto",ORÇAMENTO.CustoUnitario*(1+$AH61),ORÇAMENTO.PrecoUnitarioLicitado),15-13*$AF$10),0) -> 22.96 | X61: =IF($C61="S",IF(OR(Import.TipoArredondamento<>"TransfereGOV",ACOMPANHAMENTO="BM"),VTOTAL1,SUM(OFFSET(CÁLCULO!$AA$15,ROW($X61)-ROW($X$15),1):OFFSET(CÁLCULO!$AL$15,ROW($X61)-ROW($X$15),-1))),IF($C61=0,0,ROUND(SomaAgrup,15-13*$AF$11))) -> 66.12 | Y61: RA | Z61: RA | AA61: =IF($C61="S",IF($Z61="CP",$X61,IF($Z61="RA",(($X61)*QCI!$AA$3),0)),SomaAgrup) -> 21.84266123 | AB61: =IF($C61="S",IF($Z61="OU",ROUND($X61,2),0),SomaAgrup) -> 0 | AC61: =IF($N61=""," ", IF(AND($C61<>"S",OR($R61="",$R61="(digite a descrição aqui)")),"DESCRIÇÃO", IF(AND($C61="S",OR($Q61<>"",$T61>0,$U61>0),$P61=""),"FONTE", IF(AND($C61="S",$P61<>"",OR($T61>0,$U61>0),$Q61=""),"CÓDIGO", IF(AND($C61="S",$P61<>"",$Q61<>"",$R61="(Código não identificado nas referências)"),"CÓDIGO N/ID", IF(AND($C61="S",OR($R61="",$R61="(digite a descrição aqui)"),OR($Q61<>"",$T61>0,$U61>0)),"DESCRIÇÃO", IF(AND($C61="S",$P61<>"",$Q61<>"",$S61=""),"UNIDADE", IF(AND($C61="S",$P61<>"",$Q61<>"",$U61=0),"SEM CUSTO", IF(AND(TIPOORCAMENTO="Licitado",$AL61=0,$AN61>0),"SEM PREÇO", IF(AND($C61="S",$P61<>"",$Q61<>"",$U61>0,AND($V61<>"BDI 1",$V61<>"BDI 2",$V61<>"BDI 3")),IF(ISNUMBER($V61),"JUSTIFICAR BDI","BDI"), IF(OR(AND(import.recurso="OGU",TIPOORCAMENTO="Proposto",LEFT($O$8,5)<>"(N/D:",$AG61<>"",ORÇAMENTO.CustoUnitario>$AG61),AND(TIPOORCAMENTO="LICITADO",ORÇAMENTO.PrecoUnitarioLicitado>$AN61)),"ACIMA REF.", IF(AND($C61="S",$P61<>"",$Q61<>"",$T61=0,$U61>0),"QUANT.", IF(AND(Import.TipoArredondamento="TransfereGOV",$L61="F",$C61="S",LEN($Q61)>13),"Código >13", IF(AND(Import.TipoArredondamento="TransfereGOV",$L61="F",$C61<>"S",LEN($R61)>100),"Descrição >100", IF(AND(Import.TipoArredondamento="TransfereGOV",$L61="F",$C61="S",LEN($R61)>500),"Descrição >500", IF(AND(Import.TipoArredondamento="TransfereGOV",$L61="F",$C61="S",LEFT(TRIM(UPPER($P61)),6)<>"SINAPI",ISNA(VLOOKUP(TRIM(UPPER($S61)),ListaTgov.Unidades,1,FALSE))),"Unid. Não Disp", " ")))))))))))))))) ->  | AD61: =IF(C61<=CRONO.NivelExibicao,MAX($AD$15:OFFSET(AD61,-1,0))+IF($C61<>1,1,MAX(1,COUNTIF(QCI!$A$13:$A$24,OFFSET($E61,-1,0)))),"") ->  | AE61: =IF(AND($C61="S",ORÇAMENTO.CodBarra<>""),IF(ORÇAMENTO.Fonte="",ORÇAMENTO.CodBarra,CONCATENATE(ORÇAMENTO.Fonte," ",ORÇAMENTO.CodBarra))) -> SINAPI 96617 | AF61: =IF(ISERROR(ORÇAMENTO.BancoRef),"(abra o arquivo 'Referência "&Excel_BuiltIn_Database&".xlsm)",IF(OR($C61<>"S",ORÇAMENTO.CodBarra=""),"(Sem Código)",IF(ISERROR(MATCH($AE61,INDIRECT(ORÇAMENTO.BancoRef),0)),"(Código não identificado nas referências)",MATCH($AE61,INDIRECT(ORÇAMENTO.BancoRef),0)))) -> 12707 | AG61: =ROUND(IF(DESONERACAO="sim",REFERENCIA.Desonerado,REFERENCIA.NaoDesonerado),2) -> 18.75 | AH61: 0.2247 | AJ61: 2.88 | AM61: 66.12 | AN61: =ROUND(ORÇAMENTO.CustoUnitario*(1+$AH61),2) -> 22.96
A62: S | B62: 2 | C62: S | D62: 0 | E62: =IF($C62=1,OFFSET(E62,-1,0)+MAX(1,COUNTIF(QCI!$A$13:$A$24,OFFSET(ORÇAMENTO!E62,-1,0))),OFFSET(E62,-1,0)) -> 1 | F62: 7 | G62: 0 | H62: 0 | I62: 7 | J62: 0 | K62: =IF(OR($C62="S",$C62=0),0,MATCH(OFFSET($D62,0,$C62)+IF($C62<>1,1,COUNTIF(QCI!$A$13:$A$24,ORÇAMENTO!E62)),OFFSET($D62,1,$C62,ROW($C$140)-ROW($C62)),0)) -> 0 | L62: F | M62: Serviço | N62: Serviço | O62: 1.7.7. | P62: SINAPI | Q62: 96534 | R62: FABRICAÇÃO, MONTAGEM E DESMONTAGEM DE FÔRMA PARA BLOCO DE COROAMENTO, EM MADEIRA SERRADA, E=25 MM, 4 UTILIZAÇÕES. AF_01/2024 | S62: M2 | T62: =OFFSET(CÁLCULO!H$15,ROW($T62)-ROW(T$15),0) -> 13.95 | U62: 69.04 | V62: BDI 1 | W62: =IF($C62="S",ROUND(IF(TIPOORCAMENTO="Proposto",ORÇAMENTO.CustoUnitario*(1+$AH62),ORÇAMENTO.PrecoUnitarioLicitado),15-13*$AF$10),0) -> 84.55 | X62: =IF($C62="S",IF(OR(Import.TipoArredondamento<>"TransfereGOV",ACOMPANHAMENTO="BM"),VTOTAL1,SUM(OFFSET(CÁLCULO!$AA$15,ROW($X62)-ROW($X$15),1):OFFSET(CÁLCULO!$AL$15,ROW($X62)-ROW($X$15),-1))),IF($C62=0,0,ROUND(SomaAgrup,15-13*$AF$11))) -> 1179.47 | Y62: RA | Z62: RA | AA62: =IF($C62="S",IF($Z62="CP",$X62,IF($Z62="RA",(($X62)*QCI!$AA$3),0)),SomaAgrup) -> 389.6364738 | AB62: =IF($C62="S",IF($Z62="OU",ROUND($X62,2),0),SomaAgrup) -> 0 | AC62: =IF($N62=""," ", IF(AND($C62<>"S",OR($R62="",$R62="(digite a descrição aqui)")),"DESCRIÇÃO", IF(AND($C62="S",OR($Q62<>"",$T62>0,$U62>0),$P62=""),"FONTE", IF(AND($C62="S",$P62<>"",OR($T62>0,$U62>0),$Q62=""),"CÓDIGO", IF(AND($C62="S",$P62<>"",$Q62<>"",$R62="(Código não identificado nas referências)"),"CÓDIGO N/ID", IF(AND($C62="S",OR($R62="",$R62="(digite a descrição aqui)"),OR($Q62<>"",$T62>0,$U62>0)),"DESCRIÇÃO", IF(AND($C62="S",$P62<>"",$Q62<>"",$S62=""),"UNIDADE", IF(AND($C62="S",$P62<>"",$Q62<>"",$U62=0),"SEM CUSTO", IF(AND(TIPOORCAMENTO="Licitado",$AL62=0,$AN62>0),"SEM PREÇO", IF(AND($C62="S",$P62<>"",$Q62<>"",$U62>0,AND($V62<>"BDI 1",$V62<>"BDI 2",$V62<>"BDI 3")),IF(ISNUMBER($V62),"JUSTIFICAR BDI","BDI"), IF(OR(AND(import.recurso="OGU",TIPOORCAMENTO="Proposto",LEFT($O$8,5)<>"(N/D:",$AG62<>"",ORÇAMENTO.CustoUnitario>$AG62),AND(TIPOORCAMENTO="LICITADO",ORÇAMENTO.PrecoUnitarioLicitado>$AN62)),"ACIMA REF.", IF(AND($C62="S",$P62<>"",$Q62<>"",$T62=0,$U62>0),"QUANT.", IF(AND(Import.TipoArredondamento="TransfereGOV",$L62="F",$C62="S",LEN($Q62)>13),"Código >13", IF(AND(Import.TipoArredondamento="TransfereGOV",$L62="F",$C62<>"S",LEN($R62)>100),"Descrição >100", IF(AND(Import.TipoArredondamento="TransfereGOV",$L62="F",$C62="S",LEN($R62)>500),"Descrição >500", IF(AND(Import.TipoArredondamento="TransfereGOV",$L62="F",$C62="S",LEFT(TRIM(UPPER($P62)),6)<>"SINAPI",ISNA(VLOOKUP(TRIM(UPPER($S62)),ListaTgov.Unidades,1,FALSE))),"Unid. Não Disp", " ")))))))))))))))) ->  | AD62: =IF(C62<=CRONO.NivelExibicao,MAX($AD$15:OFFSET(AD62,-1,0))+IF($C62<>1,1,MAX(1,COUNTIF(QCI!$A$13:$A$24,OFFSET($E62,-1,0)))),"") ->  | AE62: =IF(AND($C62="S",ORÇAMENTO.CodBarra<>""),IF(ORÇAMENTO.Fonte="",ORÇAMENTO.CodBarra,CONCATENATE(ORÇAMENTO.Fonte," ",ORÇAMENTO.CodBarra))) -> SINAPI 96534 | AF62: =IF(ISERROR(ORÇAMENTO.BancoRef),"(abra o arquivo 'Referência "&Excel_BuiltIn_Database&".xlsm)",IF(OR($C62<>"S",ORÇAMENTO.CodBarra=""),"(Sem Código)",IF(ISERROR(MATCH($AE62,INDIRECT(ORÇAMENTO.BancoRef),0)),"(Código não identificado nas referências)",MATCH($AE62,INDIRECT(ORÇAMENTO.BancoRef),0)))) -> 10026 | AG62: =ROUND(IF(DESONERACAO="sim",REFERENCIA.Desonerado,REFERENCIA.NaoDesonerado),2) -> 69.04 | AH62: 0.2247 | AJ62: 13.95 | AM62: 1179.47 | AN62: =ROUND(ORÇAMENTO.CustoUnitario*(1+$AH62),2) -> 84.55
A63: S | B63: 2 | C63: S | D63: 0 | E63: =IF($C63=1,OFFSET(E63,-1,0)+MAX(1,COUNTIF(QCI!$A$13:$A$24,OFFSET(ORÇAMENTO!E63,-1,0))),OFFSET(E63,-1,0)) -> 1 | F63: 7 | G63: 0 | H63: 0 | I63: 8 | J63: 0 | K63: =IF(OR($C63="S",$C63=0),0,MATCH(OFFSET($D63,0,$C63)+IF($C63<>1,1,COUNTIF(QCI!$A$13:$A$24,ORÇAMENTO!E63)),OFFSET($D63,1,$C63,ROW($C$140)-ROW($C63)),0)) -> 0 | L63: F | M63: Serviço | N63: Serviço | O63: 1.7.8. | P63: SINAPI | Q63: 96543 | R63: ARMAÇÃO DE BLOCO UTILIZANDO AÇO CA-60 DE 5 MM - MONTAGEM. AF_01/2024 | S63: KG | T63: =OFFSET(CÁLCULO!H$15,ROW($T63)-ROW(T$15),0) -> 19.3 | U63: 19.28 | V63: BDI 1 | W63: =IF($C63="S",ROUND(IF(TIPOORCAMENTO="Proposto",ORÇAMENTO.CustoUnitario*(1+$AH63),ORÇAMENTO.PrecoUnitarioLicitado),15-13*$AF$10),0) -> 23.61 | X63: =IF($C63="S",IF(OR(Import.TipoArredondamento<>"TransfereGOV",ACOMPANHAMENTO="BM"),VTOTAL1,SUM(OFFSET(CÁLCULO!$AA$15,ROW($X63)-ROW($X$15),1):OFFSET(CÁLCULO!$AL$15,ROW($X63)-ROW($X$15),-1))),IF($C63=0,0,ROUND(SomaAgrup,15-13*$AF$11))) -> 455.67 | Y63: RA | Z63: RA | AA63: =IF($C63="S",IF($Z63="CP",$X63,IF($Z63="RA",(($X63)*QCI!$AA$3),0)),SomaAgrup) -> 150.5300279 | AB63: =IF($C63="S",IF($Z63="OU",ROUND($X63,2),0),SomaAgrup) -> 0 | AC63: =IF($N63=""," ", IF(AND($C63<>"S",OR($R63="",$R63="(digite a descrição aqui)")),"DESCRIÇÃO", IF(AND($C63="S",OR($Q63<>"",$T63>0,$U63>0),$P63=""),"FONTE", IF(AND($C63="S",$P63<>"",OR($T63>0,$U63>0),$Q63=""),"CÓDIGO", IF(AND($C63="S",$P63<>"",$Q63<>"",$R63="(Código não identificado nas referências)"),"CÓDIGO N/ID", IF(AND($C63="S",OR($R63="",$R63="(digite a descrição aqui)"),OR($Q63<>"",$T63>0,$U63>0)),"DESCRIÇÃO", IF(AND($C63="S",$P63<>"",$Q63<>"",$S63=""),"UNIDADE", IF(AND($C63="S",$P63<>"",$Q63<>"",$U63=0),"SEM CUSTO", IF(AND(TIPOORCAMENTO="Licitado",$AL63=0,$AN63>0),"SEM PREÇO", IF(AND($C63="S",$P63<>"",$Q63<>"",$U63>0,AND($V63<>"BDI 1",$V63<>"BDI 2",$V63<>"BDI 3")),IF(ISNUMBER($V63),"JUSTIFICAR BDI","BDI"), IF(OR(AND(import.recurso="OGU",TIPOORCAMENTO="Proposto",LEFT($O$8,5)<>"(N/D:",$AG63<>"",ORÇAMENTO.CustoUnitario>$AG63),AND(TIPOORCAMENTO="LICITADO",ORÇAMENTO.PrecoUnitarioLicitado>$AN63)),"ACIMA REF.", IF(AND($C63="S",$P63<>"",$Q63<>"",$T63=0,$U63>0),"QUANT.", IF(AND(Import.TipoArredondamento="TransfereGOV",$L63="F",$C63="S",LEN($Q63)>13),"Código >13", IF(AND(Import.TipoArredondamento="TransfereGOV",$L63="F",$C63<>"S",LEN($R63)>100),"Descrição >100", IF(AND(Import.TipoArredondamento="TransfereGOV",$L63="F",$C63="S",LEN($R63)>500),"Descrição >500", IF(AND(Import.TipoArredondamento="TransfereGOV",$L63="F",$C63="S",LEFT(TRIM(UPPER($P63)),6)<>"SINAPI",ISNA(VLOOKUP(TRIM(UPPER($S63)),ListaTgov.Unidades,1,FALSE))),"Unid. Não Disp", " ")))))))))))))))) ->  | AD63: =IF(C63<=CRONO.NivelExibicao,MAX($AD$15:OFFSET(AD63,-1,0))+IF($C63<>1,1,MAX(1,COUNTIF(QCI!$A$13:$A$24,OFFSET($E63,-1,0)))),"") ->  | AE63: =IF(AND($C63="S",ORÇAMENTO.CodBarra<>""),IF(ORÇAMENTO.Fonte="",ORÇAMENTO.CodBarra,CONCATENATE(ORÇAMENTO.Fonte," ",ORÇAMENTO.CodBarra))) -> SINAPI 96543 | AF63: =IF(ISERROR(ORÇAMENTO.BancoRef),"(abra o arquivo 'Referência "&Excel_BuiltIn_Database&".xlsm)",IF(OR($C63<>"S",ORÇAMENTO.CodBarra=""),"(Sem Código)",IF(ISERROR(MATCH($AE63,INDIRECT(ORÇAMENTO.BancoRef),0)),"(Código não identificado nas referências)",MATCH($AE63,INDIRECT(ORÇAMENTO.BancoRef),0)))) -> 10000 | AG63: =ROUND(IF(DESONERACAO="sim",REFERENCIA.Desonerado,REFERENCIA.NaoDesonerado),2) -> 19.28 | AH63: 0.2247 | AJ63: 19.3 | AM63: 455.67 | AN63: =ROUND(ORÇAMENTO.CustoUnitario*(1+$AH63),2) -> 23.61
A64: S | B64: 2 | C64: S | D64: 0 | E64: =IF($C64=1,OFFSET(E64,-1,0)+MAX(1,COUNTIF(QCI!$A$13:$A$24,OFFSET(ORÇAMENTO!E64,-1,0))),OFFSET(E64,-1,0)) -> 1 | F64: 7 | G64: 0 | H64: 0 | I64: 9 | J64: 0 | K64: =IF(OR($C64="S",$C64=0),0,MATCH(OFFSET($D64,0,$C64)+IF($C64<>1,1,COUNTIF(QCI!$A$13:$A$24,ORÇAMENTO!E64)),OFFSET($D64,1,$C64,ROW($C$140)-ROW($C64)),0)) -> 0 | L64: F | M64: Serviço | N64: Serviço | O64: 1.7.9. | P64: SINAPI | Q64: 96544 | R64: ARMAÇÃO DE BLOCO UTILIZANDO AÇO CA-50 DE 6,3 MM - MONTAGEM. AF_01/2024 | S64: KG | T64: =OFFSET(CÁLCULO!H$15,ROW($T64)-ROW(T$15),0) -> 21.7 | U64: 17.49 | V64: BDI 1 | W64: =IF($C64="S",ROUND(IF(TIPOORCAMENTO="Proposto",ORÇAMENTO.CustoUnitario*(1+$AH64),ORÇAMENTO.PrecoUnitarioLicitado),15-13*$AF$10),0) -> 21.42 | X64: =IF($C64="S",IF(OR(Import.TipoArredondamento<>"TransfereGOV",ACOMPANHAMENTO="BM"),VTOTAL1,SUM(OFFSET(CÁLCULO!$AA$15,ROW($X64)-ROW($X$15),1):OFFSET(CÁLCULO!$AL$15,ROW($X64)-ROW($X$15),-1))),IF($C64=0,0,ROUND(SomaAgrup,15-13*$AF$11))) -> 464.81 | Y64: RA | Z64: RA | AA64: =IF($C64="S",IF($Z64="CP",$X64,IF($Z64="RA",(($X64)*QCI!$AA$3),0)),SomaAgrup) -> 153.5494157 | AB64: =IF($C64="S",IF($Z64="OU",ROUND($X64,2),0),SomaAgrup) -> 0 | AC64: =IF($N64=""," ", IF(AND($C64<>"S",OR($R64="",$R64="(digite a descrição aqui)")),"DESCRIÇÃO", IF(AND($C64="S",OR($Q64<>"",$T64>0,$U64>0),$P64=""),"FONTE", IF(AND($C64="S",$P64<>"",OR($T64>0,$U64>0),$Q64=""),"CÓDIGO", IF(AND($C64="S",$P64<>"",$Q64<>"",$R64="(Código não identificado nas referências)"),"CÓDIGO N/ID", IF(AND($C64="S",OR($R64="",$R64="(digite a descrição aqui)"),OR($Q64<>"",$T64>0,$U64>0)),"DESCRIÇÃO", IF(AND($C64="S",$P64<>"",$Q64<>"",$S64=""),"UNIDADE", IF(AND($C64="S",$P64<>"",$Q64<>"",$U64=0),"SEM CUSTO", IF(AND(TIPOORCAMENTO="Licitado",$AL64=0,$AN64>0),"SEM PREÇO", IF(AND($C64="S",$P64<>"",$Q64<>"",$U64>0,AND($V64<>"BDI 1",$V64<>"BDI 2",$V64<>"BDI 3")),IF(ISNUMBER($V64),"JUSTIFICAR BDI","BDI"), IF(OR(AND(import.recurso="OGU",TIPOORCAMENTO="Proposto",LEFT($O$8,5)<>"(N/D:",$AG64<>"",ORÇAMENTO.CustoUnitario>$AG64),AND(TIPOORCAMENTO="LICITADO",ORÇAMENTO.PrecoUnitarioLicitado>$AN64)),"ACIMA REF.", IF(AND($C64="S",$P64<>"",$Q64<>"",$T64=0,$U64>0),"QUANT.", IF(AND(Import.TipoArredondamento="TransfereGOV",$L64="F",$C64="S",LEN($Q64)>13),"Código >13", IF(AND(Import.TipoArredondamento="TransfereGOV",$L64="F",$C64<>"S",LEN($R64)>100),"Descrição >100", IF(AND(Import.TipoArredondamento="TransfereGOV",$L64="F",$C64="S",LEN($R64)>500),"Descrição >500", IF(AND(Import.TipoArredondamento="TransfereGOV",$L64="F",$C64="S",LEFT(TRIM(UPPER($P64)),6)<>"SINAPI",ISNA(VLOOKUP(TRIM(UPPER($S64)),ListaTgov.Unidades,1,FALSE))),"Unid. Não Disp", " ")))))))))))))))) ->  | AD64: =IF(C64<=CRONO.NivelExibicao,MAX($AD$15:OFFSET(AD64,-1,0))+IF($C64<>1,1,MAX(1,COUNTIF(QCI!$A$13:$A$24,OFFSET($E64,-1,0)))),"") ->  | AE64: =IF(AND($C64="S",ORÇAMENTO.CodBarra<>""),IF(ORÇAMENTO.Fonte="",ORÇAMENTO.CodBarra,CONCATENATE(ORÇAMENTO.Fonte," ",ORÇAMENTO.CodBarra))) -> SINAPI 96544 | AF64: =IF(ISERROR(ORÇAMENTO.BancoRef),"(abra o arquivo 'Referência "&Excel_BuiltIn_Database&".xlsm)",IF(OR($C64<>"S",ORÇAMENTO.CodBarra=""),"(Sem Código)",IF(ISERROR(MATCH($AE64,INDIRECT(ORÇAMENTO.BancoRef),0)),"(Código não identificado nas referências)",MATCH($AE64,INDIRECT(ORÇAMENTO.BancoRef),0)))) -> 9998 | AG64: =ROUND(IF(DESONERACAO="sim",REFERENCIA.Desonerado,REFERENCIA.NaoDesonerado),2) -> 17.49 | AH64: 0.2247 | AJ64: 21.7 | AM64: 464.81 | AN64: =ROUND(ORÇAMENTO.CustoUnitario*(1+$AH64),2) -> 21.42
A65: S | B65: 2 | C65: S | D65: 0 | E65: =IF($C65=1,OFFSET(E65,-1,0)+MAX(1,COUNTIF(QCI!$A$13:$A$24,OFFSET(ORÇAMENTO!E65,-1,0))),OFFSET(E65,-1,0)) -> 1 | F65: 7 | G65: 0 | H65: 0 | I65: 10 | J65: 0 | K65: =IF(OR($C65="S",$C65=0),0,MATCH(OFFSET($D65,0,$C65)+IF($C65<>1,1,COUNTIF(QCI!$A$13:$A$24,ORÇAMENTO!E65)),OFFSET($D65,1,$C65,ROW($C$140)-ROW($C65)),0)) -> 0 | L65: F | M65: Serviço | N65: Serviço | O65: 1.7.10. | P65: SINAPI | Q65: 104921 | R65: ARMAÇÃO DE BLOCO, SAPATA ISOLADA, VIGA BALDRAME E SAPATA CORRIDA UTILIZANDO AÇO CA-50 DE 16 MM - MONTAGEM. AF_01/2024 | S65: KG | T65: =OFFSET(CÁLCULO!H$15,ROW($T65)-ROW(T$15),0) -> 152 | U65: 10.19 | V65: BDI 1 | W65: =IF($C65="S",ROUND(IF(TIPOORCAMENTO="Proposto",ORÇAMENTO.CustoUnitario*(1+$AH65),ORÇAMENTO.PrecoUnitarioLicitado),15-13*$AF$10),0) -> 12.48 | X65: =IF($C65="S",IF(OR(Import.TipoArredondamento<>"TransfereGOV",ACOMPANHAMENTO="BM"),VTOTAL1,SUM(OFFSET(CÁLCULO!$AA$15,ROW($X65)-ROW($X$15),1):OFFSET(CÁLCULO!$AL$15,ROW($X65)-ROW($X$15),-1))),IF($C65=0,0,ROUND(SomaAgrup,15-13*$AF$11))) -> 1896.96 | Y65: RA | Z65: RA | AA65: =IF($C65="S",IF($Z65="CP",$X65,IF($Z65="RA",(($X65)*QCI!$AA$3),0)),SomaAgrup) -> 626.6584188 | AB65: =IF($C65="S",IF($Z65="OU",ROUND($X65,2),0),SomaAgrup) -> 0 | AC65: =IF($N65=""," ", IF(AND($C65<>"S",OR($R65="",$R65="(digite a descrição aqui)")),"DESCRIÇÃO", IF(AND($C65="S",OR($Q65<>"",$T65>0,$U65>0),$P65=""),"FONTE", IF(AND($C65="S",$P65<>"",OR($T65>0,$U65>0),$Q65=""),"CÓDIGO", IF(AND($C65="S",$P65<>"",$Q65<>"",$R65="(Código não identificado nas referências)"),"CÓDIGO N/ID", IF(AND($C65="S",OR($R65="",$R65="(digite a descrição aqui)"),OR($Q65<>"",$T65>0,$U65>0)),"DESCRIÇÃO", IF(AND($C65="S",$P65<>"",$Q65<>"",$S65=""),"UNIDADE", IF(AND($C65="S",$P65<>"",$Q65<>"",$U65=0),"SEM CUSTO", IF(AND(TIPOORCAMENTO="Licitado",$AL65=0,$AN65>0),"SEM PREÇO", IF(AND($C65="S",$P65<>"",$Q65<>"",$U65>0,AND($V65<>"BDI 1",$V65<>"BDI 2",$V65<>"BDI 3")),IF(ISNUMBER($V65),"JUSTIFICAR BDI","BDI"), IF(OR(AND(import.recurso="OGU",TIPOORCAMENTO="Proposto",LEFT($O$8,5)<>"(N/D:",$AG65<>"",ORÇAMENTO.CustoUnitario>$AG65),AND(TIPOORCAMENTO="LICITADO",ORÇAMENTO.PrecoUnitarioLicitado>$AN65)),"ACIMA REF.", IF(AND($C65="S",$P65<>"",$Q65<>"",$T65=0,$U65>0),"QUANT.", IF(AND(Import.TipoArredondamento="TransfereGOV",$L65="F",$C65="S",LEN($Q65)>13),"Código >13", IF(AND(Import.TipoArredondamento="TransfereGOV",$L65="F",$C65<>"S",LEN($R65)>100),"Descrição >100", IF(AND(Import.TipoArredondamento="TransfereGOV",$L65="F",$C65="S",LEN($R65)>500),"Descrição >500", IF(AND(Import.TipoArredondamento="TransfereGOV",$L65="F",$C65="S",LEFT(TRIM(UPPER($P65)),6)<>"SINAPI",ISNA(VLOOKUP(TRIM(UPPER($S65)),ListaTgov.Unidades,1,FALSE))),"Unid. Não Disp", " ")))))))))))))))) ->  | AD65: =IF(C65<=CRONO.NivelExibicao,MAX($AD$15:OFFSET(AD65,-1,0))+IF($C65<>1,1,MAX(1,COUNTIF(QCI!$A$13:$A$24,OFFSET($E65,-1,0)))),"") ->  | AE65: =IF(AND($C65="S",ORÇAMENTO.CodBarra<>""),IF(ORÇAMENTO.Fonte="",ORÇAMENTO.CodBarra,CONCATENATE(ORÇAMENTO.Fonte," ",ORÇAMENTO.CodBarra))) -> SINAPI 104921 | AF65: =IF(ISERROR(ORÇAMENTO.BancoRef),"(abra o arquivo 'Referência "&Excel_BuiltIn_Database&".xlsm)",IF(OR($C65<>"S",ORÇAMENTO.CodBarra=""),"(Sem Código)",IF(ISERROR(MATCH($AE65,INDIRECT(ORÇAMENTO.BancoRef),0)),"(Código não identificado nas referências)",MATCH($AE65,INDIRECT(ORÇAMENTO.BancoRef),0)))) -> 10003 | AG65: =ROUND(IF(DESONERACAO="sim",REFERENCIA.Desonerado,REFERENCIA.NaoDesonerado),2) -> 10.19 | AH65: 0.2247 | AJ65: 152 | AM65: 1896.96 | AN65: =ROUND(ORÇAMENTO.CustoUnitario*(1+$AH65),2) -> 12.48
A66: S | B66: 2 | C66: S | D66: 0 | E66: =IF($C66=1,OFFSET(E66,-1,0)+MAX(1,COUNTIF(QCI!$A$13:$A$24,OFFSET(ORÇAMENTO!E66,-1,0))),OFFSET(E66,-1,0)) -> 1 | F66: 7 | G66: 0 | H66: 0 | I66: 11 | J66: 0 | K66: =IF(OR($C66="S",$C66=0),0,MATCH(OFFSET($D66,0,$C66)+IF($C66<>1,1,COUNTIF(QCI!$A$13:$A$24,ORÇAMENTO!E66)),OFFSET($D66,1,$C66,ROW($C$140)-ROW($C66)),0)) -> 0 | L66: F | M66: Serviço | N66: Serviço | O66: 1.7.11. | P66: SINAPI | Q66: 94965 | R66: CONCRETO FCK = 25MPA, TRAÇO 1:2,3:2,7 (EM MASSA SECA DE CIMENTO/ AREIA MÉDIA/ BRITA 1) - PREPARO MECÂNICO COM BETONEIRA 400 L. AF_05/2021 | S66: M3 | T66: =OFFSET(CÁLCULO!H$15,ROW($T66)-ROW(T$15),0) -> 2.69 | U66: 496.93 | V66: BDI 1 | W66: =IF($C66="S",ROUND(IF(TIPOORCAMENTO="Proposto",ORÇAMENTO.CustoUnitario*(1+$AH66),ORÇAMENTO.PrecoUnitarioLicitado),15-13*$AF$10),0) -> 608.59 | X66: =IF($C66="S",IF(OR(Import.TipoArredondamento<>"TransfereGOV",ACOMPANHAMENTO="BM"),VTOTAL1,SUM(OFFSET(CÁLCULO!$AA$15,ROW($X66)-ROW($X$15),1):OFFSET(CÁLCULO!$AL$15,ROW($X66)-ROW($X$15),-1))),IF($C66=0,0,ROUND(SomaAgrup,15-13*$AF$11))) -> 1637.11 | Y66: RA | Z66: RA | AA66: =IF($C66="S",IF($Z66="CP",$X66,IF($Z66="RA",(($X66)*QCI!$AA$3),0)),SomaAgrup) -> 540.8172887 | AB66: =IF($C66="S",IF($Z66="OU",ROUND($X66,2),0),SomaAgrup) -> 0 | AC66: =IF($N66=""," ", IF(AND($C66<>"S",OR($R66="",$R66="(digite a descrição aqui)")),"DESCRIÇÃO", IF(AND($C66="S",OR($Q66<>"",$T66>0,$U66>0),$P66=""),"FONTE", IF(AND($C66="S",$P66<>"",OR($T66>0,$U66>0),$Q66=""),"CÓDIGO", IF(AND($C66="S",$P66<>"",$Q66<>"",$R66="(Código não identificado nas referências)"),"CÓDIGO N/ID", IF(AND($C66="S",OR($R66="",$R66="(digite a descrição aqui)"),OR($Q66<>"",$T66>0,$U66>0)),"DESCRIÇÃO", IF(AND($C66="S",$P66<>"",$Q66<>"",$S66=""),"UNIDADE", IF(AND($C66="S",$P66<>"",$Q66<>"",$U66=0),"SEM CUSTO", IF(AND(TIPOORCAMENTO="Licitado",$AL66=0,$AN66>0),"SEM PREÇO", IF(AND($C66="S",$P66<>"",$Q66<>"",$U66>0,AND($V66<>"BDI 1",$V66<>"BDI 2",$V66<>"BDI 3")),IF(ISNUMBER($V66),"JUSTIFICAR BDI","BDI"), IF(OR(AND(import.recurso="OGU",TIPOORCAMENTO="Proposto",LEFT($O$8,5)<>"(N/D:",$AG66<>"",ORÇAMENTO.CustoUnitario>$AG66),AND(TIPOORCAMENTO="LICITADO",ORÇAMENTO.PrecoUnitarioLicitado>$AN66)),"ACIMA REF.", IF(AND($C66="S",$P66<>"",$Q66<>"",$T66=0,$U66>0),"QUANT.", IF(AND(Import.TipoArredondamento="TransfereGOV",$L66="F",$C66="S",LEN($Q66)>13),"Código >13", IF(AND(Import.TipoArredondamento="TransfereGOV",$L66="F",$C66<>"S",LEN($R66)>100),"Descrição >100", IF(AND(Import.TipoArredondamento="TransfereGOV",$L66="F",$C66="S",LEN($R66)>500),"Descrição >500", IF(AND(Import.TipoArredondamento="TransfereGOV",$L66="F",$C66="S",LEFT(TRIM(UPPER($P66)),6)<>"SINAPI",ISNA(VLOOKUP(TRIM(UPPER($S66)),ListaTgov.Unidades,1,FALSE))),"Unid. Não Disp", " ")))))))))))))))) ->  | AD66: =IF(C66<=CRONO.NivelExibicao,MAX($AD$15:OFFSET(AD66,-1,0))+IF($C66<>1,1,MAX(1,COUNTIF(QCI!$A$13:$A$24,OFFSET($E66,-1,0)))),"") ->  | AE66: =IF(AND($C66="S",ORÇAMENTO.CodBarra<>""),IF(ORÇAMENTO.Fonte="",ORÇAMENTO.CodBarra,CONCATENATE(ORÇAMENTO.Fonte," ",ORÇAMENTO.CodBarra))) -> SINAPI 94965 | AF66: =IF(ISERROR(ORÇAMENTO.BancoRef),"(abra o arquivo 'Referência "&Excel_BuiltIn_Database&".xlsm)",IF(OR($C66<>"S",ORÇAMENTO.CodBarra=""),"(Sem Código)",IF(ISERROR(MATCH($AE66,INDIRECT(ORÇAMENTO.BancoRef),0)),"(Código não identificado nas referências)",MATCH($AE66,INDIRECT(ORÇAMENTO.BancoRef),0)))) -> 14322 | AG66: =ROUND(IF(DESONERACAO="sim",REFERENCIA.Desonerado,REFERENCIA.NaoDesonerado),2) -> 496.93 | AH66: 0.2247 | AJ66: 2.69 | AM66: 1637.11 | AN66: =ROUND(ORÇAMENTO.CustoUnitario*(1+$AH66),2) -> 608.59
A67: S | B67: 2 | C67: S | D67: 0 | E67: =IF($C67=1,OFFSET(E67,-1,0)+MAX(1,COUNTIF(QCI!$A$13:$A$24,OFFSET(ORÇAMENTO!E67,-1,0))),OFFSET(E67,-1,0)) -> 1 | F67: 7 | G67: 0 | H67: 0 | I67: 12 | J67: 0 | K67: =IF(OR($C67="S",$C67=0),0,MATCH(OFFSET($D67,0,$C67)+IF($C67<>1,1,COUNTIF(QCI!$A$13:$A$24,ORÇAMENTO!E67)),OFFSET($D67,1,$C67,ROW($C$140)-ROW($C67)),0)) -> 0 | L67: F | M67: Serviço | N67: Serviço | O67: 1.7.12. | P67: SINAPI | Q67: 103670 | R67: LANÇAMENTO COM USO DE BALDES, ADENSAMENTO E ACABAMENTO DE CONCRETO EM ESTRUTURAS. AF_02/2022 | S67: M3 | T67: =OFFSET(CÁLCULO!H$15,ROW($T67)-ROW(T$15),0) -> 2.69 | U67: 280.9 | V67: BDI 1 | W67: =IF($C67="S",ROUND(IF(TIPOORCAMENTO="Proposto",ORÇAMENTO.CustoUnitario*(1+$AH67),ORÇAMENTO.PrecoUnitarioLicitado),15-13*$AF$10),0) -> 344.02 | X67: =IF($C67="S",IF(OR(Import.TipoArredondamento<>"TransfereGOV",ACOMPANHAMENTO="BM"),VTOTAL1,SUM(OFFSET(CÁLCULO!$AA$15,ROW($X67)-ROW($X$15),1):OFFSET(CÁLCULO!$AL$15,ROW($X67)-ROW($X$15),-1))),IF($C67=0,0,ROUND(SomaAgrup,15-13*$AF$11))) -> 925.41 | Y67: RA | Z67: RA | AA67: =IF($C67="S",IF($Z67="CP",$X67,IF($Z67="RA",(($X67)*QCI!$AA$3),0)),SomaAgrup) -> 305.7080631 | AB67: =IF($C67="S",IF($Z67="OU",ROUND($X67,2),0),SomaAgrup) -> 0 | AC67: =IF($N67=""," ", IF(AND($C67<>"S",OR($R67="",$R67="(digite a descrição aqui)")),"DESCRIÇÃO", IF(AND($C67="S",OR($Q67<>"",$T67>0,$U67>0),$P67=""),"FONTE", IF(AND($C67="S",$P67<>"",OR($T67>0,$U67>0),$Q67=""),"CÓDIGO", IF(AND($C67="S",$P67<>"",$Q67<>"",$R67="(Código não identificado nas referências)"),"CÓDIGO N/ID", IF(AND($C67="S",OR($R67="",$R67="(digite a descrição aqui)"),OR($Q67<>"",$T67>0,$U67>0)),"DESCRIÇÃO", IF(AND($C67="S",$P67<>"",$Q67<>"",$S67=""),"UNIDADE", IF(AND($C67="S",$P67<>"",$Q67<>"",$U67=0),"SEM CUSTO", IF(AND(TIPOORCAMENTO="Licitado",$AL67=0,$AN67>0),"SEM PREÇO", IF(AND($C67="S",$P67<>"",$Q67<>"",$U67>0,AND($V67<>"BDI 1",$V67<>"BDI 2",$V67<>"BDI 3")),IF(ISNUMBER($V67),"JUSTIFICAR BDI","BDI"), IF(OR(AND(import.recurso="OGU",TIPOORCAMENTO="Proposto",LEFT($O$8,5)<>"(N/D:",$AG67<>"",ORÇAMENTO.CustoUnitario>$AG67),AND(TIPOORCAMENTO="LICITADO",ORÇAMENTO.PrecoUnitarioLicitado>$AN67)),"ACIMA REF.", IF(AND($C67="S",$P67<>"",$Q67<>"",$T67=0,$U67>0),"QUANT.", IF(AND(Import.TipoArredondamento="TransfereGOV",$L67="F",$C67="S",LEN($Q67)>13),"Código >13", IF(AND(Import.TipoArredondamento="TransfereGOV",$L67="F",$C67<>"S",LEN($R67)>100),"Descrição >100", IF(AND(Import.TipoArredondamento="TransfereGOV",$L67="F",$C67="S",LEN($R67)>500),"Descrição >500", IF(AND(Import.TipoArredondamento="TransfereGOV",$L67="F",$C67="S",LEFT(TRIM(UPPER($P67)),6)<>"SINAPI",ISNA(VLOOKUP(TRIM(UPPER($S67)),ListaTgov.Unidades,1,FALSE))),"Unid. Não Disp", " ")))))))))))))))) ->  | AD67: =IF(C67<=CRONO.NivelExibicao,MAX($AD$15:OFFSET(AD67,-1,0))+IF($C67<>1,1,MAX(1,COUNTIF(QCI!$A$13:$A$24,OFFSET($E67,-1,0)))),"") ->  | AE67: =IF(AND($C67="S",ORÇAMENTO.CodBarra<>""),IF(ORÇAMENTO.Fonte="",ORÇAMENTO.CodBarra,CONCATENATE(ORÇAMENTO.Fonte," ",ORÇAMENTO.CodBarra))) -> SINAPI 103670 | AF67: =IF(ISERROR(ORÇAMENTO.BancoRef),"(abra o arquivo 'Referência "&Excel_BuiltIn_Database&".xlsm)",IF(OR($C67<>"S",ORÇAMENTO.CodBarra=""),"(Sem Código)",IF(ISERROR(MATCH($AE67,INDIRECT(ORÇAMENTO.BancoRef),0)),"(Código não identificado nas referências)",MATCH($AE67,INDIRECT(ORÇAMENTO.BancoRef),0)))) -> 7331 | AG67: =ROUND(IF(DESONERACAO="sim",REFERENCIA.Desonerado,REFERENCIA.NaoDesonerado),2) -> 280.9 | AH67: 0.2247 | AJ67: 2.69 | AM67: 925.41 | AN67: =ROUND(ORÇAMENTO.CustoUnitario*(1+$AH67),2) -> 344.02
A68: S | B68: 2 | C68: S | D68: 0 | E68: =IF($C68=1,OFFSET(E68,-1,0)+MAX(1,COUNTIF(QCI!$A$13:$A$24,OFFSET(ORÇAMENTO!E68,-1,0))),OFFSET(E68,-1,0)) -> 1 | F68: 7 | G68: 0 | H68: 0 | I68: 13 | J68: 0 | K68: =IF(OR($C68="S",$C68=0),0,MATCH(OFFSET($D68,0,$C68)+IF($C68<>1,1,COUNTIF(QCI!$A$13:$A$24,ORÇAMENTO!E68)),OFFSET($D68,1,$C68,ROW($C$140)-ROW($C68)),0)) -> 0 | L68: F | M68: Serviço | N68: Serviço | O68: 1.7.13. | P68: SINAPI | Q68: 98557 | R68: IMPERMEABILIZAÇÃO DE SUPERFÍCIE COM EMULSÃO ASFÁLTICA, 2 DEMÃOS. AF_09/2023 | S68: M2 | T68: =OFFSET(CÁLCULO!H$15,ROW($T68)-ROW(T$15),0) -> 13.95 | U68: 43.77 | V68: BDI 1 | W68: =IF($C68="S",ROUND(IF(TIPOORCAMENTO="Proposto",ORÇAMENTO.CustoUnitario*(1+$AH68),ORÇAMENTO.PrecoUnitarioLicitado),15-13*$AF$10),0) -> 53.61 | X68: =IF($C68="S",IF(OR(Import.TipoArredondamento<>"TransfereGOV",ACOMPANHAMENTO="BM"),VTOTAL1,SUM(OFFSET(CÁLCULO!$AA$15,ROW($X68)-ROW($X$15),1):OFFSET(CÁLCULO!$AL$15,ROW($X68)-ROW($X$15),-1))),IF($C68=0,0,ROUND(SomaAgrup,15-13*$AF$11))) -> 747.86 | Y68: RA | Z68: RA | AA68: =IF($C68="S",IF($Z68="CP",$X68,IF($Z68="RA",(($X68)*QCI!$AA$3),0)),SomaAgrup) -> 247.0546375 | AB68: =IF($C68="S",IF($Z68="OU",ROUND($X68,2),0),SomaAgrup) -> 0 | AC68: =IF($N68=""," ", IF(AND($C68<>"S",OR($R68="",$R68="(digite a descrição aqui)")),"DESCRIÇÃO", IF(AND($C68="S",OR($Q68<>"",$T68>0,$U68>0),$P68=""),"FONTE", IF(AND($C68="S",$P68<>"",OR($T68>0,$U68>0),$Q68=""),"CÓDIGO", IF(AND($C68="S",$P68<>"",$Q68<>"",$R68="(Código não identificado nas referências)"),"CÓDIGO N/ID", IF(AND($C68="S",OR($R68="",$R68="(digite a descrição aqui)"),OR($Q68<>"",$T68>0,$U68>0)),"DESCRIÇÃO", IF(AND($C68="S",$P68<>"",$Q68<>"",$S68=""),"UNIDADE", IF(AND($C68="S",$P68<>"",$Q68<>"",$U68=0),"SEM CUSTO", IF(AND(TIPOORCAMENTO="Licitado",$AL68=0,$AN68>0),"SEM PREÇO", IF(AND($C68="S",$P68<>"",$Q68<>"",$U68>0,AND($V68<>"BDI 1",$V68<>"BDI 2",$V68<>"BDI 3")),IF(ISNUMBER($V68),"JUSTIFICAR BDI","BDI"), IF(OR(AND(import.recurso="OGU",TIPOORCAMENTO="Proposto",LEFT($O$8,5)<>"(N/D:",$AG68<>"",ORÇAMENTO.CustoUnitario>$AG68),AND(TIPOORCAMENTO="LICITADO",ORÇAMENTO.PrecoUnitarioLicitado>$AN68)),"ACIMA REF.", IF(AND($C68="S",$P68<>"",$Q68<>"",$T68=0,$U68>0),"QUANT.", IF(AND(Import.TipoArredondamento="TransfereGOV",$L68="F",$C68="S",LEN($Q68)>13),"Código >13", IF(AND(Import.TipoArredondamento="TransfereGOV",$L68="F",$C68<>"S",LEN($R68)>100),"Descrição >100", IF(AND(Import.TipoArredondamento="TransfereGOV",$L68="F",$C68="S",LEN($R68)>500),"Descrição >500", IF(AND(Import.TipoArredondamento="TransfereGOV",$L68="F",$C68="S",LEFT(TRIM(UPPER($P68)),6)<>"SINAPI",ISNA(VLOOKUP(TRIM(UPPER($S68)),ListaTgov.Unidades,1,FALSE))),"Unid. Não Disp", " ")))))))))))))))) ->  | AD68: =IF(C68<=CRONO.NivelExibicao,MAX($AD$15:OFFSET(AD68,-1,0))+IF($C68<>1,1,MAX(1,COUNTIF(QCI!$A$13:$A$24,OFFSET($E68,-1,0)))),"") ->  | AE68: =IF(AND($C68="S",ORÇAMENTO.CodBarra<>""),IF(ORÇAMENTO.Fonte="",ORÇAMENTO.CodBarra,CONCATENATE(ORÇAMENTO.Fonte," ",ORÇAMENTO.CodBarra))) -> SINAPI 98557 | AF68: =IF(ISERROR(ORÇAMENTO.BancoRef),"(abra o arquivo 'Referência "&Excel_BuiltIn_Database&".xlsm)",IF(OR($C68<>"S",ORÇAMENTO.CodBarra=""),"(Sem Código)",IF(ISERROR(MATCH($AE68,INDIRECT(ORÇAMENTO.BancoRef),0)),"(Código não identificado nas referências)",MATCH($AE68,INDIRECT(ORÇAMENTO.BancoRef),0)))) -> 10353 | AG68: =ROUND(IF(DESONERACAO="sim",REFERENCIA.Desonerado,REFERENCIA.NaoDesonerado),2) -> 43.77 | AH68: 0.2247 | AJ68: 13.95 | AM68: 747.86 | AN68: =ROUND(ORÇAMENTO.CustoUnitario*(1+$AH68),2) -> 53.61
A69: S | B69: 2 | C69: S | D69: 0 | E69: =IF($C69=1,OFFSET(E69,-1,0)+MAX(1,COUNTIF(QCI!$A$13:$A$24,OFFSET(ORÇAMENTO!E69,-1,0))),OFFSET(E69,-1,0)) -> 1 | F69: 7 | G69: 0 | H69: 0 | I69: 14 | J69: 0 | K69: =IF(OR($C69="S",$C69=0),0,MATCH(OFFSET($D69,0,$C69)+IF($C69<>1,1,COUNTIF(QCI!$A$13:$A$24,ORÇAMENTO!E69)),OFFSET($D69,1,$C69,ROW($C$140)-ROW($C69)),0)) -> 0 | L69: F | M69: Serviço | N69: Serviço | O69: 1.7.14. | P69: SINAPI | Q69: 93382 | R69: REATERRO MANUAL DE VALAS, COM COMPACTADOR DE SOLOS DE PERCUSSÃO. AF_08/2023 | S69: M3 | T69: =OFFSET(CÁLCULO!H$15,ROW($T69)-ROW(T$15),0) -> 1.61 | U69: 25.26 | V69: BDI 1 | W69: =IF($C69="S",ROUND(IF(TIPOORCAMENTO="Proposto",ORÇAMENTO.CustoUnitario*(1+$AH69),ORÇAMENTO.PrecoUnitarioLicitado),15-13*$AF$10),0) -> 30.94 | X69: =IF($C69="S",IF(OR(Import.TipoArredondamento<>"TransfereGOV",ACOMPANHAMENTO="BM"),VTOTAL1,SUM(OFFSET(CÁLCULO!$AA$15,ROW($X69)-ROW($X$15),1):OFFSET(CÁLCULO!$AL$15,ROW($X69)-ROW($X$15),-1))),IF($C69=0,0,ROUND(SomaAgrup,15-13*$AF$11))) -> 49.81 | Y69: RA | Z69: RA | AA69: =IF($C69="S",IF($Z69="CP",$X69,IF($Z69="RA",(($X69)*QCI!$AA$3),0)),SomaAgrup) -> 16.45467266 | AB69: =IF($C69="S",IF($Z69="OU",ROUND($X69,2),0),SomaAgrup) -> 0 | AC69: =IF($N69=""," ", IF(AND($C69<>"S",OR($R69="",$R69="(digite a descrição aqui)")),"DESCRIÇÃO", IF(AND($C69="S",OR($Q69<>"",$T69>0,$U69>0),$P69=""),"FONTE", IF(AND($C69="S",$P69<>"",OR($T69>0,$U69>0),$Q69=""),"CÓDIGO", IF(AND($C69="S",$P69<>"",$Q69<>"",$R69="(Código não identificado nas referências)"),"CÓDIGO N/ID", IF(AND($C69="S",OR($R69="",$R69="(digite a descrição aqui)"),OR($Q69<>"",$T69>0,$U69>0)),"DESCRIÇÃO", IF(AND($C69="S",$P69<>"",$Q69<>"",$S69=""),"UNIDADE", IF(AND($C69="S",$P69<>"",$Q69<>"",$U69=0),"SEM CUSTO", IF(AND(TIPOORCAMENTO="Licitado",$AL69=0,$AN69>0),"SEM PREÇO", IF(AND($C69="S",$P69<>"",$Q69<>"",$U69>0,AND($V69<>"BDI 1",$V69<>"BDI 2",$V69<>"BDI 3")),IF(ISNUMBER($V69),"JUSTIFICAR BDI","BDI"), IF(OR(AND(import.recurso="OGU",TIPOORCAMENTO="Proposto",LEFT($O$8,5)<>"(N/D:",$AG69<>"",ORÇAMENTO.CustoUnitario>$AG69),AND(TIPOORCAMENTO="LICITADO",ORÇAMENTO.PrecoUnitarioLicitado>$AN69)),"ACIMA REF.", IF(AND($C69="S",$P69<>"",$Q69<>"",$T69=0,$U69>0),"QUANT.", IF(AND(Import.TipoArredondamento="TransfereGOV",$L69="F",$C69="S",LEN($Q69)>13),"Código >13", IF(AND(Import.TipoArredondamento="TransfereGOV",$L69="F",$C69<>"S",LEN($R69)>100),"Descrição >100", IF(AND(Import.TipoArredondamento="TransfereGOV",$L69="F",$C69="S",LEN($R69)>500),"Descrição >500", IF(AND(Import.TipoArredondamento="TransfereGOV",$L69="F",$C69="S",LEFT(TRIM(UPPER($P69)),6)<>"SINAPI",ISNA(VLOOKUP(TRIM(UPPER($S69)),ListaTgov.Unidades,1,FALSE))),"Unid. Não Disp", " ")))))))))))))))) ->  | AD69: =IF(C69<=CRONO.NivelExibicao,MAX($AD$15:OFFSET(AD69,-1,0))+IF($C69<>1,1,MAX(1,COUNTIF(QCI!$A$13:$A$24,OFFSET($E69,-1,0)))),"") ->  | AE69: =IF(AND($C69="S",ORÇAMENTO.CodBarra<>""),IF(ORÇAMENTO.Fonte="",ORÇAMENTO.CodBarra,CONCATENATE(ORÇAMENTO.Fonte," ",ORÇAMENTO.CodBarra))) -> SINAPI 93382 | AF69: =IF(ISERROR(ORÇAMENTO.BancoRef),"(abra o arquivo 'Referência "&Excel_BuiltIn_Database&".xlsm)",IF(OR($C69<>"S",ORÇAMENTO.CodBarra=""),"(Sem Código)",IF(ISERROR(MATCH($AE69,INDIRECT(ORÇAMENTO.BancoRef),0)),"(Código não identificado nas referências)",MATCH($AE69,INDIRECT(ORÇAMENTO.BancoRef),0)))) -> 6756 | AG69: =ROUND(IF(DESONERACAO="sim",REFERENCIA.Desonerado,REFERENCIA.NaoDesonerado),2) -> 25.26 | AH69: 0.2247 | AJ69: 1.614 | AM69: 49.81 | AN69: =ROUND(ORÇAMENTO.CustoUnitario*(1+$AH69),2) -> 30.94
A70: 2 | B70: 2 | C70: 2 | D70: 8 | E70: =IF($C70=1,OFFSET(E70,-1,0)+MAX(1,COUNTIF(QCI!$A$13:$A$24,OFFSET(ORÇAMENTO!E70,-1,0))),OFFSET(E70,-1,0)) -> 1 | F70: 8 | G70: 0 | H70: 0 | I70: 0 | J70: 70 | K70: =IF(OR($C70="S",$C70=0),0,MATCH(OFFSET($D70,0,$C70)+IF($C70<>1,1,COUNTIF(QCI!$A$13:$A$24,ORÇAMENTO!E70)),OFFSET($D70,1,$C70,ROW($C$140)-ROW($C70)),0)) -> 8 | L70: F | M70: Nível 2 | N70: Nível 2 | O70: 1.8. | P70: SINAPI | Q70: 95876 | R70: ESTRUTURA METÁLICA E COBERTURA | S70: - | T70: =OFFSET(CÁLCULO!H$15,ROW($T70)-ROW(T$15),0) -> 0 | U70: 0 | V70: BDI 1 | W70: =IF($C70="S",ROUND(IF(TIPOORCAMENTO="Proposto",ORÇAMENTO.CustoUnitario*(1+$AH70),ORÇAMENTO.PrecoUnitarioLicitado),15-13*$AF$10),0) -> 0 | X70: =IF($C70="S",IF(OR(Import.TipoArredondamento<>"TransfereGOV",ACOMPANHAMENTO="BM"),VTOTAL1,SUM(OFFSET(CÁLCULO!$AA$15,ROW($X70)-ROW($X$15),1):OFFSET(CÁLCULO!$AL$15,ROW($X70)-ROW($X$15),-1))),IF($C70=0,0,ROUND(SomaAgrup,15-13*$AF$11))) -> 234706.29 | Y70: RA | AA70: =IF($C70="S",IF($Z70="CP",$X70,IF($Z70="RA",(($X70)*QCI!$AA$3),0)),SomaAgrup) -> 77534.9362 | AB70: =IF($C70="S",IF($Z70="OU",ROUND($X70,2),0),SomaAgrup) -> 0 | AC70: =IF($N70=""," ", IF(AND($C70<>"S",OR($R70="",$R70="(digite a descrição aqui)")),"DESCRIÇÃO", IF(AND($C70="S",OR($Q70<>"",$T70>0,$U70>0),$P70=""),"FONTE", IF(AND($C70="S",$P70<>"",OR($T70>0,$U70>0),$Q70=""),"CÓDIGO", IF(AND($C70="S",$P70<>"",$Q70<>"",$R70="(Código não identificado nas referências)"),"CÓDIGO N/ID", IF(AND($C70="S",OR($R70="",$R70="(digite a descrição aqui)"),OR($Q70<>"",$T70>0,$U70>0)),"DESCRIÇÃO", IF(AND($C70="S",$P70<>"",$Q70<>"",$S70=""),"UNIDADE", IF(AND($C70="S",$P70<>"",$Q70<>"",$U70=0),"SEM CUSTO", IF(AND(TIPOORCAMENTO="Licitado",$AL70=0,$AN70>0),"SEM PREÇO", IF(AND($C70="S",$P70<>"",$Q70<>"",$U70>0,AND($V70<>"BDI 1",$V70<>"BDI 2",$V70<>"BDI 3")),IF(ISNUMBER($V70),"JUSTIFICAR BDI","BDI"), IF(OR(AND(import.recurso="OGU",TIPOORCAMENTO="Proposto",LEFT($O$8,5)<>"(N/D:",$AG70<>"",ORÇAMENTO.CustoUnitario>$AG70),AND(TIPOORCAMENTO="LICITADO",ORÇAMENTO.PrecoUnitarioLicitado>$AN70)),"ACIMA REF.", IF(AND($C70="S",$P70<>"",$Q70<>"",$T70=0,$U70>0),"QUANT.", IF(AND(Import.TipoArredondamento="TransfereGOV",$L70="F",$C70="S",LEN($Q70)>13),"Código >13", IF(AND(Import.TipoArredondamento="TransfereGOV",$L70="F",$C70<>"S",LEN($R70)>100),"Descrição >100", IF(AND(Import.TipoArredondamento="TransfereGOV",$L70="F",$C70="S",LEN($R70)>500),"Descrição >500", IF(AND(Import.TipoArredondamento="TransfereGOV",$L70="F",$C70="S",LEFT(TRIM(UPPER($P70)),6)<>"SINAPI",ISNA(VLOOKUP(TRIM(UPPER($S70)),ListaTgov.Unidades,1,FALSE))),"Unid. Não Disp", " ")))))))))))))))) ->  | AD70: =IF(C70<=CRONO.NivelExibicao,MAX($AD$15:OFFSET(AD70,-1,0))+IF($C70<>1,1,MAX(1,COUNTIF(QCI!$A$13:$A$24,OFFSET($E70,-1,0)))),"") -> 9 | AE70: =IF(AND($C70="S",ORÇAMENTO.CodBarra<>""),IF(ORÇAMENTO.Fonte="",ORÇAMENTO.CodBarra,CONCATENATE(ORÇAMENTO.Fonte," ",ORÇAMENTO.CodBarra))) -> FALSE | AF70: =IF(ISERROR(ORÇAMENTO.BancoRef),"(abra o arquivo 'Referência "&Excel_BuiltIn_Database&".xlsm)",IF(OR($C70<>"S",ORÇAMENTO.CodBarra=""),"(Sem Código)",IF(ISERROR(MATCH($AE70,INDIRECT(ORÇAMENTO.BancoRef),0)),"(Código não identificado nas referências)",MATCH($AE70,INDIRECT(ORÇAMENTO.BancoRef),0)))) -> (Sem Código) | AG70: =ROUND(IF(DESONERACAO="sim",REFERENCIA.Desonerado,REFERENCIA.NaoDesonerado),2) -> 0 | AH70: 0.2247 | AL70: 34.8 | AM70: 234706.29 | AN70: =ROUND(ORÇAMENTO.CustoUnitario*(1+$AH70),2) -> 0
A71: S | B71: 2 | C71: S | D71: 0 | E71: =IF($C71=1,OFFSET(E71,-1,0)+MAX(1,COUNTIF(QCI!$A$13:$A$24,OFFSET(ORÇAMENTO!E71,-1,0))),OFFSET(E71,-1,0)) -> 1 | F71: 8 | G71: 0 | H71: 0 | I71: 1 | J71: 0 | K71: =IF(OR($C71="S",$C71=0),0,MATCH(OFFSET($D71,0,$C71)+IF($C71<>1,1,COUNTIF(QCI!$A$13:$A$24,ORÇAMENTO!E71)),OFFSET($D71,1,$C71,ROW($C$140)-ROW($C71)),0)) -> 0 | L71: F | M71: Serviço | N71: Serviço | O71: 1.8.1. | P71: Composição | Q71: CPU 20 | R71: ESTRUTURA METÁLICA DE REFORÇO PARA PILARES EM CHAPAS DE AÇO A36-FY250Mpa, CANTONEIRA DE ABAS IGUAIS #3,00MM-A36-FY250Mpa, LIGAÇÕES SOLDADAS, MÃO DE OBRA E TRANSPORTE COM GUINDASTE - FORNECIMENTO E INSTALAÇÃO | S71: KG | T71: =OFFSET(CÁLCULO!H$15,ROW($T71)-ROW(T$15),0) -> 1774.75 | U71: 12.04 | V71: BDI 1 | W71: =IF($C71="S",ROUND(IF(TIPOORCAMENTO="Proposto",ORÇAMENTO.CustoUnitario*(1+$AH71),ORÇAMENTO.PrecoUnitarioLicitado),15-13*$AF$10),0) -> 14.75 | X71: =IF($C71="S",IF(OR(Import.TipoArredondamento<>"TransfereGOV",ACOMPANHAMENTO="BM"),VTOTAL1,SUM(OFFSET(CÁLCULO!$AA$15,ROW($X71)-ROW($X$15),1):OFFSET(CÁLCULO!$AL$15,ROW($X71)-ROW($X$15),-1))),IF($C71=0,0,ROUND(SomaAgrup,15-13*$AF$11))) -> 26177.56 | Y71: RA | Z71: RA | AA71: =IF($C71="S",IF($Z71="CP",$X71,IF($Z71="RA",(($X71)*QCI!$AA$3),0)),SomaAgrup) -> 8647.72497 | AB71: =IF($C71="S",IF($Z71="OU",ROUND($X71,2),0),SomaAgrup) -> 0 | AC71: =IF($N71=""," ", IF(AND($C71<>"S",OR($R71="",$R71="(digite a descrição aqui)")),"DESCRIÇÃO", IF(AND($C71="S",OR($Q71<>"",$T71>0,$U71>0),$P71=""),"FONTE", IF(AND($C71="S",$P71<>"",OR($T71>0,$U71>0),$Q71=""),"CÓDIGO", IF(AND($C71="S",$P71<>"",$Q71<>"",$R71="(Código não identificado nas referências)"),"CÓDIGO N/ID", IF(AND($C71="S",OR($R71="",$R71="(digite a descrição aqui)"),OR($Q71<>"",$T71>0,$U71>0)),"DESCRIÇÃO", IF(AND($C71="S",$P71<>"",$Q71<>"",$S71=""),"UNIDADE", IF(AND($C71="S",$P71<>"",$Q71<>"",$U71=0),"SEM CUSTO", IF(AND(TIPOORCAMENTO="Licitado",$AL71=0,$AN71>0),"SEM PREÇO", IF(AND($C71="S",$P71<>"",$Q71<>"",$U71>0,AND($V71<>"BDI 1",$V71<>"BDI 2",$V71<>"BDI 3")),IF(ISNUMBER($V71),"JUSTIFICAR BDI","BDI"), IF(OR(AND(import.recurso="OGU",TIPOORCAMENTO="Proposto",LEFT($O$8,5)<>"(N/D:",$AG71<>"",ORÇAMENTO.CustoUnitario>$AG71),AND(TIPOORCAMENTO="LICITADO",ORÇAMENTO.PrecoUnitarioLicitado>$AN71)),"ACIMA REF.", IF(AND($C71="S",$P71<>"",$Q71<>"",$T71=0,$U71>0),"QUANT.", IF(AND(Import.TipoArredondamento="TransfereGOV",$L71="F",$C71="S",LEN($Q71)>13),"Código >13", IF(AND(Import.TipoArredondamento="TransfereGOV",$L71="F",$C71<>"S",LEN($R71)>100),"Descrição >100", IF(AND(Import.TipoArredondamento="TransfereGOV",$L71="F",$C71="S",LEN($R71)>500),"Descrição >500", IF(AND(Import.TipoArredondamento="TransfereGOV",$L71="F",$C71="S",LEFT(TRIM(UPPER($P71)),6)<>"SINAPI",ISNA(VLOOKUP(TRIM(UPPER($S71)),ListaTgov.Unidades,1,FALSE))),"Unid. Não Disp", " ")))))))))))))))) ->  | AD71: =IF(C71<=CRONO.NivelExibicao,MAX($AD$15:OFFSET(AD71,-1,0))+IF($C71<>1,1,MAX(1,COUNTIF(QCI!$A$13:$A$24,OFFSET($E71,-1,0)))),"") ->  | AE71: =IF(AND($C71="S",ORÇAMENTO.CodBarra<>""),IF(ORÇAMENTO.Fonte="",ORÇAMENTO.CodBarra,CONCATENATE(ORÇAMENTO.Fonte," ",ORÇAMENTO.CodBarra))) -> Composição CPU 20 | AF71: =IF(ISERROR(ORÇAMENTO.BancoRef),"(abra o arquivo 'Referência "&Excel_BuiltIn_Database&".xlsm)",IF(OR($C71<>"S",ORÇAMENTO.CodBarra=""),"(Sem Código)",IF(ISERROR(MATCH($AE71,INDIRECT(ORÇAMENTO.BancoRef),0)),"(Código não identificado nas referências)",MATCH($AE71,INDIRECT(ORÇAMENTO.BancoRef),0)))) -> 17 | AG71: =ROUND(IF(DESONERACAO="sim",REFERENCIA.Desonerado,REFERENCIA.NaoDesonerado),2) -> 12.04 | AH71: 0.2247 | AJ71: 1774.745 | AM71: 26177.56 | AN71: =ROUND(ORÇAMENTO.CustoUnitario*(1+$AH71),2) -> 14.75
A72: S | B72: 2 | C72: S | D72: 0 | E72: =IF($C72=1,OFFSET(E72,-1,0)+MAX(1,COUNTIF(QCI!$A$13:$A$24,OFFSET(ORÇAMENTO!E72,-1,0))),OFFSET(E72,-1,0)) -> 1 | F72: 8 | G72: 0 | H72: 0 | I72: 2 | J72: 0 | K72: =IF(OR($C72="S",$C72=0),0,MATCH(OFFSET($D72,0,$C72)+IF($C72<>1,1,COUNTIF(QCI!$A$13:$A$24,ORÇAMENTO!E72)),OFFSET($D72,1,$C72,ROW($C$140)-ROW($C72)),0)) -> 0 | L72: F | M72: Serviço | N72: Serviço | O72: 1.8.2. | P72: Composição | Q72: CPU 21 | R72: ESTRUTURA METÁLICA PARA PILARES EM PERFIS "U" #6.35MM-AÇO A36-FY250Mpa, CANTONEIRA DE ABAS IGUAIS #3,00MM-A36-FY250Mpa, LIGAÇÕES SOLDADAS, MÃO DE OBRA E TRANSPORTE COM GUINDASTE - FORNECIMENTO E INSTALAÇÃO | S72: KG | T72: =OFFSET(CÁLCULO!H$15,ROW($T72)-ROW(T$15),0) -> 672.65 | U72: 13.66 | V72: BDI 1 | W72: =IF($C72="S",ROUND(IF(TIPOORCAMENTO="Proposto",ORÇAMENTO.CustoUnitario*(1+$AH72),ORÇAMENTO.PrecoUnitarioLicitado),15-13*$AF$10),0) -> 16.73 | X72: =IF($C72="S",IF(OR(Import.TipoArredondamento<>"TransfereGOV",ACOMPANHAMENTO="BM"),VTOTAL1,SUM(OFFSET(CÁLCULO!$AA$15,ROW($X72)-ROW($X$15),1):OFFSET(CÁLCULO!$AL$15,ROW($X72)-ROW($X$15),-1))),IF($C72=0,0,ROUND(SomaAgrup,15-13*$AF$11))) -> 11253.43 | Y72: RA | Z72: RA | AA72: =IF($C72="S",IF($Z72="CP",$X72,IF($Z72="RA",(($X72)*QCI!$AA$3),0)),SomaAgrup) -> 3717.556854 | AB72: =IF($C72="S",IF($Z72="OU",ROUND($X72,2),0),SomaAgrup) -> 0 | AC72: =IF($N72=""," ", IF(AND($C72<>"S",OR($R72="",$R72="(digite a descrição aqui)")),"DESCRIÇÃO", IF(AND($C72="S",OR($Q72<>"",$T72>0,$U72>0),$P72=""),"FONTE", IF(AND($C72="S",$P72<>"",OR($T72>0,$U72>0),$Q72=""),"CÓDIGO", IF(AND($C72="S",$P72<>"",$Q72<>"",$R72="(Código não identificado nas referências)"),"CÓDIGO N/ID", IF(AND($C72="S",OR($R72="",$R72="(digite a descrição aqui)"),OR($Q72<>"",$T72>0,$U72>0)),"DESCRIÇÃO", IF(AND($C72="S",$P72<>"",$Q72<>"",$S72=""),"UNIDADE", IF(AND($C72="S",$P72<>"",$Q72<>"",$U72=0),"SEM CUSTO", IF(AND(TIPOORCAMENTO="Licitado",$AL72=0,$AN72>0),"SEM PREÇO", IF(AND($C72="S",$P72<>"",$Q72<>"",$U72>0,AND($V72<>"BDI 1",$V72<>"BDI 2",$V72<>"BDI 3")),IF(ISNUMBER($V72),"JUSTIFICAR BDI","BDI"), IF(OR(AND(import.recurso="OGU",TIPOORCAMENTO="Proposto",LEFT($O$8,5)<>"(N/D:",$AG72<>"",ORÇAMENTO.CustoUnitario>$AG72),AND(TIPOORCAMENTO="LICITADO",ORÇAMENTO.PrecoUnitarioLicitado>$AN72)),"ACIMA REF.", IF(AND($C72="S",$P72<>"",$Q72<>"",$T72=0,$U72>0),"QUANT.", IF(AND(Import.TipoArredondamento="TransfereGOV",$L72="F",$C72="S",LEN($Q72)>13),"Código >13", IF(AND(Import.TipoArredondamento="TransfereGOV",$L72="F",$C72<>"S",LEN($R72)>100),"Descrição >100", IF(AND(Import.TipoArredondamento="TransfereGOV",$L72="F",$C72="S",LEN($R72)>500),"Descrição >500", IF(AND(Import.TipoArredondamento="TransfereGOV",$L72="F",$C72="S",LEFT(TRIM(UPPER($P72)),6)<>"SINAPI",ISNA(VLOOKUP(TRIM(UPPER($S72)),ListaTgov.Unidades,1,FALSE))),"Unid. Não Disp", " ")))))))))))))))) ->  | AD72: =IF(C72<=CRONO.NivelExibicao,MAX($AD$15:OFFSET(AD72,-1,0))+IF($C72<>1,1,MAX(1,COUNTIF(QCI!$A$13:$A$24,OFFSET($E72,-1,0)))),"") ->  | AE72: =IF(AND($C72="S",ORÇAMENTO.CodBarra<>""),IF(ORÇAMENTO.Fonte="",ORÇAMENTO.CodBarra,CONCATENATE(ORÇAMENTO.Fonte," ",ORÇAMENTO.CodBarra))) -> Composição CPU 21 | AF72: =IF(ISERROR(ORÇAMENTO.BancoRef),"(abra o arquivo 'Referência "&Excel_BuiltIn_Database&".xlsm)",IF(OR($C72<>"S",ORÇAMENTO.CodBarra=""),"(Sem Código)",IF(ISERROR(MATCH($AE72,INDIRECT(ORÇAMENTO.BancoRef),0)),"(Código não identificado nas referências)",MATCH($AE72,INDIRECT(ORÇAMENTO.BancoRef),0)))) -> 18 | AG72: =ROUND(IF(DESONERACAO="sim",REFERENCIA.Desonerado,REFERENCIA.NaoDesonerado),2) -> 13.66 | AH72: 0.2247 | AJ72: 672.645 | AM72: 11253.43 | AN72: =ROUND(ORÇAMENTO.CustoUnitario*(1+$AH72),2) -> 16.73
A73: S | B73: 2 | C73: S | D73: 0 | E73: =IF($C73=1,OFFSET(E73,-1,0)+MAX(1,COUNTIF(QCI!$A$13:$A$24,OFFSET(ORÇAMENTO!E73,-1,0))),OFFSET(E73,-1,0)) -> 1 | F73: 8 | G73: 0 | H73: 0 | I73: 3 | J73: 0 | K73: =IF(OR($C73="S",$C73=0),0,MATCH(OFFSET($D73,0,$C73)+IF($C73<>1,1,COUNTIF(QCI!$A$13:$A$24,ORÇAMENTO!E73)),OFFSET($D73,1,$C73,ROW($C$140)-ROW($C73)),0)) -> 0 | L73: F | M73: Serviço | N73: Serviço | O73: 1.8.3. | P73: Composição | Q73: CPU 22 | R73: LIGAÇÕES COMPOSTOS POR CHAPAS DE BASE, CHAPAS DE LIGAÇÃO E CHUMBADORES PARA ESTRUTURA METÁLICA, AÇO A36-FY250Mpa, LIGAÇÕES SOLDADAS, MÃO DE OBRA - FORNECIMENTO E INSTALAÇÃO | S73: KG | T73: =OFFSET(CÁLCULO!H$15,ROW($T73)-ROW(T$15),0) -> 212.16 | U73: 11.74 | V73: BDI 1 | W73: =IF($C73="S",ROUND(IF(TIPOORCAMENTO="Proposto",ORÇAMENTO.CustoUnitario*(1+$AH73),ORÇAMENTO.PrecoUnitarioLicitado),15-13*$AF$10),0) -> 14.38 | X73: =IF($C73="S",IF(OR(Import.TipoArredondamento<>"TransfereGOV",ACOMPANHAMENTO="BM"),VTOTAL1,SUM(OFFSET(CÁLCULO!$AA$15,ROW($X73)-ROW($X$15),1):OFFSET(CÁLCULO!$AL$15,ROW($X73)-ROW($X$15),-1))),IF($C73=0,0,ROUND(SomaAgrup,15-13*$AF$11))) -> 3050.86 | Y73: RA | Z73: RA | AA73: =IF($C73="S",IF($Z73="CP",$X73,IF($Z73="RA",(($X73)*QCI!$AA$3),0)),SomaAgrup) -> 1007.847874 | AB73: =IF($C73="S",IF($Z73="OU",ROUND($X73,2),0),SomaAgrup) -> 0 | AC73: =IF($N73=""," ", IF(AND($C73<>"S",OR($R73="",$R73="(digite a descrição aqui)")),"DESCRIÇÃO", IF(AND($C73="S",OR($Q73<>"",$T73>0,$U73>0),$P73=""),"FONTE", IF(AND($C73="S",$P73<>"",OR($T73>0,$U73>0),$Q73=""),"CÓDIGO", IF(AND($C73="S",$P73<>"",$Q73<>"",$R73="(Código não identificado nas referências)"),"CÓDIGO N/ID", IF(AND($C73="S",OR($R73="",$R73="(digite a descrição aqui)"),OR($Q73<>"",$T73>0,$U73>0)),"DESCRIÇÃO", IF(AND($C73="S",$P73<>"",$Q73<>"",$S73=""),"UNIDADE", IF(AND($C73="S",$P73<>"",$Q73<>"",$U73=0),"SEM CUSTO", IF(AND(TIPOORCAMENTO="Licitado",$AL73=0,$AN73>0),"SEM PREÇO", IF(AND($C73="S",$P73<>"",$Q73<>"",$U73>0,AND($V73<>"BDI 1",$V73<>"BDI 2",$V73<>"BDI 3")),IF(ISNUMBER($V73),"JUSTIFICAR BDI","BDI"), IF(OR(AND(import.recurso="OGU",TIPOORCAMENTO="Proposto",LEFT($O$8,5)<>"(N/D:",$AG73<>"",ORÇAMENTO.CustoUnitario>$AG73),AND(TIPOORCAMENTO="LICITADO",ORÇAMENTO.PrecoUnitarioLicitado>$AN73)),"ACIMA REF.", IF(AND($C73="S",$P73<>"",$Q73<>"",$T73=0,$U73>0),"QUANT.", IF(AND(Import.TipoArredondamento="TransfereGOV",$L73="F",$C73="S",LEN($Q73)>13),"Código >13", IF(AND(Import.TipoArredondamento="TransfereGOV",$L73="F",$C73<>"S",LEN($R73)>100),"Descrição >100", IF(AND(Import.TipoArredondamento="TransfereGOV",$L73="F",$C73="S",LEN($R73)>500),"Descrição >500", IF(AND(Import.TipoArredondamento="TransfereGOV",$L73="F",$C73="S",LEFT(TRIM(UPPER($P73)),6)<>"SINAPI",ISNA(VLOOKUP(TRIM(UPPER($S73)),ListaTgov.Unidades,1,FALSE))),"Unid. Não Disp", " ")))))))))))))))) ->  | AD73: =IF(C73<=CRONO.NivelExibicao,MAX($AD$15:OFFSET(AD73,-1,0))+IF($C73<>1,1,MAX(1,COUNTIF(QCI!$A$13:$A$24,OFFSET($E73,-1,0)))),"") ->  | AE73: =IF(AND($C73="S",ORÇAMENTO.CodBarra<>""),IF(ORÇAMENTO.Fonte="",ORÇAMENTO.CodBarra,CONCATENATE(ORÇAMENTO.Fonte," ",ORÇAMENTO.CodBarra))) -> Composição CPU 22 | AF73: =IF(ISERROR(ORÇAMENTO.BancoRef),"(abra o arquivo 'Referência "&Excel_BuiltIn_Database&".xlsm)",IF(OR($C73<>"S",ORÇAMENTO.CodBarra=""),"(Sem Código)",IF(ISERROR(MATCH($AE73,INDIRECT(ORÇAMENTO.BancoRef),0)),"(Código não identificado nas referências)",MATCH($AE73,INDIRECT(ORÇAMENTO.BancoRef),0)))) -> 19 | AG73: =ROUND(IF(DESONERACAO="sim",REFERENCIA.Desonerado,REFERENCIA.NaoDesonerado),2) -> 11.74 | AH73: 0.2247 | AJ73: 212.16 | AM73: 3050.86 | AN73: =ROUND(ORÇAMENTO.CustoUnitario*(1+$AH73),2) -> 14.38
A74: S | B74: 2 | C74: S | D74: 0 | E74: =IF($C74=1,OFFSET(E74,-1,0)+MAX(1,COUNTIF(QCI!$A$13:$A$24,OFFSET(ORÇAMENTO!E74,-1,0))),OFFSET(E74,-1,0)) -> 1 | F74: 8 | G74: 0 | H74: 0 | I74: 4 | J74: 0 | K74: =IF(OR($C74="S",$C74=0),0,MATCH(OFFSET($D74,0,$C74)+IF($C74<>1,1,COUNTIF(QCI!$A$13:$A$24,ORÇAMENTO!E74)),OFFSET($D74,1,$C74,ROW($C$140)-ROW($C74)),0)) -> 0 | L74: F | M74: Serviço | N74: Serviço | O74: 1.8.4. | P74: Composição | Q74: CPU 23 | R74: ESTRUTURA TRELIÇADA PARA TESOURAS DE COBERTURA, COM LIGAÇÕES SOLDADAS, INCLUSOS PERFIS METÁLICOS, CHAPAS METÁLICAS, MÃO DE OBRA E TRANSPORTE COM GUINDASTE - FORNECIMENTO E INSTALAÇÃO | S74: KG | T74: =OFFSET(CÁLCULO!H$15,ROW($T74)-ROW(T$15),0) -> 4786.57 | U74: 13.65 | V74: BDI 1 | W74: =IF($C74="S",ROUND(IF(TIPOORCAMENTO="Proposto",ORÇAMENTO.CustoUnitario*(1+$AH74),ORÇAMENTO.PrecoUnitarioLicitado),15-13*$AF$10),0) -> 16.72 | X74: =IF($C74="S",IF(OR(Import.TipoArredondamento<>"TransfereGOV",ACOMPANHAMENTO="BM"),VTOTAL1,SUM(OFFSET(CÁLCULO!$AA$15,ROW($X74)-ROW($X$15),1):OFFSET(CÁLCULO!$AL$15,ROW($X74)-ROW($X$15),-1))),IF($C74=0,0,ROUND(SomaAgrup,15-13*$AF$11))) -> 80031.45 | Y74: RA | Z74: RA | AA74: =IF($C74="S",IF($Z74="CP",$X74,IF($Z74="RA",(($X74)*QCI!$AA$3),0)),SomaAgrup) -> 26438.29175 | AB74: =IF($C74="S",IF($Z74="OU",ROUND($X74,2),0),SomaAgrup) -> 0 | AC74: =IF($N74=""," ", IF(AND($C74<>"S",OR($R74="",$R74="(digite a descrição aqui)")),"DESCRIÇÃO", IF(AND($C74="S",OR($Q74<>"",$T74>0,$U74>0),$P74=""),"FONTE", IF(AND($C74="S",$P74<>"",OR($T74>0,$U74>0),$Q74=""),"CÓDIGO", IF(AND($C74="S",$P74<>"",$Q74<>"",$R74="(Código não identificado nas referências)"),"CÓDIGO N/ID", IF(AND($C74="S",OR($R74="",$R74="(digite a descrição aqui)"),OR($Q74<>"",$T74>0,$U74>0)),"DESCRIÇÃO", IF(AND($C74="S",$P74<>"",$Q74<>"",$S74=""),"UNIDADE", IF(AND($C74="S",$P74<>"",$Q74<>"",$U74=0),"SEM CUSTO", IF(AND(TIPOORCAMENTO="Licitado",$AL74=0,$AN74>0),"SEM PREÇO", IF(AND($C74="S",$P74<>"",$Q74<>"",$U74>0,AND($V74<>"BDI 1",$V74<>"BDI 2",$V74<>"BDI 3")),IF(ISNUMBER($V74),"JUSTIFICAR BDI","BDI"), IF(OR(AND(import.recurso="OGU",TIPOORCAMENTO="Proposto",LEFT($O$8,5)<>"(N/D:",$AG74<>"",ORÇAMENTO.CustoUnitario>$AG74),AND(TIPOORCAMENTO="LICITADO",ORÇAMENTO.PrecoUnitarioLicitado>$AN74)),"ACIMA REF.", IF(AND($C74="S",$P74<>"",$Q74<>"",$T74=0,$U74>0),"QUANT.", IF(AND(Import.TipoArredondamento="TransfereGOV",$L74="F",$C74="S",LEN($Q74)>13),"Código >13", IF(AND(Import.TipoArredondamento="TransfereGOV",$L74="F",$C74<>"S",LEN($R74)>100),"Descrição >100", IF(AND(Import.TipoArredondamento="TransfereGOV",$L74="F",$C74="S",LEN($R74)>500),"Descrição >500", IF(AND(Import.TipoArredondamento="TransfereGOV",$L74="F",$C74="S",LEFT(TRIM(UPPER($P74)),6)<>"SINAPI",ISNA(VLOOKUP(TRIM(UPPER($S74)),ListaTgov.Unidades,1,FALSE))),"Unid. Não Disp", " ")))))))))))))))) ->  | AD74: =IF(C74<=CRONO.NivelExibicao,MAX($AD$15:OFFSET(AD74,-1,0))+IF($C74<>1,1,MAX(1,COUNTIF(QCI!$A$13:$A$24,OFFSET($E74,-1,0)))),"") ->  | AE74: =IF(AND($C74="S",ORÇAMENTO.CodBarra<>""),IF(ORÇAMENTO.Fonte="",ORÇAMENTO.CodBarra,CONCATENATE(ORÇAMENTO.Fonte," ",ORÇAMENTO.CodBarra))) -> Composição CPU 23 | AF74: =IF(ISERROR(ORÇAMENTO.BancoRef),"(abra o arquivo 'Referência "&Excel_BuiltIn_Database&".xlsm)",IF(OR($C74<>"S",ORÇAMENTO.CodBarra=""),"(Sem Código)",IF(ISERROR(MATCH($AE74,INDIRECT(ORÇAMENTO.BancoRef),0)),"(Código não identificado nas referências)",MATCH($AE74,INDIRECT(ORÇAMENTO.BancoRef),0)))) -> 20 | AG74: =ROUND(IF(DESONERACAO="sim",REFERENCIA.Desonerado,REFERENCIA.NaoDesonerado),2) -> 13.65 | AH74: 0.2247 | AJ74: 4786.565 | AM74: 80031.45 | AN74: =ROUND(ORÇAMENTO.CustoUnitario*(1+$AH74),2) -> 16.72
A75: S | B75: 2 | C75: S | D75: 0 | E75: =IF($C75=1,OFFSET(E75,-1,0)+MAX(1,COUNTIF(QCI!$A$13:$A$24,OFFSET(ORÇAMENTO!E75,-1,0))),OFFSET(E75,-1,0)) -> 1 | F75: 8 | G75: 0 | H75: 0 | I75: 5 | J75: 0 | K75: =IF(OR($C75="S",$C75=0),0,MATCH(OFFSET($D75,0,$C75)+IF($C75<>1,1,COUNTIF(QCI!$A$13:$A$24,ORÇAMENTO!E75)),OFFSET($D75,1,$C75,ROW($C$140)-ROW($C75)),0)) -> 0 | L75: F | M75: Serviço | N75: Serviço | O75: 1.8.5. | P75: SINAPI | Q75: 104314 | R75: TRAMA DE AÇO COMPOSTA POR TERÇAS PARA TELHADOS DE ATÉ 2 ÁGUAS PARA TELHA ONDULADA DE FIBROCIMENTO, METÁLICA, PLÁSTICA OU TERMOACÚSTICA, INCLUSO TRANSPORTE VERTICAL (EM KG). AF_07/2019 | S75: KG | T75: =OFFSET(CÁLCULO!H$15,ROW($T75)-ROW(T$15),0) -> 4252.89 | U75: 11.8 | V75: BDI 1 | W75: =IF($C75="S",ROUND(IF(TIPOORCAMENTO="Proposto",ORÇAMENTO.CustoUnitario*(1+$AH75),ORÇAMENTO.PrecoUnitarioLicitado),15-13*$AF$10),0) -> 14.45 | X75: =IF($C75="S",IF(OR(Import.TipoArredondamento<>"TransfereGOV",ACOMPANHAMENTO="BM"),VTOTAL1,SUM(OFFSET(CÁLCULO!$AA$15,ROW($X75)-ROW($X$15),1):OFFSET(CÁLCULO!$AL$15,ROW($X75)-ROW($X$15),-1))),IF($C75=0,0,ROUND(SomaAgrup,15-13*$AF$11))) -> 61454.26 | Y75: RA | Z75: RA | AA75: =IF($C75="S",IF($Z75="CP",$X75,IF($Z75="RA",(($X75)*QCI!$AA$3),0)),SomaAgrup) -> 20301.33972 | AB75: =IF($C75="S",IF($Z75="OU",ROUND($X75,2),0),SomaAgrup) -> 0 | AC75: =IF($N75=""," ", IF(AND($C75<>"S",OR($R75="",$R75="(digite a descrição aqui)")),"DESCRIÇÃO", IF(AND($C75="S",OR($Q75<>"",$T75>0,$U75>0),$P75=""),"FONTE", IF(AND($C75="S",$P75<>"",OR($T75>0,$U75>0),$Q75=""),"CÓDIGO", IF(AND($C75="S",$P75<>"",$Q75<>"",$R75="(Código não identificado nas referências)"),"CÓDIGO N/ID", IF(AND($C75="S",OR($R75="",$R75="(digite a descrição aqui)"),OR($Q75<>"",$T75>0,$U75>0)),"DESCRIÇÃO", IF(AND($C75="S",$P75<>"",$Q75<>"",$S75=""),"UNIDADE", IF(AND($C75="S",$P75<>"",$Q75<>"",$U75=0),"SEM CUSTO", IF(AND(TIPOORCAMENTO="Licitado",$AL75=0,$AN75>0),"SEM PREÇO", IF(AND($C75="S",$P75<>"",$Q75<>"",$U75>0,AND($V75<>"BDI 1",$V75<>"BDI 2",$V75<>"BDI 3")),IF(ISNUMBER($V75),"JUSTIFICAR BDI","BDI"), IF(OR(AND(import.recurso="OGU",TIPOORCAMENTO="Proposto",LEFT($O$8,5)<>"(N/D:",$AG75<>"",ORÇAMENTO.CustoUnitario>$AG75),AND(TIPOORCAMENTO="LICITADO",ORÇAMENTO.PrecoUnitarioLicitado>$AN75)),"ACIMA REF.", IF(AND($C75="S",$P75<>"",$Q75<>"",$T75=0,$U75>0),"QUANT.", IF(AND(Import.TipoArredondamento="TransfereGOV",$L75="F",$C75="S",LEN($Q75)>13),"Código >13", IF(AND(Import.TipoArredondamento="TransfereGOV",$L75="F",$C75<>"S",LEN($R75)>100),"Descrição >100", IF(AND(Import.TipoArredondamento="TransfereGOV",$L75="F",$C75="S",LEN($R75)>500),"Descrição >500", IF(AND(Import.TipoArredondamento="TransfereGOV",$L75="F",$C75="S",LEFT(TRIM(UPPER($P75)),6)<>"SINAPI",ISNA(VLOOKUP(TRIM(UPPER($S75)),ListaTgov.Unidades,1,FALSE))),"Unid. Não Disp", " ")))))))))))))))) ->  | AD75: =IF(C75<=CRONO.NivelExibicao,MAX($AD$15:OFFSET(AD75,-1,0))+IF($C75<>1,1,MAX(1,COUNTIF(QCI!$A$13:$A$24,OFFSET($E75,-1,0)))),"") ->  | AE75: =IF(AND($C75="S",ORÇAMENTO.CodBarra<>""),IF(ORÇAMENTO.Fonte="",ORÇAMENTO.CodBarra,CONCATENATE(ORÇAMENTO.Fonte," ",ORÇAMENTO.CodBarra))) -> SINAPI 104314 | AF75: =IF(ISERROR(ORÇAMENTO.BancoRef),"(abra o arquivo 'Referência "&Excel_BuiltIn_Database&".xlsm)",IF(OR($C75<>"S",ORÇAMENTO.CodBarra=""),"(Sem Código)",IF(ISERROR(MATCH($AE75,INDIRECT(ORÇAMENTO.BancoRef),0)),"(Código não identificado nas referências)",MATCH($AE75,INDIRECT(ORÇAMENTO.BancoRef),0)))) -> 9745 | AG75: =ROUND(IF(DESONERACAO="sim",REFERENCIA.Desonerado,REFERENCIA.NaoDesonerado),2) -> 11.8 | AH75: 0.2247 | AJ75: 4252.885 | AM75: 61454.26 | AN75: =ROUND(ORÇAMENTO.CustoUnitario*(1+$AH75),2) -> 14.45
A76: S | B76: 2 | C76: S | D76: 0 | E76: =IF($C76=1,OFFSET(E76,-1,0)+MAX(1,COUNTIF(QCI!$A$13:$A$24,OFFSET(ORÇAMENTO!E76,-1,0))),OFFSET(E76,-1,0)) -> 1 | F76: 8 | G76: 0 | H76: 0 | I76: 6 | J76: 0 | K76: =IF(OR($C76="S",$C76=0),0,MATCH(OFFSET($D76,0,$C76)+IF($C76<>1,1,COUNTIF(QCI!$A$13:$A$24,ORÇAMENTO!E76)),OFFSET($D76,1,$C76,ROW($C$140)-ROW($C76)),0)) -> 0 | L76: F | M76: Serviço | N76: Serviço | O76: 1.8.6. | P76: SINAPI | Q76: 94213 | R76: TELHAMENTO COM TELHA DE AÇO/ALUMÍNIO E = 0,5 MM, COM ATÉ 2 ÁGUAS, INCLUSO IÇAMENTO. AF_07/2019 | S76: M2 | T76: =OFFSET(CÁLCULO!H$15,ROW($T76)-ROW(T$15),0) -> 616.38 | U76: 68.75 | V76: BDI 1 | W76: =IF($C76="S",ROUND(IF(TIPOORCAMENTO="Proposto",ORÇAMENTO.CustoUnitario*(1+$AH76),ORÇAMENTO.PrecoUnitarioLicitado),15-13*$AF$10),0) -> 84.2 | X76: =IF($C76="S",IF(OR(Import.TipoArredondamento<>"TransfereGOV",ACOMPANHAMENTO="BM"),VTOTAL1,SUM(OFFSET(CÁLCULO!$AA$15,ROW($X76)-ROW($X$15),1):OFFSET(CÁLCULO!$AL$15,ROW($X76)-ROW($X$15),-1))),IF($C76=0,0,ROUND(SomaAgrup,15-13*$AF$11))) -> 51899.2 | Y76: RA | Z76: RA | AA76: =IF($C76="S",IF($Z76="CP",$X76,IF($Z76="RA",(($X76)*QCI!$AA$3),0)),SomaAgrup) -> 17144.83732 | AB76: =IF($C76="S",IF($Z76="OU",ROUND($X76,2),0),SomaAgrup) -> 0 | AC76: =IF($N76=""," ", IF(AND($C76<>"S",OR($R76="",$R76="(digite a descrição aqui)")),"DESCRIÇÃO", IF(AND($C76="S",OR($Q76<>"",$T76>0,$U76>0),$P76=""),"FONTE", IF(AND($C76="S",$P76<>"",OR($T76>0,$U76>0),$Q76=""),"CÓDIGO", IF(AND($C76="S",$P76<>"",$Q76<>"",$R76="(Código não identificado nas referências)"),"CÓDIGO N/ID", IF(AND($C76="S",OR($R76="",$R76="(digite a descrição aqui)"),OR($Q76<>"",$T76>0,$U76>0)),"DESCRIÇÃO", IF(AND($C76="S",$P76<>"",$Q76<>"",$S76=""),"UNIDADE", IF(AND($C76="S",$P76<>"",$Q76<>"",$U76=0),"SEM CUSTO", IF(AND(TIPOORCAMENTO="Licitado",$AL76=0,$AN76>0),"SEM PREÇO", IF(AND($C76="S",$P76<>"",$Q76<>"",$U76>0,AND($V76<>"BDI 1",$V76<>"BDI 2",$V76<>"BDI 3")),IF(ISNUMBER($V76),"JUSTIFICAR BDI","BDI"), IF(OR(AND(import.recurso="OGU",TIPOORCAMENTO="Proposto",LEFT($O$8,5)<>"(N/D:",$AG76<>"",ORÇAMENTO.CustoUnitario>$AG76),AND(TIPOORCAMENTO="LICITADO",ORÇAMENTO.PrecoUnitarioLicitado>$AN76)),"ACIMA REF.", IF(AND($C76="S",$P76<>"",$Q76<>"",$T76=0,$U76>0),"QUANT.", IF(AND(Import.TipoArredondamento="TransfereGOV",$L76="F",$C76="S",LEN($Q76)>13),"Código >13", IF(AND(Import.TipoArredondamento="TransfereGOV",$L76="F",$C76<>"S",LEN($R76)>100),"Descrição >100", IF(AND(Import.TipoArredondamento="TransfereGOV",$L76="F",$C76="S",LEN($R76)>500),"Descrição >500", IF(AND(Import.TipoArredondamento="TransfereGOV",$L76="F",$C76="S",LEFT(TRIM(UPPER($P76)),6)<>"SINAPI",ISNA(VLOOKUP(TRIM(UPPER($S76)),ListaTgov.Unidades,1,FALSE))),"Unid. Não Disp", " ")))))))))))))))) ->  | AD76: =IF(C76<=CRONO.NivelExibicao,MAX($AD$15:OFFSET(AD76,-1,0))+IF($C76<>1,1,MAX(1,COUNTIF(QCI!$A$13:$A$24,OFFSET($E76,-1,0)))),"") ->  | AE76: =IF(AND($C76="S",ORÇAMENTO.CodBarra<>""),IF(ORÇAMENTO.Fonte="",ORÇAMENTO.CodBarra,CONCATENATE(ORÇAMENTO.Fonte," ",ORÇAMENTO.CodBarra))) -> SINAPI 94213 | AF76: =IF(ISERROR(ORÇAMENTO.BancoRef),"(abra o arquivo 'Referência "&Excel_BuiltIn_Database&".xlsm)",IF(OR($C76<>"S",ORÇAMENTO.CodBarra=""),"(Sem Código)",IF(ISERROR(MATCH($AE76,INDIRECT(ORÇAMENTO.BancoRef),0)),"(Código não identificado nas referências)",MATCH($AE76,INDIRECT(ORÇAMENTO.BancoRef),0)))) -> 15045 | AG76: =ROUND(IF(DESONERACAO="sim",REFERENCIA.Desonerado,REFERENCIA.NaoDesonerado),2) -> 68.75 | AH76: 0.2247 | AJ76: 616.38 | AL76: 2.05 | AM76: 51899.2 | AN76: =ROUND(ORÇAMENTO.CustoUnitario*(1+$AH76),2) -> 84.2
A77: S | B77: 2 | C77: S | D77: 0 | E77: =IF($C77=1,OFFSET(E77,-1,0)+MAX(1,COUNTIF(QCI!$A$13:$A$24,OFFSET(ORÇAMENTO!E77,-1,0))),OFFSET(E77,-1,0)) -> 1 | F77: 8 | G77: 0 | H77: 0 | I77: 7 | J77: 0 | K77: =IF(OR($C77="S",$C77=0),0,MATCH(OFFSET($D77,0,$C77)+IF($C77<>1,1,COUNTIF(QCI!$A$13:$A$24,ORÇAMENTO!E77)),OFFSET($D77,1,$C77,ROW($C$140)-ROW($C77)),0)) -> 0 | L77: F | M77: Serviço | N77: Serviço | O77: 1.8.7. | P77: SINAPI | Q77: 98557 | R77: IMPERMEABILIZAÇÃO DE SUPERFÍCIE COM EMULSÃO ASFÁLTICA, 2 DEMÃOS. AF_09/2023 | S77: M2 | T77: =OFFSET(CÁLCULO!H$15,ROW($T77)-ROW(T$15),0) -> 15.66 | U77: 43.77 | V77: BDI 1 | W77: =IF($C77="S",ROUND(IF(TIPOORCAMENTO="Proposto",ORÇAMENTO.CustoUnitario*(1+$AH77),ORÇAMENTO.PrecoUnitarioLicitado),15-13*$AF$10),0) -> 53.61 | X77: =IF($C77="S",IF(OR(Import.TipoArredondamento<>"TransfereGOV",ACOMPANHAMENTO="BM"),VTOTAL1,SUM(OFFSET(CÁLCULO!$AA$15,ROW($X77)-ROW($X$15),1):OFFSET(CÁLCULO!$AL$15,ROW($X77)-ROW($X$15),-1))),IF($C77=0,0,ROUND(SomaAgrup,15-13*$AF$11))) -> 839.53 | Y77: RA | Z77: RA | AA77: =IF($C77="S",IF($Z77="CP",$X77,IF($Z77="RA",(($X77)*QCI!$AA$3),0)),SomaAgrup) -> 277.33771 | AB77: =IF($C77="S",IF($Z77="OU",ROUND($X77,2),0),SomaAgrup) -> 0 | AC77: =IF($N77=""," ", IF(AND($C77<>"S",OR($R77="",$R77="(digite a descrição aqui)")),"DESCRIÇÃO", IF(AND($C77="S",OR($Q77<>"",$T77>0,$U77>0),$P77=""),"FONTE", IF(AND($C77="S",$P77<>"",OR($T77>0,$U77>0),$Q77=""),"CÓDIGO", IF(AND($C77="S",$P77<>"",$Q77<>"",$R77="(Código não identificado nas referências)"),"CÓDIGO N/ID", IF(AND($C77="S",OR($R77="",$R77="(digite a descrição aqui)"),OR($Q77<>"",$T77>0,$U77>0)),"DESCRIÇÃO", IF(AND($C77="S",$P77<>"",$Q77<>"",$S77=""),"UNIDADE", IF(AND($C77="S",$P77<>"",$Q77<>"",$U77=0),"SEM CUSTO", IF(AND(TIPOORCAMENTO="Licitado",$AL77=0,$AN77>0),"SEM PREÇO", IF(AND($C77="S",$P77<>"",$Q77<>"",$U77>0,AND($V77<>"BDI 1",$V77<>"BDI 2",$V77<>"BDI 3")),IF(ISNUMBER($V77),"JUSTIFICAR BDI","BDI"), IF(OR(AND(import.recurso="OGU",TIPOORCAMENTO="Proposto",LEFT($O$8,5)<>"(N/D:",$AG77<>"",ORÇAMENTO.CustoUnitario>$AG77),AND(TIPOORCAMENTO="LICITADO",ORÇAMENTO.PrecoUnitarioLicitado>$AN77)),"ACIMA REF.", IF(AND($C77="S",$P77<>"",$Q77<>"",$T77=0,$U77>0),"QUANT.", IF(AND(Import.TipoArredondamento="TransfereGOV",$L77="F",$C77="S",LEN($Q77)>13),"Código >13", IF(AND(Import.TipoArredondamento="TransfereGOV",$L77="F",$C77<>"S",LEN($R77)>100),"Descrição >100", IF(AND(Import.TipoArredondamento="TransfereGOV",$L77="F",$C77="S",LEN($R77)>500),"Descrição >500", IF(AND(Import.TipoArredondamento="TransfereGOV",$L77="F",$C77="S",LEFT(TRIM(UPPER($P77)),6)<>"SINAPI",ISNA(VLOOKUP(TRIM(UPPER($S77)),ListaTgov.Unidades,1,FALSE))),"Unid. Não Disp", " ")))))))))))))))) ->  | AD77: =IF(C77<=CRONO.NivelExibicao,MAX($AD$15:OFFSET(AD77,-1,0))+IF($C77<>1,1,MAX(1,COUNTIF(QCI!$A$13:$A$24,OFFSET($E77,-1,0)))),"") ->  | AE77: =IF(AND($C77="S",ORÇAMENTO.CodBarra<>""),IF(ORÇAMENTO.Fonte="",ORÇAMENTO.CodBarra,CONCATENATE(ORÇAMENTO.Fonte," ",ORÇAMENTO.CodBarra))) -> SINAPI 98557 | AF77: =IF(ISERROR(ORÇAMENTO.BancoRef),"(abra o arquivo 'Referência "&Excel_BuiltIn_Database&".xlsm)",IF(OR($C77<>"S",ORÇAMENTO.CodBarra=""),"(Sem Código)",IF(ISERROR(MATCH($AE77,INDIRECT(ORÇAMENTO.BancoRef),0)),"(Código não identificado nas referências)",MATCH($AE77,INDIRECT(ORÇAMENTO.BancoRef),0)))) -> 10353 | AG77: =ROUND(IF(DESONERACAO="sim",REFERENCIA.Desonerado,REFERENCIA.NaoDesonerado),2) -> 43.77 | AH77: 0.2247 | AJ77: 15.66 | AM77: 839.53 | AN77: =ROUND(ORÇAMENTO.CustoUnitario*(1+$AH77),2) -> 53.61
